Workbook

Sheet Macro (hidden)

Sheet Overview

Sheet Select School
B3: =VLOOKUP(C3,SchList!$I$1:$J$499,2,FALSE) -> 9999 | C3: 1

Sheet Reading
A2: Click here to return to the school and sheet selection interface
A3: ='Select School'!B3 -> 9999
A4: =TEXT(A3,"0000")&"-"&VLOOKUP(A3,SchList!$A$2:$B$504,2,FALSE) -> 9999-District
A5: Reading - Grade 9 | Q5: READING
A6: Level of Proficiency at 70% or above | B6: Total # of Students | C6: % of Students Tested | D6: ='G9-10 Matrix'!C$2&" ["&'G9-10 Matrix'!C3&"]" -> Overall [43] | F6: ='G9-10 Matrix'!D$2&" ["&'G9-10 Matrix'!D3&"]" -> Vocabulary [7] | H6: ='G9-10 Matrix'!E$2&" ["&'G9-10 Matrix'!E3&"]" -> Reading Application [22] | J6: ='G9-10 Matrix'!F$2&" ["&'G9-10 Matrix'!F3&"]" -> Literary Analysis Fiction/Nonfiction [6] | L6: ='G9-10 Matrix'!G$2&" ["&'G9-10 Matrix'!G3&"]" -> Informational Text/ Research Process [8] | Q6: Grade 9 Test | S6: Overall | V6: Number Sense | Y6: Measurement | AB6: Geometry | AE6: Algrebraic Thinking | AH6: Data Analysis
D7: Average Score | E7: % Proficient | F7: Average Score | G7: % Proficient | H7: Average Score | I7: % Proficient | J7: Average Score | K7: % Proficient | L7: Average Score | M7: % Proficient | Q7: Number Tested | S7: AVG Combined | T7: % Prof Combined | U7: Number Prof Combined | V7: AVG Combined | W7: % Prof Combined | X7: Number Prof Combined | Y7: AVG Combined | Z7: % Prof Combined | AA7: Number Prof Combined | AB7: AVG Combined | AC7: % Prof Combined | AD7: Number Prof Combined | AE7: AVG Combined | AF7: % Prof Combined | AG7: Number Prof Combined | AH7: AVG Combined | AI7: % Prof Combined | AJ7: Number Prof Combined
A8: All students | B8: =IFERROR(VLOOKUP(TEXT($A$3,"0000"),Mem_All!$A$2:$S$500,13,FALSE),0) -> 27846 | C8: =IFERROR((IF(OR(B8<10,B8="",B8="NA"),"NA",((IF(VLOOKUP($A$3,'G9-RALL'!$A$6:$AM$500,3,FALSE)>=B8,"100% ("&VLOOKUP($A$3,'G9-RALL'!$A$6:$AM$500,3,FALSE)&")",(ROUND((VLOOKUP($A$3,'G9-RALL'!$A$6:$AM$500,3,FALSE)/B8*100),0))&"% ("&IF(VLOOKUP($A$3,'G9-RALL'!$A$6:$AM$500,3,FALSE)="",0,VLOOKUP($A$3,'G9-RALL'!$A$6:$AM$500,3,FALSE))&")"))))),"0% (0)") -> 92% (25640) | D8: =IFERROR((IF($C8="NA","NA",VLOOKUP($A$3,'G9-RALL'!$A$6:$AM$500,4,FALSE))),"NA") -> 23.4199727 | E8: =IFERROR((IF($C8="NA","NA",ROUND(VLOOKUP($A$3,'G9-RALL'!$A$6:$AM$500,6,FALSE),0)&"% ("&IF(VLOOKUP($A$3,'G9-RALL'!$A$6:$AM$500,5,FALSE)="",0,VLOOKUP($A$3,'G9-RALL'!$A$6:$AM$500,5,FALSE))&")")),"NA") -> 30% (7667) | F8: =IFERROR((IF($C8="NA","NA",VLOOKUP($A$3,'G9-RALL'!$A$6:$AM$500,7,FALSE))),"NA") -> 3.921368955 | G8: =IFERROR((IF($C8="NA","NA",ROUND(VLOOKUP($A$3,'G9-RALL'!$A$6:$AM$500,9,FALSE),0)&"% ("&IF(VLOOKUP($A$3,'G9-RALL'!$A$6:$AM$500,8,FALSE)="",0,VLOOKUP($A$3,'G9-RALL'!$A$6:$AM$500,8,FALSE))&")")),"NA") -> 41% (10422) | H8: =IFERROR((IF($C8="NA","NA",VLOOKUP($A$3,'G9-RALL'!$A$6:$AM$500,10,FALSE))),"NA") -> 12.51442278 | I8: =IFERROR((IF($C8="NA","NA",ROUND(VLOOKUP($A$3,'G9-RALL'!$A$6:$AM$500,12,FALSE),0)&"% ("&IF(VLOOKUP($A$3,'G9-RALL'!$A$6:$AM$500,11,FALSE)="",0,VLOOKUP($A$3,'G9-RALL'!$A$6:$AM$500,11,FALSE))&")")),"NA") -> 33% (8410) | J8: =IFERROR((IF($C8="NA","NA",VLOOKUP($A$3,'G9-RALL'!$A$6:$AM$500,13,FALSE))),"NA") -> 3.133549142 | K8: =IFERROR((IF($C8="NA","NA",ROUND(VLOOKUP($A$3,'G9-RALL'!$A$6:$AM$500,15,FALSE),0)&"% ("&IF(VLOOKUP($A$3,'G9-RALL'!$A$6:$AM$500,14,FALSE)="",0,VLOOKUP($A$3,'G9-RALL'!$A$6:$AM$500,14,FALSE))&")")),"NA") -> 19% (4807) | L8: =IFERROR((IF($C8="NA","NA",VLOOKUP($A$3,'G9-RALL'!$A$6:$AM$500,16,FALSE))),"NA") -> 3.850460218 | M8: =IFERROR((IF($C8="NA","NA",ROUND(VLOOKUP($A$3,'G9-RALL'!$A$6:$AM$500,18,FALSE),0)&"% ("&IF(VLOOKUP($A$3,'G9-RALL'!$A$6:$AM$500,17,FALSE)="",0,VLOOKUP($A$3,'G9-RALL'!$A$6:$AM$500,17,FALSE))&")")),"NA") -> 25% (6283) | Q8: =IFERROR(VLOOKUP($A$3,'G9-RALL'!$A$6:$BX$500,3,FALSE),"not tested") -> 25640 | S8: =SUM(VLOOKUP($A$3,'GEO-ALL'!$A$14:$AA$500,4,FALSE)*$Q8,VLOOKUP($A$3,'GEO-ALL'!$A$14:$AA$500,41,FALSE)*$R8)/SUM($Q8,$R8) ->  | T8: =SUM(VLOOKUP($A$3,'GEO-ALL'!$A$14:$AA$500,7,FALSE),VLOOKUP($A$3,'GEO-ALL'!$A$14:$AA$500,44,FALSE))/SUM($Q8:$R8)*100 ->  | U8: =SUM(VLOOKUP($A$3,'GEO-ALL'!$A$14:$AA$500,7,FALSE),VLOOKUP($A$3,'GEO-ALL'!$A$14:$AA$500,44,FALSE)) ->  | V8: =SUM(VLOOKUP($A$3,'GEO-ALL'!$A$14:$AA$500,10,FALSE)*$Q8,VLOOKUP($A$3,'GEO-ALL'!$A$14:$AA$500,47,FALSE)*$R8)/SUM($Q8,$R8) ->  | W8: =SUM(VLOOKUP($A$3,'GEO-ALL'!$A$14:$AA$500,8,FALSE),VLOOKUP($A$3,'GEO-ALL'!$A$14:$AA$500,50,FALSE))/SUM($Q8:$R8)*100 ->  | X8: =SUM(VLOOKUP($A$3,'GEO-ALL'!$A$14:$AA$500,8,FALSE),VLOOKUP($A$3,'GEO-ALL'!$A$14:$AA$500,50,FALSE)) ->  | Y8: =SUM(VLOOKUP($A$3,'GEO-ALL'!$A$14:$AA$500,16,FALSE)*$Q8,VLOOKUP($A$3,'GEO-ALL'!$A$14:$AA$500,53,FALSE)*$R8)/SUM($Q8,$R8) ->  | Z8: =SUM(VLOOKUP($A$3,'GEO-ALL'!$A$14:$AA$500,19,FALSE),VLOOKUP($A$3,'GEO-ALL'!$A$14:$AA$500,56,FALSE))/SUM($Q8:$R8)*100 ->  | AA8: =SUM(VLOOKUP($A$3,'GEO-ALL'!$A$14:$AA$500,19,FALSE),VLOOKUP($A$3,'GEO-ALL'!$A$14:$AA$500,56,FALSE)) ->  | AB8: =SUM(VLOOKUP($A$3,'GEO-ALL'!$A$14:$AA$500,22,FALSE)*$Q8,VLOOKUP($A$3,'GEO-ALL'!$A$14:$AA$500,59,FALSE)*$R8)/SUM($Q8,$R8) ->  | AC8: =SUM(VLOOKUP($A$3,'GEO-ALL'!$A$14:$AA$500,25,FALSE),VLOOKUP($A$3,'GEO-ALL'!$A$14:$AA$500,62,FALSE))/SUM($Q8:$R8)*100 ->  | AD8: =SUM(VLOOKUP($A$3,'GEO-ALL'!$A$14:$AA$500,25,FALSE),VLOOKUP($A$3,'GEO-ALL'!$A$14:$AA$500,62,FALSE)) ->  | AE8: =SUM(VLOOKUP($A$3,'GEO-ALL'!$A$14:$AA$500,28,FALSE)*$Q8,VLOOKUP($A$3,'GEO-ALL'!$A$14:$AA$500,65,FALSE)*$R8)/SUM($Q8,$R8) ->  | AF8: =SUM(VLOOKUP($A$3,'GEO-ALL'!$A$14:$AA$500,31,FALSE),VLOOKUP($A$3,'GEO-ALL'!$A$14:$AA$500,68,FALSE))/SUM($Q8:$R8)*100 ->  | AG8: =SUM(VLOOKUP($A$3,'GEO-ALL'!$A$14:$AA$500,31,FALSE),VLOOKUP($A$3,'GEO-ALL'!$A$14:$AA$500,68,FALSE)) ->  | AH8: =SUM(VLOOKUP($A$3,'GEO-ALL'!$A$14:$AA$500,34,FALSE)*$Q8,VLOOKUP($A$3,'GEO-ALL'!$A$14:$AA$500,71,FALSE)*$R8)/SUM($Q8,$R8) ->  | AI8: =SUM(VLOOKUP($A$3,'GEO-ALL'!$A$14:$AA$500,37,FALSE),VLOOKUP($A$3,'GEO-ALL'!$A$14:$AA$500,74,FALSE))/SUM($Q8:$R8)*100 ->  | AJ8: =SUM(VLOOKUP($A$3,'GEO-ALL'!$A$14:$AA$500,37,FALSE),VLOOKUP($A$3,'GEO-ALL'!$A$14:$AA$500,74,FALSE)) -> 
A9: FCAT Level 1 | B9: =IFERROR(VLOOKUP(TEXT($A$3,"0000"),MEM_RL1!$A$2:$S$500,10,FALSE),0) -> 4810 | C9: =IFERROR((IF(OR(B9<10,B9="",B9="NA"),"NA",((IF(VLOOKUP($A$3,'G9-RL1'!$A$6:$AM$506,3,FALSE)>=B9,"100% ("&VLOOKUP($A$3,'G9-RL1'!$A$6:$AM$506,3,FALSE)&")",(ROUND((VLOOKUP($A$3,'G9-RL1'!$A$6:$AM$506,3,FALSE)/B9*100),0))&"% ("&IF(VLOOKUP($A$3,'G9-RL1'!$A$6:$AM$506,3,FALSE)="",0,VLOOKUP($A$3,'G9-RL1'!$A$6:$AM$506,3,FALSE))&")"))))),"0% (0)") -> 96% (4598) | D9: =IFERROR((IF($C9="NA","NA",VLOOKUP($A$3,'G9-RL1'!$A$6:$AM$506,4,FALSE))),"NA") -> 13.75556764 | E9: =IFERROR((IF($C9="NA","NA",ROUND(VLOOKUP($A$3,'G9-RL1'!$A$6:$AM$506,6,FALSE),0)&"% ("&IF(VLOOKUP($A$3,'G9-RL1'!$A$6:$AM$506,5,FALSE)="",0,VLOOKUP($A$3,'G9-RL1'!$A$6:$AM$506,5,FALSE))&")")),"NA") -> 0% (12) | F9: =IFERROR((IF($C9="NA","NA",VLOOKUP($A$3,'G9-RL1'!$A$6:$AM$506,7,FALSE))),"NA") -> 2.3253806 | G9: =IFERROR((IF($C9="NA","NA",ROUND(VLOOKUP($A$3,'G9-RL1'!$A$6:$AM$506,9,FALSE),0)&"% ("&IF(VLOOKUP($A$3,'G9-RL1'!$A$6:$AM$506,8,FALSE)="",0,VLOOKUP($A$3,'G9-RL1'!$A$6:$AM$506,8,FALSE))&")")),"NA") -> 5% (231) | H9: =IFERROR((IF($C9="NA","NA",VLOOKUP($A$3,'G9-RL1'!$A$6:$AM$506,10,FALSE))),"NA") -> 7.266507177 | I9: =IFERROR((IF($C9="NA","NA",ROUND(VLOOKUP($A$3,'G9-RL1'!$A$6:$AM$506,12,FALSE),0)&"% ("&IF(VLOOKUP($A$3,'G9-RL1'!$A$6:$AM$506,11,FALSE)="",0,VLOOKUP($A$3,'G9-RL1'!$A$6:$AM$506,11,FALSE))&")")),"NA") -> 1% (33) | J9: =IFERROR((IF($C9="NA","NA",VLOOKUP($A$3,'G9-RL1'!$A$6:$AM$506,13,FALSE))),"NA") -> 2.015267508 | K9: =IFERROR((IF($C9="NA","NA",ROUND(VLOOKUP($A$3,'G9-RL1'!$A$6:$AM$506,15,FALSE),0)&"% ("&IF(VLOOKUP($A$3,'G9-RL1'!$A$6:$AM$506,14,FALSE)="",0,VLOOKUP($A$3,'G9-RL1'!$A$6:$AM$506,14,FALSE))&")")),"NA") -> 3% (139) | L9: =IFERROR((IF($C9="NA","NA",VLOOKUP($A$3,'G9-RL1'!$A$6:$AM$506,16,FALSE))),"NA") -> 2.141974772 | M9: =IFERROR((IF($C9="NA","NA",ROUND(VLOOKUP($A$3,'G9-RL1'!$A$6:$AM$506,18,FALSE),0)&"% ("&IF(VLOOKUP($A$3,'G9-RL1'!$A$6:$AM$506,17,FALSE)="",0,VLOOKUP($A$3,'G9-RL1'!$A$6:$AM$506,17,FALSE))&")")),"NA") -> 1% (53) | Q9: =IFERROR(VLOOKUP($A$3,'G9-RL1'!$A$6:$BX$506,3,FALSE),"not tested") -> 4598 | S9: =SUM(VLOOKUP($A$3,'GEO-L1'!$A$14:$BX$500,4,FALSE)*$Q9,VLOOKUP($A$3,'GEO-L1'!$A$14:$BX$500,41,FALSE)*$R9)/SUM($Q9,$R9) -> 9.501036164 | T9: =SUM(VLOOKUP($A$3,'GEO-L1'!$A$14:$BX$500,7,FALSE),VLOOKUP($A$3,'GEO-L1'!$A$14:$BX$500,44,FALSE))/SUM($Q9:$R9)*100 -> 0.1501704096 | U9: =SUM(VLOOKUP($A$3,'GEO-L1'!$A$14:$BX$500,7,FALSE),VLOOKUP($A$3,'GEO-L1'!$A$14:$BX$500,44,FALSE)) -> 6.904835433 | V9: =SUM(VLOOKUP($A$3,'GEO-L1'!$A$14:$BX$500,10,FALSE)*$Q9,VLOOKUP($A$3,'GEO-L1'!$A$14:$BX$500,47,FALSE)*$R9)/SUM($Q9,$R9) -> 1.545184884 | W9: =SUM(VLOOKUP($A$3,'GEO-L1'!$A$14:$BX$500,8,FALSE),VLOOKUP($A$3,'GEO-L1'!$A$14:$BX$500,50,FALSE))/SUM($Q9:$R9)*100 -> 0 | X9: =SUM(VLOOKUP($A$3,'GEO-L1'!$A$14:$BX$500,8,FALSE),VLOOKUP($A$3,'GEO-L1'!$A$14:$BX$500,50,FALSE)) -> 0 | Y9: =SUM(VLOOKUP($A$3,'GEO-L1'!$A$14:$BX$500,16,FALSE)*$Q9,VLOOKUP($A$3,'GEO-L1'!$A$14:$BX$500,53,FALSE)*$R9)/SUM($Q9,$R9) -> 0 | Z9: =SUM(VLOOKUP($A$3,'GEO-L1'!$A$14:$BX$500,19,FALSE),VLOOKUP($A$3,'GEO-L1'!$A$14:$BX$500,56,FALSE))/SUM($Q9:$R9)*100 -> 0 | AA9: =SUM(VLOOKUP($A$3,'GEO-L1'!$A$14:$BX$500,19,FALSE),VLOOKUP($A$3,'GEO-L1'!$A$14:$BX$500,56,FALSE)) -> 0 | AB9: =SUM(VLOOKUP($A$3,'GEO-L1'!$A$14:$BX$500,22,FALSE)*$Q9,VLOOKUP($A$3,'GEO-L1'!$A$14:$BX$500,59,FALSE)*$R9)/SUM($Q9,$R9) -> 0 | AC9: =SUM(VLOOKUP($A$3,'GEO-L1'!$A$14:$BX$500,25,FALSE),VLOOKUP($A$3,'GEO-L1'!$A$14:$BX$500,62,FALSE))/SUM($Q9:$R9)*100 -> 0 | AD9: =SUM(VLOOKUP($A$3,'GEO-L1'!$A$14:$BX$500,25,FALSE),VLOOKUP($A$3,'GEO-L1'!$A$14:$BX$500,62,FALSE)) -> 0 | AE9: =SUM(VLOOKUP($A$3,'GEO-L1'!$A$14:$BX$500,28,FALSE)*$Q9,VLOOKUP($A$3,'GEO-L1'!$A$14:$BX$500,65,FALSE)*$R9)/SUM($Q9,$R9) -> 0 | AF9: =SUM(VLOOKUP($A$3,'GEO-L1'!$A$14:$BX$500,31,FALSE),VLOOKUP($A$3,'GEO-L1'!$A$14:$BX$500,68,FALSE))/SUM($Q9:$R9)*100 -> 0 | AG9: =SUM(VLOOKUP($A$3,'GEO-L1'!$A$14:$BX$500,31,FALSE),VLOOKUP($A$3,'GEO-L1'!$A$14:$BX$500,68,FALSE)) -> 0 | AH9: =SUM(VLOOKUP($A$3,'GEO-L1'!$A$14:$BX$500,34,FALSE)*$Q9,VLOOKUP($A$3,'GEO-L1'!$A$14:$BX$500,71,FALSE)*$R9)/SUM($Q9,$R9) -> 0 | AI9: =SUM(VLOOKUP($A$3,'GEO-L1'!$A$14:$BX$500,37,FALSE),VLOOKUP($A$3,'GEO-L1'!$A$14:$BX$500,74,FALSE))/SUM($Q9:$R9)*100 -> 0 | AJ9: =SUM(VLOOKUP($A$3,'GEO-L1'!$A$14:$BX$500,37,FALSE),VLOOKUP($A$3,'GEO-L1'!$A$14:$BX$500,74,FALSE)) -> 0
A10: FCAT Level 2 | B10: =IFERROR(VLOOKUP(TEXT($A$3,"0000"),MEM_RL2!$A$2:$S$500,10,FALSE),0) -> 7043 | C10: =IFERROR((IF(OR(B10<10,B10="",B10="NA"),"NA",((IF(VLOOKUP($A$3,'G9-RL2'!$A$6:$AM$500,3,FALSE)>=B10,"100% ("&VLOOKUP($A$3,'G9-RL2'!$A$6:$AM$500,3,FALSE)&")",(ROUND((VLOOKUP($A$3,'G9-RL2'!$A$6:$AM$500,3,FALSE)/B10*100),0))&"% ("&IF(VLOOKUP($A$3,'G9-RL2'!$A$6:$AM$500,3,FALSE)="",0,VLOOKUP($A$3,'G9-RL2'!$A$6:$AM$500,3,FALSE))&")"))))),"0% (0)") -> 89% (6256) | D10: =IFERROR((IF($C10="NA","NA",VLOOKUP($A$3,'G9-RL2'!$A$6:$AM$500,4,FALSE))),"NA") -> 19.52957161 | E10: =IFERROR((IF($C10="NA","NA",ROUND(VLOOKUP($A$3,'G9-RL2'!$A$6:$AM$500,6,FALSE),0)&"% ("&IF(VLOOKUP($A$3,'G9-RL2'!$A$6:$AM$500,5,FALSE)="",0,VLOOKUP($A$3,'G9-RL2'!$A$6:$AM$500,5,FALSE))&")")),"NA") -> 5% (288) | F10: =IFERROR((IF($C10="NA","NA",VLOOKUP($A$3,'G9-RL2'!$A$6:$AM$500,7,FALSE))),"NA") -> 3.331649616 | G10: =IFERROR((IF($C10="NA","NA",ROUND(VLOOKUP($A$3,'G9-RL2'!$A$6:$AM$500,9,FALSE),0)&"% ("&IF(VLOOKUP($A$3,'G9-RL2'!$A$6:$AM$500,8,FALSE)="",0,VLOOKUP($A$3,'G9-RL2'!$A$6:$AM$500,8,FALSE))&")")),"NA") -> 21% (1311) | H10: =IFERROR((IF($C10="NA","NA",VLOOKUP($A$3,'G9-RL2'!$A$6:$AM$500,10,FALSE))),"NA") -> 10.45361253 | I10: =IFERROR((IF($C10="NA","NA",ROUND(VLOOKUP($A$3,'G9-RL2'!$A$6:$AM$500,12,FALSE),0)&"% ("&IF(VLOOKUP($A$3,'G9-RL2'!$A$6:$AM$500,11,FALSE)="",0,VLOOKUP($A$3,'G9-RL2'!$A$6:$AM$500,11,FALSE))&")")),"NA") -> 8% (528) | J10: =IFERROR((IF($C10="NA","NA",VLOOKUP($A$3,'G9-RL2'!$A$6:$AM$500,13,FALSE))),"NA") -> 2.739482097 | K10: =IFERROR((IF($C10="NA","NA",ROUND(VLOOKUP($A$3,'G9-RL2'!$A$6:$AM$500,15,FALSE),0)&"% ("&IF(VLOOKUP($A$3,'G9-RL2'!$A$6:$AM$500,14,FALSE)="",0,VLOOKUP($A$3,'G9-RL2'!$A$6:$AM$500,14,FALSE))&")")),"NA") -> 8% (531) | L10: =IFERROR((IF($C10="NA","NA",VLOOKUP($A$3,'G9-RL2'!$A$6:$AM$500,16,FALSE))),"NA") -> 3.010374041 | M10: =IFERROR((IF($C10="NA","NA",ROUND(VLOOKUP($A$3,'G9-RL2'!$A$6:$AM$500,18,FALSE),0)&"% ("&IF(VLOOKUP($A$3,'G9-RL2'!$A$6:$AM$500,17,FALSE)="",0,VLOOKUP($A$3,'G9-RL2'!$A$6:$AM$500,17,FALSE))&")")),"NA") -> 7% (437) | Q10: =IFERROR(VLOOKUP($A$3,'G9-RL2'!$A$6:$BX$500,3,FALSE),"not tested") -> 6256 | S10: =SUM(VLOOKUP($A$3,'GEO-L2'!$A$14:$BX$500,4,FALSE)*$Q10,VLOOKUP($A$3,'GEO-L2'!$A$14:$BX$500,41,FALSE)*$R10)/SUM($Q10,$R10) -> 10.1211241 | T10: =SUM(VLOOKUP($A$3,'GEO-L2'!$A$14:$BX$500,7,FALSE),VLOOKUP($A$3,'GEO-L2'!$A$14:$BX$500,44,FALSE))/SUM($Q10:$R10)*100 -> 0.1179445627 | U10: =SUM(VLOOKUP($A$3,'GEO-L2'!$A$14:$BX$500,7,FALSE),VLOOKUP($A$3,'GEO-L2'!$A$14:$BX$500,44,FALSE)) -> 7.378611845 | V10: =SUM(VLOOKUP($A$3,'GEO-L2'!$A$14:$BX$500,10,FALSE)*$Q10,VLOOKUP($A$3,'GEO-L2'!$A$14:$BX$500,47,FALSE)*$R10)/SUM($Q10,$R10) -> 1.60350811 | W10: =SUM(VLOOKUP($A$3,'GEO-L2'!$A$14:$BX$500,8,FALSE),VLOOKUP($A$3,'GEO-L2'!$A$14:$BX$500,50,FALSE))/SUM($Q10:$R10)*100 -> 0 | X10: =SUM(VLOOKUP($A$3,'GEO-L2'!$A$14:$BX$500,8,FALSE),VLOOKUP($A$3,'GEO-L2'!$A$14:$BX$500,50,FALSE)) -> 0 | Y10: =SUM(VLOOKUP($A$3,'GEO-L2'!$A$14:$BX$500,16,FALSE)*$Q10,VLOOKUP($A$3,'GEO-L2'!$A$14:$BX$500,53,FALSE)*$R10)/SUM($Q10,$R10) -> 0 | Z10: =SUM(VLOOKUP($A$3,'GEO-L2'!$A$14:$BX$500,19,FALSE),VLOOKUP($A$3,'GEO-L2'!$A$14:$BX$500,56,FALSE))/SUM($Q10:$R10)*100 -> 0 | AA10: =SUM(VLOOKUP($A$3,'GEO-L2'!$A$14:$BX$500,19,FALSE),VLOOKUP($A$3,'GEO-L2'!$A$14:$BX$500,56,FALSE)) -> 0 | AB10: =SUM(VLOOKUP($A$3,'GEO-L2'!$A$14:$BX$500,22,FALSE)*$Q10,VLOOKUP($A$3,'GEO-L2'!$A$14:$BX$500,59,FALSE)*$R10)/SUM($Q10,$R10) -> 0 | AC10: =SUM(VLOOKUP($A$3,'GEO-L2'!$A$14:$BX$500,25,FALSE),VLOOKUP($A$3,'GEO-L2'!$A$14:$BX$500,62,FALSE))/SUM($Q10:$R10)*100 -> 0 | AD10: =SUM(VLOOKUP($A$3,'GEO-L2'!$A$14:$BX$500,25,FALSE),VLOOKUP($A$3,'GEO-L2'!$A$14:$BX$500,62,FALSE)) -> 0 | AE10: =SUM(VLOOKUP($A$3,'GEO-L2'!$A$14:$BX$500,28,FALSE)*$Q10,VLOOKUP($A$3,'GEO-L2'!$A$14:$BX$500,65,FALSE)*$R10)/SUM($Q10,$R10) -> 0 | AF10: =SUM(VLOOKUP($A$3,'GEO-L2'!$A$14:$BX$500,31,FALSE),VLOOKUP($A$3,'GEO-L2'!$A$14:$BX$500,68,FALSE))/SUM($Q10:$R10)*100 -> 0 | AG10: =SUM(VLOOKUP($A$3,'GEO-L2'!$A$14:$BX$500,31,FALSE),VLOOKUP($A$3,'GEO-L2'!$A$14:$BX$500,68,FALSE)) -> 0 | AH10: =SUM(VLOOKUP($A$3,'GEO-L2'!$A$14:$BX$500,34,FALSE)*$Q10,VLOOKUP($A$3,'GEO-L2'!$A$14:$BX$500,71,FALSE)*$R10)/SUM($Q10,$R10) -> 0 | AI10: =SUM(VLOOKUP($A$3,'GEO-L2'!$A$14:$BX$500,37,FALSE),VLOOKUP($A$3,'GEO-L2'!$A$14:$BX$500,74,FALSE))/SUM($Q10:$R10)*100 -> 0 | AJ10: =SUM(VLOOKUP($A$3,'GEO-L2'!$A$14:$BX$500,37,FALSE),VLOOKUP($A$3,'GEO-L2'!$A$14:$BX$500,74,FALSE)) -> 0
A11: FCAT Level 3 | B11: =IFERROR(VLOOKUP(TEXT($A$3,"0000"),MEM_RL3!$A$2:$S$500,10,FALSE),0) -> 6653 | C11: =IFERROR((IF(OR(B11<10,B11="",B11="NA"),"NA",((IF(VLOOKUP($A$3,'G9-RL3'!$A$6:$AM$500,3,FALSE)>=B11,"100% ("&VLOOKUP($A$3,'G9-RL3'!$A$6:$AM$500,3,FALSE)&")",(ROUND((VLOOKUP($A$3,'G9-RL3'!$A$6:$AM$500,3,FALSE)/B11*100),0))&"% ("&IF(VLOOKUP($A$3,'G9-RL3'!$A$6:$AM$500,3,FALSE)="",0,VLOOKUP($A$3,'G9-RL3'!$A$6:$AM$500,3,FALSE))&")"))))),"0% (0)") -> 96% (6408) | D11: =IFERROR((IF($C11="NA","NA",VLOOKUP($A$3,'G9-RL3'!$A$6:$AM$500,4,FALSE))),"NA") -> 25.05533708 | E11: =IFERROR((IF($C11="NA","NA",ROUND(VLOOKUP($A$3,'G9-RL3'!$A$6:$AM$500,6,FALSE),0)&"% ("&IF(VLOOKUP($A$3,'G9-RL3'!$A$6:$AM$500,5,FALSE)="",0,VLOOKUP($A$3,'G9-RL3'!$A$6:$AM$500,5,FALSE))&")")),"NA") -> 27% (1762) | F11: =IFERROR((IF($C11="NA","NA",VLOOKUP($A$3,'G9-RL3'!$A$6:$AM$500,7,FALSE))),"NA") -> 4.246722846 | G11: =IFERROR((IF($C11="NA","NA",ROUND(VLOOKUP($A$3,'G9-RL3'!$A$6:$AM$500,9,FALSE),0)&"% ("&IF(VLOOKUP($A$3,'G9-RL3'!$A$6:$AM$500,8,FALSE)="",0,VLOOKUP($A$3,'G9-RL3'!$A$6:$AM$500,8,FALSE))&")")),"NA") -> 47% (3010) | H11: =IFERROR((IF($C11="NA","NA",VLOOKUP($A$3,'G9-RL3'!$A$6:$AM$500,10,FALSE))),"NA") -> 13.41805556 | I11: =IFERROR((IF($C11="NA","NA",ROUND(VLOOKUP($A$3,'G9-RL3'!$A$6:$AM$500,12,FALSE),0)&"% ("&IF(VLOOKUP($A$3,'G9-RL3'!$A$6:$AM$500,11,FALSE)="",0,VLOOKUP($A$3,'G9-RL3'!$A$6:$AM$500,11,FALSE))&")")),"NA") -> 33% (2104) | J11: =IFERROR((IF($C11="NA","NA",VLOOKUP($A$3,'G9-RL3'!$A$6:$AM$500,13,FALSE))),"NA") -> 3.311828964 | K11: =IFERROR((IF($C11="NA","NA",ROUND(VLOOKUP($A$3,'G9-RL3'!$A$6:$AM$500,15,FALSE),0)&"% ("&IF(VLOOKUP($A$3,'G9-RL3'!$A$6:$AM$500,14,FALSE)="",0,VLOOKUP($A$3,'G9-RL3'!$A$6:$AM$500,14,FALSE))&")")),"NA") -> 18% (1134) | L11: =IFERROR((IF($C11="NA","NA",VLOOKUP($A$3,'G9-RL3'!$A$6:$AM$500,16,FALSE))),"NA") -> 4.097815231 | M11: =IFERROR((IF($C11="NA","NA",ROUND(VLOOKUP($A$3,'G9-RL3'!$A$6:$AM$500,18,FALSE),0)&"% ("&IF(VLOOKUP($A$3,'G9-RL3'!$A$6:$AM$500,17,FALSE)="",0,VLOOKUP($A$3,'G9-RL3'!$A$6:$AM$500,17,FALSE))&")")),"NA") -> 23% (1478) | Q11: =IFERROR(VLOOKUP($A$3,'G9-RL3'!$A$6:$BX$500,3,FALSE),"not tested") -> 6408 | S11: =SUM(VLOOKUP($A$3,'GEO-L3'!$A$14:$BX$500,4,FALSE)*$Q11,VLOOKUP($A$3,'GEO-L3'!$A$14:$BX$500,41,FALSE)*$R11)/SUM($Q11,$R11) -> 10.97338913 | T11: =SUM(VLOOKUP($A$3,'GEO-L3'!$A$14:$BX$500,7,FALSE),VLOOKUP($A$3,'GEO-L3'!$A$14:$BX$500,44,FALSE))/SUM($Q11:$R11)*100 -> 0.1243347358 | U11: =SUM(VLOOKUP($A$3,'GEO-L3'!$A$14:$BX$500,7,FALSE),VLOOKUP($A$3,'GEO-L3'!$A$14:$BX$500,44,FALSE)) -> 7.967369869 | V11: =SUM(VLOOKUP($A$3,'GEO-L3'!$A$14:$BX$500,10,FALSE)*$Q11,VLOOKUP($A$3,'GEO-L3'!$A$14:$BX$500,47,FALSE)*$R11)/SUM($Q11,$R11) -> 1.72266682 | W11: =SUM(VLOOKUP($A$3,'GEO-L3'!$A$14:$BX$500,8,FALSE),VLOOKUP($A$3,'GEO-L3'!$A$14:$BX$500,50,FALSE))/SUM($Q11:$R11)*100 -> 0.03121098627 | X11: =SUM(VLOOKUP($A$3,'GEO-L3'!$A$14:$BX$500,8,FALSE),VLOOKUP($A$3,'GEO-L3'!$A$14:$BX$500,50,FALSE)) -> 2 | Y11: =SUM(VLOOKUP($A$3,'GEO-L3'!$A$14:$BX$500,16,FALSE)*$Q11,VLOOKUP($A$3,'GEO-L3'!$A$14:$BX$500,53,FALSE)*$R11)/SUM($Q11,$R11) -> 0 | Z11: =SUM(VLOOKUP($A$3,'GEO-L3'!$A$14:$BX$500,19,FALSE),VLOOKUP($A$3,'GEO-L3'!$A$14:$BX$500,56,FALSE))/SUM($Q11:$R11)*100 -> 0 | AA11: =SUM(VLOOKUP($A$3,'GEO-L3'!$A$14:$BX$500,19,FALSE),VLOOKUP($A$3,'GEO-L3'!$A$14:$BX$500,56,FALSE)) -> 0 | AB11: =SUM(VLOOKUP($A$3,'GEO-L3'!$A$14:$BX$500,22,FALSE)*$Q11,VLOOKUP($A$3,'GEO-L3'!$A$14:$BX$500,59,FALSE)*$R11)/SUM($Q11,$R11) -> 0 | AC11: =SUM(VLOOKUP($A$3,'GEO-L3'!$A$14:$BX$500,25,FALSE),VLOOKUP($A$3,'GEO-L3'!$A$14:$BX$500,62,FALSE))/SUM($Q11:$R11)*100 -> 0 | AD11: =SUM(VLOOKUP($A$3,'GEO-L3'!$A$14:$BX$500,25,FALSE),VLOOKUP($A$3,'GEO-L3'!$A$14:$BX$500,62,FALSE)) -> 0 | AE11: =SUM(VLOOKUP($A$3,'GEO-L3'!$A$14:$BX$500,28,FALSE)*$Q11,VLOOKUP($A$3,'GEO-L3'!$A$14:$BX$500,65,FALSE)*$R11)/SUM($Q11,$R11) -> 0 | AF11: =SUM(VLOOKUP($A$3,'GEO-L3'!$A$14:$BX$500,31,FALSE),VLOOKUP($A$3,'GEO-L3'!$A$14:$BX$500,68,FALSE))/SUM($Q11:$R11)*100 -> 0 | AG11: =SUM(VLOOKUP($A$3,'GEO-L3'!$A$14:$BX$500,31,FALSE),VLOOKUP($A$3,'GEO-L3'!$A$14:$BX$500,68,FALSE)) -> 0 | AH11: =SUM(VLOOKUP($A$3,'GEO-L3'!$A$14:$BX$500,34,FALSE)*$Q11,VLOOKUP($A$3,'GEO-L3'!$A$14:$BX$500,71,FALSE)*$R11)/SUM($Q11,$R11) -> 0 | AI11: =SUM(VLOOKUP($A$3,'GEO-L3'!$A$14:$BX$500,37,FALSE),VLOOKUP($A$3,'GEO-L3'!$A$14:$BX$500,74,FALSE))/SUM($Q11:$R11)*100 -> 0 | AJ11: =SUM(VLOOKUP($A$3,'GEO-L3'!$A$14:$BX$500,37,FALSE),VLOOKUP($A$3,'GEO-L3'!$A$14:$BX$500,74,FALSE)) -> 0
A12: FCAT Level 4 | B12: =IFERROR(VLOOKUP(TEXT($A$3,"0000"),MEM_RL4!$A$2:$S$500,10,FALSE),0) -> 4782 | C12: =IFERROR((IF(OR(B12<10,B12="",B12="NA"),"NA",((IF(VLOOKUP($A$3,'G9-RL4'!$A$6:$AM$500,3,FALSE)>=B12,"100% ("&VLOOKUP($A$3,'G9-RL4'!$A$6:$AM$500,3,FALSE)&")",(ROUND((VLOOKUP($A$3,'G9-RL4'!$A$6:$AM$500,3,FALSE)/B12*100),0))&"% ("&IF(VLOOKUP($A$3,'G9-RL4'!$A$6:$AM$500,3,FALSE)="",0,VLOOKUP($A$3,'G9-RL4'!$A$6:$AM$500,3,FALSE))&")"))))),"0% (0)") -> 97% (4656) | D12: =IFERROR((IF($C12="NA","NA",VLOOKUP($A$3,'G9-RL4'!$A$6:$AM$500,4,FALSE))),"NA") -> 30.45040808 | E12: =IFERROR((IF($C12="NA","NA",ROUND(VLOOKUP($A$3,'G9-RL4'!$A$6:$AM$500,6,FALSE),0)&"% ("&IF(VLOOKUP($A$3,'G9-RL4'!$A$6:$AM$500,5,FALSE)="",0,VLOOKUP($A$3,'G9-RL4'!$A$6:$AM$500,5,FALSE))&")")),"NA") -> 65% (3030) | F12: =IFERROR((IF($C12="NA","NA",VLOOKUP($A$3,'G9-RL4'!$A$6:$AM$500,7,FALSE))),"NA") -> 5.021219931 | G12: =IFERROR((IF($C12="NA","NA",ROUND(VLOOKUP($A$3,'G9-RL4'!$A$6:$AM$500,9,FALSE),0)&"% ("&IF(VLOOKUP($A$3,'G9-RL4'!$A$6:$AM$500,8,FALSE)="",0,VLOOKUP($A$3,'G9-RL4'!$A$6:$AM$500,8,FALSE))&")")),"NA") -> 71% (3285) | H12: =IFERROR((IF($C12="NA","NA",VLOOKUP($A$3,'G9-RL4'!$A$6:$AM$500,10,FALSE))),"NA") -> 16.31303694 | I12: =IFERROR((IF($C12="NA","NA",ROUND(VLOOKUP($A$3,'G9-RL4'!$A$6:$AM$500,12,FALSE),0)&"% ("&IF(VLOOKUP($A$3,'G9-RL4'!$A$6:$AM$500,11,FALSE)="",0,VLOOKUP($A$3,'G9-RL4'!$A$6:$AM$500,11,FALSE))&")")),"NA") -> 68% (3152) | J12: =IFERROR((IF($C12="NA","NA",VLOOKUP($A$3,'G9-RL4'!$A$6:$AM$500,13,FALSE))),"NA") -> 3.91443299 | K12: =IFERROR((IF($C12="NA","NA",ROUND(VLOOKUP($A$3,'G9-RL4'!$A$6:$AM$500,15,FALSE),0)&"% ("&IF(VLOOKUP($A$3,'G9-RL4'!$A$6:$AM$500,14,FALSE)="",0,VLOOKUP($A$3,'G9-RL4'!$A$6:$AM$500,14,FALSE))&")")),"NA") -> 33% (1540) | L12: =IFERROR((IF($C12="NA","NA",VLOOKUP($A$3,'G9-RL4'!$A$6:$AM$500,16,FALSE))),"NA") -> 5.200579897 | M12: =IFERROR((IF($C12="NA","NA",ROUND(VLOOKUP($A$3,'G9-RL4'!$A$6:$AM$500,18,FALSE),0)&"% ("&IF(VLOOKUP($A$3,'G9-RL4'!$A$6:$AM$500,17,FALSE)="",0,VLOOKUP($A$3,'G9-RL4'!$A$6:$AM$500,17,FALSE))&")")),"NA") -> 48% (2251) | Q12: =IFERROR(VLOOKUP($A$3,'G9-RL4'!$A$6:$BX$500,3,FALSE),"not tested") -> 4656 | S12: =SUM(VLOOKUP($A$3,'GEO-L4'!$A$14:$BX$500,4,FALSE)*$Q12,VLOOKUP($A$3,'GEO-L4'!$A$14:$BX$500,41,FALSE)*$R12)/SUM($Q12,$R12) -> 12.27022177 | T12: =SUM(VLOOKUP($A$3,'GEO-L4'!$A$14:$BX$500,7,FALSE),VLOOKUP($A$3,'GEO-L4'!$A$14:$BX$500,44,FALSE))/SUM($Q12:$R12)*100 -> 0.1899015145 | U12: =SUM(VLOOKUP($A$3,'GEO-L4'!$A$14:$BX$500,7,FALSE),VLOOKUP($A$3,'GEO-L4'!$A$14:$BX$500,44,FALSE)) -> 8.841814516 | V12: =SUM(VLOOKUP($A$3,'GEO-L4'!$A$14:$BX$500,10,FALSE)*$Q12,VLOOKUP($A$3,'GEO-L4'!$A$14:$BX$500,47,FALSE)*$R12)/SUM($Q12,$R12) -> 2.032399194 | W12: =SUM(VLOOKUP($A$3,'GEO-L4'!$A$14:$BX$500,8,FALSE),VLOOKUP($A$3,'GEO-L4'!$A$14:$BX$500,50,FALSE))/SUM($Q12:$R12)*100 -> 0.1073883162 | X12: =SUM(VLOOKUP($A$3,'GEO-L4'!$A$14:$BX$500,8,FALSE),VLOOKUP($A$3,'GEO-L4'!$A$14:$BX$500,50,FALSE)) -> 5 | Y12: =SUM(VLOOKUP($A$3,'GEO-L4'!$A$14:$BX$500,16,FALSE)*$Q12,VLOOKUP($A$3,'GEO-L4'!$A$14:$BX$500,53,FALSE)*$R12)/SUM($Q12,$R12) -> 0 | Z12: =SUM(VLOOKUP($A$3,'GEO-L4'!$A$14:$BX$500,19,FALSE),VLOOKUP($A$3,'GEO-L4'!$A$14:$BX$500,56,FALSE))/SUM($Q12:$R12)*100 -> 0 | AA12: =SUM(VLOOKUP($A$3,'GEO-L4'!$A$14:$BX$500,19,FALSE),VLOOKUP($A$3,'GEO-L4'!$A$14:$BX$500,56,FALSE)) -> 0 | AB12: =SUM(VLOOKUP($A$3,'GEO-L4'!$A$14:$BX$500,22,FALSE)*$Q12,VLOOKUP($A$3,'GEO-L4'!$A$14:$BX$500,59,FALSE)*$R12)/SUM($Q12,$R12) -> 0 | AC12: =SUM(VLOOKUP($A$3,'GEO-L4'!$A$14:$BX$500,25,FALSE),VLOOKUP($A$3,'GEO-L4'!$A$14:$BX$500,62,FALSE))/SUM($Q12:$R12)*100 -> 0 | AD12: =SUM(VLOOKUP($A$3,'GEO-L4'!$A$14:$BX$500,25,FALSE),VLOOKUP($A$3,'GEO-L4'!$A$14:$BX$500,62,FALSE)) -> 0 | AE12: =SUM(VLOOKUP($A$3,'GEO-L4'!$A$14:$BX$500,28,FALSE)*$Q12,VLOOKUP($A$3,'GEO-L4'!$A$14:$BX$500,65,FALSE)*$R12)/SUM($Q12,$R12) -> 0 | AF12: =SUM(VLOOKUP($A$3,'GEO-L4'!$A$14:$BX$500,31,FALSE),VLOOKUP($A$3,'GEO-L4'!$A$14:$BX$500,68,FALSE))/SUM($Q12:$R12)*100 -> 0 | AG12: =SUM(VLOOKUP($A$3,'GEO-L4'!$A$14:$BX$500,31,FALSE),VLOOKUP($A$3,'GEO-L4'!$A$14:$BX$500,68,FALSE)) -> 0 | AH12: =SUM(VLOOKUP($A$3,'GEO-L4'!$A$14:$BX$500,34,FALSE)*$Q12,VLOOKUP($A$3,'GEO-L4'!$A$14:$BX$500,71,FALSE)*$R12)/SUM($Q12,$R12) -> 0 | AI12: =SUM(VLOOKUP($A$3,'GEO-L4'!$A$14:$BX$500,37,FALSE),VLOOKUP($A$3,'GEO-L4'!$A$14:$BX$500,74,FALSE))/SUM($Q12:$R12)*100 -> 0 | AJ12: =SUM(VLOOKUP($A$3,'GEO-L4'!$A$14:$BX$500,37,FALSE),VLOOKUP($A$3,'GEO-L4'!$A$14:$BX$500,74,FALSE)) -> 0
A13: FCAT Level 5 | B13: =IFERROR(VLOOKUP(TEXT($A$3,"0000"),MEM_RL5!$A$2:$S$500,9,FALSE),0) -> 2754 | C13: =IFERROR((IF(OR(B13<10,B13="",B13="NA"),"NA",((IF(VLOOKUP($A$3,'G9-RL5'!$A$6:$AM$500,3,FALSE)>=B13,"100% ("&VLOOKUP($A$3,'G9-RL5'!$A$6:$AM$500,3,FALSE)&")",(ROUND((VLOOKUP($A$3,'G9-RL5'!$A$6:$AM$500,3,FALSE)/B13*100),0))&"% ("&IF(VLOOKUP($A$3,'G9-RL5'!$A$6:$AM$500,3,FALSE)="",0,VLOOKUP($A$3,'G9-RL5'!$A$6:$AM$500,3,FALSE))&")"))))),"0% (0)") -> 97% (2661) | D13: =IFERROR((IF($C13="NA","NA",VLOOKUP($A$3,'G9-RL5'!$A$6:$AM$500,4,FALSE))),"NA") -> 34.52341225 | E13: =IFERROR((IF($C13="NA","NA",ROUND(VLOOKUP($A$3,'G9-RL5'!$A$6:$AM$500,6,FALSE),0)&"% ("&IF(VLOOKUP($A$3,'G9-RL5'!$A$6:$AM$500,5,FALSE)="",0,VLOOKUP($A$3,'G9-RL5'!$A$6:$AM$500,5,FALSE))&")")),"NA") -> 89% (2361) | F13: =IFERROR((IF($C13="NA","NA",VLOOKUP($A$3,'G9-RL5'!$A$6:$AM$500,7,FALSE))),"NA") -> 5.620481022 | G13: =IFERROR((IF($C13="NA","NA",ROUND(VLOOKUP($A$3,'G9-RL5'!$A$6:$AM$500,9,FALSE),0)&"% ("&IF(VLOOKUP($A$3,'G9-RL5'!$A$6:$AM$500,8,FALSE)="",0,VLOOKUP($A$3,'G9-RL5'!$A$6:$AM$500,8,FALSE))&")")),"NA") -> 85% (2274) | H13: =IFERROR((IF($C13="NA","NA",VLOOKUP($A$3,'G9-RL5'!$A$6:$AM$500,10,FALSE))),"NA") -> 18.49007892 | I13: =IFERROR((IF($C13="NA","NA",ROUND(VLOOKUP($A$3,'G9-RL5'!$A$6:$AM$500,12,FALSE),0)&"% ("&IF(VLOOKUP($A$3,'G9-RL5'!$A$6:$AM$500,11,FALSE)="",0,VLOOKUP($A$3,'G9-RL5'!$A$6:$AM$500,11,FALSE))&")")),"NA") -> 89% (2362) | J13: =IFERROR((IF($C13="NA","NA",VLOOKUP($A$3,'G9-RL5'!$A$6:$AM$500,13,FALSE))),"NA") -> 4.39736941 | K13: =IFERROR((IF($C13="NA","NA",ROUND(VLOOKUP($A$3,'G9-RL5'!$A$6:$AM$500,15,FALSE),0)&"% ("&IF(VLOOKUP($A$3,'G9-RL5'!$A$6:$AM$500,14,FALSE)="",0,VLOOKUP($A$3,'G9-RL5'!$A$6:$AM$500,14,FALSE))&")")),"NA") -> 50% (1335) | L13: =IFERROR((IF($C13="NA","NA",VLOOKUP($A$3,'G9-RL5'!$A$6:$AM$500,16,FALSE))),"NA") -> 6.021495678 | M13: =IFERROR((IF($C13="NA","NA",ROUND(VLOOKUP($A$3,'G9-RL5'!$A$6:$AM$500,18,FALSE),0)&"% ("&IF(VLOOKUP($A$3,'G9-RL5'!$A$6:$AM$500,17,FALSE)="",0,VLOOKUP($A$3,'G9-RL5'!$A$6:$AM$500,17,FALSE))&")")),"NA") -> 71% (1882) | Q13: =IFERROR(VLOOKUP($A$3,'G9-RL5'!$A$6:$BX$500,3,FALSE),"not tested") -> 2661 | S13: =SUM(VLOOKUP($A$3,'GEO-L5'!$A$14:$BX$500,4,FALSE)*$Q13,VLOOKUP($A$3,'GEO-L5'!$A$14:$BX$500,41,FALSE)*$R13)/SUM($Q13,$R13) -> 14.45371316 | T13: =SUM(VLOOKUP($A$3,'GEO-L5'!$A$14:$BX$500,7,FALSE),VLOOKUP($A$3,'GEO-L5'!$A$14:$BX$500,44,FALSE))/SUM($Q13:$R13)*100 -> 0.3861127292 | U13: =SUM(VLOOKUP($A$3,'GEO-L5'!$A$14:$BX$500,7,FALSE),VLOOKUP($A$3,'GEO-L5'!$A$14:$BX$500,44,FALSE)) -> 10.27445972 | V13: =SUM(VLOOKUP($A$3,'GEO-L5'!$A$14:$BX$500,10,FALSE)*$Q13,VLOOKUP($A$3,'GEO-L5'!$A$14:$BX$500,47,FALSE)*$R13)/SUM($Q13,$R13) -> 2.636267191 | W13: =SUM(VLOOKUP($A$3,'GEO-L5'!$A$14:$BX$500,8,FALSE),VLOOKUP($A$3,'GEO-L5'!$A$14:$BX$500,50,FALSE))/SUM($Q13:$R13)*100 -> 1.352874859 | X13: =SUM(VLOOKUP($A$3,'GEO-L5'!$A$14:$BX$500,8,FALSE),VLOOKUP($A$3,'GEO-L5'!$A$14:$BX$500,50,FALSE)) -> 36 | Y13: =SUM(VLOOKUP($A$3,'GEO-L5'!$A$14:$BX$500,16,FALSE)*$Q13,VLOOKUP($A$3,'GEO-L5'!$A$14:$BX$500,53,FALSE)*$R13)/SUM($Q13,$R13) -> 0 | Z13: =SUM(VLOOKUP($A$3,'GEO-L5'!$A$14:$BX$500,19,FALSE),VLOOKUP($A$3,'GEO-L5'!$A$14:$BX$500,56,FALSE))/SUM($Q13:$R13)*100 -> 0 | AA13: =SUM(VLOOKUP($A$3,'GEO-L5'!$A$14:$BX$500,19,FALSE),VLOOKUP($A$3,'GEO-L5'!$A$14:$BX$500,56,FALSE)) -> 0 | AB13: =SUM(VLOOKUP($A$3,'GEO-L5'!$A$14:$BX$500,22,FALSE)*$Q13,VLOOKUP($A$3,'GEO-L5'!$A$14:$BX$500,59,FALSE)*$R13)/SUM($Q13,$R13) -> 0 | AC13: =SUM(VLOOKUP($A$3,'GEO-L5'!$A$14:$BX$500,25,FALSE),VLOOKUP($A$3,'GEO-L5'!$A$14:$BX$500,62,FALSE))/SUM($Q13:$R13)*100 -> 0 | AD13: =SUM(VLOOKUP($A$3,'GEO-L5'!$A$14:$BX$500,25,FALSE),VLOOKUP($A$3,'GEO-L5'!$A$14:$BX$500,62,FALSE)) -> 0 | AE13: =SUM(VLOOKUP($A$3,'GEO-L5'!$A$14:$BX$500,28,FALSE)*$Q13,VLOOKUP($A$3,'GEO-L5'!$A$14:$BX$500,65,FALSE)*$R13)/SUM($Q13,$R13) -> 0 | AF13: =SUM(VLOOKUP($A$3,'GEO-L5'!$A$14:$BX$500,31,FALSE),VLOOKUP($A$3,'GEO-L5'!$A$14:$BX$500,68,FALSE))/SUM($Q13:$R13)*100 -> 0 | AG13: =SUM(VLOOKUP($A$3,'GEO-L5'!$A$14:$BX$500,31,FALSE),VLOOKUP($A$3,'GEO-L5'!$A$14:$BX$500,68,FALSE)) -> 0 | AH13: =SUM(VLOOKUP($A$3,'GEO-L5'!$A$14:$BX$500,34,FALSE)*$Q13,VLOOKUP($A$3,'GEO-L5'!$A$14:$BX$500,71,FALSE)*$R13)/SUM($Q13,$R13) -> 0 | AI13: =SUM(VLOOKUP($A$3,'GEO-L5'!$A$14:$BX$500,37,FALSE),VLOOKUP($A$3,'GEO-L5'!$A$14:$BX$500,74,FALSE))/SUM($Q13:$R13)*100 -> 0 | AJ13: =SUM(VLOOKUP($A$3,'GEO-L5'!$A$14:$BX$500,37,FALSE),VLOOKUP($A$3,'GEO-L5'!$A$14:$BX$500,74,FALSE)) -> 0
A14: White | B14: =IFERROR(VLOOKUP(TEXT($A$3,"0000"),MEM_W!$A$2:$S$500,13,FALSE),0) -> 2228 | C14: =IFERROR((IF(OR(B14<10,B14="",B14="NA"),"NA",((IF(VLOOKUP($A$3,'G9-RW'!$A$6:$AM$500,3,FALSE)>=B14,"100% ("&VLOOKUP($A$3,'G9-RW'!$A$6:$AM$500,3,FALSE)&")",(ROUND((VLOOKUP($A$3,'G9-RW'!$A$6:$AM$500,3,FALSE)/B14*100),0))&"% ("&IF(VLOOKUP($A$3,'G9-RW'!$A$6:$AM$500,3,FALSE)="",0,VLOOKUP($A$3,'G9-RW'!$A$6:$AM$500,3,FALSE))&")"))))),"0% (0)") -> 92% (2048) | D14: =IFERROR((IF($C14="NA","NA",VLOOKUP($A$3,'G9-RW'!$A$6:$AM$500,4,FALSE))),"NA") -> 27.90073242 | E14: =IFERROR((IF($C14="NA","NA",ROUND(VLOOKUP($A$3,'G9-RW'!$A$6:$AM$500,6,FALSE),0)&"% ("&IF(VLOOKUP($A$3,'G9-RW'!$A$6:$AM$500,5,FALSE)="",0,VLOOKUP($A$3,'G9-RW'!$A$6:$AM$500,5,FALSE))&")")),"NA") -> 50% (1033) | F14: =IFERROR((IF($C14="NA","NA",VLOOKUP($A$3,'G9-RW'!$A$6:$AM$500,7,FALSE))),"NA") -> 4.624804688 | G14: =IFERROR((IF($C14="NA","NA",ROUND(VLOOKUP($A$3,'G9-RW'!$A$6:$AM$500,9,FALSE),0)&"% ("&IF(VLOOKUP($A$3,'G9-RW'!$A$6:$AM$500,8,FALSE)="",0,VLOOKUP($A$3,'G9-RW'!$A$6:$AM$500,8,FALSE))&")")),"NA") -> 58% (1184) | H14: =IFERROR((IF($C14="NA","NA",VLOOKUP($A$3,'G9-RW'!$A$6:$AM$500,10,FALSE))),"NA") -> 14.91269531 | I14: =IFERROR((IF($C14="NA","NA",ROUND(VLOOKUP($A$3,'G9-RW'!$A$6:$AM$500,12,FALSE),0)&"% ("&IF(VLOOKUP($A$3,'G9-RW'!$A$6:$AM$500,11,FALSE)="",0,VLOOKUP($A$3,'G9-RW'!$A$6:$AM$500,11,FALSE))&")")),"NA") -> 53% (1082) | J14: =IFERROR((IF($C14="NA","NA",VLOOKUP($A$3,'G9-RW'!$A$6:$AM$500,13,FALSE))),"NA") -> 3.649755859 | K14: =IFERROR((IF($C14="NA","NA",ROUND(VLOOKUP($A$3,'G9-RW'!$A$6:$AM$500,15,FALSE),0)&"% ("&IF(VLOOKUP($A$3,'G9-RW'!$A$6:$AM$500,14,FALSE)="",0,VLOOKUP($A$3,'G9-RW'!$A$6:$AM$500,14,FALSE))&")")),"NA") -> 28% (580) | L14: =IFERROR((IF($C14="NA","NA",VLOOKUP($A$3,'G9-RW'!$A$6:$AM$500,16,FALSE))),"NA") -> 4.716064453 | M14: =IFERROR((IF($C14="NA","NA",ROUND(VLOOKUP($A$3,'G9-RW'!$A$6:$AM$500,18,FALSE),0)&"% ("&IF(VLOOKUP($A$3,'G9-RW'!$A$6:$AM$500,17,FALSE)="",0,VLOOKUP($A$3,'G9-RW'!$A$6:$AM$500,17,FALSE))&")")),"NA") -> 41% (844) | Q14: =IFERROR(VLOOKUP($A$3,'G9-RW'!$A$6:$BX$500,3,FALSE),"not tested") -> 2048 | S14: =SUM(VLOOKUP($A$3,'GEO-W'!$A$14:$BX$500,4,FALSE)*$Q14,VLOOKUP($A$3,'GEO-W'!$A$14:$BX$500,41,FALSE)*$R14)/SUM($Q14,$R14) -> 12.19499144 | T14: =SUM(VLOOKUP($A$3,'GEO-W'!$A$14:$BX$500,7,FALSE),VLOOKUP($A$3,'GEO-W'!$A$14:$BX$500,44,FALSE))/SUM($Q14:$R14)*100 -> 0.4291252241 | U14: =SUM(VLOOKUP($A$3,'GEO-W'!$A$14:$BX$500,7,FALSE),VLOOKUP($A$3,'GEO-W'!$A$14:$BX$500,44,FALSE)) -> 8.788484589 | V14: =SUM(VLOOKUP($A$3,'GEO-W'!$A$14:$BX$500,10,FALSE)*$Q14,VLOOKUP($A$3,'GEO-W'!$A$14:$BX$500,47,FALSE)*$R14)/SUM($Q14,$R14) -> 2.041652397 | W14: =SUM(VLOOKUP($A$3,'GEO-W'!$A$14:$BX$500,8,FALSE),VLOOKUP($A$3,'GEO-W'!$A$14:$BX$500,50,FALSE))/SUM($Q14:$R14)*100 -> 0.537109375 | X14: =SUM(VLOOKUP($A$3,'GEO-W'!$A$14:$BX$500,8,FALSE),VLOOKUP($A$3,'GEO-W'!$A$14:$BX$500,50,FALSE)) -> 11 | Y14: =SUM(VLOOKUP($A$3,'GEO-W'!$A$14:$BX$500,16,FALSE)*$Q14,VLOOKUP($A$3,'GEO-W'!$A$14:$BX$500,53,FALSE)*$R14)/SUM($Q14,$R14) -> 0 | Z14: =SUM(VLOOKUP($A$3,'GEO-W'!$A$14:$BX$500,19,FALSE),VLOOKUP($A$3,'GEO-W'!$A$14:$BX$500,56,FALSE))/SUM($Q14:$R14)*100 -> 0 | AA14: =SUM(VLOOKUP($A$3,'GEO-W'!$A$14:$BX$500,19,FALSE),VLOOKUP($A$3,'GEO-W'!$A$14:$BX$500,56,FALSE)) -> 0 | AB14: =SUM(VLOOKUP($A$3,'GEO-W'!$A$14:$BX$500,22,FALSE)*$Q14,VLOOKUP($A$3,'GEO-W'!$A$14:$BX$500,59,FALSE)*$R14)/SUM($Q14,$R14) -> 0 | AC14: =SUM(VLOOKUP($A$3,'GEO-W'!$A$14:$BX$500,25,FALSE),VLOOKUP($A$3,'GEO-W'!$A$14:$BX$500,62,FALSE))/SUM($Q14:$R14)*100 -> 0 | AD14: =SUM(VLOOKUP($A$3,'GEO-W'!$A$14:$BX$500,25,FALSE),VLOOKUP($A$3,'GEO-W'!$A$14:$BX$500,62,FALSE)) -> 0 | AE14: =SUM(VLOOKUP($A$3,'GEO-W'!$A$14:$BX$500,28,FALSE)*$Q14,VLOOKUP($A$3,'GEO-W'!$A$14:$BX$500,65,FALSE)*$R14)/SUM($Q14,$R14) -> 0 | AF14: =SUM(VLOOKUP($A$3,'GEO-W'!$A$14:$BX$500,31,FALSE),VLOOKUP($A$3,'GEO-W'!$A$14:$BX$500,68,FALSE))/SUM($Q14:$R14)*100 -> 0 | AG14: =SUM(VLOOKUP($A$3,'GEO-W'!$A$14:$BX$500,31,FALSE),VLOOKUP($A$3,'GEO-W'!$A$14:$BX$500,68,FALSE)) -> 0 | AH14: =SUM(VLOOKUP($A$3,'GEO-W'!$A$14:$BX$500,34,FALSE)*$Q14,VLOOKUP($A$3,'GEO-W'!$A$14:$BX$500,71,FALSE)*$R14)/SUM($Q14,$R14) -> 0 | AI14: =SUM(VLOOKUP($A$3,'GEO-W'!$A$14:$BX$500,37,FALSE),VLOOKUP($A$3,'GEO-W'!$A$14:$BX$500,74,FALSE))/SUM($Q14:$R14)*100 -> 0 | AJ14: =SUM(VLOOKUP($A$3,'GEO-W'!$A$14:$BX$500,37,FALSE),VLOOKUP($A$3,'GEO-W'!$A$14:$BX$500,74,FALSE)) -> 0
A15: Black | B15: =IFERROR(VLOOKUP(TEXT($A$3,"0000"),MEM_B!$A$2:$S$500,13,FALSE),0) -> 6253 | C15: =IFERROR((IF(OR(B15<10,B15="",B15="NA"),"NA",((IF(VLOOKUP($A$3,'G9-RB'!$A$6:$AM$500,3,FALSE)>=B15,"100% ("&VLOOKUP($A$3,'G9-RB'!$A$6:$AM$500,3,FALSE)&")",(ROUND((VLOOKUP($A$3,'G9-RB'!$A$6:$AM$500,3,FALSE)/B15*100),0))&"% ("&IF(VLOOKUP($A$3,'G9-RB'!$A$6:$AM$500,3,FALSE)="",0,VLOOKUP($A$3,'G9-RB'!$A$6:$AM$500,3,FALSE))&")"))))),"0% (0)") -> 90% (5620) | D15: =IFERROR((IF($C15="NA","NA",VLOOKUP($A$3,'G9-RB'!$A$6:$AG$500,4,FALSE))),"NA") -> 21.22877224 | E15: =IFERROR((IF($C15="NA","NA",ROUND(VLOOKUP($A$3,'G9-RB'!$A$6:$AG$500,6,FALSE),0)&"% ("&IF(VLOOKUP($A$3,'G9-RB'!$A$6:$AG$500,5,FALSE)="",0,VLOOKUP($A$3,'G9-RB'!$A$6:$AG$500,5,FALSE))&")")),"NA") -> 17% (982) | F15: =IFERROR((IF($C15="NA","NA",VLOOKUP($A$3,'G9-RB'!$A$6:$AG$500,7,FALSE))),"NA") -> 3.54816726 | G15: =IFERROR((IF($C15="NA","NA",ROUND(VLOOKUP($A$3,'G9-RB'!$A$6:$AG$500,9,FALSE),0)&"% ("&IF(VLOOKUP($A$3,'G9-RB'!$A$6:$AG$500,8,FALSE)="",0,VLOOKUP($A$3,'G9-RB'!$A$6:$AG$500,8,FALSE))&")")),"NA") -> 30% (1661) | H15: =IFERROR((IF($C15="NA","NA",VLOOKUP($A$3,'G9-RB'!$A$6:$AG$500,10,FALSE))),"NA") -> 11.36864769 | I15: =IFERROR((IF($C15="NA","NA",ROUND(VLOOKUP($A$3,'G9-RB'!$A$6:$AG$500,12,FALSE),0)&"% ("&IF(VLOOKUP($A$3,'G9-RB'!$A$6:$AG$500,11,FALSE)="",0,VLOOKUP($A$3,'G9-RB'!$A$6:$AG$500,11,FALSE))&")")),"NA") -> 21% (1191) | J15: =IFERROR((IF($C15="NA","NA",VLOOKUP($A$3,'G9-RB'!$A$6:$AG$500,13,FALSE))),"NA") -> 2.770409253 | K15: =IFERROR((IF($C15="NA","NA",ROUND(VLOOKUP($A$3,'G9-RB'!$A$6:$AG$500,15,FALSE),0)&"% ("&IF(VLOOKUP($A$3,'G9-RB'!$A$6:$AG$500,14,FALSE)="",0,VLOOKUP($A$3,'G9-RB'!$A$6:$AG$500,14,FALSE))&")")),"NA") -> 10% (570) | L15: =IFERROR((IF($C15="NA","NA",VLOOKUP($A$3,'G9-RB'!$A$6:$AG$500,16,FALSE))),"NA") -> 3.53772242 | M15: =IFERROR((IF($C15="NA","NA",ROUND(VLOOKUP($A$3,'G9-RB'!$A$6:$AG$500,18,FALSE),0)&"% ("&IF(VLOOKUP($A$3,'G9-RB'!$A$6:$AG$500,17,FALSE)="",0,VLOOKUP($A$3,'G9-RB'!$A$6:$AG$500,17,FALSE))&")")),"NA") -> 17% (980) | Q15: =IFERROR(VLOOKUP($A$3,'G9-RB'!$A$6:$BX$500,3,FALSE),"not tested") -> 5620 | S15: =SUM(VLOOKUP($A$3,'GEO-B'!$A$14:$BX$500,4,FALSE)*$Q15,VLOOKUP($A$3,'GEO-B'!$A$14:$BX$500,41,FALSE)*$R15)/SUM($Q15,$R15) -> 10.51036517 | T15: =SUM(VLOOKUP($A$3,'GEO-B'!$A$14:$BX$500,7,FALSE),VLOOKUP($A$3,'GEO-B'!$A$14:$BX$500,44,FALSE))/SUM($Q15:$R15)*100 -> 0.1362519444 | U15: =SUM(VLOOKUP($A$3,'GEO-B'!$A$14:$BX$500,7,FALSE),VLOOKUP($A$3,'GEO-B'!$A$14:$BX$500,44,FALSE)) -> 7.657359273 | V15: =SUM(VLOOKUP($A$3,'GEO-B'!$A$14:$BX$500,10,FALSE)*$Q15,VLOOKUP($A$3,'GEO-B'!$A$14:$BX$500,47,FALSE)*$R15)/SUM($Q15,$R15) -> 1.680417796 | W15: =SUM(VLOOKUP($A$3,'GEO-B'!$A$14:$BX$500,8,FALSE),VLOOKUP($A$3,'GEO-B'!$A$14:$BX$500,50,FALSE))/SUM($Q15:$R15)*100 -> 0.05338078292 | X15: =SUM(VLOOKUP($A$3,'GEO-B'!$A$14:$BX$500,8,FALSE),VLOOKUP($A$3,'GEO-B'!$A$14:$BX$500,50,FALSE)) -> 3 | Y15: =SUM(VLOOKUP($A$3,'GEO-B'!$A$14:$BX$500,16,FALSE)*$Q15,VLOOKUP($A$3,'GEO-B'!$A$14:$BX$500,53,FALSE)*$R15)/SUM($Q15,$R15) -> 0 | Z15: =SUM(VLOOKUP($A$3,'GEO-B'!$A$14:$BX$500,19,FALSE),VLOOKUP($A$3,'GEO-B'!$A$14:$BX$500,56,FALSE))/SUM($Q15:$R15)*100 -> 0 | AA15: =SUM(VLOOKUP($A$3,'GEO-B'!$A$14:$BX$500,19,FALSE),VLOOKUP($A$3,'GEO-B'!$A$14:$BX$500,56,FALSE)) -> 0 | AB15: =SUM(VLOOKUP($A$3,'GEO-B'!$A$14:$BX$500,22,FALSE)*$Q15,VLOOKUP($A$3,'GEO-B'!$A$14:$BX$500,59,FALSE)*$R15)/SUM($Q15,$R15) -> 0 | AC15: =SUM(VLOOKUP($A$3,'GEO-B'!$A$14:$BX$500,25,FALSE),VLOOKUP($A$3,'GEO-B'!$A$14:$BX$500,62,FALSE))/SUM($Q15:$R15)*100 -> 0 | AD15: =SUM(VLOOKUP($A$3,'GEO-B'!$A$14:$BX$500,25,FALSE),VLOOKUP($A$3,'GEO-B'!$A$14:$BX$500,62,FALSE)) -> 0 | AE15: =SUM(VLOOKUP($A$3,'GEO-B'!$A$14:$BX$500,28,FALSE)*$Q15,VLOOKUP($A$3,'GEO-B'!$A$14:$BX$500,65,FALSE)*$R15)/SUM($Q15,$R15) -> 0 | AF15: =SUM(VLOOKUP($A$3,'GEO-B'!$A$14:$BX$500,31,FALSE),VLOOKUP($A$3,'GEO-B'!$A$14:$BX$500,68,FALSE))/SUM($Q15:$R15)*100 -> 0 | AG15: =SUM(VLOOKUP($A$3,'GEO-B'!$A$14:$BX$500,31,FALSE),VLOOKUP($A$3,'GEO-B'!$A$14:$BX$500,68,FALSE)) -> 0 | AH15: =SUM(VLOOKUP($A$3,'GEO-B'!$A$14:$BX$500,34,FALSE)*$Q15,VLOOKUP($A$3,'GEO-B'!$A$14:$BX$500,71,FALSE)*$R15)/SUM($Q15,$R15) -> 0 | AI15: =SUM(VLOOKUP($A$3,'GEO-B'!$A$14:$BX$500,37,FALSE),VLOOKUP($A$3,'GEO-B'!$A$14:$BX$500,74,FALSE))/SUM($Q15:$R15)*100 -> 0 | AJ15: =SUM(VLOOKUP($A$3,'GEO-B'!$A$14:$BX$500,37,FALSE),VLOOKUP($A$3,'GEO-B'!$A$14:$BX$500,74,FALSE)) -> 0
A16: Hispanic | B16: =IFERROR(VLOOKUP(TEXT($A$3,"0000"),MEM_H!$A$2:$S$500,13,FALSE),0) -> 18958 | C16: =IFERROR((IF(OR(B16<10,B16="",B16="NA"),"NA",((IF(VLOOKUP($A$3,'G9-RH'!$A$6:$AM$500,3,FALSE)>=B16,"100% ("&VLOOKUP($A$3,'G9-RH'!$A$6:$AM$500,3,FALSE)&")",(ROUND((VLOOKUP($A$3,'G9-RH'!$A$6:$AM$500,3,FALSE)/B16*100),0))&"% ("&IF(VLOOKUP($A$3,'G9-RH'!$A$6:$AM$500,3,FALSE)="",0,VLOOKUP($A$3,'G9-RH'!$A$6:$AM$500,3,FALSE))&")"))))),"0% (0)") -> 93% (17594) | D16: =IFERROR((IF($C16="NA","NA",VLOOKUP($A$3,'G9-RH'!$A$6:$AM$500,4,FALSE))),"NA") -> 23.46127089 | E16: =IFERROR((IF($C16="NA","NA",ROUND(VLOOKUP($A$3,'G9-RH'!$A$6:$AM$500,6,FALSE),0)&"% ("&IF(VLOOKUP($A$3,'G9-RH'!$A$6:$AM$500,5,FALSE)="",0,VLOOKUP($A$3,'G9-RH'!$A$6:$AM$500,5,FALSE))&")")),"NA") -> 31% (5439) | F16: =IFERROR((IF($C16="NA","NA",VLOOKUP($A$3,'G9-RH'!$A$6:$AM$500,7,FALSE))),"NA") -> 3.936961464 | G16: =IFERROR((IF($C16="NA","NA",ROUND(VLOOKUP($A$3,'G9-RH'!$A$6:$AM$500,9,FALSE),0)&"% ("&IF(VLOOKUP($A$3,'G9-RH'!$A$6:$AM$500,8,FALSE)="",0,VLOOKUP($A$3,'G9-RH'!$A$6:$AM$500,8,FALSE))&")")),"NA") -> 42% (7338) | H16: =IFERROR((IF($C16="NA","NA",VLOOKUP($A$3,'G9-RH'!$A$6:$AM$500,10,FALSE))),"NA") -> 12.53409685 | I16: =IFERROR((IF($C16="NA","NA",ROUND(VLOOKUP($A$3,'G9-RH'!$A$6:$AM$500,12,FALSE),0)&"% ("&IF(VLOOKUP($A$3,'G9-RH'!$A$6:$AM$500,11,FALSE)="",0,VLOOKUP($A$3,'G9-RH'!$A$6:$AM$500,11,FALSE))&")")),"NA") -> 34% (5923) | J16: =IFERROR((IF($C16="NA","NA",VLOOKUP($A$3,'G9-RH'!$A$6:$AM$500,13,FALSE))),"NA") -> 3.174201432 | K16: =IFERROR((IF($C16="NA","NA",ROUND(VLOOKUP($A$3,'G9-RH'!$A$6:$AM$500,15,FALSE),0)&"% ("&IF(VLOOKUP($A$3,'G9-RH'!$A$6:$AM$500,14,FALSE)="",0,VLOOKUP($A$3,'G9-RH'!$A$6:$AM$500,14,FALSE))&")")),"NA") -> 20% (3525) | L16: =IFERROR((IF($C16="NA","NA",VLOOKUP($A$3,'G9-RH'!$A$6:$AM$500,16,FALSE))),"NA") -> 3.825235876 | M16: =IFERROR((IF($C16="NA","NA",ROUND(VLOOKUP($A$3,'G9-RH'!$A$6:$AM$500,18,FALSE),0)&"% ("&IF(VLOOKUP($A$3,'G9-RH'!$A$6:$AM$500,17,FALSE)="",0,VLOOKUP($A$3,'G9-RH'!$A$6:$AM$500,17,FALSE))&")")),"NA") -> 24% (4285) | Q16: =IFERROR(VLOOKUP($A$3,'G9-RH'!$A$6:$BX$500,3,FALSE),"not tested") -> 17594 | S16: =SUM(VLOOKUP($A$3,'GEO-H'!$A$14:$BX$500,4,FALSE)*$Q16,VLOOKUP($A$3,'GEO-H'!$A$14:$BX$500,41,FALSE)*$R16)/SUM($Q16,$R16) -> 10.99663677 | T16: =SUM(VLOOKUP($A$3,'GEO-H'!$A$14:$BX$500,7,FALSE),VLOOKUP($A$3,'GEO-H'!$A$14:$BX$500,44,FALSE))/SUM($Q16:$R16)*100 -> 0.04518281767 | U16: =SUM(VLOOKUP($A$3,'GEO-H'!$A$14:$BX$500,7,FALSE),VLOOKUP($A$3,'GEO-H'!$A$14:$BX$500,44,FALSE)) -> 7.949464941 | V16: =SUM(VLOOKUP($A$3,'GEO-H'!$A$14:$BX$500,10,FALSE)*$Q16,VLOOKUP($A$3,'GEO-H'!$A$14:$BX$500,47,FALSE)*$R16)/SUM($Q16,$R16) -> 1.795551366 | W16: =SUM(VLOOKUP($A$3,'GEO-H'!$A$14:$BX$500,8,FALSE),VLOOKUP($A$3,'GEO-H'!$A$14:$BX$500,50,FALSE))/SUM($Q16:$R16)*100 -> 0.1136751165 | X16: =SUM(VLOOKUP($A$3,'GEO-H'!$A$14:$BX$500,8,FALSE),VLOOKUP($A$3,'GEO-H'!$A$14:$BX$500,50,FALSE)) -> 20 | Y16: =SUM(VLOOKUP($A$3,'GEO-H'!$A$14:$BX$500,16,FALSE)*$Q16,VLOOKUP($A$3,'GEO-H'!$A$14:$BX$500,53,FALSE)*$R16)/SUM($Q16,$R16) -> 0 | Z16: =SUM(VLOOKUP($A$3,'GEO-H'!$A$14:$BX$500,19,FALSE),VLOOKUP($A$3,'GEO-H'!$A$14:$BX$500,56,FALSE))/SUM($Q16:$R16)*100 -> 0 | AA16: =SUM(VLOOKUP($A$3,'GEO-H'!$A$14:$BX$500,19,FALSE),VLOOKUP($A$3,'GEO-H'!$A$14:$BX$500,56,FALSE)) -> 0 | AB16: =SUM(VLOOKUP($A$3,'GEO-H'!$A$14:$BX$500,22,FALSE)*$Q16,VLOOKUP($A$3,'GEO-H'!$A$14:$BX$500,59,FALSE)*$R16)/SUM($Q16,$R16) -> 0 | AC16: =SUM(VLOOKUP($A$3,'GEO-H'!$A$14:$BX$500,25,FALSE),VLOOKUP($A$3,'GEO-H'!$A$14:$BX$500,62,FALSE))/SUM($Q16:$R16)*100 -> 0 | AD16: =SUM(VLOOKUP($A$3,'GEO-H'!$A$14:$BX$500,25,FALSE),VLOOKUP($A$3,'GEO-H'!$A$14:$BX$500,62,FALSE)) -> 0 | AE16: =SUM(VLOOKUP($A$3,'GEO-H'!$A$14:$BX$500,28,FALSE)*$Q16,VLOOKUP($A$3,'GEO-H'!$A$14:$BX$500,65,FALSE)*$R16)/SUM($Q16,$R16) -> 0 | AF16: =SUM(VLOOKUP($A$3,'GEO-H'!$A$14:$BX$500,31,FALSE),VLOOKUP($A$3,'GEO-H'!$A$14:$BX$500,68,FALSE))/SUM($Q16:$R16)*100 -> 0 | AG16: =SUM(VLOOKUP($A$3,'GEO-H'!$A$14:$BX$500,31,FALSE),VLOOKUP($A$3,'GEO-H'!$A$14:$BX$500,68,FALSE)) -> 0 | AH16: =SUM(VLOOKUP($A$3,'GEO-H'!$A$14:$BX$500,34,FALSE)*$Q16,VLOOKUP($A$3,'GEO-H'!$A$14:$BX$500,71,FALSE)*$R16)/SUM($Q16,$R16) -> 0 | AI16: =SUM(VLOOKUP($A$3,'GEO-H'!$A$14:$BX$500,37,FALSE),VLOOKUP($A$3,'GEO-H'!$A$14:$BX$500,74,FALSE))/SUM($Q16:$R16)*100 -> 0 | AJ16: =SUM(VLOOKUP($A$3,'GEO-H'!$A$14:$BX$500,37,FALSE),VLOOKUP($A$3,'GEO-H'!$A$14:$BX$500,74,FALSE)) -> 0
A17: Asian | B17: =IFERROR(VLOOKUP(TEXT($A$3,"0000"),MEM_A!$A$2:$S$500,13,FALSE),0) -> 313 | C17: =IFERROR((IF(OR(B17<10,B17="",B17="NA"),"NA",((IF(VLOOKUP($A$3,'G9-RA'!$A$6:$AM$500,3,FALSE)>=B17,"100% ("&VLOOKUP($A$3,'G9-RA'!$A$6:$AM$500,3,FALSE)&")",(ROUND((VLOOKUP($A$3,'G9-RA'!$A$6:$AM$500,3,FALSE)/B17*100),0))&"% ("&IF(VLOOKUP($A$3,'G9-RA'!$A$6:$AM$500,3,FALSE)="",0,VLOOKUP($A$3,'G9-RA'!$A$6:$AM$500,3,FALSE))&")"))))),"0% (0)") -> 91% (285) | D17: =IFERROR((IF($C17="NA","NA",VLOOKUP($A$3,'G9-RA'!$A$6:$AM$500,4,FALSE))),"NA") -> 30.00105263 | E17: =IFERROR((IF($C17="NA","NA",ROUND(VLOOKUP($A$3,'G9-RA'!$A$6:$AM$500,6,FALSE),0)&"% ("&IF(VLOOKUP($A$3,'G9-RA'!$A$6:$AM$500,5,FALSE)="",0,VLOOKUP($A$3,'G9-RA'!$A$6:$AM$500,5,FALSE))&")")),"NA") -> 59% (169) | F17: =IFERROR((IF($C17="NA","NA",VLOOKUP($A$3,'G9-RA'!$A$6:$AM$500,7,FALSE))),"NA") -> 4.87122807 | G17: =IFERROR((IF($C17="NA","NA",ROUND(VLOOKUP($A$3,'G9-RA'!$A$6:$AM$500,9,FALSE),0)&"% ("&IF(VLOOKUP($A$3,'G9-RA'!$A$6:$AM$500,8,FALSE)="",0,VLOOKUP($A$3,'G9-RA'!$A$6:$AM$500,8,FALSE))&")")),"NA") -> 64% (181) | H17: =IFERROR((IF($C17="NA","NA",VLOOKUP($A$3,'G9-RA'!$A$6:$AM$500,10,FALSE))),"NA") -> 16.15649123 | I17: =IFERROR((IF($C17="NA","NA",ROUND(VLOOKUP($A$3,'G9-RA'!$A$6:$AM$500,12,FALSE),0)&"% ("&IF(VLOOKUP($A$3,'G9-RA'!$A$6:$AM$500,11,FALSE)="",0,VLOOKUP($A$3,'G9-RA'!$A$6:$AM$500,11,FALSE))&")")),"NA") -> 60% (171) | J17: =IFERROR((IF($C17="NA","NA",VLOOKUP($A$3,'G9-RA'!$A$6:$AM$500,13,FALSE))),"NA") -> 3.865263158 | K17: =IFERROR((IF($C17="NA","NA",ROUND(VLOOKUP($A$3,'G9-RA'!$A$6:$AM$500,15,FALSE),0)&"% ("&IF(VLOOKUP($A$3,'G9-RA'!$A$6:$AM$500,14,FALSE)="",0,VLOOKUP($A$3,'G9-RA'!$A$6:$AM$500,14,FALSE))&")")),"NA") -> 35% (100) | L17: =IFERROR((IF($C17="NA","NA",VLOOKUP($A$3,'G9-RA'!$A$6:$AM$500,16,FALSE))),"NA") -> 5.110526316 | M17: =IFERROR((IF($C17="NA","NA",ROUND(VLOOKUP($A$3,'G9-RA'!$A$6:$AM$500,18,FALSE),0)&"% ("&IF(VLOOKUP($A$3,'G9-RA'!$A$6:$AM$500,17,FALSE)="",0,VLOOKUP($A$3,'G9-RA'!$A$6:$AM$500,17,FALSE))&")")),"NA") -> 47% (134) | Q17: =IFERROR(VLOOKUP($A$3,'G9-RA'!$A$6:$BX$500,3,FALSE),"not tested") -> 285 | S17: =SUM(VLOOKUP($A$3,'GEO-A'!$A$14:$BX$500,4,FALSE)*$Q17,VLOOKUP($A$3,'GEO-A'!$A$14:$BX$500,41,FALSE)*$R17)/SUM($Q17,$R17) -> 13.68768328 | T17: =SUM(VLOOKUP($A$3,'GEO-A'!$A$14:$BX$500,7,FALSE),VLOOKUP($A$3,'GEO-A'!$A$14:$BX$500,44,FALSE))/SUM($Q17:$R17)*100 -> 3.493440346 | U17: =SUM(VLOOKUP($A$3,'GEO-A'!$A$14:$BX$500,7,FALSE),VLOOKUP($A$3,'GEO-A'!$A$14:$BX$500,44,FALSE)) -> 9.956304985 | V17: =SUM(VLOOKUP($A$3,'GEO-A'!$A$14:$BX$500,10,FALSE)*$Q17,VLOOKUP($A$3,'GEO-A'!$A$14:$BX$500,47,FALSE)*$R17)/SUM($Q17,$R17) -> 2.357184751 | W17: =SUM(VLOOKUP($A$3,'GEO-A'!$A$14:$BX$500,8,FALSE),VLOOKUP($A$3,'GEO-A'!$A$14:$BX$500,50,FALSE))/SUM($Q17:$R17)*100 -> 4.210526316 | X17: =SUM(VLOOKUP($A$3,'GEO-A'!$A$14:$BX$500,8,FALSE),VLOOKUP($A$3,'GEO-A'!$A$14:$BX$500,50,FALSE)) -> 12 | Y17: =SUM(VLOOKUP($A$3,'GEO-A'!$A$14:$BX$500,16,FALSE)*$Q17,VLOOKUP($A$3,'GEO-A'!$A$14:$BX$500,53,FALSE)*$R17)/SUM($Q17,$R17) -> 0 | Z17: =SUM(VLOOKUP($A$3,'GEO-A'!$A$14:$BX$500,19,FALSE),VLOOKUP($A$3,'GEO-A'!$A$14:$BX$500,56,FALSE))/SUM($Q17:$R17)*100 -> 0 | AA17: =SUM(VLOOKUP($A$3,'GEO-A'!$A$14:$BX$500,19,FALSE),VLOOKUP($A$3,'GEO-A'!$A$14:$BX$500,56,FALSE)) -> 0 | AB17: =SUM(VLOOKUP($A$3,'GEO-A'!$A$14:$BX$500,22,FALSE)*$Q17,VLOOKUP($A$3,'GEO-A'!$A$14:$BX$500,59,FALSE)*$R17)/SUM($Q17,$R17) -> 0 | AC17: =SUM(VLOOKUP($A$3,'GEO-A'!$A$14:$BX$500,25,FALSE),VLOOKUP($A$3,'GEO-A'!$A$14:$BX$500,62,FALSE))/SUM($Q17:$R17)*100 -> 0 | AD17: =SUM(VLOOKUP($A$3,'GEO-A'!$A$14:$BX$500,25,FALSE),VLOOKUP($A$3,'GEO-A'!$A$14:$BX$500,62,FALSE)) -> 0 | AE17: =SUM(VLOOKUP($A$3,'GEO-A'!$A$14:$BX$500,28,FALSE)*$Q17,VLOOKUP($A$3,'GEO-A'!$A$14:$BX$500,65,FALSE)*$R17)/SUM($Q17,$R17) -> 0 | AF17: =SUM(VLOOKUP($A$3,'GEO-A'!$A$14:$BX$500,31,FALSE),VLOOKUP($A$3,'GEO-A'!$A$14:$BX$500,68,FALSE))/SUM($Q17:$R17)*100 -> 0 | AG17: =SUM(VLOOKUP($A$3,'GEO-A'!$A$14:$BX$500,31,FALSE),VLOOKUP($A$3,'GEO-A'!$A$14:$BX$500,68,FALSE)) -> 0 | AH17: =SUM(VLOOKUP($A$3,'GEO-A'!$A$14:$BX$500,34,FALSE)*$Q17,VLOOKUP($A$3,'GEO-A'!$A$14:$BX$500,71,FALSE)*$R17)/SUM($Q17,$R17) -> 0 | AI17: =SUM(VLOOKUP($A$3,'GEO-A'!$A$14:$BX$500,37,FALSE),VLOOKUP($A$3,'GEO-A'!$A$14:$BX$500,74,FALSE))/SUM($Q17:$R17)*100 -> 0 | AJ17: =SUM(VLOOKUP($A$3,'GEO-A'!$A$14:$BX$500,37,FALSE),VLOOKUP($A$3,'GEO-A'!$A$14:$BX$500,74,FALSE)) -> 0
A18: Am. Indian | B18: =IFERROR(VLOOKUP(TEXT($A$3,"0000"),MEM_I!$A$2:$S$500,13,FALSE),0) -> 23 | C18: =IFERROR((IF(OR(B18<10,B18="",B18="NA"),"NA",((IF(VLOOKUP($A$3,'G9-RI'!$A$6:$AM$500,3,FALSE)>=B18,"100% ("&VLOOKUP($A$3,'G9-RI'!$A$6:$AM$500,3,FALSE)&")",(ROUND((VLOOKUP($A$3,'G9-RI'!$A$6:$AM$500,3,FALSE)/B18*100),0))&"% ("&IF(VLOOKUP($A$3,'G9-RI'!$A$6:$AM$500,3,FALSE)="",0,VLOOKUP($A$3,'G9-RI'!$A$6:$AM$500,3,FALSE))&")"))))),"0% (0)") -> 96% (22) | D18: =IFERROR((IF($C18="NA","NA",VLOOKUP($A$3,'G9-RI'!$A$6:$AM$500,4,FALSE))),"NA") -> 26.95909091 | E18: =IFERROR((IF($C18="NA","NA",ROUND(VLOOKUP($A$3,'G9-RI'!$A$6:$AM$500,6,FALSE),0)&"% ("&IF(VLOOKUP($A$3,'G9-RI'!$A$6:$AM$500,5,FALSE)="",0,VLOOKUP($A$3,'G9-RI'!$A$6:$AM$500,5,FALSE))&")")),"NA") -> 41% (9) | F18: =IFERROR((IF($C18="NA","NA",VLOOKUP($A$3,'G9-RI'!$A$6:$AM$500,7,FALSE))),"NA") -> 4.731818182 | G18: =IFERROR((IF($C18="NA","NA",ROUND(VLOOKUP($A$3,'G9-RI'!$A$6:$AM$500,9,FALSE),0)&"% ("&IF(VLOOKUP($A$3,'G9-RI'!$A$6:$AM$500,8,FALSE)="",0,VLOOKUP($A$3,'G9-RI'!$A$6:$AM$500,8,FALSE))&")")),"NA") -> 59% (13) | H18: =IFERROR((IF($C18="NA","NA",VLOOKUP($A$3,'G9-RI'!$A$6:$AM$500,10,FALSE))),"NA") -> 14.30909091 | I18: =IFERROR((IF($C18="NA","NA",ROUND(VLOOKUP($A$3,'G9-RI'!$A$6:$AM$500,12,FALSE),0)&"% ("&IF(VLOOKUP($A$3,'G9-RI'!$A$6:$AM$500,11,FALSE)="",0,VLOOKUP($A$3,'G9-RI'!$A$6:$AM$500,11,FALSE))&")")),"NA") -> 41% (9) | J18: =IFERROR((IF($C18="NA","NA",VLOOKUP($A$3,'G9-RI'!$A$6:$AM$500,13,FALSE))),"NA") -> 3.363636364 | K18: =IFERROR((IF($C18="NA","NA",ROUND(VLOOKUP($A$3,'G9-RI'!$A$6:$AM$500,15,FALSE),0)&"% ("&IF(VLOOKUP($A$3,'G9-RI'!$A$6:$AM$500,14,FALSE)="",0,VLOOKUP($A$3,'G9-RI'!$A$6:$AM$500,14,FALSE))&")")),"NA") -> 27% (6) | L18: =IFERROR((IF($C18="NA","NA",VLOOKUP($A$3,'G9-RI'!$A$6:$AM$500,16,FALSE))),"NA") -> 4.540909091 | M18: =IFERROR((IF($C18="NA","NA",ROUND(VLOOKUP($A$3,'G9-RI'!$A$6:$AM$500,18,FALSE),0)&"% ("&IF(VLOOKUP($A$3,'G9-RI'!$A$6:$AM$500,17,FALSE)="",0,VLOOKUP($A$3,'G9-RI'!$A$6:$AM$500,17,FALSE))&")")),"NA") -> 41% (9) | Q18: =IFERROR(VLOOKUP($A$3,'G9-RI'!$A$6:$BX$500,3,FALSE),"not tested") -> 22 | S18: =SUM(VLOOKUP($A$3,'GEO-I'!$A$14:$BX$500,4,FALSE)*$Q18,VLOOKUP($A$3,'GEO-I'!$A$14:$BX$500,41,FALSE)*$R18)/SUM($Q18,$R18) -> 11.53571429 | T18: =SUM(VLOOKUP($A$3,'GEO-I'!$A$14:$BX$500,7,FALSE),VLOOKUP($A$3,'GEO-I'!$A$14:$BX$500,44,FALSE))/SUM($Q18:$R18)*100 -> 40.08116883 | U18: =SUM(VLOOKUP($A$3,'GEO-I'!$A$14:$BX$500,7,FALSE),VLOOKUP($A$3,'GEO-I'!$A$14:$BX$500,44,FALSE)) -> 8.817857143 | V18: =SUM(VLOOKUP($A$3,'GEO-I'!$A$14:$BX$500,10,FALSE)*$Q18,VLOOKUP($A$3,'GEO-I'!$A$14:$BX$500,47,FALSE)*$R18)/SUM($Q18,$R18) -> 1.564285714 | W18: =SUM(VLOOKUP($A$3,'GEO-I'!$A$14:$BX$500,8,FALSE),VLOOKUP($A$3,'GEO-I'!$A$14:$BX$500,50,FALSE))/SUM($Q18:$R18)*100 -> 0 | X18: =SUM(VLOOKUP($A$3,'GEO-I'!$A$14:$BX$500,8,FALSE),VLOOKUP($A$3,'GEO-I'!$A$14:$BX$500,50,FALSE)) -> 0 | Y18: =SUM(VLOOKUP($A$3,'GEO-I'!$A$14:$BX$500,16,FALSE)*$Q18,VLOOKUP($A$3,'GEO-I'!$A$14:$BX$500,53,FALSE)*$R18)/SUM($Q18,$R18) -> 0 | Z18: =SUM(VLOOKUP($A$3,'GEO-I'!$A$14:$BX$500,19,FALSE),VLOOKUP($A$3,'GEO-I'!$A$14:$BX$500,56,FALSE))/SUM($Q18:$R18)*100 -> 0 | AA18: =SUM(VLOOKUP($A$3,'GEO-I'!$A$14:$BX$500,19,FALSE),VLOOKUP($A$3,'GEO-I'!$A$14:$BX$500,56,FALSE)) -> 0 | AB18: =SUM(VLOOKUP($A$3,'GEO-I'!$A$14:$BX$500,22,FALSE)*$Q18,VLOOKUP($A$3,'GEO-I'!$A$14:$BX$500,59,FALSE)*$R18)/SUM($Q18,$R18) -> 0 | AC18: =SUM(VLOOKUP($A$3,'GEO-I'!$A$14:$BX$500,25,FALSE),VLOOKUP($A$3,'GEO-I'!$A$14:$BX$500,62,FALSE))/SUM($Q18:$R18)*100 -> 0 | AD18: =SUM(VLOOKUP($A$3,'GEO-I'!$A$14:$BX$500,25,FALSE),VLOOKUP($A$3,'GEO-I'!$A$14:$BX$500,62,FALSE)) -> 0 | AE18: =SUM(VLOOKUP($A$3,'GEO-I'!$A$14:$BX$500,28,FALSE)*$Q18,VLOOKUP($A$3,'GEO-I'!$A$14:$BX$500,65,FALSE)*$R18)/SUM($Q18,$R18) -> 0 | AF18: =SUM(VLOOKUP($A$3,'GEO-I'!$A$14:$BX$500,31,FALSE),VLOOKUP($A$3,'GEO-I'!$A$14:$BX$500,68,FALSE))/SUM($Q18:$R18)*100 -> 0 | AG18: =SUM(VLOOKUP($A$3,'GEO-I'!$A$14:$BX$500,31,FALSE),VLOOKUP($A$3,'GEO-I'!$A$14:$BX$500,68,FALSE)) -> 0 | AH18: =SUM(VLOOKUP($A$3,'GEO-I'!$A$14:$BX$500,34,FALSE)*$Q18,VLOOKUP($A$3,'GEO-I'!$A$14:$BX$500,71,FALSE)*$R18)/SUM($Q18,$R18) -> 0 | AI18: =SUM(VLOOKUP($A$3,'GEO-I'!$A$14:$BX$500,37,FALSE),VLOOKUP($A$3,'GEO-I'!$A$14:$BX$500,74,FALSE))/SUM($Q18:$R18)*100 -> 0 | AJ18: =SUM(VLOOKUP($A$3,'GEO-I'!$A$14:$BX$500,37,FALSE),VLOOKUP($A$3,'GEO-I'!$A$14:$BX$500,74,FALSE)) -> 0
A19: ED | B19: =IFERROR(VLOOKUP(TEXT($A$3,"0000"),MEM_ED!$A$2:$S$500,13,FALSE),0) -> 21412 | C19: =IFERROR((IF(OR(B19<10,B19="",B19="NA"),"NA",((IF(VLOOKUP($A$3,'G9-RED'!$A$6:$AM$500,3,FALSE)>=B19,"100% ("&VLOOKUP($A$3,'G9-RED'!$A$6:$AM$500,3,FALSE)&")",(ROUND((VLOOKUP($A$3,'G9-RED'!$A$6:$AM$500,3,FALSE)/B19*100),0))&"% ("&IF(VLOOKUP($A$3,'G9-RED'!$A$6:$AM$500,3,FALSE)="",0,VLOOKUP($A$3,'G9-RED'!$A$6:$AM$500,3,FALSE))&")"))))),"0% (0)") -> 93% (20010) | D19: =IFERROR((IF($C19="NA","NA",VLOOKUP($A$3,'G9-RED'!$A$6:$AM$500,4,FALSE))),"NA") -> 22.30332334 | E19: =IFERROR((IF($C19="NA","NA",ROUND(VLOOKUP($A$3,'G9-RED'!$A$6:$AM$500,6,FALSE),0)&"% ("&IF(VLOOKUP($A$3,'G9-RED'!$A$6:$AM$500,5,FALSE)="",0,VLOOKUP($A$3,'G9-RED'!$A$6:$AM$500,5,FALSE))&")")),"NA") -> 25% (4905) | F19: =IFERROR((IF($C19="NA","NA",VLOOKUP($A$3,'G9-RED'!$A$6:$AM$500,7,FALSE))),"NA") -> 3.745582209 | G19: =IFERROR((IF($C19="NA","NA",ROUND(VLOOKUP($A$3,'G9-RED'!$A$6:$AM$500,9,FALSE),0)&"% ("&IF(VLOOKUP($A$3,'G9-RED'!$A$6:$AM$500,8,FALSE)="",0,VLOOKUP($A$3,'G9-RED'!$A$6:$AM$500,8,FALSE))&")")),"NA") -> 36% (7218) | H19: =IFERROR((IF($C19="NA","NA",VLOOKUP($A$3,'G9-RED'!$A$6:$AM$500,10,FALSE))),"NA") -> 11.93709645 | I19: =IFERROR((IF($C19="NA","NA",ROUND(VLOOKUP($A$3,'G9-RED'!$A$6:$AM$500,12,FALSE),0)&"% ("&IF(VLOOKUP($A$3,'G9-RED'!$A$6:$AM$500,11,FALSE)="",0,VLOOKUP($A$3,'G9-RED'!$A$6:$AM$500,11,FALSE))&")")),"NA") -> 28% (5538) | J19: =IFERROR((IF($C19="NA","NA",VLOOKUP($A$3,'G9-RED'!$A$6:$AM$500,13,FALSE))),"NA") -> 3.009825087 | K19: =IFERROR((IF($C19="NA","NA",ROUND(VLOOKUP($A$3,'G9-RED'!$A$6:$AM$500,15,FALSE),0)&"% ("&IF(VLOOKUP($A$3,'G9-RED'!$A$6:$AM$500,14,FALSE)="",0,VLOOKUP($A$3,'G9-RED'!$A$6:$AM$500,14,FALSE))&")")),"NA") -> 16% (3194) | L19: =IFERROR((IF($C19="NA","NA",VLOOKUP($A$3,'G9-RED'!$A$6:$AM$500,16,FALSE))),"NA") -> 3.637751124 | M19: =IFERROR((IF($C19="NA","NA",ROUND(VLOOKUP($A$3,'G9-RED'!$A$6:$AM$500,18,FALSE),0)&"% ("&IF(VLOOKUP($A$3,'G9-RED'!$A$6:$AM$500,17,FALSE)="",0,VLOOKUP($A$3,'G9-RED'!$A$6:$AM$500,17,FALSE))&")")),"NA") -> 20% (4081) | Q19: =IFERROR(VLOOKUP($A$3,'G9-RED'!$A$6:$BX$500,3,FALSE),"not tested") -> 20010 | S19: =SUM(VLOOKUP($A$3,'GEO-ED'!$A$14:$BX$500,4,FALSE)*$Q19,VLOOKUP($A$3,'GEO-ED'!$A$14:$BX$500,41,FALSE)*$R19)/SUM($Q19,$R19) -> 10.74704868 | T19: =SUM(VLOOKUP($A$3,'GEO-ED'!$A$14:$BX$500,7,FALSE),VLOOKUP($A$3,'GEO-ED'!$A$14:$BX$500,44,FALSE))/SUM($Q19:$R19)*100 -> 0.038981326 | U19: =SUM(VLOOKUP($A$3,'GEO-ED'!$A$14:$BX$500,7,FALSE),VLOOKUP($A$3,'GEO-ED'!$A$14:$BX$500,44,FALSE)) -> 7.800163332 | V19: =SUM(VLOOKUP($A$3,'GEO-ED'!$A$14:$BX$500,10,FALSE)*$Q19,VLOOKUP($A$3,'GEO-ED'!$A$14:$BX$500,47,FALSE)*$R19)/SUM($Q19,$R19) -> 1.722598793 | W19: =SUM(VLOOKUP($A$3,'GEO-ED'!$A$14:$BX$500,8,FALSE),VLOOKUP($A$3,'GEO-ED'!$A$14:$BX$500,50,FALSE))/SUM($Q19:$R19)*100 -> 0.06996501749 | X19: =SUM(VLOOKUP($A$3,'GEO-ED'!$A$14:$BX$500,8,FALSE),VLOOKUP($A$3,'GEO-ED'!$A$14:$BX$500,50,FALSE)) -> 14 | Y19: =SUM(VLOOKUP($A$3,'GEO-ED'!$A$14:$BX$500,16,FALSE)*$Q19,VLOOKUP($A$3,'GEO-ED'!$A$14:$BX$500,53,FALSE)*$R19)/SUM($Q19,$R19) -> 0 | Z19: =SUM(VLOOKUP($A$3,'GEO-ED'!$A$14:$BX$500,19,FALSE),VLOOKUP($A$3,'GEO-ED'!$A$14:$BX$500,56,FALSE))/SUM($Q19:$R19)*100 -> 0 | AA19: =SUM(VLOOKUP($A$3,'GEO-ED'!$A$14:$BX$500,19,FALSE),VLOOKUP($A$3,'GEO-ED'!$A$14:$BX$500,56,FALSE)) -> 0 | AB19: =SUM(VLOOKUP($A$3,'GEO-ED'!$A$14:$BX$500,22,FALSE)*$Q19,VLOOKUP($A$3,'GEO-ED'!$A$14:$BX$500,59,FALSE)*$R19)/SUM($Q19,$R19) -> 0 | AC19: =SUM(VLOOKUP($A$3,'GEO-ED'!$A$14:$BX$500,25,FALSE),VLOOKUP($A$3,'GEO-ED'!$A$14:$BX$500,62,FALSE))/SUM($Q19:$R19)*100 -> 0 | AD19: =SUM(VLOOKUP($A$3,'GEO-ED'!$A$14:$BX$500,25,FALSE),VLOOKUP($A$3,'GEO-ED'!$A$14:$BX$500,62,FALSE)) -> 0 | AE19: =SUM(VLOOKUP($A$3,'GEO-ED'!$A$14:$BX$500,28,FALSE)*$Q19,VLOOKUP($A$3,'GEO-ED'!$A$14:$BX$500,65,FALSE)*$R19)/SUM($Q19,$R19) -> 0 | AF19: =SUM(VLOOKUP($A$3,'GEO-ED'!$A$14:$BX$500,31,FALSE),VLOOKUP($A$3,'GEO-ED'!$A$14:$BX$500,68,FALSE))/SUM($Q19:$R19)*100 -> 0 | AG19: =SUM(VLOOKUP($A$3,'GEO-ED'!$A$14:$BX$500,31,FALSE),VLOOKUP($A$3,'GEO-ED'!$A$14:$BX$500,68,FALSE)) -> 0 | AH19: =SUM(VLOOKUP($A$3,'GEO-ED'!$A$14:$BX$500,34,FALSE)*$Q19,VLOOKUP($A$3,'GEO-ED'!$A$14:$BX$500,71,FALSE)*$R19)/SUM($Q19,$R19) -> 0 | AI19: =SUM(VLOOKUP($A$3,'GEO-ED'!$A$14:$BX$500,37,FALSE),VLOOKUP($A$3,'GEO-ED'!$A$14:$BX$500,74,FALSE))/SUM($Q19:$R19)*100 -> 0 | AJ19: =SUM(VLOOKUP($A$3,'GEO-ED'!$A$14:$BX$500,37,FALSE),VLOOKUP($A$3,'GEO-ED'!$A$14:$BX$500,74,FALSE)) -> 0
A20: ELL | B20: =IFERROR(VLOOKUP(TEXT($A$3,"0000"),MEM_ELL!$A$2:$S$500,13,FALSE),0) -> 4062 | C20: =IFERROR((IF(OR(B20<10,B20="",B20="NA"),"NA",((IF(VLOOKUP($A$3,'G9-RELL'!$A$6:$AM$500,3,FALSE)>=B20,"100% ("&VLOOKUP($A$3,'G9-RELL'!$A$6:$AM$500,3,FALSE)&")",(ROUND((VLOOKUP($A$3,'G9-RELL'!$A$6:$AM$500,3,FALSE)/B20*100),0))&"% ("&IF(VLOOKUP($A$3,'G9-RELL'!$A$6:$AM$500,3,FALSE)="",0,VLOOKUP($A$3,'G9-RELL'!$A$6:$AM$500,3,FALSE))&")"))))),"0% (0)") -> 93% (3766) | D20: =IFERROR((IF($C20="NA","NA",VLOOKUP($A$3,'G9-RELL'!$A$6:$AM$500,4,FALSE))),"NA") -> 15.96787042 | E20: =IFERROR((IF($C20="NA","NA",ROUND(VLOOKUP($A$3,'G9-RELL'!$A$6:$AM$500,6,FALSE),0)&"% ("&IF(VLOOKUP($A$3,'G9-RELL'!$A$6:$AM$500,5,FALSE)="",0,VLOOKUP($A$3,'G9-RELL'!$A$6:$AM$500,5,FALSE))&")")),"NA") -> 6% (214) | F20: =IFERROR((IF($C20="NA","NA",VLOOKUP($A$3,'G9-RELL'!$A$6:$AM$500,7,FALSE))),"NA") -> 2.688794477 | G20: =IFERROR((IF($C20="NA","NA",ROUND(VLOOKUP($A$3,'G9-RELL'!$A$6:$AM$500,9,FALSE),0)&"% ("&IF(VLOOKUP($A$3,'G9-RELL'!$A$6:$AM$500,8,FALSE)="",0,VLOOKUP($A$3,'G9-RELL'!$A$6:$AM$500,8,FALSE))&")")),"NA") -> 14% (526) | H20: =IFERROR((IF($C20="NA","NA",VLOOKUP($A$3,'G9-RELL'!$A$6:$AM$500,10,FALSE))),"NA") -> 8.54062666 | I20: =IFERROR((IF($C20="NA","NA",ROUND(VLOOKUP($A$3,'G9-RELL'!$A$6:$AM$500,12,FALSE),0)&"% ("&IF(VLOOKUP($A$3,'G9-RELL'!$A$6:$AM$500,11,FALSE)="",0,VLOOKUP($A$3,'G9-RELL'!$A$6:$AM$500,11,FALSE))&")")),"NA") -> 7% (265) | J20: =IFERROR((IF($C20="NA","NA",VLOOKUP($A$3,'G9-RELL'!$A$6:$AM$500,13,FALSE))),"NA") -> 2.25889538 | K20: =IFERROR((IF($C20="NA","NA",ROUND(VLOOKUP($A$3,'G9-RELL'!$A$6:$AM$500,15,FALSE),0)&"% ("&IF(VLOOKUP($A$3,'G9-RELL'!$A$6:$AM$500,14,FALSE)="",0,VLOOKUP($A$3,'G9-RELL'!$A$6:$AM$500,14,FALSE))&")")),"NA") -> 7% (252) | L20: =IFERROR((IF($C20="NA","NA",VLOOKUP($A$3,'G9-RELL'!$A$6:$AM$500,16,FALSE))),"NA") -> 2.479553903 | M20: =IFERROR((IF($C20="NA","NA",ROUND(VLOOKUP($A$3,'G9-RELL'!$A$6:$AM$500,18,FALSE),0)&"% ("&IF(VLOOKUP($A$3,'G9-RELL'!$A$6:$AM$500,17,FALSE)="",0,VLOOKUP($A$3,'G9-RELL'!$A$6:$AM$500,17,FALSE))&")")),"NA") -> 5% (196) | Q20: =IFERROR(VLOOKUP($A$3,'G9-RELL'!$A$6:$BX$500,3,FALSE),"not tested") -> 3766 | S20: =SUM(VLOOKUP($A$3,'GEO-ELL'!$A$14:$BX$500,4,FALSE)*$Q20,VLOOKUP($A$3,'GEO-ELL'!$A$14:$BX$500,41,FALSE)*$R20)/SUM($Q20,$R20) -> 9.765017668 | T20: =SUM(VLOOKUP($A$3,'GEO-ELL'!$A$14:$BX$500,7,FALSE),VLOOKUP($A$3,'GEO-ELL'!$A$14:$BX$500,44,FALSE))/SUM($Q20:$R20)*100 -> 0.1905985245 | U20: =SUM(VLOOKUP($A$3,'GEO-ELL'!$A$14:$BX$500,7,FALSE),VLOOKUP($A$3,'GEO-ELL'!$A$14:$BX$500,44,FALSE)) -> 7.177940434 | V20: =SUM(VLOOKUP($A$3,'GEO-ELL'!$A$14:$BX$500,10,FALSE)*$Q20,VLOOKUP($A$3,'GEO-ELL'!$A$14:$BX$500,47,FALSE)*$R20)/SUM($Q20,$R20) -> 1.490408884 | W20: =SUM(VLOOKUP($A$3,'GEO-ELL'!$A$14:$BX$500,8,FALSE),VLOOKUP($A$3,'GEO-ELL'!$A$14:$BX$500,50,FALSE))/SUM($Q20:$R20)*100 -> 0.05310674456 | X20: =SUM(VLOOKUP($A$3,'GEO-ELL'!$A$14:$BX$500,8,FALSE),VLOOKUP($A$3,'GEO-ELL'!$A$14:$BX$500,50,FALSE)) -> 2 | Y20: =SUM(VLOOKUP($A$3,'GEO-ELL'!$A$14:$BX$500,16,FALSE)*$Q20,VLOOKUP($A$3,'GEO-ELL'!$A$14:$BX$500,53,FALSE)*$R20)/SUM($Q20,$R20) -> 0 | Z20: =SUM(VLOOKUP($A$3,'GEO-ELL'!$A$14:$BX$500,19,FALSE),VLOOKUP($A$3,'GEO-ELL'!$A$14:$BX$500,56,FALSE))/SUM($Q20:$R20)*100 -> 0 | AA20: =SUM(VLOOKUP($A$3,'GEO-ELL'!$A$14:$BX$500,19,FALSE),VLOOKUP($A$3,'GEO-ELL'!$A$14:$BX$500,56,FALSE)) -> 0 | AB20: =SUM(VLOOKUP($A$3,'GEO-ELL'!$A$14:$BX$500,22,FALSE)*$Q20,VLOOKUP($A$3,'GEO-ELL'!$A$14:$BX$500,59,FALSE)*$R20)/SUM($Q20,$R20) -> 0 | AC20: =SUM(VLOOKUP($A$3,'GEO-ELL'!$A$14:$BX$500,25,FALSE),VLOOKUP($A$3,'GEO-ELL'!$A$14:$BX$500,62,FALSE))/SUM($Q20:$R20)*100 -> 0 | AD20: =SUM(VLOOKUP($A$3,'GEO-ELL'!$A$14:$BX$500,25,FALSE),VLOOKUP($A$3,'GEO-ELL'!$A$14:$BX$500,62,FALSE)) -> 0 | AE20: =SUM(VLOOKUP($A$3,'GEO-ELL'!$A$14:$BX$500,28,FALSE)*$Q20,VLOOKUP($A$3,'GEO-ELL'!$A$14:$BX$500,65,FALSE)*$R20)/SUM($Q20,$R20) -> 0 | AF20: =SUM(VLOOKUP($A$3,'GEO-ELL'!$A$14:$BX$500,31,FALSE),VLOOKUP($A$3,'GEO-ELL'!$A$14:$BX$500,68,FALSE))/SUM($Q20:$R20)*100 -> 0 | AG20: =SUM(VLOOKUP($A$3,'GEO-ELL'!$A$14:$BX$500,31,FALSE),VLOOKUP($A$3,'GEO-ELL'!$A$14:$BX$500,68,FALSE)) -> 0 | AH20: =SUM(VLOOKUP($A$3,'GEO-ELL'!$A$14:$BX$500,34,FALSE)*$Q20,VLOOKUP($A$3,'GEO-ELL'!$A$14:$BX$500,71,FALSE)*$R20)/SUM($Q20,$R20) -> 0 | AI20: =SUM(VLOOKUP($A$3,'GEO-ELL'!$A$14:$BX$500,37,FALSE),VLOOKUP($A$3,'GEO-ELL'!$A$14:$BX$500,74,FALSE))/SUM($Q20:$R20)*100 -> 0 | AJ20: =SUM(VLOOKUP($A$3,'GEO-ELL'!$A$14:$BX$500,37,FALSE),VLOOKUP($A$3,'GEO-ELL'!$A$14:$BX$500,74,FALSE)) -> 0
A21: SWD | B21: =IFERROR(VLOOKUP(TEXT($A$3,"0000"),MEM_SWD!$A$2:$S$500,13,FALSE),0) -> 2709 | C21: =IFERROR((IF(OR(B21<10,B21="",B21="NA"),"NA",((IF(VLOOKUP($A$3,'G9-RSWD'!$A$6:$AM$500,3,FALSE)>=B21,"100% ("&VLOOKUP($A$3,'G9-RSWD'!$A$6:$AM$500,3,FALSE)&")",(ROUND((VLOOKUP($A$3,'G9-RSWD'!$A$6:$AM$500,3,FALSE)/B21*100),0))&"% ("&IF(VLOOKUP($A$3,'G9-RSWD'!$A$6:$AM$500,3,FALSE)="",0,VLOOKUP($A$3,'G9-RSWD'!$A$6:$AM$500,3,FALSE))&")"))))),"0% (0)") -> 90% (2443) | D21: =IFERROR((IF($C21="NA","NA",VLOOKUP($A$3,'G9-RSWD'!$A$6:$AM$500,4,FALSE))),"NA") -> 16.99201801 | E21: =IFERROR((IF($C21="NA","NA",ROUND(VLOOKUP($A$3,'G9-RSWD'!$A$6:$AM$500,6,FALSE),0)&"% ("&IF(VLOOKUP($A$3,'G9-RSWD'!$A$6:$AM$500,5,FALSE)="",0,VLOOKUP($A$3,'G9-RSWD'!$A$6:$AM$500,5,FALSE))&")")),"NA") -> 8% (194) | F21: =IFERROR((IF($C21="NA","NA",VLOOKUP($A$3,'G9-RSWD'!$A$6:$AM$500,7,FALSE))),"NA") -> 2.920712239 | G21: =IFERROR((IF($C21="NA","NA",ROUND(VLOOKUP($A$3,'G9-RSWD'!$A$6:$AM$500,9,FALSE),0)&"% ("&IF(VLOOKUP($A$3,'G9-RSWD'!$A$6:$AM$500,8,FALSE)="",0,VLOOKUP($A$3,'G9-RSWD'!$A$6:$AM$500,8,FALSE))&")")),"NA") -> 18% (433) | H21: =IFERROR((IF($C21="NA","NA",VLOOKUP($A$3,'G9-RSWD'!$A$6:$AM$500,10,FALSE))),"NA") -> 9.089111748 | I21: =IFERROR((IF($C21="NA","NA",ROUND(VLOOKUP($A$3,'G9-RSWD'!$A$6:$AM$500,12,FALSE),0)&"% ("&IF(VLOOKUP($A$3,'G9-RSWD'!$A$6:$AM$500,11,FALSE)="",0,VLOOKUP($A$3,'G9-RSWD'!$A$6:$AM$500,11,FALSE))&")")),"NA") -> 11% (270) | J21: =IFERROR((IF($C21="NA","NA",VLOOKUP($A$3,'G9-RSWD'!$A$6:$AM$500,13,FALSE))),"NA") -> 2.370855506 | K21: =IFERROR((IF($C21="NA","NA",ROUND(VLOOKUP($A$3,'G9-RSWD'!$A$6:$AM$500,15,FALSE),0)&"% ("&IF(VLOOKUP($A$3,'G9-RSWD'!$A$6:$AM$500,14,FALSE)="",0,VLOOKUP($A$3,'G9-RSWD'!$A$6:$AM$500,14,FALSE))&")")),"NA") -> 7% (162) | L21: =IFERROR((IF($C21="NA","NA",VLOOKUP($A$3,'G9-RSWD'!$A$6:$AM$500,16,FALSE))),"NA") -> 2.621530905 | M21: =IFERROR((IF($C21="NA","NA",ROUND(VLOOKUP($A$3,'G9-RSWD'!$A$6:$AM$500,18,FALSE),0)&"% ("&IF(VLOOKUP($A$3,'G9-RSWD'!$A$6:$AM$500,17,FALSE)="",0,VLOOKUP($A$3,'G9-RSWD'!$A$6:$AM$500,17,FALSE))&")")),"NA") -> 7% (180) | Q21: =IFERROR(VLOOKUP($A$3,'G9-RSWD'!$A$6:$BX$500,3,FALSE),"not tested") -> 2443 | S21: =SUM(VLOOKUP($A$3,'GEO-SWD'!$A$14:$BX$500,4,FALSE)*$Q21,VLOOKUP($A$3,'GEO-SWD'!$A$14:$BX$500,41,FALSE)*$R21)/SUM($Q21,$R21) -> 9.981625153 | T21: =SUM(VLOOKUP($A$3,'GEO-SWD'!$A$14:$BX$500,7,FALSE),VLOOKUP($A$3,'GEO-SWD'!$A$14:$BX$500,44,FALSE))/SUM($Q21:$R21)*100 -> 0.2968740781 | U21: =SUM(VLOOKUP($A$3,'GEO-SWD'!$A$14:$BX$500,7,FALSE),VLOOKUP($A$3,'GEO-SWD'!$A$14:$BX$500,44,FALSE)) -> 7.252633728 | V21: =SUM(VLOOKUP($A$3,'GEO-SWD'!$A$14:$BX$500,10,FALSE)*$Q21,VLOOKUP($A$3,'GEO-SWD'!$A$14:$BX$500,47,FALSE)*$R21)/SUM($Q21,$R21) -> 1.609269089 | W21: =SUM(VLOOKUP($A$3,'GEO-SWD'!$A$14:$BX$500,8,FALSE),VLOOKUP($A$3,'GEO-SWD'!$A$14:$BX$500,50,FALSE))/SUM($Q21:$R21)*100 -> 0.08186655751 | X21: =SUM(VLOOKUP($A$3,'GEO-SWD'!$A$14:$BX$500,8,FALSE),VLOOKUP($A$3,'GEO-SWD'!$A$14:$BX$500,50,FALSE)) -> 2 | Y21: =SUM(VLOOKUP($A$3,'GEO-SWD'!$A$14:$BX$500,16,FALSE)*$Q21,VLOOKUP($A$3,'GEO-SWD'!$A$14:$BX$500,53,FALSE)*$R21)/SUM($Q21,$R21) -> 0 | Z21: =SUM(VLOOKUP($A$3,'GEO-SWD'!$A$14:$BX$500,19,FALSE),VLOOKUP($A$3,'GEO-SWD'!$A$14:$BX$500,56,FALSE))/SUM($Q21:$R21)*100 -> 0 | AA21: =SUM(VLOOKUP($A$3,'GEO-SWD'!$A$14:$BX$500,19,FALSE),VLOOKUP($A$3,'GEO-SWD'!$A$14:$BX$500,56,FALSE)) -> 0 | AB21: =SUM(VLOOKUP($A$3,'GEO-SWD'!$A$14:$BX$500,22,FALSE)*$Q21,VLOOKUP($A$3,'GEO-SWD'!$A$14:$BX$500,59,FALSE)*$R21)/SUM($Q21,$R21) -> 0 | AC21: =SUM(VLOOKUP($A$3,'GEO-SWD'!$A$14:$BX$500,25,FALSE),VLOOKUP($A$3,'GEO-SWD'!$A$14:$BX$500,62,FALSE))/SUM($Q21:$R21)*100 -> 0 | AD21: =SUM(VLOOKUP($A$3,'GEO-SWD'!$A$14:$BX$500,25,FALSE),VLOOKUP($A$3,'GEO-SWD'!$A$14:$BX$500,62,FALSE)) -> 0 | AE21: =SUM(VLOOKUP($A$3,'GEO-SWD'!$A$14:$BX$500,28,FALSE)*$Q21,VLOOKUP($A$3,'GEO-SWD'!$A$14:$BX$500,65,FALSE)*$R21)/SUM($Q21,$R21) -> 0 | AF21: =SUM(VLOOKUP($A$3,'GEO-SWD'!$A$14:$BX$500,31,FALSE),VLOOKUP($A$3,'GEO-SWD'!$A$14:$BX$500,68,FALSE))/SUM($Q21:$R21)*100 -> 0 | AG21: =SUM(VLOOKUP($A$3,'GEO-SWD'!$A$14:$BX$500,31,FALSE),VLOOKUP($A$3,'GEO-SWD'!$A$14:$BX$500,68,FALSE)) -> 0 | AH21: =SUM(VLOOKUP($A$3,'GEO-SWD'!$A$14:$BX$500,34,FALSE)*$Q21,VLOOKUP($A$3,'GEO-SWD'!$A$14:$BX$500,71,FALSE)*$R21)/SUM($Q21,$R21) -> 0 | AI21: =SUM(VLOOKUP($A$3,'GEO-SWD'!$A$14:$BX$500,37,FALSE),VLOOKUP($A$3,'GEO-SWD'!$A$14:$BX$500,74,FALSE))/SUM($Q21:$R21)*100 -> 0 | AJ21: =SUM(VLOOKUP($A$3,'GEO-SWD'!$A$14:$BX$500,37,FALSE),VLOOKUP($A$3,'GEO-SWD'!$A$14:$BX$500,74,FALSE)) -> 0
A22: Reading - Grade 10 | Q22: READING
A23: Level of Proficiency at 70% or above | B23: Total # of Students | C23: % of Students Tested | D23: ='G9-10 Matrix'!C$2&" ["&'G9-10 Matrix'!C5&"]" -> Overall [34] | F23: ='G9-10 Matrix'!D$2&" ["&'G9-10 Matrix'!D5&"]" -> Vocabulary [5] | H23: ='G9-10 Matrix'!E$2&" ["&'G9-10 Matrix'!E5&"]" -> Reading Application [15] | J23: ='G9-10 Matrix'!F$2&" ["&'G9-10 Matrix'!F5&"]" -> Literary Analysis Fiction/Nonfiction [4] | L23: ='G9-10 Matrix'!G$2&" ["&'G9-10 Matrix'!G5&"]" -> Informational Text/ Research Process [10] | Q23: Grade 10 Test
D24: Average Score | E24: % Proficient | F24: Average Score | G24: % Proficient | H24: Average Score | I24: % Proficient | J24: Average Score | K24: % Proficient | L24: Average Score | M24: % Proficient | Q24: Number Tested
A25: All students | B25: =IFERROR(VLOOKUP(TEXT($A$3,"0000"),Mem_All!$A$2:$S$500,18,FALSE),0) -> 27483 | C25: =IFERROR((IF(OR(B25<10,B25="",B25="NA"),"NA",((IF(VLOOKUP($A$3,'G10-RALL'!$A$6:$AM$500,3,FALSE)>=B25,"100% ("&VLOOKUP($A$3,'G10-RALL'!$A$6:$AM$500,3,FALSE)&")",(ROUND((VLOOKUP($A$3,'G10-RALL'!$A$6:$AM$500,3,FALSE)/B25*100),0))&"% ("&IF(VLOOKUP($A$3,'G10-RALL'!$A$6:$AM$500,3,FALSE)="",0,VLOOKUP($A$3,'G10-RALL'!$A$6:$AM$500,3,FALSE))&")"))))),"0% (0)") -> 91% (25030) | D25: =IFERROR((IF($C25="NA","NA",VLOOKUP($A$3,'G10-RALL'!$A$6:$AM$500,4,FALSE))),"NA") -> 20.18147823 | E25: =IFERROR((IF($C25="NA","NA",ROUND(VLOOKUP($A$3,'G10-RALL'!$A$6:$AM$500,6,FALSE),0)&"% ("&IF(VLOOKUP($A$3,'G10-RALL'!$A$6:$AM$500,5,FALSE)="",0,VLOOKUP($A$3,'G10-RALL'!$A$6:$AM$500,5,FALSE))&")")),"NA") -> 39% (9683) | F25: =IFERROR((IF($C25="NA","NA",VLOOKUP($A$3,'G10-RALL'!$A$6:$AM$500,7,FALSE))),"NA") -> 3.670703156 | G25: =IFERROR((IF($C25="NA","NA",ROUND(VLOOKUP($A$3,'G10-RALL'!$A$6:$AM$500,9,FALSE),0)&"% ("&IF(VLOOKUP($A$3,'G10-RALL'!$A$6:$AM$500,8,FALSE)="",0,VLOOKUP($A$3,'G10-RALL'!$A$6:$AM$500,8,FALSE))&")")),"NA") -> 65% (16330) | H25: =IFERROR((IF($C25="NA","NA",VLOOKUP($A$3,'G10-RALL'!$A$6:$AM$500,10,FALSE))),"NA") -> 9.072261286 | I25: =IFERROR((IF($C25="NA","NA",ROUND(VLOOKUP($A$3,'G10-RALL'!$A$6:$AM$500,12,FALSE),0)&"% ("&IF(VLOOKUP($A$3,'G10-RALL'!$A$6:$AM$500,11,FALSE)="",0,VLOOKUP($A$3,'G10-RALL'!$A$6:$AM$500,11,FALSE))&")")),"NA") -> 40% (9962) | J25: =IFERROR((IF($C25="NA","NA",VLOOKUP($A$3,'G10-RALL'!$A$6:$AM$500,13,FALSE))),"NA") -> 2.138445865 | K25: =IFERROR((IF($C25="NA","NA",ROUND(VLOOKUP($A$3,'G10-RALL'!$A$6:$AM$500,15,FALSE),0)&"% ("&IF(VLOOKUP($A$3,'G10-RALL'!$A$6:$AM$500,14,FALSE)="",0,VLOOKUP($A$3,'G10-RALL'!$A$6:$AM$500,14,FALSE))&")")),"NA") -> 40% (9915) | L25: =IFERROR((IF($C25="NA","NA",VLOOKUP($A$3,'G10-RALL'!$A$6:$AM$500,16,FALSE))),"NA") -> 5.312413104 | M25: =IFERROR((IF($C25="NA","NA",ROUND(VLOOKUP($A$3,'G10-RALL'!$A$6:$AM$500,18,FALSE),0)&"% ("&IF(VLOOKUP($A$3,'G10-RALL'!$A$6:$AM$500,17,FALSE)="",0,VLOOKUP($A$3,'G10-RALL'!$A$6:$AM$500,17,FALSE))&")")),"NA") -> 33% (8365) | N25: =IFERROR(IF($C25="NA","NA",IF($R25=0,VLOOKUP($A$3,'GEO-ALL'!$A$14:$AA$500,34,FALSE),IF($Q25=0,VLOOKUP($A$3,'GEO-ALL'!$A$14:$AA$500,71,FALSE),AH25))),"NA") -> NA | O25: =IF($C25="NA","NA",IF($R25=0,ROUND(VLOOKUP($A$3,'GEO-ALL'!$A$14:$AA$500,39,FALSE)*100,0)&"% ("&VLOOKUP($A$3,'GEO-ALL'!$A$14:$AA$500,37,FALSE)&")",IF($Q25=0,ROUND(VLOOKUP($A$3,'GEO-ALL'!$A$14:$AA$500,76,FALSE)*100,0)&"% ("&VLOOKUP($A$3,'GEO-ALL'!$A$14:$AA$500,74,FALSE)&")",ROUND(AI25,0)&"% ("&AJ25&")"))) ->  | Q25: =IFERROR(VLOOKUP($A$3,'G10-RALL'!$A$6:$BX$500,3,FALSE),"not tested") -> 25030
A26: FCAT Level 1 | B26: =IFERROR(VLOOKUP(TEXT($A$3,"0000"),MEM_RL1!$A$2:$S$500,11,FALSE),0) -> 5251 | C26: =IFERROR((IF(OR(B26<10,B26="",B26="NA"),"NA",((IF(VLOOKUP($A$3,'G10-RL1'!$A$6:$AM$500,3,FALSE)>=B26,"100% ("&VLOOKUP($A$3,'G10-RL1'!$A$6:$AM$500,3,FALSE)&")",(ROUND((VLOOKUP($A$3,'G10-RL1'!$A$6:$AM$500,3,FALSE)/B26*100),0))&"% ("&IF(VLOOKUP($A$3,'G10-RL1'!$A$6:$AM$500,3,FALSE)="",0,VLOOKUP($A$3,'G10-RL1'!$A$6:$AM$500,3,FALSE))&")"))))),"0% (0)") -> 91% (4789) | D26: =IFERROR((IF($C26="NA","NA",VLOOKUP($A$3,'G10-RL1'!$A$6:$AM$500,4,FALSE))),"NA") -> 12.73526832 | E26: =IFERROR((IF($C26="NA","NA",ROUND(VLOOKUP($A$3,'G10-RL1'!$A$6:$AM$500,6,FALSE),0)&"% ("&IF(VLOOKUP($A$3,'G10-RL1'!$A$6:$AM$500,5,FALSE)="",0,VLOOKUP($A$3,'G10-RL1'!$A$6:$AM$500,5,FALSE))&")")),"NA") -> 2% (97) | F26: =IFERROR((IF($C26="NA","NA",VLOOKUP($A$3,'G10-RL1'!$A$6:$AM$500,7,FALSE))),"NA") -> 2.338191689 | G26: =IFERROR((IF($C26="NA","NA",ROUND(VLOOKUP($A$3,'G10-RL1'!$A$6:$AM$500,9,FALSE),0)&"% ("&IF(VLOOKUP($A$3,'G10-RL1'!$A$6:$AM$500,8,FALSE)="",0,VLOOKUP($A$3,'G10-RL1'!$A$6:$AM$500,8,FALSE))&")")),"NA") -> 24% (1143) | H26: =IFERROR((IF($C26="NA","NA",VLOOKUP($A$3,'G10-RL1'!$A$6:$AM$500,10,FALSE))),"NA") -> 5.637439967 | I26: =IFERROR((IF($C26="NA","NA",ROUND(VLOOKUP($A$3,'G10-RL1'!$A$6:$AM$500,12,FALSE),0)&"% ("&IF(VLOOKUP($A$3,'G10-RL1'!$A$6:$AM$500,11,FALSE)="",0,VLOOKUP($A$3,'G10-RL1'!$A$6:$AM$500,11,FALSE))&")")),"NA") -> 4% (181) | J26: =IFERROR((IF($C26="NA","NA",VLOOKUP($A$3,'G10-RL1'!$A$6:$AM$500,13,FALSE))),"NA") -> 1.410670286 | K26: =IFERROR((IF($C26="NA","NA",ROUND(VLOOKUP($A$3,'G10-RL1'!$A$6:$AM$500,15,FALSE),0)&"% ("&IF(VLOOKUP($A$3,'G10-RL1'!$A$6:$AM$500,14,FALSE)="",0,VLOOKUP($A$3,'G10-RL1'!$A$6:$AM$500,14,FALSE))&")")),"NA") -> 13% (638) | L26: =IFERROR((IF($C26="NA","NA",VLOOKUP($A$3,'G10-RL1'!$A$6:$AM$500,16,FALSE))),"NA") -> 3.359010232 | M26: =IFERROR((IF($C26="NA","NA",ROUND(VLOOKUP($A$3,'G10-RL1'!$A$6:$AM$500,18,FALSE),0)&"% ("&IF(VLOOKUP($A$3,'G10-RL1'!$A$6:$AM$500,17,FALSE)="",0,VLOOKUP($A$3,'G10-RL1'!$A$6:$AM$500,17,FALSE))&")")),"NA") -> 5% (225) | N26: =IFERROR(IF($C26="NA","NA",IF($R26=0,VLOOKUP($A$3,'GEO-L1'!$A$14:$BX$500,34,FALSE),IF($Q26=0,VLOOKUP($A$3,'GEO-L1'!$A$14:$BX$500,71,FALSE),AH26))),"NA") -> 0 | O26: =IF($C26="NA","NA",IF($R26=0,ROUND(VLOOKUP($A$3,'GEO-L1'!$A$14:$BX$500,39,FALSE)*100,0)&"% ("&VLOOKUP($A$3,'GEO-L1'!$A$14:$BX$500,37,FALSE)&")",IF($Q26=0,ROUND(VLOOKUP($A$3,'GEO-L1'!$A$14:$BX$500,76,FALSE)*100,0)&"% ("&VLOOKUP($A$3,'GEO-L1'!$A$14:$BX$500,74,FALSE)&")",ROUND(AI26,0)&"% ("&AJ26&")"))) -> 0% () | Q26: =IFERROR(VLOOKUP($A$3,'G10-RL1'!$A$6:$BX$500,3,FALSE),"not tested") -> 4789
A27: FCAT Level 2 | B27: =IFERROR(VLOOKUP(TEXT($A$3,"0000"),MEM_RL2!$A$2:$S$500,11,FALSE),0) -> 7795 | C27: =IFERROR((IF(OR(B27<10,B27="",B27="NA"),"NA",((IF(VLOOKUP($A$3,'G10-RL2'!$A$6:$AM$500,3,FALSE)>=B27,"100% ("&VLOOKUP($A$3,'G10-RL2'!$A$6:$AM$500,3,FALSE)&")",(ROUND((VLOOKUP($A$3,'G10-RL2'!$A$6:$AM$500,3,FALSE)/B27*100),0))&"% ("&IF(VLOOKUP($A$3,'G10-RL2'!$A$6:$AM$500,3,FALSE)="",0,VLOOKUP($A$3,'G10-RL2'!$A$6:$AM$500,3,FALSE))&")"))))),"0% (0)") -> 85% (6609) | D27: =IFERROR((IF($C27="NA","NA",VLOOKUP($A$3,'G10-RL2'!$A$6:$AM$500,4,FALSE))),"NA") -> 18.48261462 | E27: =IFERROR((IF($C27="NA","NA",ROUND(VLOOKUP($A$3,'G10-RL2'!$A$6:$AM$500,6,FALSE),0)&"% ("&IF(VLOOKUP($A$3,'G10-RL2'!$A$6:$AM$500,5,FALSE)="",0,VLOOKUP($A$3,'G10-RL2'!$A$6:$AM$500,5,FALSE))&")")),"NA") -> 18% (1195) | F27: =IFERROR((IF($C27="NA","NA",VLOOKUP($A$3,'G10-RL2'!$A$6:$AM$500,7,FALSE))),"NA") -> 3.55282191 | G27: =IFERROR((IF($C27="NA","NA",ROUND(VLOOKUP($A$3,'G10-RL2'!$A$6:$AM$500,9,FALSE),0)&"% ("&IF(VLOOKUP($A$3,'G10-RL2'!$A$6:$AM$500,8,FALSE)="",0,VLOOKUP($A$3,'G10-RL2'!$A$6:$AM$500,8,FALSE))&")")),"NA") -> 60% (3951) | H27: =IFERROR((IF($C27="NA","NA",VLOOKUP($A$3,'G10-RL2'!$A$6:$AM$500,10,FALSE))),"NA") -> 8.1825087 | I27: =IFERROR((IF($C27="NA","NA",ROUND(VLOOKUP($A$3,'G10-RL2'!$A$6:$AM$500,12,FALSE),0)&"% ("&IF(VLOOKUP($A$3,'G10-RL2'!$A$6:$AM$500,11,FALSE)="",0,VLOOKUP($A$3,'G10-RL2'!$A$6:$AM$500,11,FALSE))&")")),"NA") -> 21% (1393) | J27: =IFERROR((IF($C27="NA","NA",VLOOKUP($A$3,'G10-RL2'!$A$6:$AM$500,13,FALSE))),"NA") -> 1.966908761 | K27: =IFERROR((IF($C27="NA","NA",ROUND(VLOOKUP($A$3,'G10-RL2'!$A$6:$AM$500,15,FALSE),0)&"% ("&IF(VLOOKUP($A$3,'G10-RL2'!$A$6:$AM$500,14,FALSE)="",0,VLOOKUP($A$3,'G10-RL2'!$A$6:$AM$500,14,FALSE))&")")),"NA") -> 31% (2068) | L27: =IFERROR((IF($C27="NA","NA",VLOOKUP($A$3,'G10-RL2'!$A$6:$AM$500,16,FALSE))),"NA") -> 4.7886821 | M27: =IFERROR((IF($C27="NA","NA",ROUND(VLOOKUP($A$3,'G10-RL2'!$A$6:$AM$500,18,FALSE),0)&"% ("&IF(VLOOKUP($A$3,'G10-RL2'!$A$6:$AM$500,17,FALSE)="",0,VLOOKUP($A$3,'G10-RL2'!$A$6:$AM$500,17,FALSE))&")")),"NA") -> 20% (1334) | N27: =IFERROR(IF($C27="NA","NA",IF($R27=0,VLOOKUP($A$3,'GEO-L2'!$A$14:$BX$500,34,FALSE),IF($Q27=0,VLOOKUP($A$3,'GEO-L2'!$A$14:$BX$500,71,FALSE),AH27))),"NA") -> 0 | O27: =IF($C27="NA","NA",IF($R27=0,ROUND(VLOOKUP($A$3,'GEO-L2'!$A$14:$BX$500,39,FALSE)*100,0)&"% ("&VLOOKUP($A$3,'GEO-L2'!$A$14:$BX$500,37,FALSE)&")",IF($Q27=0,ROUND(VLOOKUP($A$3,'GEO-L2'!$A$14:$BX$500,76,FALSE)*100,0)&"% ("&VLOOKUP($A$3,'GEO-L2'!$A$14:$BX$500,74,FALSE)&")",ROUND(AI27,0)&"% ("&AJ27&")"))) -> 0% () | Q27: =IFERROR(VLOOKUP($A$3,'G10-RL2'!$A$6:$BX$500,3,FALSE),"not tested") -> 6609
A28: FCAT Level 3 | B28: =IFERROR(VLOOKUP(TEXT($A$3,"0000"),MEM_RL3!$A$2:$S$500,18,FALSE),0) -> 6390 | C28: =IFERROR((IF(OR(B28<10,B28="",B28="NA"),"NA",((IF(VLOOKUP($A$3,'G10-RL3'!$A$6:$AM$500,3,FALSE)>=B28,"100% ("&VLOOKUP($A$3,'G10-RL3'!$A$6:$AM$500,3,FALSE)&")",(ROUND((VLOOKUP($A$3,'G10-RL3'!$A$6:$AM$500,3,FALSE)/B28*100),0))&"% ("&IF(VLOOKUP($A$3,'G10-RL3'!$A$6:$AM$500,3,FALSE)="",0,VLOOKUP($A$3,'G10-RL3'!$A$6:$AM$500,3,FALSE))&")"))))),"0% (0)") -> 96% (6115) | D28: =IFERROR((IF($C28="NA","NA",VLOOKUP($A$3,'G10-RL3'!$A$6:$AM$500,4,FALSE))),"NA") -> 22.11398201 | E28: =IFERROR((IF($C28="NA","NA",ROUND(VLOOKUP($A$3,'G10-RL3'!$A$6:$AM$500,6,FALSE),0)&"% ("&IF(VLOOKUP($A$3,'G10-RL3'!$A$6:$AM$500,5,FALSE)="",0,VLOOKUP($A$3,'G10-RL3'!$A$6:$AM$500,5,FALSE))&")")),"NA") -> 46% (2814) | F28: =IFERROR((IF($C28="NA","NA",VLOOKUP($A$3,'G10-RL3'!$A$6:$AM$500,7,FALSE))),"NA") -> 4.07681112 | G28: =IFERROR((IF($C28="NA","NA",ROUND(VLOOKUP($A$3,'G10-RL3'!$A$6:$AM$500,9,FALSE),0)&"% ("&IF(VLOOKUP($A$3,'G10-RL3'!$A$6:$AM$500,8,FALSE)="",0,VLOOKUP($A$3,'G10-RL3'!$A$6:$AM$500,8,FALSE))&")")),"NA") -> 78% (4795) | H28: =IFERROR((IF($C28="NA","NA",VLOOKUP($A$3,'G10-RL3'!$A$6:$AM$500,10,FALSE))),"NA") -> 9.939787408 | I28: =IFERROR((IF($C28="NA","NA",ROUND(VLOOKUP($A$3,'G10-RL3'!$A$6:$AM$500,12,FALSE),0)&"% ("&IF(VLOOKUP($A$3,'G10-RL3'!$A$6:$AM$500,11,FALSE)="",0,VLOOKUP($A$3,'G10-RL3'!$A$6:$AM$500,11,FALSE))&")")),"NA") -> 47% (2896) | J28: =IFERROR((IF($C28="NA","NA",VLOOKUP($A$3,'G10-RL3'!$A$6:$AM$500,13,FALSE))),"NA") -> 2.29524121 | K28: =IFERROR((IF($C28="NA","NA",ROUND(VLOOKUP($A$3,'G10-RL3'!$A$6:$AM$500,15,FALSE),0)&"% ("&IF(VLOOKUP($A$3,'G10-RL3'!$A$6:$AM$500,14,FALSE)="",0,VLOOKUP($A$3,'G10-RL3'!$A$6:$AM$500,14,FALSE))&")")),"NA") -> 44% (2718) | L28: =IFERROR((IF($C28="NA","NA",VLOOKUP($A$3,'G10-RL3'!$A$6:$AM$500,16,FALSE))),"NA") -> 5.810335241 | M28: =IFERROR((IF($C28="NA","NA",ROUND(VLOOKUP($A$3,'G10-RL3'!$A$6:$AM$500,18,FALSE),0)&"% ("&IF(VLOOKUP($A$3,'G10-RL3'!$A$6:$AM$500,17,FALSE)="",0,VLOOKUP($A$3,'G10-RL3'!$A$6:$AM$500,17,FALSE))&")")),"NA") -> 39% (2374) | N28: =IFERROR(IF($C28="NA","NA",IF($R28=0,VLOOKUP($A$3,'GEO-L3'!$A$14:$BX$500,34,FALSE),IF($Q28=0,VLOOKUP($A$3,'GEO-L3'!$A$14:$BX$500,71,FALSE),AH28))),"NA") -> 0 | O28: =IF($C28="NA","NA",IF($R28=0,ROUND(VLOOKUP($A$3,'GEO-L3'!$A$14:$BX$500,39,FALSE)*100,0)&"% ("&VLOOKUP($A$3,'GEO-L3'!$A$14:$BX$500,37,FALSE)&")",IF($Q28=0,ROUND(VLOOKUP($A$3,'GEO-L3'!$A$14:$BX$500,76,FALSE)*100,0)&"% ("&VLOOKUP($A$3,'GEO-L3'!$A$14:$BX$500,74,FALSE)&")",ROUND(AI28,0)&"% ("&AJ28&")"))) -> 0% () | Q28: =IFERROR(VLOOKUP($A$3,'G10-RL3'!$A$6:$BX$500,3,FALSE),"not tested") -> 6115
A29: FCAT Level 4 | B29: =IFERROR(VLOOKUP(TEXT($A$3,"0000"),MEM_RL4!$A$2:$S$500,18,FALSE),0) -> 4908 | C29: =IFERROR((IF(OR(B29<10,B29="",B29="NA"),"NA",((IF(VLOOKUP($A$3,'G10-RL4'!$A$6:$AM$500,3,FALSE)>=B29,"100% ("&VLOOKUP($A$3,'G10-RL4'!$A$6:$AM$500,3,FALSE)&")",(ROUND((VLOOKUP($A$3,'G10-RL4'!$A$6:$AM$500,3,FALSE)/B29*100),0))&"% ("&IF(VLOOKUP($A$3,'G10-RL4'!$A$6:$AM$500,3,FALSE)="",0,VLOOKUP($A$3,'G10-RL4'!$A$6:$AM$500,3,FALSE))&")"))))),"0% (0)") -> 96% (4702) | D29: =IFERROR((IF($C29="NA","NA",VLOOKUP($A$3,'G10-RL4'!$A$6:$AM$500,4,FALSE))),"NA") -> 25.05463632 | E29: =IFERROR((IF($C29="NA","NA",ROUND(VLOOKUP($A$3,'G10-RL4'!$A$6:$AM$500,6,FALSE),0)&"% ("&IF(VLOOKUP($A$3,'G10-RL4'!$A$6:$AM$500,5,FALSE)="",0,VLOOKUP($A$3,'G10-RL4'!$A$6:$AM$500,5,FALSE))&")")),"NA") -> 75% (3512) | F29: =IFERROR((IF($C29="NA","NA",VLOOKUP($A$3,'G10-RL4'!$A$6:$AM$500,7,FALSE))),"NA") -> 4.371756699 | G29: =IFERROR((IF($C29="NA","NA",ROUND(VLOOKUP($A$3,'G10-RL4'!$A$6:$AM$500,9,FALSE),0)&"% ("&IF(VLOOKUP($A$3,'G10-RL4'!$A$6:$AM$500,8,FALSE)="",0,VLOOKUP($A$3,'G10-RL4'!$A$6:$AM$500,8,FALSE))&")")),"NA") -> 88% (4155) | H29: =IFERROR((IF($C29="NA","NA",VLOOKUP($A$3,'G10-RL4'!$A$6:$AM$500,10,FALSE))),"NA") -> 11.38989792 | I29: =IFERROR((IF($C29="NA","NA",ROUND(VLOOKUP($A$3,'G10-RL4'!$A$6:$AM$500,12,FALSE),0)&"% ("&IF(VLOOKUP($A$3,'G10-RL4'!$A$6:$AM$500,11,FALSE)="",0,VLOOKUP($A$3,'G10-RL4'!$A$6:$AM$500,11,FALSE))&")")),"NA") -> 73% (3439) | J29: =IFERROR((IF($C29="NA","NA",VLOOKUP($A$3,'G10-RL4'!$A$6:$AM$500,13,FALSE))),"NA") -> 2.6314547 | K29: =IFERROR((IF($C29="NA","NA",ROUND(VLOOKUP($A$3,'G10-RL4'!$A$6:$AM$500,15,FALSE),0)&"% ("&IF(VLOOKUP($A$3,'G10-RL4'!$A$6:$AM$500,14,FALSE)="",0,VLOOKUP($A$3,'G10-RL4'!$A$6:$AM$500,14,FALSE))&")")),"NA") -> 59% (2760) | L29: =IFERROR((IF($C29="NA","NA",VLOOKUP($A$3,'G10-RL4'!$A$6:$AM$500,16,FALSE))),"NA") -> 6.645299872 | M29: =IFERROR((IF($C29="NA","NA",ROUND(VLOOKUP($A$3,'G10-RL4'!$A$6:$AM$500,18,FALSE),0)&"% ("&IF(VLOOKUP($A$3,'G10-RL4'!$A$6:$AM$500,17,FALSE)="",0,VLOOKUP($A$3,'G10-RL4'!$A$6:$AM$500,17,FALSE))&")")),"NA") -> 58% (2731) | N29: =IFERROR(IF($C29="NA","NA",IF($R29=0,VLOOKUP($A$3,'GEO-L4'!$A$14:$BX$500,34,FALSE),IF($Q29=0,VLOOKUP($A$3,'GEO-L4'!$A$14:$BX$500,71,FALSE),AH29))),"NA") -> 0 | O29: =IF($C29="NA","NA",IF($R29=0,ROUND(VLOOKUP($A$3,'GEO-L4'!$A$14:$BX$500,39,FALSE)*100,0)&"% ("&VLOOKUP($A$3,'GEO-L4'!$A$14:$BX$500,37,FALSE)&")",IF($Q29=0,ROUND(VLOOKUP($A$3,'GEO-L4'!$A$14:$BX$500,76,FALSE)*100,0)&"% ("&VLOOKUP($A$3,'GEO-L4'!$A$14:$BX$500,74,FALSE)&")",ROUND(AI29,0)&"% ("&AJ29&")"))) -> 0% () | Q29: =IFERROR(VLOOKUP($A$3,'G10-RL4'!$A$6:$BX$500,3,FALSE),"not tested") -> 4702
A30: FCAT Level 5 | B30: =IFERROR(VLOOKUP(TEXT($A$3,"0000"),MEM_RL5!$A$2:$S$500,18,FALSE),0) -> 2270 | C30: =IFERROR((IF(OR(B30<10,B30="",B30="NA"),"NA",((IF(VLOOKUP($A$3,'G10-RL5'!$A$6:$AM$500,3,FALSE)>=B30,"100% ("&VLOOKUP($A$3,'G10-RL5'!$A$6:$AM$500,3,FALSE)&")",(ROUND((VLOOKUP($A$3,'G10-RL5'!$A$6:$AM$500,3,FALSE)/B30*100),0))&"% ("&IF(VLOOKUP($A$3,'G10-RL5'!$A$6:$AM$500,3,FALSE)="",0,VLOOKUP($A$3,'G10-RL5'!$A$6:$AM$500,3,FALSE))&")"))))),"0% (0)") -> 96% (2189) | D30: =IFERROR((IF($C30="NA","NA",VLOOKUP($A$3,'G10-RL5'!$A$6:$AM$500,4,FALSE))),"NA") -> 27.30740064 | E30: =IFERROR((IF($C30="NA","NA",ROUND(VLOOKUP($A$3,'G10-RL5'!$A$6:$AM$500,6,FALSE),0)&"% ("&IF(VLOOKUP($A$3,'G10-RL5'!$A$6:$AM$500,5,FALSE)="",0,VLOOKUP($A$3,'G10-RL5'!$A$6:$AM$500,5,FALSE))&")")),"NA") -> 90% (1961) | F30: =IFERROR((IF($C30="NA","NA",VLOOKUP($A$3,'G10-RL5'!$A$6:$AM$500,7,FALSE))),"NA") -> 4.627729557 | G30: =IFERROR((IF($C30="NA","NA",ROUND(VLOOKUP($A$3,'G10-RL5'!$A$6:$AM$500,9,FALSE),0)&"% ("&IF(VLOOKUP($A$3,'G10-RL5'!$A$6:$AM$500,8,FALSE)="",0,VLOOKUP($A$3,'G10-RL5'!$A$6:$AM$500,8,FALSE))&")")),"NA") -> 95% (2080) | H30: =IFERROR((IF($C30="NA","NA",VLOOKUP($A$3,'G10-RL5'!$A$6:$AM$500,10,FALSE))),"NA") -> 12.47322979 | I30: =IFERROR((IF($C30="NA","NA",ROUND(VLOOKUP($A$3,'G10-RL5'!$A$6:$AM$500,12,FALSE),0)&"% ("&IF(VLOOKUP($A$3,'G10-RL5'!$A$6:$AM$500,11,FALSE)="",0,VLOOKUP($A$3,'G10-RL5'!$A$6:$AM$500,11,FALSE))&")")),"NA") -> 88% (1936) | J30: =IFERROR((IF($C30="NA","NA",VLOOKUP($A$3,'G10-RL5'!$A$6:$AM$500,13,FALSE))),"NA") -> 2.955641846 | K30: =IFERROR((IF($C30="NA","NA",ROUND(VLOOKUP($A$3,'G10-RL5'!$A$6:$AM$500,15,FALSE),0)&"% ("&IF(VLOOKUP($A$3,'G10-RL5'!$A$6:$AM$500,14,FALSE)="",0,VLOOKUP($A$3,'G10-RL5'!$A$6:$AM$500,14,FALSE))&")")),"NA") -> 72% (1583) | L30: =IFERROR((IF($C30="NA","NA",VLOOKUP($A$3,'G10-RL5'!$A$6:$AM$500,16,FALSE))),"NA") -> 7.252581087 | M30: =IFERROR((IF($C30="NA","NA",ROUND(VLOOKUP($A$3,'G10-RL5'!$A$6:$AM$500,18,FALSE),0)&"% ("&IF(VLOOKUP($A$3,'G10-RL5'!$A$6:$AM$500,17,FALSE)="",0,VLOOKUP($A$3,'G10-RL5'!$A$6:$AM$500,17,FALSE))&")")),"NA") -> 73% (1590) | N30: =IFERROR(IF($C30="NA","NA",IF($R30=0,VLOOKUP($A$3,'GEO-L5'!$A$14:$BX$500,34,FALSE),IF($Q30=0,VLOOKUP($A$3,'GEO-L5'!$A$14:$BX$500,71,FALSE),AH30))),"NA") -> 0 | O30: =IF($C30="NA","NA",IF($R30=0,ROUND(VLOOKUP($A$3,'GEO-L5'!$A$14:$BX$500,39,FALSE)*100,0)&"% ("&VLOOKUP($A$3,'GEO-L5'!$A$14:$BX$500,37,FALSE)&")",IF($Q30=0,ROUND(VLOOKUP($A$3,'GEO-L5'!$A$14:$BX$500,76,FALSE)*100,0)&"% ("&VLOOKUP($A$3,'GEO-L5'!$A$14:$BX$500,74,FALSE)&")",ROUND(AI30,0)&"% ("&AJ30&")"))) -> 0% () | Q30: =IFERROR(VLOOKUP($A$3,'G10-RL5'!$A$6:$BX$500,3,FALSE),"not tested") -> 2189
A31: White | B31: =IFERROR(VLOOKUP(TEXT($A$3,"0000"),MEM_W!$A$2:$S$500,18,FALSE),0) -> 2309 | C31: =IFERROR((IF(OR(B31<10,B31="",B31="NA"),"NA",((IF(VLOOKUP($A$3,'G10-RW'!$A$6:$AM$500,3,FALSE)>=B31,"100% ("&VLOOKUP($A$3,'G10-RW'!$A$6:$AM$500,3,FALSE)&")",(ROUND((VLOOKUP($A$3,'G10-RW'!$A$6:$AM$500,3,FALSE)/B31*100),0))&"% ("&IF(VLOOKUP($A$3,'G10-RW'!$A$6:$AM$500,3,FALSE)="",0,VLOOKUP($A$3,'G10-RW'!$A$6:$AM$500,3,FALSE))&")"))))),"0% (0)") -> 90% (2089) | D31: =IFERROR((IF($C31="NA","NA",VLOOKUP($A$3,'G10-RW'!$A$6:$AM$500,4,FALSE))),"NA") -> 23.26036381 | E31: =IFERROR((IF($C31="NA","NA",ROUND(VLOOKUP($A$3,'G10-RW'!$A$6:$AM$500,6,FALSE),0)&"% ("&IF(VLOOKUP($A$3,'G10-RW'!$A$6:$AM$500,5,FALSE)="",0,VLOOKUP($A$3,'G10-RW'!$A$6:$AM$500,5,FALSE))&")")),"NA") -> 59% (1240) | F31: =IFERROR((IF($C31="NA","NA",VLOOKUP($A$3,'G10-RW'!$A$6:$AM$500,7,FALSE))),"NA") -> 4.164289134 | G31: =IFERROR((IF($C31="NA","NA",ROUND(VLOOKUP($A$3,'G10-RW'!$A$6:$AM$500,9,FALSE),0)&"% ("&IF(VLOOKUP($A$3,'G10-RW'!$A$6:$AM$500,8,FALSE)="",0,VLOOKUP($A$3,'G10-RW'!$A$6:$AM$500,8,FALSE))&")")),"NA") -> 80% (1677) | H31: =IFERROR((IF($C31="NA","NA",VLOOKUP($A$3,'G10-RW'!$A$6:$AM$500,10,FALSE))),"NA") -> 10.50244136 | I31: =IFERROR((IF($C31="NA","NA",ROUND(VLOOKUP($A$3,'G10-RW'!$A$6:$AM$500,12,FALSE),0)&"% ("&IF(VLOOKUP($A$3,'G10-RW'!$A$6:$AM$500,11,FALSE)="",0,VLOOKUP($A$3,'G10-RW'!$A$6:$AM$500,11,FALSE))&")")),"NA") -> 59% (1228) | J31: =IFERROR((IF($C31="NA","NA",VLOOKUP($A$3,'G10-RW'!$A$6:$AM$500,13,FALSE))),"NA") -> 2.483437051 | K31: =IFERROR((IF($C31="NA","NA",ROUND(VLOOKUP($A$3,'G10-RW'!$A$6:$AM$500,15,FALSE),0)&"% ("&IF(VLOOKUP($A$3,'G10-RW'!$A$6:$AM$500,14,FALSE)="",0,VLOOKUP($A$3,'G10-RW'!$A$6:$AM$500,14,FALSE))&")")),"NA") -> 53% (1105) | L31: =IFERROR((IF($C31="NA","NA",VLOOKUP($A$3,'G10-RW'!$A$6:$AM$500,16,FALSE))),"NA") -> 6.124126376 | M31: =IFERROR((IF($C31="NA","NA",ROUND(VLOOKUP($A$3,'G10-RW'!$A$6:$AM$500,18,FALSE),0)&"% ("&IF(VLOOKUP($A$3,'G10-RW'!$A$6:$AM$500,17,FALSE)="",0,VLOOKUP($A$3,'G10-RW'!$A$6:$AM$500,17,FALSE))&")")),"NA") -> 49% (1014) | N31: =IFERROR(IF($C31="NA","NA",IF($R31=0,VLOOKUP($A$3,'GEO-W'!$A$14:$BX$500,34,FALSE),IF($Q31=0,VLOOKUP($A$3,'GEO-W'!$A$14:$BX$500,71,FALSE),AH31))),"NA") -> 0 | O31: =IF($C31="NA","NA",IF($R31=0,ROUND(VLOOKUP($A$3,'GEO-W'!$A$14:$BX$500,39,FALSE)*100,0)&"% ("&VLOOKUP($A$3,'GEO-W'!$A$14:$BX$500,37,FALSE)&")",IF($Q31=0,ROUND(VLOOKUP($A$3,'GEO-W'!$A$14:$BX$500,76,FALSE)*100,0)&"% ("&VLOOKUP($A$3,'GEO-W'!$A$14:$BX$500,74,FALSE)&")",ROUND(AI31,0)&"% ("&AJ31&")"))) -> 0% () | Q31: =IFERROR(VLOOKUP($A$3,'G10-RW'!$A$6:$BX$500,3,FALSE),"not tested") -> 2089
A32: Black | B32: =IFERROR(VLOOKUP(TEXT($A$3,"0000"),MEM_B!$A$2:$S$500,18,FALSE),0) -> 6262 | C32: =IFERROR((IF(OR(B32<10,B32="",B32="NA"),"NA",((IF(VLOOKUP($A$3,'G10-RB'!$A$6:$AM$500,3,FALSE)>=B32,"100% ("&VLOOKUP($A$3,'G10-RB'!$A$6:$AM$500,3,FALSE)&")",(ROUND((VLOOKUP($A$3,'G10-RB'!$A$6:$AM$500,3,FALSE)/B32*100),0))&"% ("&IF(VLOOKUP($A$3,'G10-RB'!$A$6:$AM$500,3,FALSE)="",0,VLOOKUP($A$3,'G10-RB'!$A$6:$AM$500,3,FALSE))&")"))))),"0% (0)") -> 89% (5559) | D32: =IFERROR((IF($C32="NA","NA",VLOOKUP($A$3,'G10-RB'!$A$6:$AM$500,4,FALSE))),"NA") -> 19.52295377 | E32: =IFERROR((IF($C32="NA","NA",ROUND(VLOOKUP($A$3,'G10-RB'!$A$6:$AM$500,6,FALSE),0)&"% ("&IF(VLOOKUP($A$3,'G10-RB'!$A$6:$AM$500,5,FALSE)="",0,VLOOKUP($A$3,'G10-RB'!$A$6:$AM$500,5,FALSE))&")")),"NA") -> 31% (1726) | F32: =IFERROR((IF($C32="NA","NA",VLOOKUP($A$3,'G10-RB'!$A$6:$AM$500,7,FALSE))),"NA") -> 3.778323439 | G32: =IFERROR((IF($C32="NA","NA",ROUND(VLOOKUP($A$3,'G10-RB'!$A$6:$AM$500,9,FALSE),0)&"% ("&IF(VLOOKUP($A$3,'G10-RB'!$A$6:$AM$500,8,FALSE)="",0,VLOOKUP($A$3,'G10-RB'!$A$6:$AM$500,8,FALSE))&")")),"NA") -> 67% (3751) | H32: =IFERROR((IF($C32="NA","NA",VLOOKUP($A$3,'G10-RB'!$A$6:$AM$500,10,FALSE))),"NA") -> 8.694639324 | I32: =IFERROR((IF($C32="NA","NA",ROUND(VLOOKUP($A$3,'G10-RB'!$A$6:$AM$500,12,FALSE),0)&"% ("&IF(VLOOKUP($A$3,'G10-RB'!$A$6:$AM$500,11,FALSE)="",0,VLOOKUP($A$3,'G10-RB'!$A$6:$AM$500,11,FALSE))&")")),"NA") -> 33% (1820) | J32: =IFERROR((IF($C32="NA","NA",VLOOKUP($A$3,'G10-RB'!$A$6:$AM$500,13,FALSE))),"NA") -> 2.05679079 | K32: =IFERROR((IF($C32="NA","NA",ROUND(VLOOKUP($A$3,'G10-RB'!$A$6:$AM$500,15,FALSE),0)&"% ("&IF(VLOOKUP($A$3,'G10-RB'!$A$6:$AM$500,14,FALSE)="",0,VLOOKUP($A$3,'G10-RB'!$A$6:$AM$500,14,FALSE))&")")),"NA") -> 37% (2039) | L32: =IFERROR((IF($C32="NA","NA",VLOOKUP($A$3,'G10-RB'!$A$6:$AM$500,16,FALSE))),"NA") -> 4.991545242 | M32: =IFERROR((IF($C32="NA","NA",ROUND(VLOOKUP($A$3,'G10-RB'!$A$6:$AM$500,18,FALSE),0)&"% ("&IF(VLOOKUP($A$3,'G10-RB'!$A$6:$AM$500,17,FALSE)="",0,VLOOKUP($A$3,'G10-RB'!$A$6:$AM$500,17,FALSE))&")")),"NA") -> 25% (1396) | N32: =IFERROR(IF($C32="NA","NA",IF($R32=0,VLOOKUP($A$3,'GEO-B'!$A$14:$BX$500,34,FALSE),IF($Q32=0,VLOOKUP($A$3,'GEO-B'!$A$14:$BX$500,71,FALSE),AH32))),"NA") -> 0 | O32: =IF($C32="NA","NA",IF($R32=0,ROUND(VLOOKUP($A$3,'GEO-B'!$A$14:$BX$500,39,FALSE)*100,0)&"% ("&VLOOKUP($A$3,'GEO-B'!$A$14:$BX$500,37,FALSE)&")",IF($Q32=0,ROUND(VLOOKUP($A$3,'GEO-B'!$A$14:$BX$500,76,FALSE)*100,0)&"% ("&VLOOKUP($A$3,'GEO-B'!$A$14:$BX$500,74,FALSE)&")",ROUND(AI32,0)&"% ("&AJ32&")"))) -> 0% () | Q32: =IFERROR(VLOOKUP($A$3,'G10-RB'!$A$6:$BX$500,3,FALSE),"not tested") -> 5559
A33: Hispanic | B33: =IFERROR(VLOOKUP(TEXT($A$3,"0000"),MEM_H!$A$2:$S$500,18,FALSE),0) -> 18514 | C33: =IFERROR((IF(OR(B33<10,B33="",B33="NA"),"NA",((IF(VLOOKUP($A$3,'G10-RH'!$A$6:$AM$500,3,FALSE)>=B33,"100% ("&VLOOKUP($A$3,'G10-RH'!$A$6:$AM$500,3,FALSE)&")",(ROUND((VLOOKUP($A$3,'G10-RH'!$A$6:$AM$500,3,FALSE)/B33*100),0))&"% ("&IF(VLOOKUP($A$3,'G10-RH'!$A$6:$AM$500,3,FALSE)="",0,VLOOKUP($A$3,'G10-RH'!$A$6:$AM$500,3,FALSE))&")"))))),"0% (0)") -> 92% (17015) | D33: =IFERROR((IF($C33="NA","NA",VLOOKUP($A$3,'G10-RH'!$A$6:$AM$500,4,FALSE))),"NA") -> 19.93645019 | E33: =IFERROR((IF($C33="NA","NA",ROUND(VLOOKUP($A$3,'G10-RH'!$A$6:$AM$500,6,FALSE),0)&"% ("&IF(VLOOKUP($A$3,'G10-RH'!$A$6:$AM$500,5,FALSE)="",0,VLOOKUP($A$3,'G10-RH'!$A$6:$AM$500,5,FALSE))&")")),"NA") -> 38% (6475) | F33: =IFERROR((IF($C33="NA","NA",VLOOKUP($A$3,'G10-RH'!$A$6:$AM$500,7,FALSE))),"NA") -> 3.556338525 | G33: =IFERROR((IF($C33="NA","NA",ROUND(VLOOKUP($A$3,'G10-RH'!$A$6:$AM$500,9,FALSE),0)&"% ("&IF(VLOOKUP($A$3,'G10-RH'!$A$6:$AM$500,8,FALSE)="",0,VLOOKUP($A$3,'G10-RH'!$A$6:$AM$500,8,FALSE))&")")),"NA") -> 62% (10592) | H33: =IFERROR((IF($C33="NA","NA",VLOOKUP($A$3,'G10-RH'!$A$6:$AM$500,10,FALSE))),"NA") -> 8.980223332 | I33: =IFERROR((IF($C33="NA","NA",ROUND(VLOOKUP($A$3,'G10-RH'!$A$6:$AM$500,12,FALSE),0)&"% ("&IF(VLOOKUP($A$3,'G10-RH'!$A$6:$AM$500,11,FALSE)="",0,VLOOKUP($A$3,'G10-RH'!$A$6:$AM$500,11,FALSE))&")")),"NA") -> 39% (6679) | J33: =IFERROR((IF($C33="NA","NA",VLOOKUP($A$3,'G10-RH'!$A$6:$AM$500,13,FALSE))),"NA") -> 2.1164737 | K33: =IFERROR((IF($C33="NA","NA",ROUND(VLOOKUP($A$3,'G10-RH'!$A$6:$AM$500,15,FALSE),0)&"% ("&IF(VLOOKUP($A$3,'G10-RH'!$A$6:$AM$500,14,FALSE)="",0,VLOOKUP($A$3,'G10-RH'!$A$6:$AM$500,14,FALSE))&")")),"NA") -> 39% (6571) | L33: =IFERROR((IF($C33="NA","NA",VLOOKUP($A$3,'G10-RH'!$A$6:$AM$500,16,FALSE))),"NA") -> 5.289761975 | M33: =IFERROR((IF($C33="NA","NA",ROUND(VLOOKUP($A$3,'G10-RH'!$A$6:$AM$500,18,FALSE),0)&"% ("&IF(VLOOKUP($A$3,'G10-RH'!$A$6:$AM$500,17,FALSE)="",0,VLOOKUP($A$3,'G10-RH'!$A$6:$AM$500,17,FALSE))&")")),"NA") -> 34% (5766) | N33: =IFERROR(IF($C33="NA","NA",IF($R33=0,VLOOKUP($A$3,'GEO-H'!$A$14:$BX$500,34,FALSE),IF($Q33=0,VLOOKUP($A$3,'GEO-H'!$A$14:$BX$500,71,FALSE),AH33))),"NA") -> 0 | O33: =IF($C33="NA","NA",IF($R33=0,ROUND(VLOOKUP($A$3,'GEO-H'!$A$14:$BX$500,39,FALSE)*100,0)&"% ("&VLOOKUP($A$3,'GEO-H'!$A$14:$BX$500,37,FALSE)&")",IF($Q33=0,ROUND(VLOOKUP($A$3,'GEO-H'!$A$14:$BX$500,76,FALSE)*100,0)&"% ("&VLOOKUP($A$3,'GEO-H'!$A$14:$BX$500,74,FALSE)&")",ROUND(AI33,0)&"% ("&AJ33&")"))) -> 0% () | Q33: =IFERROR(VLOOKUP($A$3,'G10-RH'!$A$6:$BX$500,3,FALSE),"not tested") -> 17015
A34: Asian | B34: =IFERROR(VLOOKUP(TEXT($A$3,"0000"),MEM_A!$A$2:$S$500,18,FALSE),0) -> 304 | C34: =IFERROR((IF(OR(B34<10,B34="",B34="NA"),"NA",((IF(VLOOKUP($A$3,'G10-RA'!$A$6:$AM$500,3,FALSE)>=B34,"100% ("&VLOOKUP($A$3,'G10-RA'!$A$6:$AM$500,3,FALSE)&")",(ROUND((VLOOKUP($A$3,'G10-RA'!$A$6:$AM$500,3,FALSE)/B34*100),0))&"% ("&IF(VLOOKUP($A$3,'G10-RA'!$A$6:$AM$500,3,FALSE)="",0,VLOOKUP($A$3,'G10-RA'!$A$6:$AM$500,3,FALSE))&")"))))),"0% (0)") -> 91% (276) | D34: =IFERROR((IF($C34="NA","NA",VLOOKUP($A$3,'G10-RA'!$A$6:$AM$500,4,FALSE))),"NA") -> 24.47789855 | E34: =IFERROR((IF($C34="NA","NA",ROUND(VLOOKUP($A$3,'G10-RA'!$A$6:$AM$500,6,FALSE),0)&"% ("&IF(VLOOKUP($A$3,'G10-RA'!$A$6:$AM$500,5,FALSE)="",0,VLOOKUP($A$3,'G10-RA'!$A$6:$AM$500,5,FALSE))&")")),"NA") -> 70% (194) | F34: =IFERROR((IF($C34="NA","NA",VLOOKUP($A$3,'G10-RA'!$A$6:$AM$500,7,FALSE))),"NA") -> 4.338043478 | G34: =IFERROR((IF($C34="NA","NA",ROUND(VLOOKUP($A$3,'G10-RA'!$A$6:$AM$500,9,FALSE),0)&"% ("&IF(VLOOKUP($A$3,'G10-RA'!$A$6:$AM$500,8,FALSE)="",0,VLOOKUP($A$3,'G10-RA'!$A$6:$AM$500,8,FALSE))&")")),"NA") -> 86% (236) | H34: =IFERROR((IF($C34="NA","NA",VLOOKUP($A$3,'G10-RA'!$A$6:$AM$500,10,FALSE))),"NA") -> 11.05072464 | I34: =IFERROR((IF($C34="NA","NA",ROUND(VLOOKUP($A$3,'G10-RA'!$A$6:$AM$500,12,FALSE),0)&"% ("&IF(VLOOKUP($A$3,'G10-RA'!$A$6:$AM$500,11,FALSE)="",0,VLOOKUP($A$3,'G10-RA'!$A$6:$AM$500,11,FALSE))&")")),"NA") -> 68% (189) | J34: =IFERROR((IF($C34="NA","NA",VLOOKUP($A$3,'G10-RA'!$A$6:$AM$500,13,FALSE))),"NA") -> 2.614130435 | K34: =IFERROR((IF($C34="NA","NA",ROUND(VLOOKUP($A$3,'G10-RA'!$A$6:$AM$500,15,FALSE),0)&"% ("&IF(VLOOKUP($A$3,'G10-RA'!$A$6:$AM$500,14,FALSE)="",0,VLOOKUP($A$3,'G10-RA'!$A$6:$AM$500,14,FALSE))&")")),"NA") -> 57% (157) | L34: =IFERROR((IF($C34="NA","NA",VLOOKUP($A$3,'G10-RA'!$A$6:$AM$500,16,FALSE))),"NA") -> 6.472463768 | M34: =IFERROR((IF($C34="NA","NA",ROUND(VLOOKUP($A$3,'G10-RA'!$A$6:$AM$500,18,FALSE),0)&"% ("&IF(VLOOKUP($A$3,'G10-RA'!$A$6:$AM$500,17,FALSE)="",0,VLOOKUP($A$3,'G10-RA'!$A$6:$AM$500,17,FALSE))&")")),"NA") -> 55% (151) | N34: =IFERROR(IF($C34="NA","NA",IF($R34=0,VLOOKUP($A$3,'GEO-A'!$A$14:$BX$500,34,FALSE),IF($Q34=0,VLOOKUP($A$3,'GEO-A'!$A$14:$BX$500,71,FALSE),AH34))),"NA") -> 0 | O34: =IF($C34="NA","NA",IF($R34=0,ROUND(VLOOKUP($A$3,'GEO-A'!$A$14:$BX$500,39,FALSE)*100,0)&"% ("&VLOOKUP($A$3,'GEO-A'!$A$14:$BX$500,37,FALSE)&")",IF($Q34=0,ROUND(VLOOKUP($A$3,'GEO-A'!$A$14:$BX$500,76,FALSE)*100,0)&"% ("&VLOOKUP($A$3,'GEO-A'!$A$14:$BX$500,74,FALSE)&")",ROUND(AI34,0)&"% ("&AJ34&")"))) -> 0% () | Q34: =IFERROR(VLOOKUP($A$3,'G10-RA'!$A$6:$BX$500,3,FALSE),"not tested") -> 276
A35: Am. Indian | B35: =IFERROR(VLOOKUP(TEXT($A$3,"0000"),MEM_I!$A$2:$S$500,18,FALSE),0) -> 32 | C35: =IFERROR((IF(OR(B35<10,B35="",B35="NA"),"NA",((IF(VLOOKUP($A$3,'G10-RI'!$A$6:$AM$500,3,FALSE)>=B35,"100% ("&VLOOKUP($A$3,'G10-RI'!$A$6:$AM$500,3,FALSE)&")",(ROUND((VLOOKUP($A$3,'G10-RI'!$A$6:$AM$500,3,FALSE)/B35*100),0))&"% ("&IF(VLOOKUP($A$3,'G10-RI'!$A$6:$AM$500,3,FALSE)="",0,VLOOKUP($A$3,'G10-RI'!$A$6:$AM$500,3,FALSE))&")"))))),"0% (0)") -> 100% (32) | D35: =IFERROR((IF($C35="NA","NA",VLOOKUP($A$3,'G10-RI'!$A$6:$AM$500,4,FALSE))),"NA") -> 22 | E35: =IFERROR((IF($C35="NA","NA",ROUND(VLOOKUP($A$3,'G10-RI'!$A$6:$AM$500,6,FALSE),0)&"% ("&IF(VLOOKUP($A$3,'G10-RI'!$A$6:$AM$500,5,FALSE)="",0,VLOOKUP($A$3,'G10-RI'!$A$6:$AM$500,5,FALSE))&")")),"NA") -> 47% (15) | F35: =IFERROR((IF($C35="NA","NA",VLOOKUP($A$3,'G10-RI'!$A$6:$AM$500,7,FALSE))),"NA") -> 4.071875 | G35: =IFERROR((IF($C35="NA","NA",ROUND(VLOOKUP($A$3,'G10-RI'!$A$6:$AM$500,9,FALSE),0)&"% ("&IF(VLOOKUP($A$3,'G10-RI'!$A$6:$AM$500,8,FALSE)="",0,VLOOKUP($A$3,'G10-RI'!$A$6:$AM$500,8,FALSE))&")")),"NA") -> 81% (26) | H35: =IFERROR((IF($C35="NA","NA",VLOOKUP($A$3,'G10-RI'!$A$6:$AM$500,10,FALSE))),"NA") -> 9.746875 | I35: =IFERROR((IF($C35="NA","NA",ROUND(VLOOKUP($A$3,'G10-RI'!$A$6:$AM$500,12,FALSE),0)&"% ("&IF(VLOOKUP($A$3,'G10-RI'!$A$6:$AM$500,11,FALSE)="",0,VLOOKUP($A$3,'G10-RI'!$A$6:$AM$500,11,FALSE))&")")),"NA") -> 47% (15) | J35: =IFERROR((IF($C35="NA","NA",VLOOKUP($A$3,'G10-RI'!$A$6:$AM$500,13,FALSE))),"NA") -> 2.375 | K35: =IFERROR((IF($C35="NA","NA",ROUND(VLOOKUP($A$3,'G10-RI'!$A$6:$AM$500,15,FALSE),0)&"% ("&IF(VLOOKUP($A$3,'G10-RI'!$A$6:$AM$500,14,FALSE)="",0,VLOOKUP($A$3,'G10-RI'!$A$6:$AM$500,14,FALSE))&")")),"NA") -> 53% (17) | L35: =IFERROR((IF($C35="NA","NA",VLOOKUP($A$3,'G10-RI'!$A$6:$AM$500,16,FALSE))),"NA") -> 5.815625 | M35: =IFERROR((IF($C35="NA","NA",ROUND(VLOOKUP($A$3,'G10-RI'!$A$6:$AM$500,18,FALSE),0)&"% ("&IF(VLOOKUP($A$3,'G10-RI'!$A$6:$AM$500,17,FALSE)="",0,VLOOKUP($A$3,'G10-RI'!$A$6:$AM$500,17,FALSE))&")")),"NA") -> 44% (14) | N35: =IFERROR(IF($C35="NA","NA",IF($R35=0,VLOOKUP($A$3,'GEO-I'!$A$14:$BX$500,34,FALSE),IF($Q35=0,VLOOKUP($A$3,'GEO-I'!$A$14:$BX$500,71,FALSE),AH35))),"NA") -> 0 | O35: =IF($C35="NA","NA",IF($R35=0,ROUND(VLOOKUP($A$3,'GEO-I'!$A$14:$BX$500,39,FALSE)*100,0)&"% ("&VLOOKUP($A$3,'GEO-I'!$A$14:$BX$500,37,FALSE)&")",IF($Q35=0,ROUND(VLOOKUP($A$3,'GEO-I'!$A$14:$BX$500,76,FALSE)*100,0)&"% ("&VLOOKUP($A$3,'GEO-I'!$A$14:$BX$500,74,FALSE)&")",ROUND(AI35,0)&"% ("&AJ35&")"))) -> 0% () | Q35: =IFERROR(VLOOKUP($A$3,'G10-RI'!$A$6:$BX$500,3,FALSE),"not tested") -> 32
A36: ED | B36: =IFERROR(VLOOKUP(TEXT($A$3,"0000"),MEM_ED!$A$2:$S$500,18,FALSE),0) -> 20827 | C36: =IFERROR((IF(OR(B36<10,B36="",B36="NA"),"NA",((IF(VLOOKUP($A$3,'G10-RED'!$A$6:$AM$500,3,FALSE)>=B36,"100% ("&VLOOKUP($A$3,'G10-RED'!$A$6:$AM$500,3,FALSE)&")",(ROUND((VLOOKUP($A$3,'G10-RED'!$A$6:$AM$500,3,FALSE)/B36*100),0))&"% ("&IF(VLOOKUP($A$3,'G10-RED'!$A$6:$AM$500,3,FALSE)="",0,VLOOKUP($A$3,'G10-RED'!$A$6:$AM$500,3,FALSE))&")"))))),"0% (0)") -> 92% (19150) | D36: =IFERROR((IF($C36="NA","NA",VLOOKUP($A$3,'G10-RED'!$A$6:$AM$500,4,FALSE))),"NA") -> 19.4452846 | E36: =IFERROR((IF($C36="NA","NA",ROUND(VLOOKUP($A$3,'G10-RED'!$A$6:$AM$500,6,FALSE),0)&"% ("&IF(VLOOKUP($A$3,'G10-RED'!$A$6:$AM$500,5,FALSE)="",0,VLOOKUP($A$3,'G10-RED'!$A$6:$AM$500,5,FALSE))&")")),"NA") -> 34% (6474) | F36: =IFERROR((IF($C36="NA","NA",VLOOKUP($A$3,'G10-RED'!$A$6:$AM$500,7,FALSE))),"NA") -> 3.557979112 | G36: =IFERROR((IF($C36="NA","NA",ROUND(VLOOKUP($A$3,'G10-RED'!$A$6:$AM$500,9,FALSE),0)&"% ("&IF(VLOOKUP($A$3,'G10-RED'!$A$6:$AM$500,8,FALSE)="",0,VLOOKUP($A$3,'G10-RED'!$A$6:$AM$500,8,FALSE))&")")),"NA") -> 62% (11791) | H36: =IFERROR((IF($C36="NA","NA",VLOOKUP($A$3,'G10-RED'!$A$6:$AM$500,10,FALSE))),"NA") -> 8.723148825 | I36: =IFERROR((IF($C36="NA","NA",ROUND(VLOOKUP($A$3,'G10-RED'!$A$6:$AM$500,12,FALSE),0)&"% ("&IF(VLOOKUP($A$3,'G10-RED'!$A$6:$AM$500,11,FALSE)="",0,VLOOKUP($A$3,'G10-RED'!$A$6:$AM$500,11,FALSE))&")")),"NA") -> 35% (6724) | J36: =IFERROR((IF($C36="NA","NA",VLOOKUP($A$3,'G10-RED'!$A$6:$AM$500,13,FALSE))),"NA") -> 2.062767624 | K36: =IFERROR((IF($C36="NA","NA",ROUND(VLOOKUP($A$3,'G10-RED'!$A$6:$AM$500,15,FALSE),0)&"% ("&IF(VLOOKUP($A$3,'G10-RED'!$A$6:$AM$500,14,FALSE)="",0,VLOOKUP($A$3,'G10-RED'!$A$6:$AM$500,14,FALSE))&")")),"NA") -> 37% (7046) | L36: =IFERROR((IF($C36="NA","NA",VLOOKUP($A$3,'G10-RED'!$A$6:$AM$500,16,FALSE))),"NA") -> 5.094960836 | M36: =IFERROR((IF($C36="NA","NA",ROUND(VLOOKUP($A$3,'G10-RED'!$A$6:$AM$500,18,FALSE),0)&"% ("&IF(VLOOKUP($A$3,'G10-RED'!$A$6:$AM$500,17,FALSE)="",0,VLOOKUP($A$3,'G10-RED'!$A$6:$AM$500,17,FALSE))&")")),"NA") -> 30% (5669) | N36: =IFERROR(IF($C36="NA","NA",IF($R36=0,VLOOKUP($A$3,'GEO-ED'!$A$14:$BX$500,34,FALSE),IF($Q36=0,VLOOKUP($A$3,'GEO-ED'!$A$14:$BX$500,71,FALSE),AH36))),"NA") -> 0 | O36: =IF($C36="NA","NA",IF($R36=0,ROUND(VLOOKUP($A$3,'GEO-ED'!$A$14:$BX$500,39,FALSE)*100,0)&"% ("&VLOOKUP($A$3,'GEO-ED'!$A$14:$BX$500,37,FALSE)&")",IF($Q36=0,ROUND(VLOOKUP($A$3,'GEO-ED'!$A$14:$BX$500,76,FALSE)*100,0)&"% ("&VLOOKUP($A$3,'GEO-ED'!$A$14:$BX$500,74,FALSE)&")",ROUND(AI36,0)&"% ("&AJ36&")"))) -> 0% () | Q36: =IFERROR(VLOOKUP($A$3,'G10-RED'!$A$6:$BX$500,3,FALSE),"not tested") -> 19150
A37: ELL | B37: =IFERROR(VLOOKUP(TEXT($A$3,"0000"),MEM_ELL!$A$2:$S$500,18,FALSE),0) -> 3881 | C37: =IFERROR((IF(OR(B37<10,B37="",B37="NA"),"NA",((IF(VLOOKUP($A$3,'G10-RELL'!$A$6:$AM$500,3,FALSE)>=B37,"100% ("&VLOOKUP($A$3,'G10-RELL'!$A$6:$AM$500,3,FALSE)&")",(ROUND((VLOOKUP($A$3,'G10-RELL'!$A$6:$AM$500,3,FALSE)/B37*100),0))&"% ("&IF(VLOOKUP($A$3,'G10-RELL'!$A$6:$AM$500,3,FALSE)="",0,VLOOKUP($A$3,'G10-RELL'!$A$6:$AM$500,3,FALSE))&")"))))),"0% (0)") -> 90% (3494) | D37: =IFERROR((IF($C37="NA","NA",VLOOKUP($A$3,'G10-RELL'!$A$6:$AM$500,4,FALSE))),"NA") -> 13.52633085 | E37: =IFERROR((IF($C37="NA","NA",ROUND(VLOOKUP($A$3,'G10-RELL'!$A$6:$AM$500,6,FALSE),0)&"% ("&IF(VLOOKUP($A$3,'G10-RELL'!$A$6:$AM$500,5,FALSE)="",0,VLOOKUP($A$3,'G10-RELL'!$A$6:$AM$500,5,FALSE))&")")),"NA") -> 9% (300) | F37: =IFERROR((IF($C37="NA","NA",VLOOKUP($A$3,'G10-RELL'!$A$6:$AM$500,7,FALSE))),"NA") -> 2.337721809 | G37: =IFERROR((IF($C37="NA","NA",ROUND(VLOOKUP($A$3,'G10-RELL'!$A$6:$AM$500,9,FALSE),0)&"% ("&IF(VLOOKUP($A$3,'G10-RELL'!$A$6:$AM$500,8,FALSE)="",0,VLOOKUP($A$3,'G10-RELL'!$A$6:$AM$500,8,FALSE))&")")),"NA") -> 26% (916) | H37: =IFERROR((IF($C37="NA","NA",VLOOKUP($A$3,'G10-RELL'!$A$6:$AM$500,10,FALSE))),"NA") -> 6.024899828 | I37: =IFERROR((IF($C37="NA","NA",ROUND(VLOOKUP($A$3,'G10-RELL'!$A$6:$AM$500,12,FALSE),0)&"% ("&IF(VLOOKUP($A$3,'G10-RELL'!$A$6:$AM$500,11,FALSE)="",0,VLOOKUP($A$3,'G10-RELL'!$A$6:$AM$500,11,FALSE))&")")),"NA") -> 9% (315) | J37: =IFERROR((IF($C37="NA","NA",VLOOKUP($A$3,'G10-RELL'!$A$6:$AM$500,13,FALSE))),"NA") -> 1.568975386 | K37: =IFERROR((IF($C37="NA","NA",ROUND(VLOOKUP($A$3,'G10-RELL'!$A$6:$AM$500,15,FALSE),0)&"% ("&IF(VLOOKUP($A$3,'G10-RELL'!$A$6:$AM$500,14,FALSE)="",0,VLOOKUP($A$3,'G10-RELL'!$A$6:$AM$500,14,FALSE))&")")),"NA") -> 19% (668) | L37: =IFERROR((IF($C37="NA","NA",VLOOKUP($A$3,'G10-RELL'!$A$6:$AM$500,16,FALSE))),"NA") -> 3.594733829 | M37: =IFERROR((IF($C37="NA","NA",ROUND(VLOOKUP($A$3,'G10-RELL'!$A$6:$AM$500,18,FALSE),0)&"% ("&IF(VLOOKUP($A$3,'G10-RELL'!$A$6:$AM$500,17,FALSE)="",0,VLOOKUP($A$3,'G10-RELL'!$A$6:$AM$500,17,FALSE))&")")),"NA") -> 10% (362) | N37: =IFERROR(IF($C37="NA","NA",IF($R37=0,VLOOKUP($A$3,'GEO-ELL'!$A$14:$BX$500,34,FALSE),IF($Q37=0,VLOOKUP($A$3,'GEO-ELL'!$A$14:$BX$500,71,FALSE),AH37))),"NA") -> 0 | O37: =IF($C37="NA","NA",IF($R37=0,ROUND(VLOOKUP($A$3,'GEO-ELL'!$A$14:$BX$500,39,FALSE)*100,0)&"% ("&VLOOKUP($A$3,'GEO-ELL'!$A$14:$BX$500,37,FALSE)&")",IF($Q37=0,ROUND(VLOOKUP($A$3,'GEO-ELL'!$A$14:$BX$500,76,FALSE)*100,0)&"% ("&VLOOKUP($A$3,'GEO-ELL'!$A$14:$BX$500,74,FALSE)&")",ROUND(AI37,0)&"% ("&AJ37&")"))) -> 0% () | Q37: =IFERROR(VLOOKUP($A$3,'G10-RELL'!$A$6:$BX$500,3,FALSE),"not tested") -> 3494
A38: SWD | B38: =IFERROR(VLOOKUP(TEXT($A$3,"0000"),MEM_SWD!$A$2:$S$500,18,FALSE),0) -> 2503 | C38: =IFERROR((IF(OR(B38<10,B38="",B38="NA"),"NA",((IF(VLOOKUP($A$3,'G10-RSWD'!$A$6:$AM$500,3,FALSE)>=B38,"100% ("&VLOOKUP($A$3,'G10-RSWD'!$A$6:$AM$500,3,FALSE)&")",(ROUND((VLOOKUP($A$3,'G10-RSWD'!$A$6:$AM$500,3,FALSE)/B38*100),0))&"% ("&IF(VLOOKUP($A$3,'G10-RSWD'!$A$6:$AM$500,3,FALSE)="",0,VLOOKUP($A$3,'G10-RSWD'!$A$6:$AM$500,3,FALSE))&")"))))),"0% (0)") -> 90% (2242) | D38: =IFERROR((IF($C38="NA","NA",VLOOKUP($A$3,'G10-RSWD'!$A$6:$AM$500,4,FALSE))),"NA") -> 15.51900089 | E38: =IFERROR((IF($C38="NA","NA",ROUND(VLOOKUP($A$3,'G10-RSWD'!$A$6:$AM$500,6,FALSE),0)&"% ("&IF(VLOOKUP($A$3,'G10-RSWD'!$A$6:$AM$500,5,FALSE)="",0,VLOOKUP($A$3,'G10-RSWD'!$A$6:$AM$500,5,FALSE))&")")),"NA") -> 13% (297) | F38: =IFERROR((IF($C38="NA","NA",VLOOKUP($A$3,'G10-RSWD'!$A$6:$AM$500,7,FALSE))),"NA") -> 2.913514719 | G38: =IFERROR((IF($C38="NA","NA",ROUND(VLOOKUP($A$3,'G10-RSWD'!$A$6:$AM$500,9,FALSE),0)&"% ("&IF(VLOOKUP($A$3,'G10-RSWD'!$A$6:$AM$500,8,FALSE)="",0,VLOOKUP($A$3,'G10-RSWD'!$A$6:$AM$500,8,FALSE))&")")),"NA") -> 41% (924) | H38: =IFERROR((IF($C38="NA","NA",VLOOKUP($A$3,'G10-RSWD'!$A$6:$AM$500,10,FALSE))),"NA") -> 6.859589652 | I38: =IFERROR((IF($C38="NA","NA",ROUND(VLOOKUP($A$3,'G10-RSWD'!$A$6:$AM$500,12,FALSE),0)&"% ("&IF(VLOOKUP($A$3,'G10-RSWD'!$A$6:$AM$500,11,FALSE)="",0,VLOOKUP($A$3,'G10-RSWD'!$A$6:$AM$500,11,FALSE))&")")),"NA") -> 14% (318) | J38: =IFERROR((IF($C38="NA","NA",VLOOKUP($A$3,'G10-RSWD'!$A$6:$AM$500,13,FALSE))),"NA") -> 1.697903657 | K38: =IFERROR((IF($C38="NA","NA",ROUND(VLOOKUP($A$3,'G10-RSWD'!$A$6:$AM$500,15,FALSE),0)&"% ("&IF(VLOOKUP($A$3,'G10-RSWD'!$A$6:$AM$500,14,FALSE)="",0,VLOOKUP($A$3,'G10-RSWD'!$A$6:$AM$500,14,FALSE))&")")),"NA") -> 24% (532) | L38: =IFERROR((IF($C38="NA","NA",VLOOKUP($A$3,'G10-RSWD'!$A$6:$AM$500,16,FALSE))),"NA") -> 4.040544157 | M38: =IFERROR((IF($C38="NA","NA",ROUND(VLOOKUP($A$3,'G10-RSWD'!$A$6:$AM$500,18,FALSE),0)&"% ("&IF(VLOOKUP($A$3,'G10-RSWD'!$A$6:$AM$500,17,FALSE)="",0,VLOOKUP($A$3,'G10-RSWD'!$A$6:$AM$500,17,FALSE))&")")),"NA") -> 14% (319) | N38: =IFERROR(IF($C38="NA","NA",IF($R38=0,VLOOKUP($A$3,'GEO-SWD'!$A$14:$BX$500,34,FALSE),IF($Q38=0,VLOOKUP($A$3,'GEO-SWD'!$A$14:$BX$500,71,FALSE),AH38))),"NA") -> 0 | O38: =IF($C38="NA","NA",IF($R38=0,ROUND(VLOOKUP($A$3,'GEO-SWD'!$A$14:$BX$500,39,FALSE)*100,0)&"% ("&VLOOKUP($A$3,'GEO-SWD'!$A$14:$BX$500,37,FALSE)&")",IF($Q38=0,ROUND(VLOOKUP($A$3,'GEO-SWD'!$A$14:$BX$500,76,FALSE)*100,0)&"% ("&VLOOKUP($A$3,'GEO-SWD'!$A$14:$BX$500,74,FALSE)&")",ROUND(AI38,0)&"% ("&AJ38&")"))) -> 0% () | Q38: =IFERROR(VLOOKUP($A$3,'G10-RSWD'!$A$6:$BX$500,3,FALSE),"not tested") -> 2242
A39: District Writing Pre-Test, Grade 10 | Q39: Writing Grade 10
A40: Level of Proficiency at 4 or above | B40: Total # of Students | C40: % of Students Tested (Max. of the two prompts) | D40: Combined Prompts (Weighted Values) | H40: Expository | J40: Persuasive | Q40: =H40 -> Expository | R40: =J40 -> Persuasive
D41: Average Score | E41: % at 3.0 | F41: % at or above 4.0 | H41: Average Score | I41: % at or above 4.0 | J41: Average Score | K41: % at or above 4.0 | Q41: Number Tested | R41: Number Tested
A42: All students | B42: =IFERROR(VLOOKUP(TEXT($A$3,"0000"),Mem_All!$A$2:$S$500,14,FALSE),0) -> 27483 | C42: =IF(OR(B42<10,B42="",B42="NA"),"NA",IF(VLOOKUP($A$3,'G10-WALL'!$A$6:$Z$500,3,FALSE)>B42,"100% ("&VLOOKUP($A$3,'G10-WALL'!$A$6:$Z$500,3,FALSE)&")",ROUND(VLOOKUP($A$3,'G10-WALL'!$A$6:$Z$500,3,FALSE)/B42*100,0)&"% ("&VLOOKUP($A$3,'G10-WALL'!$A$6:$Z$500,3,FALSE)&")")) -> 61% (16666) | D42: =IFERROR((IF($C42="NA","NA",VLOOKUP($A$3,'G10-WALL'!$A$6:$Z$500,4,FALSE))),"NA") -> 2.604598392 | E42: =IF($D42="NA","NA",ROUND(VLOOKUP($A$3,'G10-WALL'!$A$6:$Z$500,6,FALSE),0)&"% ("&VLOOKUP($A$3,'G10-WALL'!$A$6:$Z$500,5,FALSE)&")") -> 37% (6129) | F42: =IF($D42="NA","NA",ROUND(VLOOKUP($A$3,'G10-WALL'!$A$6:$Z$500,8,FALSE),0)&"% ("&VLOOKUP($A$3,'G10-WALL'!$A$6:$Z$500,7,FALSE)&")") -> 21% (3428) | H42: =IFERROR(IF(VLOOKUP($A$3,'G10-WALL'!$A$6:$Z$500,9,FALSE)=0,"NA",VLOOKUP($A$3,'G10-WALL'!$A$6:$Z$500,10,FALSE)),"NA") -> 2.597957407 | I42: =IFERROR(IF($H42="NA","NA",VLOOKUP($A$3,'G10-WALL'!$A$6:$Z$500,15,FALSE)&"% ("&VLOOKUP($A$3,'G10-WALL'!$A$6:$Z$500,13,FALSE)&")"),"NA") -> 20% (3003) | J42: =IFERROR(IF(VLOOKUP($A$3,'G10-WALL'!$A$6:$Z$500,17,FALSE)=0,"NA",VLOOKUP($A$3,'G10-WALL'!$A$6:$Z$500,18,FALSE)),"NA") -> 2.610548422 | K42: =IFERROR(IF($J42="NA","NA",VLOOKUP($A$3,'G10-WALL'!$A$6:$Z$500,23,FALSE)&"% ("&VLOOKUP($A$3,'G10-WALL'!$A$6:$Z$500,21,FALSE)&")"),"NA") -> 21% (3496) | Q42: =IFERROR(VLOOKUP($A$3,'G10-WALL'!$A$6:$Z$500,9,FALSE),"Not Test") -> 14932 | R42: =IFERROR(VLOOKUP($A$3,'G10-WALL'!$A$6:$Z$500,17,FALSE),"Not Test") -> 16666
A43: White | B43: =IFERROR(VLOOKUP(TEXT($A$3,"0000"),MEM_W!$A$2:$S$500,14,FALSE),0) -> 2309 | C43: =IF(OR(B43<10,B43="",B43="NA"),"NA",IF(VLOOKUP($A$3,'G10-WW'!$A$6:$Z$500,3,FALSE)>B43,"100% ("&VLOOKUP($A$3,'G10-WW'!$A$6:$Z$500,3,FALSE)&")",ROUND(VLOOKUP($A$3,'G10-WW'!$A$6:$Z$500,3,FALSE)/B43*100,0)&"% ("&VLOOKUP($A$3,'G10-WW'!$A$6:$Z$500,3,FALSE)&")")) -> 63% (1453) | D43: =IFERROR((IF($C43="NA","NA",VLOOKUP($A$3,'G10-WW'!$A$6:$Z$500,4,FALSE))),"NA") -> 3.035829883 | E43: =IF($D43="NA","NA",ROUND(VLOOKUP($A$3,'G10-WW'!$A$6:$Z$500,6,FALSE),0)&"% ("&VLOOKUP($A$3,'G10-WW'!$A$6:$Z$500,5,FALSE)&")") -> 41% (589) | F43: =IF($D43="NA","NA",ROUND(VLOOKUP($A$3,'G10-WW'!$A$6:$Z$500,8,FALSE),0)&"% ("&VLOOKUP($A$3,'G10-WW'!$A$6:$Z$500,7,FALSE)&")") -> 32% (469) | H43: =IFERROR(IF(VLOOKUP($A$3,'G10-WW'!$A$6:$Z$500,9,FALSE)=0,"NA",VLOOKUP($A$3,'G10-WW'!$A$6:$Z$500,10,FALSE)),"NA") -> 2.979734219 | I43: =IFERROR(IF($H43="NA","NA",VLOOKUP($A$3,'G10-WW'!$A$6:$Z$500,15,FALSE)&"% ("&VLOOKUP($A$3,'G10-WW'!$A$6:$Z$500,13,FALSE)&")"),"NA") -> 31% (372) | J43: =IFERROR(IF(VLOOKUP($A$3,'G10-WW'!$A$6:$Z$500,17,FALSE)=0,"NA",VLOOKUP($A$3,'G10-WW'!$A$6:$Z$500,18,FALSE)),"NA") -> 3.082312457 | K43: =IFERROR(IF($J43="NA","NA",VLOOKUP($A$3,'G10-WW'!$A$6:$Z$500,23,FALSE)&"% ("&VLOOKUP($A$3,'G10-WW'!$A$6:$Z$500,21,FALSE)&")"),"NA") -> 33% (485) | Q43: =IFERROR(VLOOKUP($A$3,'G10-WW'!$A$6:$Z$500,9,FALSE),"Not Test") -> 1204 | R43: =IFERROR(VLOOKUP($A$3,'G10-WW'!$A$6:$Z$500,17,FALSE),"Not Test") -> 1453
A44: Black | B44: =IFERROR(VLOOKUP(TEXT($A$3,"0000"),MEM_B!$A$2:$S$500,14,FALSE),0) -> 6262 | C44: =IF(OR(B44<10,B44="",B44="NA"),"NA",IF(VLOOKUP($A$3,'G10-WB'!$A$6:$Z$500,3,FALSE)>B44,"100% ("&VLOOKUP($A$3,'G10-WB'!$A$6:$Z$500,3,FALSE)&")",ROUND(VLOOKUP($A$3,'G10-WB'!$A$6:$Z$500,3,FALSE)/B44*100,0)&"% ("&VLOOKUP($A$3,'G10-WB'!$A$6:$Z$500,3,FALSE)&")")) -> 66% (4153) | D44: =IFERROR((IF($C44="NA","NA",VLOOKUP($A$3,'G10-WB'!$A$6:$Z$500,4,FALSE))),"NA") -> 2.480799393 | E44: =IF($D44="NA","NA",ROUND(VLOOKUP($A$3,'G10-WB'!$A$6:$Z$500,6,FALSE),0)&"% ("&VLOOKUP($A$3,'G10-WB'!$A$6:$Z$500,5,FALSE)&")") -> 36% (1513) | F44: =IF($D44="NA","NA",ROUND(VLOOKUP($A$3,'G10-WB'!$A$6:$Z$500,8,FALSE),0)&"% ("&VLOOKUP($A$3,'G10-WB'!$A$6:$Z$500,7,FALSE)&")") -> 15% (639) | H44: =IFERROR(IF(VLOOKUP($A$3,'G10-WB'!$A$6:$Z$500,9,FALSE)=0,"NA",VLOOKUP($A$3,'G10-WB'!$A$6:$Z$500,10,FALSE)),"NA") -> 2.441199133 | I44: =IFERROR(IF($H44="NA","NA",VLOOKUP($A$3,'G10-WB'!$A$6:$Z$500,15,FALSE)&"% ("&VLOOKUP($A$3,'G10-WB'!$A$6:$Z$500,13,FALSE)&")"),"NA") -> 14% (597) | J44: =IFERROR(IF(VLOOKUP($A$3,'G10-WB'!$A$6:$Z$500,17,FALSE)=0,"NA",VLOOKUP($A$3,'G10-WB'!$A$6:$Z$500,18,FALSE)),"NA") -> 2.524620304 | K44: =IFERROR(IF($J44="NA","NA",VLOOKUP($A$3,'G10-WB'!$A$6:$Z$500,23,FALSE)&"% ("&VLOOKUP($A$3,'G10-WB'!$A$6:$Z$500,21,FALSE)&")"),"NA") -> 16% (619) | Q44: =IFERROR(VLOOKUP($A$3,'G10-WB'!$A$6:$Z$500,9,FALSE),"Not Test") -> 4153 | R44: =IFERROR(VLOOKUP($A$3,'G10-WB'!$A$6:$Z$500,17,FALSE),"Not Test") -> 3753
A45: Hispanic | B45: =IFERROR(VLOOKUP(TEXT($A$3,"0000"),MEM_H!$A$2:$S$500,14,FALSE),0) -> 18514 | C45: =IF(OR(B45<10,B45="",B45="NA"),"NA",IF(VLOOKUP($A$3,'G10-WH'!$A$6:$Z$500,3,FALSE)>B45,"100% ("&VLOOKUP($A$3,'G10-WH'!$A$6:$Z$500,3,FALSE)&")",ROUND(VLOOKUP($A$3,'G10-WH'!$A$6:$Z$500,3,FALSE)/B45*100,0)&"% ("&VLOOKUP($A$3,'G10-WH'!$A$6:$Z$500,3,FALSE)&")")) -> 61% (11215) | D45: =IFERROR((IF($C45="NA","NA",VLOOKUP($A$3,'G10-WH'!$A$6:$Z$500,4,FALSE))),"NA") -> 2.590021882 | E45: =IF($D45="NA","NA",ROUND(VLOOKUP($A$3,'G10-WH'!$A$6:$Z$500,6,FALSE),0)&"% ("&VLOOKUP($A$3,'G10-WH'!$A$6:$Z$500,5,FALSE)&")") -> 36% (4091) | F45: =IF($D45="NA","NA",ROUND(VLOOKUP($A$3,'G10-WH'!$A$6:$Z$500,8,FALSE),0)&"% ("&VLOOKUP($A$3,'G10-WH'!$A$6:$Z$500,7,FALSE)&")") -> 21% (2315) | H45: =IFERROR(IF(VLOOKUP($A$3,'G10-WH'!$A$6:$Z$500,9,FALSE)=0,"NA",VLOOKUP($A$3,'G10-WH'!$A$6:$Z$500,10,FALSE)),"NA") -> 2.611529412 | I45: =IFERROR(IF($H45="NA","NA",VLOOKUP($A$3,'G10-WH'!$A$6:$Z$500,15,FALSE)&"% ("&VLOOKUP($A$3,'G10-WH'!$A$6:$Z$500,13,FALSE)&")"),"NA") -> 21% (1957) | J45: =IFERROR(IF(VLOOKUP($A$3,'G10-WH'!$A$6:$Z$500,17,FALSE)=0,"NA",VLOOKUP($A$3,'G10-WH'!$A$6:$Z$500,18,FALSE)),"NA") -> 2.57209095 | K45: =IFERROR(IF($J45="NA","NA",VLOOKUP($A$3,'G10-WH'!$A$6:$Z$500,23,FALSE)&"% ("&VLOOKUP($A$3,'G10-WH'!$A$6:$Z$500,21,FALSE)&")"),"NA") -> 20% (2288) | Q45: =IFERROR(VLOOKUP($A$3,'G10-WH'!$A$6:$Z$500,9,FALSE),"Not Test") -> 9350 | R45: =IFERROR(VLOOKUP($A$3,'G10-WH'!$A$6:$Z$500,17,FALSE),"Not Test") -> 11215
A46: Asian | B46: =IFERROR(VLOOKUP(TEXT($A$3,"0000"),MEM_A!$A$2:$S$500,14,FALSE),0) -> 304 | C46: =IF(OR(B46<10,B46="",B46="NA"),"NA",IF(VLOOKUP($A$3,'G10-WA'!$A$6:$Z$500,3,FALSE)>B46,"100% ("&VLOOKUP($A$3,'G10-WA'!$A$6:$Z$500,3,FALSE)&")",ROUND(VLOOKUP($A$3,'G10-WA'!$A$6:$Z$500,3,FALSE)/B46*100,0)&"% ("&VLOOKUP($A$3,'G10-WA'!$A$6:$Z$500,3,FALSE)&")")) -> 60% (182) | D46: =IFERROR((IF($C46="NA","NA",VLOOKUP($A$3,'G10-WA'!$A$6:$Z$500,4,FALSE))),"NA") -> 3.275722543 | E46: =IF($D46="NA","NA",ROUND(VLOOKUP($A$3,'G10-WA'!$A$6:$Z$500,6,FALSE),0)&"% ("&VLOOKUP($A$3,'G10-WA'!$A$6:$Z$500,5,FALSE)&")") -> 35% (63) | F46: =IF($D46="NA","NA",ROUND(VLOOKUP($A$3,'G10-WA'!$A$6:$Z$500,8,FALSE),0)&"% ("&VLOOKUP($A$3,'G10-WA'!$A$6:$Z$500,7,FALSE)&")") -> 43% (78) | H46: =IFERROR(IF(VLOOKUP($A$3,'G10-WA'!$A$6:$Z$500,9,FALSE)=0,"NA",VLOOKUP($A$3,'G10-WA'!$A$6:$Z$500,10,FALSE)),"NA") -> 3.205487805 | I46: =IFERROR(IF($H46="NA","NA",VLOOKUP($A$3,'G10-WA'!$A$6:$Z$500,15,FALSE)&"% ("&VLOOKUP($A$3,'G10-WA'!$A$6:$Z$500,13,FALSE)&")"),"NA") -> 39% (64) | J46: =IFERROR(IF(VLOOKUP($A$3,'G10-WA'!$A$6:$Z$500,17,FALSE)=0,"NA",VLOOKUP($A$3,'G10-WA'!$A$6:$Z$500,18,FALSE)),"NA") -> 3.339010989 | K46: =IFERROR(IF($J46="NA","NA",VLOOKUP($A$3,'G10-WA'!$A$6:$Z$500,23,FALSE)&"% ("&VLOOKUP($A$3,'G10-WA'!$A$6:$Z$500,21,FALSE)&")"),"NA") -> 47% (85) | Q46: =IFERROR(VLOOKUP($A$3,'G10-WA'!$A$6:$Z$500,9,FALSE),"Not Test") -> 164 | R46: =IFERROR(VLOOKUP($A$3,'G10-WA'!$A$6:$Z$500,17,FALSE),"Not Test") -> 182
A47: Am. Indian | B47: =IFERROR(VLOOKUP(TEXT($A$3,"0000"),MEM_I!$A$2:$S$500,14,FALSE),0) -> 32 | C47: =IF(OR(B47<10,B47="",B47="NA"),"NA",IF(VLOOKUP($A$3,'G10-WI'!$A$6:$Z$500,3,FALSE)>B47,"100% ("&VLOOKUP($A$3,'G10-WI'!$A$6:$Z$500,3,FALSE)&")",ROUND(VLOOKUP($A$3,'G10-WI'!$A$6:$Z$500,3,FALSE)/B47*100,0)&"% ("&VLOOKUP($A$3,'G10-WI'!$A$6:$Z$500,3,FALSE)&")")) -> 78% (25) | D47: =IFERROR((IF($C47="NA","NA",VLOOKUP($A$3,'G10-WI'!$A$6:$Z$500,4,FALSE))),"NA") -> 3.065909091 | E47: =IF($D47="NA","NA",ROUND(VLOOKUP($A$3,'G10-WI'!$A$6:$Z$500,6,FALSE),0)&"% ("&VLOOKUP($A$3,'G10-WI'!$A$6:$Z$500,5,FALSE)&")") -> 36% (9) | F47: =IF($D47="NA","NA",ROUND(VLOOKUP($A$3,'G10-WI'!$A$6:$Z$500,8,FALSE),0)&"% ("&VLOOKUP($A$3,'G10-WI'!$A$6:$Z$500,7,FALSE)&")") -> 34% (9) | H47: =IFERROR(IF(VLOOKUP($A$3,'G10-WI'!$A$6:$Z$500,9,FALSE)=0,"NA",VLOOKUP($A$3,'G10-WI'!$A$6:$Z$500,10,FALSE)),"NA") -> 2.876 | I47: =IFERROR(IF($H47="NA","NA",VLOOKUP($A$3,'G10-WI'!$A$6:$Z$500,15,FALSE)&"% ("&VLOOKUP($A$3,'G10-WI'!$A$6:$Z$500,13,FALSE)&")"),"NA") -> 32% (8) | J47: =IFERROR(IF(VLOOKUP($A$3,'G10-WI'!$A$6:$Z$500,17,FALSE)=0,"NA",VLOOKUP($A$3,'G10-WI'!$A$6:$Z$500,18,FALSE)),"NA") -> 3.315789474 | K47: =IFERROR(IF($J47="NA","NA",VLOOKUP($A$3,'G10-WI'!$A$6:$Z$500,23,FALSE)&"% ("&VLOOKUP($A$3,'G10-WI'!$A$6:$Z$500,21,FALSE)&")"),"NA") -> 37% (7) | Q47: =IFERROR(VLOOKUP($A$3,'G10-WI'!$A$6:$Z$500,9,FALSE),"Not Test") -> 25 | R47: =IFERROR(VLOOKUP($A$3,'G10-WI'!$A$6:$Z$500,17,FALSE),"Not Test") -> 19
A48: ED | B48: =IFERROR(VLOOKUP(TEXT($A$3,"0000"),MEM_ED!$A$2:$S$500,14,FALSE),0) -> 20827 | C48: =IF(OR(B48<10,B48="",B48="NA"),"NA",IF(VLOOKUP($A$3,'G10-WED'!$A$6:$Z$500,3,FALSE)>B48,"100% ("&VLOOKUP($A$3,'G10-WED'!$A$6:$Z$500,3,FALSE)&")",ROUND(VLOOKUP($A$3,'G10-WED'!$A$6:$Z$500,3,FALSE)/B48*100,0)&"% ("&VLOOKUP($A$3,'G10-WED'!$A$6:$Z$500,3,FALSE)&")")) -> 62% (12819) | D48: =IFERROR((IF($C48="NA","NA",VLOOKUP($A$3,'G10-WED'!$A$6:$Z$500,4,FALSE))),"NA") -> 2.516612747 | E48: =IF($D48="NA","NA",ROUND(VLOOKUP($A$3,'G10-WED'!$A$6:$Z$500,6,FALSE),0)&"% ("&VLOOKUP($A$3,'G10-WED'!$A$6:$Z$500,5,FALSE)&")") -> 37% (4687) | F48: =IF($D48="NA","NA",ROUND(VLOOKUP($A$3,'G10-WED'!$A$6:$Z$500,8,FALSE),0)&"% ("&VLOOKUP($A$3,'G10-WED'!$A$6:$Z$500,7,FALSE)&")") -> 18% (2277) | H48: =IFERROR(IF(VLOOKUP($A$3,'G10-WED'!$A$6:$Z$500,9,FALSE)=0,"NA",VLOOKUP($A$3,'G10-WED'!$A$6:$Z$500,10,FALSE)),"NA") -> 2.526400202 | I48: =IFERROR(IF($H48="NA","NA",VLOOKUP($A$3,'G10-WED'!$A$6:$Z$500,15,FALSE)&"% ("&VLOOKUP($A$3,'G10-WED'!$A$6:$Z$500,13,FALSE)&")"),"NA") -> 18% (2106) | J48: =IFERROR(IF(VLOOKUP($A$3,'G10-WED'!$A$6:$Z$500,17,FALSE)=0,"NA",VLOOKUP($A$3,'G10-WED'!$A$6:$Z$500,18,FALSE)),"NA") -> 2.507520087 | K48: =IFERROR(IF($J48="NA","NA",VLOOKUP($A$3,'G10-WED'!$A$6:$Z$500,23,FALSE)&"% ("&VLOOKUP($A$3,'G10-WED'!$A$6:$Z$500,21,FALSE)&")"),"NA") -> 18% (2286) | Q48: =IFERROR(VLOOKUP($A$3,'G10-WED'!$A$6:$Z$500,9,FALSE),"Not Test") -> 11909 | R48: =IFERROR(VLOOKUP($A$3,'G10-WED'!$A$6:$Z$500,17,FALSE),"Not Test") -> 12819
A49: ELL | B49: =IFERROR(VLOOKUP(TEXT($A$3,"0000"),MEM_ELL!$A$2:$S$500,14,FALSE),0) -> 3881 | C49: =IF(OR(B49<10,B49="",B49="NA"),"NA",IF(VLOOKUP($A$3,'G10-WELL'!$A$6:$Z$500,3,FALSE)>B49,"100% ("&VLOOKUP($A$3,'G10-WELL'!$A$6:$Z$500,3,FALSE)&")",ROUND(VLOOKUP($A$3,'G10-WELL'!$A$6:$Z$500,3,FALSE)/B49*100,0)&"%("&VLOOKUP($A$3,'G10-WELL'!$A$6:$Z$500,3,FALSE)&")")) -> 66%(2572) | D49: =IFERROR((IF($C49="NA","NA",VLOOKUP($A$3,'G10-WELL'!$A$6:$Z$500,4,FALSE))),"NA") -> 1.386796445 | E49: =IF($D49="NA","NA",ROUND(VLOOKUP($A$3,'G10-WELL'!$A$6:$Z$500,6,FALSE),0)&"% ("&VLOOKUP($A$3,'G10-WELL'!$A$6:$Z$500,5,FALSE)&")") -> 16% (402) | F49: =IF($D49="NA","NA",ROUND(VLOOKUP($A$3,'G10-WELL'!$A$6:$Z$500,8,FALSE),0)&"% ("&VLOOKUP($A$3,'G10-WELL'!$A$6:$Z$500,7,FALSE)&")") -> 4% (105) | H49: =IFERROR(IF(VLOOKUP($A$3,'G10-WELL'!$A$6:$Z$500,9,FALSE)=0,"NA",VLOOKUP($A$3,'G10-WELL'!$A$6:$Z$500,10,FALSE)),"NA") -> 1.658774373 | I49: =IFERROR(IF($H49="NA","NA",VLOOKUP($A$3,'G10-WELL'!$A$6:$Z$500,15,FALSE)&"% ("&VLOOKUP($A$3,'G10-WELL'!$A$6:$Z$500,13,FALSE)&")"),"NA") -> 5% (104) | J49: =IFERROR(IF(VLOOKUP($A$3,'G10-WELL'!$A$6:$Z$500,17,FALSE)=0,"NA",VLOOKUP($A$3,'G10-WELL'!$A$6:$Z$500,18,FALSE)),"NA") -> 1.159020218 | K49: =IFERROR(IF($J49="NA","NA",VLOOKUP($A$3,'G10-WELL'!$A$6:$Z$500,23,FALSE)&"% ("&VLOOKUP($A$3,'G10-WELL'!$A$6:$Z$500,21,FALSE)&")"),"NA") -> 3% (89) | Q49: =IFERROR(VLOOKUP($A$3,'G10-WELL'!$A$6:$Z$500,9,FALSE),"Not Test") -> 2154 | R49: =IFERROR(VLOOKUP($A$3,'G10-WELL'!$A$6:$Z$500,17,FALSE),"Not Test") -> 2572
A50: SWD | B50: =IFERROR(VLOOKUP(TEXT($A$3,"0000"),MEM_SWD!$A$2:$S$500,14,FALSE),0) -> 2503 | C50: =IF(OR(B50<10,B50="",B50="NA"),"NA",IF(VLOOKUP($A$3,'G10-WSWD'!$A$6:$Z$500,3,FALSE)>B50,"100% ("&VLOOKUP($A$3,'G10-WSWD'!$A$6:$Z$500,3,FALSE)&")",ROUND(VLOOKUP($A$3,'G10-WSWD'!$A$6:$Z$500,3,FALSE)/B50*100,0)&"% ("&VLOOKUP($A$3,'G10-WSWD'!$A$6:$Z$500,3,FALSE)&")")) -> 57% (1428) | D50: =IFERROR((IF($C50="NA","NA",VLOOKUP($A$3,'G10-WSWD'!$A$6:$Z$500,4,FALSE))),"NA") -> 2.05664464 | E50: =IF($D50="NA","NA",ROUND(VLOOKUP($A$3,'G10-WSWD'!$A$6:$Z$500,6,FALSE),0)&"% ("&VLOOKUP($A$3,'G10-WSWD'!$A$6:$Z$500,5,FALSE)&")") -> 28% (395) | F50: =IF($D50="NA","NA",ROUND(VLOOKUP($A$3,'G10-WSWD'!$A$6:$Z$500,8,FALSE),0)&"% ("&VLOOKUP($A$3,'G10-WSWD'!$A$6:$Z$500,7,FALSE)&")") -> 7% (95) | H50: =IFERROR(IF(VLOOKUP($A$3,'G10-WSWD'!$A$6:$Z$500,9,FALSE)=0,"NA",VLOOKUP($A$3,'G10-WSWD'!$A$6:$Z$500,10,FALSE)),"NA") -> 2.032098765 | I50: =IFERROR(IF($H50="NA","NA",VLOOKUP($A$3,'G10-WSWD'!$A$6:$Z$500,15,FALSE)&"% ("&VLOOKUP($A$3,'G10-WSWD'!$A$6:$Z$500,13,FALSE)&")"),"NA") -> 6% (84) | J50: =IFERROR(IF(VLOOKUP($A$3,'G10-WSWD'!$A$6:$Z$500,17,FALSE)=0,"NA",VLOOKUP($A$3,'G10-WSWD'!$A$6:$Z$500,18,FALSE)),"NA") -> 2.078921569 | K50: =IFERROR(IF($J50="NA","NA",VLOOKUP($A$3,'G10-WSWD'!$A$6:$Z$500,23,FALSE)&"% ("&VLOOKUP($A$3,'G10-WSWD'!$A$6:$Z$500,21,FALSE)&")"),"NA") -> 7% (98) | Q50: =IFERROR(VLOOKUP($A$3,'G10-WSWD'!$A$6:$Z$500,9,FALSE),"Not Test") -> 1296 | R50: =IFERROR(VLOOKUP($A$3,'G10-WSWD'!$A$6:$Z$500,17,FALSE),"Not Test") -> 1428

Sheet HS-EOC Reports
A2: Click here to return to the school and sheet selection interface
A3: ='Select School'!B3 -> 9999
A4: =TEXT(A3,"0000")&"-"&VLOOKUP(A3,SchList!$A$2:$B$504,2,FALSE) -> 9999-District
A5: Algebra I | Q5: Algebra I
A6: Level of Proficiency at 70% or above | B6: Course Enrollment | C6: % of Students Tested | D6: ='G9-10 Matrix'!C8&" ["&'G9-10 Matrix'!C9&"]" -> Overall [48] | F6: ='G9-10 Matrix'!D8&" ["&'G9-10 Matrix'!D9&"]" -> Functions, Linear Equations, and Inequalities [28] | H6: ='G9-10 Matrix'!E8&" ["&'G9-10 Matrix'!E9&"]" -> Polynomials [7] | J6: ='G9-10 Matrix'!F8&" ["&'G9-10 Matrix'!F9&"]" -> Rationals, Radicals, Quadratics, and Discrete Mathematics [13] | Q6: Number Tested
D7: Average Score | E7: % Proficient | F7: Average Score | G7: % Proficient | H7: Average Score | I7: % Proficient | J7: Average Score | K7: % Proficient
A8: All students | B8: =IFERROR(VLOOKUP(TEXT($A$3,"0000"),'Alg Enrollment'!$A$2:$Q$500,3,FALSE),0) -> 31972 | C8: =IFERROR((IF(OR(B8<10,B8="",B8="NA"),"NA",((IF(VLOOKUP($A$3,'ALG-ALL'!$A$6:$AM$500,3,FALSE)>=B8,"100% ("&VLOOKUP($A$3,'ALG-ALL'!$A$6:$AM$500,3,FALSE)&")",(ROUND((VLOOKUP($A$3,'ALG-ALL'!$A$6:$AM$500,3,FALSE)/B8*100),0))&"% ("&IF(VLOOKUP($A$3,'ALG-ALL'!$A$6:$AM$500,3,FALSE)="",0,VLOOKUP($A$3,'ALG-ALL'!$A$6:$AM$500,3,FALSE))&")"))))),"0% (0)") -> 94% (30007) | D8: =IFERROR((IF($C8="NA","NA",VLOOKUP($A$3,'ALG-ALL'!$A$6:$AM$500,4,FALSE))),"NA") -> 15.10072983 | E8: =IFERROR((IF($C8="NA","NA",ROUND(VLOOKUP($A$3,'ALG-ALL'!$A$6:$AM$500,6,FALSE),0)&"% ("&IF(VLOOKUP($A$3,'ALG-ALL'!$A$6:$AM$500,5,FALSE)="",0,VLOOKUP($A$3,'ALG-ALL'!$A$6:$AM$500,5,FALSE))&")")),"NA") -> 0% (61) | F8: =IFERROR((IF($C8="NA","NA",VLOOKUP($A$3,'ALG-ALL'!$A$6:$AM$500,7,FALSE))),"NA") -> 8.743359883 | G8: =IFERROR((IF($C8="NA","NA",ROUND(VLOOKUP($A$3,'ALG-ALL'!$A$6:$AM$500,9,FALSE),0)&"% ("&IF(VLOOKUP($A$3,'ALG-ALL'!$A$6:$AM$500,8,FALSE)="",0,VLOOKUP($A$3,'ALG-ALL'!$A$6:$AM$500,8,FALSE))&")")),"NA") -> 0% (115) | H8: =IFERROR((IF($C8="NA","NA",VLOOKUP($A$3,'ALG-ALL'!$A$6:$AM$500,10,FALSE))),"NA") -> 1.868290732 | I8: =IFERROR((IF($C8="NA","NA",ROUND(VLOOKUP($A$3,'ALG-ALL'!$A$6:$AM$500,12,FALSE),0)&"% ("&IF(VLOOKUP($A$3,'ALG-ALL'!$A$6:$AM$500,11,FALSE)="",0,VLOOKUP($A$3,'ALG-ALL'!$A$6:$AM$500,11,FALSE))&")")),"NA") -> 2% (688) | J8: =IFERROR((IF($C8="NA","NA",VLOOKUP($A$3,'ALG-ALL'!$A$6:$AM$500,13,FALSE))),"NA") -> 4.479321492 | K8: =IFERROR((IF($C8="NA","NA",ROUND(VLOOKUP($A$3,'ALG-ALL'!$A$6:$AM$500,15,FALSE),0)&"% ("&IF(VLOOKUP($A$3,'ALG-ALL'!$A$6:$AM$500,14,FALSE)="",0,VLOOKUP($A$3,'ALG-ALL'!$A$6:$AM$500,14,FALSE))&")")),"NA") -> 1% (387) | Q8: =IFERROR(VLOOKUP($A$3,'ALG-ALL'!$A$6:$AA$500,3,FALSE),"not tested") -> 30007
A9: FCAT Level 1 | B9: =IFERROR(VLOOKUP(TEXT($A$3,"0000"),'Alg Enrollment'!$A$2:$Q$500,4,FALSE),0) -> 5858 | C9: =IFERROR((IF(OR(B9<10,B9="",B9="NA"),"NA",((IF(VLOOKUP($A$3,'ALG-L1'!$A$6:$AM$500,3,FALSE)>=B9,"100% ("&VLOOKUP($A$3,'ALG-L1'!$A$6:$AM$500,3,FALSE)&")",(ROUND((VLOOKUP($A$3,'ALG-L1'!$A$6:$AM$500,3,FALSE)/B9*100),0))&"% ("&IF(VLOOKUP($A$3,'ALG-L1'!$A$6:$AM$500,3,FALSE)="",0,VLOOKUP($A$3,'ALG-L1'!$A$6:$AM$500,3,FALSE))&")"))))),"0% (0)") -> 100% (6353) | D9: =IFERROR((IF($C9="NA","NA",VLOOKUP($A$3,'ALG-L1'!$A$6:$AG$500,4,FALSE))),"NA") -> 12.16338738 | E9: =IFERROR((IF($C9="NA","NA",ROUND(VLOOKUP($A$3,'ALG-L1'!$A$6:$AG$500,6,FALSE),0)&"% ("&IF(VLOOKUP($A$3,'ALG-L1'!$A$6:$AG$500,5,FALSE)="",0,VLOOKUP($A$3,'ALG-L1'!$A$6:$AG$500,5,FALSE))&")")),"NA") -> 0% (0) | F9: =IFERROR((IF($C9="NA","NA",VLOOKUP($A$3,'ALG-L1'!$A$6:$AG$500,7,FALSE))),"NA") -> 6.962002204 | G9: =IFERROR((IF($C9="NA","NA",ROUND(VLOOKUP($A$3,'ALG-L1'!$A$6:$AG$500,9,FALSE),0)&"% ("&IF(VLOOKUP($A$3,'ALG-L1'!$A$6:$AG$500,8,FALSE)="",0,VLOOKUP($A$3,'ALG-L1'!$A$6:$AG$500,8,FALSE))&")")),"NA") -> 0% (1) | H9: =IFERROR((IF($C9="NA","NA",VLOOKUP($A$3,'ALG-L1'!$A$6:$AM$500,10,FALSE))),"NA") -> 1.793750984 | I9: =IFERROR((IF($C9="NA","NA",ROUND(VLOOKUP($A$3,'ALG-L1'!$A$6:$AM$500,12,FALSE),0)&"% ("&IF(VLOOKUP($A$3,'ALG-L1'!$A$6:$AM$500,11,FALSE)="",0,VLOOKUP($A$3,'ALG-L1'!$A$6:$AM$500,11,FALSE))&")")),"NA") -> 2% (104) | J9: =IFERROR((IF($C9="NA","NA",VLOOKUP($A$3,'ALG-L1'!$A$6:$AM$500,13,FALSE))),"NA") -> 3.421060916 | K9: =IFERROR((IF($C9="NA","NA",ROUND(VLOOKUP($A$3,'ALG-L1'!$A$6:$AM$500,15,FALSE),0)&"% ("&IF(VLOOKUP($A$3,'ALG-L1'!$A$6:$AM$500,14,FALSE)="",0,VLOOKUP($A$3,'ALG-L1'!$A$6:$AM$500,14,FALSE))&")")),"NA") -> 0% (5) | Q9: =IFERROR(VLOOKUP($A$3,'ALG-L1'!$A$6:$BX$500,3,FALSE),"not tested") -> 6353
A10: FCAT Level 2 | B10: =IFERROR(VLOOKUP(TEXT($A$3,"0000"),'Alg Enrollment'!$A$2:$Q$500,5,FALSE),0) -> 5036 | C10: =IFERROR((IF(OR(B10<10,B10="",B10="NA"),"NA",((IF(VLOOKUP($A$3,'ALG-L2'!$A$6:$AM$500,3,FALSE)>=B10,"100% ("&VLOOKUP($A$3,'ALG-L2'!$A$6:$AM$500,3,FALSE)&")",(ROUND((VLOOKUP($A$3,'ALG-L2'!$A$6:$AM$500,3,FALSE)/B10*100),0))&"% ("&IF(VLOOKUP($A$3,'ALG-L2'!$A$6:$AM$500,3,FALSE)="",0,VLOOKUP($A$3,'ALG-L2'!$A$6:$AM$500,3,FALSE))&")"))))),"0% (0)") -> 100% (5287) | D10: =IFERROR((IF($C10="NA","NA",VLOOKUP($A$3,'ALG-L2'!$A$6:$AG$500,4,FALSE))),"NA") -> 13.70143749 | E10: =IFERROR((IF($C10="NA","NA",ROUND(VLOOKUP($A$3,'ALG-L2'!$A$6:$AG$500,6,FALSE),0)&"% ("&IF(VLOOKUP($A$3,'ALG-L2'!$A$6:$AG$500,5,FALSE)="",0,VLOOKUP($A$3,'ALG-L2'!$A$6:$AG$500,5,FALSE))&")")),"NA") -> 0% (0) | F10: =IFERROR((IF($C10="NA","NA",VLOOKUP($A$3,'ALG-L2'!$A$6:$AG$500,7,FALSE))),"NA") -> 7.80429355 | G10: =IFERROR((IF($C10="NA","NA",ROUND(VLOOKUP($A$3,'ALG-L2'!$A$6:$AG$500,9,FALSE),0)&"% ("&IF(VLOOKUP($A$3,'ALG-L2'!$A$6:$AG$500,8,FALSE)="",0,VLOOKUP($A$3,'ALG-L2'!$A$6:$AG$500,8,FALSE))&")")),"NA") -> 0% (0) | H10: =IFERROR((IF($C10="NA","NA",VLOOKUP($A$3,'ALG-L2'!$A$6:$AM$500,10,FALSE))),"NA") -> 1.896425194 | I10: =IFERROR((IF($C10="NA","NA",ROUND(VLOOKUP($A$3,'ALG-L2'!$A$6:$AM$500,12,FALSE),0)&"% ("&IF(VLOOKUP($A$3,'ALG-L2'!$A$6:$AM$500,11,FALSE)="",0,VLOOKUP($A$3,'ALG-L2'!$A$6:$AM$500,11,FALSE))&")")),"NA") -> 2% (96) | J10: =IFERROR((IF($C10="NA","NA",VLOOKUP($A$3,'ALG-L2'!$A$6:$AM$500,13,FALSE))),"NA") -> 4.007717042 | K10: =IFERROR((IF($C10="NA","NA",ROUND(VLOOKUP($A$3,'ALG-L2'!$A$6:$AM$500,15,FALSE),0)&"% ("&IF(VLOOKUP($A$3,'ALG-L2'!$A$6:$AM$500,14,FALSE)="",0,VLOOKUP($A$3,'ALG-L2'!$A$6:$AM$500,14,FALSE))&")")),"NA") -> 0% (20) | Q10: =IFERROR(VLOOKUP($A$3,'ALG-L2'!$A$6:$BX$500,3,FALSE),"not tested") -> 5287
A11: FCAT Level 3 | B11: =IFERROR(VLOOKUP(TEXT($A$3,"0000"),'Alg Enrollment'!$A$2:$Q$500,6,FALSE),0) -> 8943 | C11: =IFERROR((IF(OR(B11<10,B11="",B11="NA"),"NA",((IF(VLOOKUP($A$3,'ALG-L3'!$A$6:$AM$500,3,FALSE)>=B11,"100% ("&VLOOKUP($A$3,'ALG-L3'!$A$6:$AM$500,3,FALSE)&")",(ROUND((VLOOKUP($A$3,'ALG-L3'!$A$6:$AM$500,3,FALSE)/B11*100),0))&"% ("&IF(VLOOKUP($A$3,'ALG-L3'!$A$6:$AM$500,3,FALSE)="",0,VLOOKUP($A$3,'ALG-L3'!$A$6:$AM$500,3,FALSE))&")"))))),"0% (0)") -> 98% (8783) | D11: =IFERROR((IF($C11="NA","NA",VLOOKUP($A$3,'ALG-L3'!$A$6:$AG$500,4,FALSE))),"NA") -> 15.24258226 | E11: =IFERROR((IF($C11="NA","NA",ROUND(VLOOKUP($A$3,'ALG-L3'!$A$6:$AG$500,6,FALSE),0)&"% ("&IF(VLOOKUP($A$3,'ALG-L3'!$A$6:$AG$500,5,FALSE)="",0,VLOOKUP($A$3,'ALG-L3'!$A$6:$AG$500,5,FALSE))&")")),"NA") -> 0% (3) | F11: =IFERROR((IF($C11="NA","NA",VLOOKUP($A$3,'ALG-L3'!$A$6:$AG$500,7,FALSE))),"NA") -> 8.749812137 | G11: =IFERROR((IF($C11="NA","NA",ROUND(VLOOKUP($A$3,'ALG-L3'!$A$6:$AG$500,9,FALSE),0)&"% ("&IF(VLOOKUP($A$3,'ALG-L3'!$A$6:$AG$500,8,FALSE)="",0,VLOOKUP($A$3,'ALG-L3'!$A$6:$AG$500,8,FALSE))&")")),"NA") -> 0% (9) | H11: =IFERROR((IF($C11="NA","NA",VLOOKUP($A$3,'ALG-L3'!$A$6:$AM$500,10,FALSE))),"NA") -> 1.859831493 | I11: =IFERROR((IF($C11="NA","NA",ROUND(VLOOKUP($A$3,'ALG-L3'!$A$6:$AM$500,12,FALSE),0)&"% ("&IF(VLOOKUP($A$3,'ALG-L3'!$A$6:$AM$500,11,FALSE)="",0,VLOOKUP($A$3,'ALG-L3'!$A$6:$AM$500,11,FALSE))&")")),"NA") -> 2% (172) | J11: =IFERROR((IF($C11="NA","NA",VLOOKUP($A$3,'ALG-L3'!$A$6:$AM$500,13,FALSE))),"NA") -> 4.61920756 | K11: =IFERROR((IF($C11="NA","NA",ROUND(VLOOKUP($A$3,'ALG-L3'!$A$6:$AM$500,15,FALSE),0)&"% ("&IF(VLOOKUP($A$3,'ALG-L3'!$A$6:$AM$500,14,FALSE)="",0,VLOOKUP($A$3,'ALG-L3'!$A$6:$AM$500,14,FALSE))&")")),"NA") -> 1% (84) | Q11: =IFERROR(VLOOKUP($A$3,'ALG-L3'!$A$6:$BX$500,3,FALSE),"not tested") -> 8783
A12: FCAT Level 4 | B12: =IFERROR(VLOOKUP(TEXT($A$3,"0000"),'Alg Enrollment'!$A$2:$Q$500,7,FALSE),0) -> 5628 | C12: =IFERROR((IF(OR(B12<10,B12="",B12="NA"),"NA",((IF(VLOOKUP($A$3,'ALG-L4'!$A$6:$AM$500,3,FALSE)>=B12,"100% ("&VLOOKUP($A$3,'ALG-L4'!$A$6:$AM$500,3,FALSE)&")",(ROUND((VLOOKUP($A$3,'ALG-L4'!$A$6:$AM$500,3,FALSE)/B12*100),0))&"% ("&IF(VLOOKUP($A$3,'ALG-L4'!$A$6:$AM$500,3,FALSE)="",0,VLOOKUP($A$3,'ALG-L4'!$A$6:$AM$500,3,FALSE))&")"))))),"0% (0)") -> 96% (5430) | D12: =IFERROR((IF($C12="NA","NA",VLOOKUP($A$3,'ALG-L4'!$A$6:$AG$500,4,FALSE))),"NA") -> 17.2647698 | E12: =IFERROR((IF($C12="NA","NA",ROUND(VLOOKUP($A$3,'ALG-L4'!$A$6:$AG$500,6,FALSE),0)&"% ("&IF(VLOOKUP($A$3,'ALG-L4'!$A$6:$AG$500,5,FALSE)="",0,VLOOKUP($A$3,'ALG-L4'!$A$6:$AG$500,5,FALSE))&")")),"NA") -> 0% (12) | F12: =IFERROR((IF($C12="NA","NA",VLOOKUP($A$3,'ALG-L4'!$A$6:$AG$500,7,FALSE))),"NA") -> 10.13383057 | G12: =IFERROR((IF($C12="NA","NA",ROUND(VLOOKUP($A$3,'ALG-L4'!$A$6:$AG$500,9,FALSE),0)&"% ("&IF(VLOOKUP($A$3,'ALG-L4'!$A$6:$AG$500,8,FALSE)="",0,VLOOKUP($A$3,'ALG-L4'!$A$6:$AG$500,8,FALSE))&")")),"NA") -> 0% (20) | H12: =IFERROR((IF($C12="NA","NA",VLOOKUP($A$3,'ALG-L4'!$A$6:$AM$500,10,FALSE))),"NA") -> 1.864677716 | I12: =IFERROR((IF($C12="NA","NA",ROUND(VLOOKUP($A$3,'ALG-L4'!$A$6:$AM$500,12,FALSE),0)&"% ("&IF(VLOOKUP($A$3,'ALG-L4'!$A$6:$AM$500,11,FALSE)="",0,VLOOKUP($A$3,'ALG-L4'!$A$6:$AM$500,11,FALSE))&")")),"NA") -> 3% (143) | J12: =IFERROR((IF($C12="NA","NA",VLOOKUP($A$3,'ALG-L4'!$A$6:$AM$500,13,FALSE))),"NA") -> 5.258471455 | K12: =IFERROR((IF($C12="NA","NA",ROUND(VLOOKUP($A$3,'ALG-L4'!$A$6:$AM$500,15,FALSE),0)&"% ("&IF(VLOOKUP($A$3,'ALG-L4'!$A$6:$AM$500,14,FALSE)="",0,VLOOKUP($A$3,'ALG-L4'!$A$6:$AM$500,14,FALSE))&")")),"NA") -> 2% (108) | Q12: =IFERROR(VLOOKUP($A$3,'ALG-L4'!$A$6:$BX$500,3,FALSE),"not tested") -> 5430
A13: FCAT Level 5 | B13: =IFERROR(VLOOKUP(TEXT($A$3,"0000"),'Alg Enrollment'!$A$2:$Q$500,8,FALSE),0) -> 2984 | C13: =IFERROR((IF(OR(B13<10,B13="",B13="NA"),"NA",((IF(VLOOKUP($A$3,'ALG-L5'!$A$6:$AM$500,3,FALSE)>=B13,"100% ("&VLOOKUP($A$3,'ALG-L5'!$A$6:$AM$500,3,FALSE)&")",(ROUND((VLOOKUP($A$3,'ALG-L5'!$A$6:$AM$500,3,FALSE)/B13*100),0))&"% ("&IF(VLOOKUP($A$3,'ALG-L5'!$A$6:$AM$500,3,FALSE)="",0,VLOOKUP($A$3,'ALG-L5'!$A$6:$AM$500,3,FALSE))&")"))))),"0% (0)") -> 97% (2909) | D13: =IFERROR((IF($C13="NA","NA",VLOOKUP($A$3,'ALG-L5'!$A$6:$AG$500,4,FALSE))),"NA") -> 20.3961155 | E13: =IFERROR((IF($C13="NA","NA",ROUND(VLOOKUP($A$3,'ALG-L5'!$A$6:$AG$500,6,FALSE),0)&"% ("&IF(VLOOKUP($A$3,'ALG-L5'!$A$6:$AG$500,5,FALSE)="",0,VLOOKUP($A$3,'ALG-L5'!$A$6:$AG$500,5,FALSE))&")")),"NA") -> 2% (45) | F13: =IFERROR((IF($C13="NA","NA",VLOOKUP($A$3,'ALG-L5'!$A$6:$AG$500,7,FALSE))),"NA") -> 12.21075971 | G13: =IFERROR((IF($C13="NA","NA",ROUND(VLOOKUP($A$3,'ALG-L5'!$A$6:$AG$500,9,FALSE),0)&"% ("&IF(VLOOKUP($A$3,'ALG-L5'!$A$6:$AG$500,8,FALSE)="",0,VLOOKUP($A$3,'ALG-L5'!$A$6:$AG$500,8,FALSE))&")")),"NA") -> 3% (83) | H13: =IFERROR((IF($C13="NA","NA",VLOOKUP($A$3,'ALG-L5'!$A$6:$AM$500,10,FALSE))),"NA") -> 2.017738054 | I13: =IFERROR((IF($C13="NA","NA",ROUND(VLOOKUP($A$3,'ALG-L5'!$A$6:$AM$500,12,FALSE),0)&"% ("&IF(VLOOKUP($A$3,'ALG-L5'!$A$6:$AM$500,11,FALSE)="",0,VLOOKUP($A$3,'ALG-L5'!$A$6:$AM$500,11,FALSE))&")")),"NA") -> 5% (133) | J13: =IFERROR((IF($C13="NA","NA",VLOOKUP($A$3,'ALG-L5'!$A$6:$AM$500,13,FALSE))),"NA") -> 6.172224132 | K13: =IFERROR((IF($C13="NA","NA",ROUND(VLOOKUP($A$3,'ALG-L5'!$A$6:$AM$500,15,FALSE),0)&"% ("&IF(VLOOKUP($A$3,'ALG-L5'!$A$6:$AM$500,14,FALSE)="",0,VLOOKUP($A$3,'ALG-L5'!$A$6:$AM$500,14,FALSE))&")")),"NA") -> 6% (161) | Q13: =IFERROR(VLOOKUP($A$3,'ALG-L5'!$A$6:$BX$500,3,FALSE),"not tested") -> 2909
A14: White | B14: =IFERROR(VLOOKUP(TEXT($A$3,"0000"),'Alg Enrollment'!$A$2:$Q$500,10,FALSE),0) -> 2455 | C14: =IFERROR((IF(OR(B14<10,B14="",B14="NA"),"NA",((IF(VLOOKUP($A$3,'ALG-W'!$A$6:$AG$500,3,FALSE)>=B14,"100% ("&VLOOKUP($A$3,'ALG-W'!$A$6:$AG$500,3,FALSE)&")",(ROUND((VLOOKUP($A$3,'ALG-W'!$A$6:$AG$500,3,FALSE)/B14*100),0))&"% ("&IF(VLOOKUP($A$3,'ALG-W'!$A$6:$AG$500,3,FALSE)="",0,VLOOKUP($A$3,'ALG-W'!$A$6:$AG$500,3,FALSE))&")"))))),"0% (0)") -> 93% (2274) | D14: =IFERROR((IF($C14="NA","NA",VLOOKUP($A$3,'ALG-W'!$A$6:$AG$500,4,FALSE))),"NA") -> 16.60725594 | E14: =IFERROR((IF($C14="NA","NA",ROUND(VLOOKUP($A$3,'ALG-W'!$A$6:$AG$500,6,FALSE),0)&"% ("&IF(VLOOKUP($A$3,'ALG-W'!$A$6:$AG$500,5,FALSE)="",0,VLOOKUP($A$3,'ALG-W'!$A$6:$AG$500,5,FALSE))&")")),"NA") -> 0% (8) | F14: =IFERROR((IF($C14="NA","NA",VLOOKUP($A$3,'ALG-W'!$A$6:$AG$500,7,FALSE))),"NA") -> 9.804881266 | G14: =IFERROR((IF($C14="NA","NA",ROUND(VLOOKUP($A$3,'ALG-W'!$A$6:$AG$500,9,FALSE),0)&"% ("&IF(VLOOKUP($A$3,'ALG-W'!$A$6:$AG$500,8,FALSE)="",0,VLOOKUP($A$3,'ALG-W'!$A$6:$AG$500,8,FALSE))&")")),"NA") -> 1% (19) | H14: =IFERROR((IF($C14="NA","NA",VLOOKUP($A$3,'ALG-W'!$A$6:$AM$500,10,FALSE))),"NA") -> 1.858003518 | I14: =IFERROR((IF($C14="NA","NA",ROUND(VLOOKUP($A$3,'ALG-W'!$A$6:$AM$500,12,FALSE),0)&"% ("&IF(VLOOKUP($A$3,'ALG-W'!$A$6:$AM$500,11,FALSE)="",0,VLOOKUP($A$3,'ALG-W'!$A$6:$AM$500,11,FALSE))&")")),"NA") -> 3% (59) | J14: =IFERROR((IF($C14="NA","NA",VLOOKUP($A$3,'ALG-W'!$A$6:$AM$500,13,FALSE))),"NA") -> 4.952902375 | K14: =IFERROR((IF($C14="NA","NA",ROUND(VLOOKUP($A$3,'ALG-W'!$A$6:$AM$500,15,FALSE),0)&"% ("&IF(VLOOKUP($A$3,'ALG-W'!$A$6:$AM$500,14,FALSE)="",0,VLOOKUP($A$3,'ALG-W'!$A$6:$AM$500,14,FALSE))&")")),"NA") -> 2% (52) | Q14: =IFERROR(VLOOKUP($A$3,'ALG-W'!$A$6:$BX$500,3,FALSE),"not tested") -> 2274
A15: Black | B15: =IFERROR(VLOOKUP(TEXT($A$3,"0000"),'Alg Enrollment'!$A$2:$Q$500,11,FALSE),0) -> 7247 | C15: =IFERROR((IF(OR(B15<10,B15="",B15="NA"),"NA",((IF(VLOOKUP($A$3,'ALG-B'!$A$6:$AG$500,3,FALSE)>=B15,"100% ("&VLOOKUP($A$3,'ALG-B'!$A$6:$AG$500,3,FALSE)&")",(ROUND((VLOOKUP($A$3,'ALG-B'!$A$6:$AG$500,3,FALSE)/B15*100),0))&"% ("&IF(VLOOKUP($A$3,'ALG-B'!$A$6:$AG$500,3,FALSE)="",0,VLOOKUP($A$3,'ALG-B'!$A$6:$AG$500,3,FALSE))&")"))))),"0% (0)") -> 92% (6634) | D15: =IFERROR((IF($C15="NA","NA",VLOOKUP($A$3,'ALG-B'!$A$6:$AG$500,4,FALSE))),"NA") -> 14.39255351 | E15: =IFERROR((IF($C15="NA","NA",ROUND(VLOOKUP($A$3,'ALG-B'!$A$6:$AG$500,6,FALSE),0)&"% ("&IF(VLOOKUP($A$3,'ALG-B'!$A$6:$AG$500,5,FALSE)="",0,VLOOKUP($A$3,'ALG-B'!$A$6:$AG$500,5,FALSE))&")")),"NA") -> 0% (8) | F15: =IFERROR((IF($C15="NA","NA",VLOOKUP($A$3,'ALG-B'!$A$6:$AG$500,7,FALSE))),"NA") -> 8.178233343 | G15: =IFERROR((IF($C15="NA","NA",ROUND(VLOOKUP($A$3,'ALG-B'!$A$6:$AG$500,9,FALSE),0)&"% ("&IF(VLOOKUP($A$3,'ALG-B'!$A$6:$AG$500,8,FALSE)="",0,VLOOKUP($A$3,'ALG-B'!$A$6:$AG$500,8,FALSE))&")")),"NA") -> 0% (10) | H15: =IFERROR((IF($C15="NA","NA",VLOOKUP($A$3,'ALG-B'!$A$6:$AM$500,10,FALSE))),"NA") -> 1.957536931 | I15: =IFERROR((IF($C15="NA","NA",ROUND(VLOOKUP($A$3,'ALG-B'!$A$6:$AM$500,12,FALSE),0)&"% ("&IF(VLOOKUP($A$3,'ALG-B'!$A$6:$AM$500,11,FALSE)="",0,VLOOKUP($A$3,'ALG-B'!$A$6:$AM$500,11,FALSE))&")")),"NA") -> 3% (169) | J15: =IFERROR((IF($C15="NA","NA",VLOOKUP($A$3,'ALG-B'!$A$6:$AM$500,13,FALSE))),"NA") -> 4.254793488 | K15: =IFERROR((IF($C15="NA","NA",ROUND(VLOOKUP($A$3,'ALG-B'!$A$6:$AM$500,15,FALSE),0)&"% ("&IF(VLOOKUP($A$3,'ALG-B'!$A$6:$AM$500,14,FALSE)="",0,VLOOKUP($A$3,'ALG-B'!$A$6:$AM$500,14,FALSE))&")")),"NA") -> 1% (59) | Q15: =IFERROR(VLOOKUP($A$3,'ALG-B'!$A$6:$BX$500,3,FALSE),"not tested") -> 6634
A16: Hispanic | B16: =IFERROR(VLOOKUP(TEXT($A$3,"0000"),'Alg Enrollment'!$A$2:$Q$500,12,FALSE),0) -> 21823 | C16: =IFERROR((IF(OR(B16<10,B16="",B16="NA"),"NA",((IF(VLOOKUP($A$3,'ALG-H'!$A$6:$AG$500,3,FALSE)>=B16,"100% ("&VLOOKUP($A$3,'ALG-H'!$A$6:$AG$500,3,FALSE)&")",(ROUND((VLOOKUP($A$3,'ALG-H'!$A$6:$AG$500,3,FALSE)/B16*100),0))&"% ("&IF(VLOOKUP($A$3,'ALG-H'!$A$6:$AG$500,3,FALSE)="",0,VLOOKUP($A$3,'ALG-H'!$A$6:$AG$500,3,FALSE))&")"))))),"0% (0)") -> 95% (20688) | D16: =IFERROR((IF($C16="NA","NA",VLOOKUP($A$3,'ALG-H'!$A$6:$AG$500,4,FALSE))),"NA") -> 15.10082657 | E16: =IFERROR((IF($C16="NA","NA",ROUND(VLOOKUP($A$3,'ALG-H'!$A$6:$AG$500,6,FALSE),0)&"% ("&IF(VLOOKUP($A$3,'ALG-H'!$A$6:$AG$500,5,FALSE)="",0,VLOOKUP($A$3,'ALG-H'!$A$6:$AG$500,5,FALSE))&")")),"NA") -> 0% (37) | F16: =IFERROR((IF($C16="NA","NA",VLOOKUP($A$3,'ALG-H'!$A$6:$AG$500,7,FALSE))),"NA") -> 8.772152939 | G16: =IFERROR((IF($C16="NA","NA",ROUND(VLOOKUP($A$3,'ALG-H'!$A$6:$AG$500,9,FALSE),0)&"% ("&IF(VLOOKUP($A$3,'ALG-H'!$A$6:$AG$500,8,FALSE)="",0,VLOOKUP($A$3,'ALG-H'!$A$6:$AG$500,8,FALSE))&")")),"NA") -> 0% (77) | H16: =IFERROR((IF($C16="NA","NA",VLOOKUP($A$3,'ALG-H'!$A$6:$AM$500,10,FALSE))),"NA") -> 1.837263148 | I16: =IFERROR((IF($C16="NA","NA",ROUND(VLOOKUP($A$3,'ALG-H'!$A$6:$AM$500,12,FALSE),0)&"% ("&IF(VLOOKUP($A$3,'ALG-H'!$A$6:$AM$500,11,FALSE)="",0,VLOOKUP($A$3,'ALG-H'!$A$6:$AM$500,11,FALSE))&")")),"NA") -> 2% (440) | J16: =IFERROR((IF($C16="NA","NA",VLOOKUP($A$3,'ALG-H'!$A$6:$AM$500,13,FALSE))),"NA") -> 4.481859049 | K16: =IFERROR((IF($C16="NA","NA",ROUND(VLOOKUP($A$3,'ALG-H'!$A$6:$AM$500,15,FALSE),0)&"% ("&IF(VLOOKUP($A$3,'ALG-H'!$A$6:$AM$500,14,FALSE)="",0,VLOOKUP($A$3,'ALG-H'!$A$6:$AM$500,14,FALSE))&")")),"NA") -> 1% (260) | Q16: =IFERROR(VLOOKUP($A$3,'ALG-H'!$A$6:$BX$500,3,FALSE),"not tested") -> 20688
A17: Asian | B17: =IFERROR(VLOOKUP(TEXT($A$3,"0000"),'Alg Enrollment'!$A$2:$Q$500,13,FALSE),0) -> 329 | C17: =IFERROR((IF(OR(B17<10,B17="",B17="NA"),"NA",((IF(VLOOKUP($A$3,'ALG-A'!$A$6:$AG$500,3,FALSE)>=B17,"100% ("&VLOOKUP($A$3,'ALG-A'!$A$6:$AG$500,3,FALSE)&")",(ROUND((VLOOKUP($A$3,'ALG-A'!$A$6:$AG$500,3,FALSE)/B17*100),0))&"% ("&IF(VLOOKUP($A$3,'ALG-A'!$A$6:$AG$500,3,FALSE)="",0,VLOOKUP($A$3,'ALG-A'!$A$6:$AG$500,3,FALSE))&")"))))),"0% (0)") -> 91% (298) | D17: =IFERROR((IF($C17="NA","NA",VLOOKUP($A$3,'ALG-A'!$A$6:$AG$500,4,FALSE))),"NA") -> 18.64161074 | E17: =IFERROR((IF($C17="NA","NA",ROUND(VLOOKUP($A$3,'ALG-A'!$A$6:$AG$500,6,FALSE),0)&"% ("&IF(VLOOKUP($A$3,'ALG-A'!$A$6:$AG$500,5,FALSE)="",0,VLOOKUP($A$3,'ALG-A'!$A$6:$AG$500,5,FALSE))&")")),"NA") -> 2% (7) | F17: =IFERROR((IF($C17="NA","NA",VLOOKUP($A$3,'ALG-A'!$A$6:$AG$500,7,FALSE))),"NA") -> 10.91946309 | G17: =IFERROR((IF($C17="NA","NA",ROUND(VLOOKUP($A$3,'ALG-A'!$A$6:$AG$500,9,FALSE),0)&"% ("&IF(VLOOKUP($A$3,'ALG-A'!$A$6:$AG$500,8,FALSE)="",0,VLOOKUP($A$3,'ALG-A'!$A$6:$AG$500,8,FALSE))&")")),"NA") -> 3% (8) | H17: =IFERROR((IF($C17="NA","NA",VLOOKUP($A$3,'ALG-A'!$A$6:$AM$500,10,FALSE))),"NA") -> 2.050671141 | I17: =IFERROR((IF($C17="NA","NA",ROUND(VLOOKUP($A$3,'ALG-A'!$A$6:$AM$500,12,FALSE),0)&"% ("&IF(VLOOKUP($A$3,'ALG-A'!$A$6:$AM$500,11,FALSE)="",0,VLOOKUP($A$3,'ALG-A'!$A$6:$AM$500,11,FALSE))&")")),"NA") -> 6% (17) | J17: =IFERROR((IF($C17="NA","NA",VLOOKUP($A$3,'ALG-A'!$A$6:$AM$500,13,FALSE))),"NA") -> 5.668456376 | K17: =IFERROR((IF($C17="NA","NA",ROUND(VLOOKUP($A$3,'ALG-A'!$A$6:$AM$500,15,FALSE),0)&"% ("&IF(VLOOKUP($A$3,'ALG-A'!$A$6:$AM$500,14,FALSE)="",0,VLOOKUP($A$3,'ALG-A'!$A$6:$AM$500,14,FALSE))&")")),"NA") -> 4% (13) | Q17: =IFERROR(VLOOKUP($A$3,'ALG-A'!$A$6:$BX$500,3,FALSE),"not tested") -> 298
A18: Am. Indian | B18: =IFERROR(VLOOKUP(TEXT($A$3,"0000"),'Alg Enrollment'!$A$2:$Q$500,14,FALSE),0) -> 22 | C18: =IFERROR((IF(OR(B18<10,B18="",B18="NA"),"NA",((IF(VLOOKUP($A$3,'ALG-I'!$A$6:$AG$500,3,FALSE)>=B18,"100% ("&VLOOKUP($A$3,'ALG-I'!$A$6:$AG$500,3,FALSE)&")",(ROUND((VLOOKUP($A$3,'ALG-I'!$A$6:$AG$500,3,FALSE)/B18*100),0))&"% ("&IF(VLOOKUP($A$3,'ALG-I'!$A$6:$AG$500,3,FALSE)="",0,VLOOKUP($A$3,'ALG-I'!$A$6:$AG$500,3,FALSE))&")"))))),"0% (0)") -> 91% (20) | D18: =IFERROR((IF($C18="NA","NA",VLOOKUP($A$3,'ALG-I'!$A$6:$AG$500,4,FALSE))),"NA") -> 16.2 | E18: =IFERROR((IF($C18="NA","NA",ROUND(VLOOKUP($A$3,'ALG-I'!$A$6:$AG$500,6,FALSE),0)&"% ("&IF(VLOOKUP($A$3,'ALG-I'!$A$6:$AG$500,5,FALSE)="",0,VLOOKUP($A$3,'ALG-I'!$A$6:$AG$500,5,FALSE))&")")),"NA") -> 0% (0) | F18: =IFERROR((IF($C18="NA","NA",VLOOKUP($A$3,'ALG-I'!$A$6:$AG$500,7,FALSE))),"NA") -> 9.85 | G18: =IFERROR((IF($C18="NA","NA",ROUND(VLOOKUP($A$3,'ALG-I'!$A$6:$AG$500,9,FALSE),0)&"% ("&IF(VLOOKUP($A$3,'ALG-I'!$A$6:$AG$500,8,FALSE)="",0,VLOOKUP($A$3,'ALG-I'!$A$6:$AG$500,8,FALSE))&")")),"NA") -> 0% (0) | H18: =IFERROR((IF($C18="NA","NA",VLOOKUP($A$3,'ALG-I'!$A$6:$AM$500,10,FALSE))),"NA") -> 1.85 | I18: =IFERROR((IF($C18="NA","NA",ROUND(VLOOKUP($A$3,'ALG-I'!$A$6:$AM$500,12,FALSE),0)&"% ("&IF(VLOOKUP($A$3,'ALG-I'!$A$6:$AM$500,11,FALSE)="",0,VLOOKUP($A$3,'ALG-I'!$A$6:$AM$500,11,FALSE))&")")),"NA") -> 0% (0) | J18: =IFERROR((IF($C18="NA","NA",VLOOKUP($A$3,'ALG-I'!$A$6:$AM$500,13,FALSE))),"NA") -> 4.5 | K18: =IFERROR((IF($C18="NA","NA",ROUND(VLOOKUP($A$3,'ALG-I'!$A$6:$AM$500,15,FALSE),0)&"% ("&IF(VLOOKUP($A$3,'ALG-I'!$A$6:$AM$500,14,FALSE)="",0,VLOOKUP($A$3,'ALG-I'!$A$6:$AM$500,14,FALSE))&")")),"NA") -> 5% (1) | Q18: =IFERROR(VLOOKUP($A$3,'ALG-I'!$A$6:$BX$500,3,FALSE),"not tested") -> 20
A19: ED | B19: =IFERROR(VLOOKUP(TEXT($A$3,"0000"),'Alg Enrollment'!$A$2:$Q$500,15,FALSE),0) -> 24679 | C19: =IFERROR((IF(OR(B19<10,B19="",B19="NA"),"NA",((IF(VLOOKUP($A$3,'ALG-ED'!$A$6:$AG$500,3,FALSE)>=B19,"100% ("&VLOOKUP($A$3,'ALG-ED'!$A$6:$AG$500,3,FALSE)&")",(ROUND((VLOOKUP($A$3,'ALG-ED'!$A$6:$AG$500,3,FALSE)/B19*100),0))&"% ("&IF(VLOOKUP($A$3,'ALG-ED'!$A$6:$AG$500,3,FALSE)="",0,VLOOKUP($A$3,'ALG-ED'!$A$6:$AG$500,3,FALSE))&")"))))),"0% (0)") -> 96% (23592) | D19: =IFERROR((IF($C19="NA","NA",VLOOKUP($A$3,'ALG-ED'!$A$6:$AG$500,4,FALSE))),"NA") -> 14.6745846 | E19: =IFERROR((IF($C19="NA","NA",ROUND(VLOOKUP($A$3,'ALG-ED'!$A$6:$AG$500,6,FALSE),0)&"% ("&IF(VLOOKUP($A$3,'ALG-ED'!$A$6:$AG$500,5,FALSE)="",0,VLOOKUP($A$3,'ALG-ED'!$A$6:$AG$500,5,FALSE))&")")),"NA") -> 0% (32) | F19: =IFERROR((IF($C19="NA","NA",VLOOKUP($A$3,'ALG-ED'!$A$6:$AG$500,7,FALSE))),"NA") -> 8.463966599 | G19: =IFERROR((IF($C19="NA","NA",ROUND(VLOOKUP($A$3,'ALG-ED'!$A$6:$AG$500,9,FALSE),0)&"% ("&IF(VLOOKUP($A$3,'ALG-ED'!$A$6:$AG$500,8,FALSE)="",0,VLOOKUP($A$3,'ALG-ED'!$A$6:$AG$500,8,FALSE))&")")),"NA") -> 0% (62) | H19: =IFERROR((IF($C19="NA","NA",VLOOKUP($A$3,'ALG-ED'!$A$6:$AM$500,10,FALSE))),"NA") -> 1.850373008 | I19: =IFERROR((IF($C19="NA","NA",ROUND(VLOOKUP($A$3,'ALG-ED'!$A$6:$AM$500,12,FALSE),0)&"% ("&IF(VLOOKUP($A$3,'ALG-ED'!$A$6:$AM$500,11,FALSE)="",0,VLOOKUP($A$3,'ALG-ED'!$A$6:$AM$500,11,FALSE))&")")),"NA") -> 2% (508) | J19: =IFERROR((IF($C19="NA","NA",VLOOKUP($A$3,'ALG-ED'!$A$6:$AM$500,13,FALSE))),"NA") -> 4.357290607 | K19: =IFERROR((IF($C19="NA","NA",ROUND(VLOOKUP($A$3,'ALG-ED'!$A$6:$AM$500,15,FALSE),0)&"% ("&IF(VLOOKUP($A$3,'ALG-ED'!$A$6:$AM$500,14,FALSE)="",0,VLOOKUP($A$3,'ALG-ED'!$A$6:$AM$500,14,FALSE))&")")),"NA") -> 1% (252) | Q19: =IFERROR(VLOOKUP($A$3,'ALG-ED'!$A$6:$BX$500,3,FALSE),"not tested") -> 23592
A20: ELL | B20: =IFERROR(VLOOKUP(TEXT($A$3,"0000"),'Alg Enrollment'!$A$2:$Q$500,16,FALSE),0) -> 4587 | C20: =IFERROR((IF(OR(B20<10,B20="",B20="NA"),"NA",((IF(VLOOKUP($A$3,'ALG-ELL'!$A$6:$AG$500,3,FALSE)>=B20,"100% ("&VLOOKUP($A$3,'ALG-ELL'!$A$6:$AG$500,3,FALSE)&")",(ROUND((VLOOKUP($A$3,'ALG-ELL'!$A$6:$AG$500,3,FALSE)/B20*100),0))&"% ("&IF(VLOOKUP($A$3,'ALG-ELL'!$A$6:$AG$500,3,FALSE)="",0,VLOOKUP($A$3,'ALG-ELL'!$A$6:$AG$500,3,FALSE))&")"))))),"0% (0)") -> 95% (4361) | D20: =IFERROR((IF($C20="NA","NA",VLOOKUP($A$3,'ALG-ELL'!$A$6:$AG$500,4,FALSE))),"NA") -> 13.27700069 | E20: =IFERROR((IF($C20="NA","NA",ROUND(VLOOKUP($A$3,'ALG-ELL'!$A$6:$AG$500,6,FALSE),0)&"% ("&IF(VLOOKUP($A$3,'ALG-ELL'!$A$6:$AG$500,5,FALSE)="",0,VLOOKUP($A$3,'ALG-ELL'!$A$6:$AG$500,5,FALSE))&")")),"NA") -> 0% (6) | F20: =IFERROR((IF($C20="NA","NA",VLOOKUP($A$3,'ALG-ELL'!$A$6:$AG$500,7,FALSE))),"NA") -> 7.669571199 | G20: =IFERROR((IF($C20="NA","NA",ROUND(VLOOKUP($A$3,'ALG-ELL'!$A$6:$AG$500,9,FALSE),0)&"% ("&IF(VLOOKUP($A$3,'ALG-ELL'!$A$6:$AG$500,8,FALSE)="",0,VLOOKUP($A$3,'ALG-ELL'!$A$6:$AG$500,8,FALSE))&")")),"NA") -> 0% (4) | H20: =IFERROR((IF($C20="NA","NA",VLOOKUP($A$3,'ALG-ELL'!$A$6:$AM$500,10,FALSE))),"NA") -> 1.817473057 | I20: =IFERROR((IF($C20="NA","NA",ROUND(VLOOKUP($A$3,'ALG-ELL'!$A$6:$AM$500,12,FALSE),0)&"% ("&IF(VLOOKUP($A$3,'ALG-ELL'!$A$6:$AM$500,11,FALSE)="",0,VLOOKUP($A$3,'ALG-ELL'!$A$6:$AM$500,11,FALSE))&")")),"NA") -> 2% (88) | J20: =IFERROR((IF($C20="NA","NA",VLOOKUP($A$3,'ALG-ELL'!$A$6:$AM$500,13,FALSE))),"NA") -> 3.789956432 | K20: =IFERROR((IF($C20="NA","NA",ROUND(VLOOKUP($A$3,'ALG-ELL'!$A$6:$AM$500,15,FALSE),0)&"% ("&IF(VLOOKUP($A$3,'ALG-ELL'!$A$6:$AM$500,14,FALSE)="",0,VLOOKUP($A$3,'ALG-ELL'!$A$6:$AM$500,14,FALSE))&")")),"NA") -> 1% (35) | Q20: =IFERROR(VLOOKUP($A$3,'ALG-ELL'!$A$6:$BX$500,3,FALSE),"not tested") -> 4361
A21: SWD | B21: =IFERROR(VLOOKUP(TEXT($A$3,"0000"),'Alg Enrollment'!$A$2:$Q$500,17,FALSE),0) -> 2964 | C21: =IFERROR((IF(OR(B21<10,B21="",B21="NA"),"NA",((IF(VLOOKUP($A$3,'ALG-SWD'!$A$6:$AG$500,3,FALSE)>=B21,"100% ("&VLOOKUP($A$3,'ALG-SWD'!$A$6:$AG$500,3,FALSE)&")",(ROUND((VLOOKUP($A$3,'ALG-SWD'!$A$6:$AG$500,3,FALSE)/B21*100),0))&"% ("&IF(VLOOKUP($A$3,'ALG-SWD'!$A$6:$AG$500,3,FALSE)="",0,VLOOKUP($A$3,'ALG-SWD'!$A$6:$AG$500,3,FALSE))&")"))))),"0% (0)") -> 95% (2825) | D21: =IFERROR((IF($C21="NA","NA",VLOOKUP($A$3,'ALG-SWD'!$A$6:$AG$500,4,FALSE))),"NA") -> 12.96145133 | E21: =IFERROR((IF($C21="NA","NA",ROUND(VLOOKUP($A$3,'ALG-SWD'!$A$6:$AG$500,6,FALSE),0)&"% ("&IF(VLOOKUP($A$3,'ALG-SWD'!$A$6:$AG$500,5,FALSE)="",0,VLOOKUP($A$3,'ALG-SWD'!$A$6:$AG$500,5,FALSE))&")")),"NA") -> 0% (3) | F21: =IFERROR((IF($C21="NA","NA",VLOOKUP($A$3,'ALG-SWD'!$A$6:$AG$500,7,FALSE))),"NA") -> 7.443044248 | G21: =IFERROR((IF($C21="NA","NA",ROUND(VLOOKUP($A$3,'ALG-SWD'!$A$6:$AG$500,9,FALSE),0)&"% ("&IF(VLOOKUP($A$3,'ALG-SWD'!$A$6:$AG$500,8,FALSE)="",0,VLOOKUP($A$3,'ALG-SWD'!$A$6:$AG$500,8,FALSE))&")")),"NA") -> 0% (3) | H21: =IFERROR((IF($C21="NA","NA",VLOOKUP($A$3,'ALG-SWD'!$A$6:$AM$500,10,FALSE))),"NA") -> 1.777132743 | I21: =IFERROR((IF($C21="NA","NA",ROUND(VLOOKUP($A$3,'ALG-SWD'!$A$6:$AM$500,12,FALSE),0)&"% ("&IF(VLOOKUP($A$3,'ALG-SWD'!$A$6:$AM$500,11,FALSE)="",0,VLOOKUP($A$3,'ALG-SWD'!$A$6:$AM$500,11,FALSE))&")")),"NA") -> 2% (51) | J21: =IFERROR((IF($C21="NA","NA",VLOOKUP($A$3,'ALG-SWD'!$A$6:$AM$500,13,FALSE))),"NA") -> 3.73900885 | K21: =IFERROR((IF($C21="NA","NA",ROUND(VLOOKUP($A$3,'ALG-SWD'!$A$6:$AM$500,15,FALSE),0)&"% ("&IF(VLOOKUP($A$3,'ALG-SWD'!$A$6:$AM$500,14,FALSE)="",0,VLOOKUP($A$3,'ALG-SWD'!$A$6:$AM$500,14,FALSE))&")")),"NA") -> 1% (18) | Q21: =IFERROR(VLOOKUP($A$3,'ALG-SWD'!$A$6:$BX$500,3,FALSE),"not tested") -> 2825
A22: Geometry | Q22: Geometry
A23: Level of Proficiency at 70% or above | B23: Course Enrollment | C23: % of Students Tested | D23: ='G9-10 Matrix'!C12&" ["&'G9-10 Matrix'!C13&"]" -> Overall [38] | F23: ='G9-10 Matrix'!D12&" ["&'G9-10 Matrix'!D13&"]" -> Two-Dimensional Geometry [28] | H23: ='G9-10 Matrix'!E12&" ["&'G9-10 Matrix'!E13&"]" -> Three-Dimensional Geometry [6] | J23: ='G9-10 Matrix'!F12&" ["&'G9-10 Matrix'!F13&"]" -> Trigonometry and Discrete Mathematics [4] | Q23: Number Tested
D24: Average Score | E24: % Proficient | F24: Average Score | G24: % Proficient | H24: Average Score | I24: % Proficient | J24: Average Score | K24: % Proficient
A25: All students | B25: =IFERROR(VLOOKUP(TEXT($A$3,"0000"),'Geo Enrollment'!$A$3:$Q$500,3,FALSE),0) -> 31005 | C25: =IFERROR((IF(OR(B25<10,B25="",B25="NA"),"NA",((IF(VLOOKUP($A$3,'GEO-ALL'!$A$6:$AM$500,3,FALSE)>=B25,"100% ("&VLOOKUP($A$3,'GEO-ALL'!$A$6:$AM$500,3,FALSE)&")",(ROUND((VLOOKUP($A$3,'GEO-ALL'!$A$6:$AM$500,3,FALSE)/B25*100),0))&"% ("&IF(VLOOKUP($A$3,'GEO-ALL'!$A$6:$AM$500,3,FALSE)="",0,VLOOKUP($A$3,'GEO-ALL'!$A$6:$AM$500,3,FALSE))&")"))))),"0% (0)") -> 92% (28676) | D25: =IFERROR((IF($C25="NA","NA",VLOOKUP($A$3,'GEO-ALL'!$A$6:$AM$500,4,FALSE))),"NA") -> 11.0248082 | E25: =IFERROR((IF($C25="NA","NA",ROUND(VLOOKUP($A$3,'GEO-ALL'!$A$6:$AM$500,6,FALSE),0)&"% ("&IF(VLOOKUP($A$3,'GEO-ALL'!$A$6:$AM$500,5,FALSE)="",0,VLOOKUP($A$3,'GEO-ALL'!$A$6:$AM$500,5,FALSE))&")")),"NA") -> 0% (38) | F25: =IFERROR((IF($C25="NA","NA",VLOOKUP($A$3,'GEO-ALL'!$A$6:$AM$500,7,FALSE))),"NA") -> 7.977995536 | G25: =IFERROR((IF($C25="NA","NA",ROUND(VLOOKUP($A$3,'GEO-ALL'!$A$6:$AM$500,9,FALSE),0)&"% ("&IF(VLOOKUP($A$3,'GEO-ALL'!$A$6:$AM$500,8,FALSE)="",0,VLOOKUP($A$3,'GEO-ALL'!$A$6:$AM$500,8,FALSE))&")")),"NA") -> 0% (46) | H25: =IFERROR((IF($C25="NA","NA",VLOOKUP($A$3,'GEO-ALL'!$A$6:$AM$500,10,FALSE))),"NA") -> 1.795700237 | I25: =IFERROR((IF($C25="NA","NA",ROUND(VLOOKUP($A$3,'GEO-ALL'!$A$6:$AM$500,12,FALSE),0)&"% ("&IF(VLOOKUP($A$3,'GEO-ALL'!$A$6:$AM$500,11,FALSE)="",0,VLOOKUP($A$3,'GEO-ALL'!$A$6:$AM$500,11,FALSE))&")")),"NA") -> 2% (507) | J25: =IFERROR((IF($C25="NA","NA",VLOOKUP($A$3,'GEO-ALL'!$A$6:$AM$500,13,FALSE))),"NA") -> 1.24920491 | K25: =IFERROR((IF($C25="NA","NA",ROUND(VLOOKUP($A$3,'GEO-ALL'!$A$6:$AM$500,15,FALSE),0)&"% ("&IF(VLOOKUP($A$3,'GEO-ALL'!$A$6:$AM$500,14,FALSE)="",0,VLOOKUP($A$3,'GEO-ALL'!$A$6:$AM$500,14,FALSE))&")")),"NA") -> 8% (2276) | Q25: =IFERROR(VLOOKUP($A$3,'GEO-ALL'!$A$6:$BX$500,3,FALSE),"not tested") -> 28676
A26: FCAT Level 1 | B26: NA | C26: =IFERROR((IF(OR(B26<10,B26="",B26="NA"),"NA",((IF(VLOOKUP($A$3,'GEO-L1'!$A$6:$AM$500,3,FALSE)>=B26,"100% ("&VLOOKUP($A$3,'GEO-L1'!$A$6:$AM$500,3,FALSE)&")",(ROUND((VLOOKUP($A$3,'GEO-L1'!$A$6:$AM$500,3,FALSE)/B26*100),0))&"% ("&IF(VLOOKUP($A$3,'GEO-L1'!$A$6:$AM$500,3,FALSE)="",0,VLOOKUP($A$3,'GEO-L1'!$A$6:$AM$500,3,FALSE))&")"))))),"0% (0)") -> NA | D26: NA | E26: NA | F26: NA | G26: NA | H26: NA | I26: NA | J26: NA | K26: NA | Q26: =IFERROR(VLOOKUP($A$3,'GEO-L1'!$A$6:$BX$500,3,FALSE),"not tested") -> 4922
A27: FCAT Level 2 | B27: NA | C27: =IFERROR((IF(OR(B27<10,B27="",B27="NA"),"NA",((IF(VLOOKUP($A$3,'GEO-L2'!$A$6:$AM$500,3,FALSE)>=B27,"100% ("&VLOOKUP($A$3,'GEO-L2'!$A$6:$AM$500,3,FALSE)&")",(ROUND((VLOOKUP($A$3,'GEO-L2'!$A$6:$AM$500,3,FALSE)/B27*100),0))&"% ("&IF(VLOOKUP($A$3,'GEO-L2'!$A$6:$AM$500,3,FALSE)="",0,VLOOKUP($A$3,'GEO-L2'!$A$6:$AM$500,3,FALSE))&")"))))),"0% (0)") -> NA | D27: NA | E27: NA | F27: NA | G27: NA | H27: NA | I27: NA | J27: NA | K27: NA | Q27: =IFERROR(VLOOKUP($A$3,'GEO-L2'!$A$6:$BX$500,3,FALSE),"not tested") -> 5302
A28: FCAT Level 3 | B28: NA | C28: =IFERROR((IF(OR(B28<10,B28="",B28="NA"),"NA",((IF(VLOOKUP($A$3,'GEO-L3'!$A$6:$AM$500,3,FALSE)>=B28,"100% ("&VLOOKUP($A$3,'GEO-L3'!$A$6:$AM$500,3,FALSE)&")",(ROUND((VLOOKUP($A$3,'GEO-L3'!$A$6:$AM$500,3,FALSE)/B28*100),0))&"% ("&IF(VLOOKUP($A$3,'GEO-L3'!$A$6:$AM$500,3,FALSE)="",0,VLOOKUP($A$3,'GEO-L3'!$A$6:$AM$500,3,FALSE))&")"))))),"0% (0)") -> NA | D28: NA | E28: NA | F28: NA | G28: NA | H28: NA | I28: NA | J28: NA | K28: NA | Q28: =IFERROR(VLOOKUP($A$3,'GEO-L3'!$A$6:$BX$500,3,FALSE),"not tested") -> 8722
A29: FCAT Level 4 | B29: NA | C29: =IFERROR((IF(OR(B29<10,B29="",B29="NA"),"NA",((IF(VLOOKUP($A$3,'GEO-L4'!$A$6:$AM$500,3,FALSE)>=B29,"100% ("&VLOOKUP($A$3,'GEO-L4'!$A$6:$AM$500,3,FALSE)&")",(ROUND((VLOOKUP($A$3,'GEO-L4'!$A$6:$AM$500,3,FALSE)/B29*100),0))&"% ("&IF(VLOOKUP($A$3,'GEO-L4'!$A$6:$AM$500,3,FALSE)="",0,VLOOKUP($A$3,'GEO-L4'!$A$6:$AM$500,3,FALSE))&")"))))),"0% (0)") -> NA | D29: NA | E29: NA | F29: NA | G29: NA | H29: NA | I29: NA | J29: NA | K29: NA | Q29: =IFERROR(VLOOKUP($A$3,'GEO-L4'!$A$6:$BX$500,3,FALSE),"not tested") -> 4960
A30: FCAT Level 5 | B30: NA | C30: =IFERROR((IF(OR(B30<10,B30="",B30="NA"),"NA",((IF(VLOOKUP($A$3,'GEO-L5'!$A$6:$AM$500,3,FALSE)>=B30,"100% ("&VLOOKUP($A$3,'GEO-L5'!$A$6:$AM$500,3,FALSE)&")",(ROUND((VLOOKUP($A$3,'GEO-L5'!$A$6:$AM$500,3,FALSE)/B30*100),0))&"% ("&IF(VLOOKUP($A$3,'GEO-L5'!$A$6:$AM$500,3,FALSE)="",0,VLOOKUP($A$3,'GEO-L5'!$A$6:$AM$500,3,FALSE))&")"))))),"0% (0)") -> NA | D30: NA | E30: NA | F30: NA | G30: NA | H30: NA | I30: NA | J30: NA | K30: NA | Q30: =IFERROR(VLOOKUP($A$3,'GEO-L5'!$A$6:$BX$500,3,FALSE),"not tested") -> 2545
A31: White | B31: =IFERROR(VLOOKUP(TEXT($A$3,"0000"),'Geo Enrollment'!$A$3:$Q$500,10,FALSE),0) -> 2452 | C31: =IFERROR((IF(OR(B31<10,B31="",B31="NA"),"NA",((IF(VLOOKUP($A$3,'GEO-W'!$A$6:$AG$500,3,FALSE)>=B31,"100% ("&VLOOKUP($A$3,'GEO-W'!$A$6:$AG$500,3,FALSE)&")",(ROUND((VLOOKUP($A$3,'GEO-W'!$A$6:$AG$500,3,FALSE)/B31*100),0))&"% ("&IF(VLOOKUP($A$3,'GEO-W'!$A$6:$AG$500,3,FALSE)="",0,VLOOKUP($A$3,'GEO-W'!$A$6:$AG$500,3,FALSE))&")"))))),"0% (0)") -> 95% (2336) | D31: =IFERROR((IF($C31="NA","NA",VLOOKUP($A$3,'GEO-W'!$A$6:$AM$500,4,FALSE))),"NA") -> 12.19499144 | E31: =IFERROR((IF($C31="NA","NA",ROUND(VLOOKUP($A$3,'GEO-W'!$A$6:$AG$500,6,FALSE),0)&"% ("&IF(VLOOKUP($A$3,'GEO-W'!$A$6:$AG$500,5,FALSE)="",0,VLOOKUP($A$3,'GEO-W'!$A$6:$AG$500,5,FALSE))&")")),"NA") -> 0% (11) | F31: =IFERROR((IF($C31="NA","NA",VLOOKUP($A$3,'GEO-W'!$A$6:$AG$500,7,FALSE))),"NA") -> 8.788484589 | G31: =IFERROR((IF($C31="NA","NA",ROUND(VLOOKUP($A$3,'GEO-W'!$A$6:$AG$500,9,FALSE),0)&"% ("&IF(VLOOKUP($A$3,'GEO-W'!$A$6:$AG$500,8,FALSE)="",0,VLOOKUP($A$3,'GEO-W'!$A$6:$AG$500,8,FALSE))&")")),"NA") -> 0% (11) | H31: =IFERROR((IF($C31="NA","NA",VLOOKUP($A$3,'GEO-W'!$A$6:$AM$500,10,FALSE))),"NA") -> 2.041652397 | I31: =IFERROR((IF($C31="NA","NA",ROUND(VLOOKUP($A$3,'GEO-W'!$A$6:$AM$500,12,FALSE),0)&"% ("&IF(VLOOKUP($A$3,'GEO-W'!$A$6:$AM$500,11,FALSE)="",0,VLOOKUP($A$3,'GEO-W'!$A$6:$AM$500,11,FALSE))&")")),"NA") -> 4% (87) | J31: =IFERROR((IF($C31="NA","NA",VLOOKUP($A$3,'GEO-W'!$A$6:$AM$500,13,FALSE))),"NA") -> 1.374871575 | K31: =IFERROR((IF($C31="NA","NA",ROUND(VLOOKUP($A$3,'GEO-W'!$A$6:$AM$500,15,FALSE),0)&"% ("&IF(VLOOKUP($A$3,'GEO-W'!$A$6:$AM$500,14,FALSE)="",0,VLOOKUP($A$3,'GEO-W'!$A$6:$AM$500,14,FALSE))&")")),"NA") -> 10% (228) | Q31: =IFERROR(VLOOKUP($A$3,'GEO-W'!$A$6:$BX$500,3,FALSE),"not tested") -> 2336
A32: Black | B32: =IFERROR(VLOOKUP(TEXT($A$3,"0000"),'Geo Enrollment'!$A$3:$Q$500,11,FALSE),0) -> 5933 | C32: =IFERROR((IF(OR(B32<10,B32="",B32="NA"),"NA",((IF(VLOOKUP($A$3,'GEO-B'!$A$6:$AG$500,3,FALSE)>=B32,"100% ("&VLOOKUP($A$3,'GEO-B'!$A$6:$AG$500,3,FALSE)&")",(ROUND((VLOOKUP($A$3,'GEO-B'!$A$6:$AG$500,3,FALSE)/B32*100),0))&"% ("&IF(VLOOKUP($A$3,'GEO-B'!$A$6:$AG$500,3,FALSE)="",0,VLOOKUP($A$3,'GEO-B'!$A$6:$AG$500,3,FALSE))&")"))))),"0% (0)") -> 100% (6271) | D32: =IFERROR((IF($C32="NA","NA",VLOOKUP($A$3,'GEO-B'!$A$6:$AM$500,4,FALSE))),"NA") -> 10.51036517 | E32: =IFERROR((IF($C32="NA","NA",ROUND(VLOOKUP($A$3,'GEO-B'!$A$6:$AG$500,6,FALSE),0)&"% ("&IF(VLOOKUP($A$3,'GEO-B'!$A$6:$AG$500,5,FALSE)="",0,VLOOKUP($A$3,'GEO-B'!$A$6:$AG$500,5,FALSE))&")")),"NA") -> 0% (3) | F32: =IFERROR((IF($C32="NA","NA",VLOOKUP($A$3,'GEO-B'!$A$6:$AG$500,7,FALSE))),"NA") -> 7.657359273 | G32: =IFERROR((IF($C32="NA","NA",ROUND(VLOOKUP($A$3,'GEO-B'!$A$6:$AG$500,9,FALSE),0)&"% ("&IF(VLOOKUP($A$3,'GEO-B'!$A$6:$AG$500,8,FALSE)="",0,VLOOKUP($A$3,'GEO-B'!$A$6:$AG$500,8,FALSE))&")")),"NA") -> 0% (3) | H32: =IFERROR((IF($C32="NA","NA",VLOOKUP($A$3,'GEO-B'!$A$6:$AM$500,10,FALSE))),"NA") -> 1.680417796 | I32: =IFERROR((IF($C32="NA","NA",ROUND(VLOOKUP($A$3,'GEO-B'!$A$6:$AM$500,12,FALSE),0)&"% ("&IF(VLOOKUP($A$3,'GEO-B'!$A$6:$AM$500,11,FALSE)="",0,VLOOKUP($A$3,'GEO-B'!$A$6:$AM$500,11,FALSE))&")")),"NA") -> 1% (63) | J32: =IFERROR((IF($C32="NA","NA",VLOOKUP($A$3,'GEO-B'!$A$6:$AM$500,13,FALSE))),"NA") -> 1.180513475 | K32: =IFERROR((IF($C32="NA","NA",ROUND(VLOOKUP($A$3,'GEO-B'!$A$6:$AM$500,15,FALSE),0)&"% ("&IF(VLOOKUP($A$3,'GEO-B'!$A$6:$AM$500,14,FALSE)="",0,VLOOKUP($A$3,'GEO-B'!$A$6:$AM$500,14,FALSE))&")")),"NA") -> 7% (432) | Q32: =IFERROR(VLOOKUP($A$3,'GEO-B'!$A$6:$BX$500,3,FALSE),"not tested") -> 6271
A33: Hispanic | B33: =IFERROR(VLOOKUP(TEXT($A$3,"0000"),'Geo Enrollment'!$A$3:$Q$500,12,FALSE),0) -> 19371 | C33: =IFERROR((IF(OR(B33<10,B33="",B33="NA"),"NA",((IF(VLOOKUP($A$3,'GEO-H'!$A$6:$AG$500,3,FALSE)>=B33,"100% ("&VLOOKUP($A$3,'GEO-H'!$A$6:$AG$500,3,FALSE)&")",(ROUND((VLOOKUP($A$3,'GEO-H'!$A$6:$AG$500,3,FALSE)/B33*100),0))&"% ("&IF(VLOOKUP($A$3,'GEO-H'!$A$6:$AG$500,3,FALSE)="",0,VLOOKUP($A$3,'GEO-H'!$A$6:$AG$500,3,FALSE))&")"))))),"0% (0)") -> 100% (19624) | D33: =IFERROR((IF($C33="NA","NA",VLOOKUP($A$3,'GEO-H'!$A$6:$AM$500,4,FALSE))),"NA") -> 10.99663677 | E33: =IFERROR((IF($C33="NA","NA",ROUND(VLOOKUP($A$3,'GEO-H'!$A$6:$AG$500,6,FALSE),0)&"% ("&IF(VLOOKUP($A$3,'GEO-H'!$A$6:$AG$500,5,FALSE)="",0,VLOOKUP($A$3,'GEO-H'!$A$6:$AG$500,5,FALSE))&")")),"NA") -> 0% (15) | F33: =IFERROR((IF($C33="NA","NA",VLOOKUP($A$3,'GEO-H'!$A$6:$AG$500,7,FALSE))),"NA") -> 7.949464941 | G33: =IFERROR((IF($C33="NA","NA",ROUND(VLOOKUP($A$3,'GEO-H'!$A$6:$AG$500,9,FALSE),0)&"% ("&IF(VLOOKUP($A$3,'GEO-H'!$A$6:$AG$500,8,FALSE)="",0,VLOOKUP($A$3,'GEO-H'!$A$6:$AG$500,8,FALSE))&")")),"NA") -> 0% (20) | H33: =IFERROR((IF($C33="NA","NA",VLOOKUP($A$3,'GEO-H'!$A$6:$AM$500,10,FALSE))),"NA") -> 1.795551366 | I33: =IFERROR((IF($C33="NA","NA",ROUND(VLOOKUP($A$3,'GEO-H'!$A$6:$AM$500,12,FALSE),0)&"% ("&IF(VLOOKUP($A$3,'GEO-H'!$A$6:$AM$500,11,FALSE)="",0,VLOOKUP($A$3,'GEO-H'!$A$6:$AM$500,11,FALSE))&")")),"NA") -> 2% (328) | J33: =IFERROR((IF($C33="NA","NA",VLOOKUP($A$3,'GEO-H'!$A$6:$AM$500,13,FALSE))),"NA") -> 1.243064615 | K33: =IFERROR((IF($C33="NA","NA",ROUND(VLOOKUP($A$3,'GEO-H'!$A$6:$AM$500,15,FALSE),0)&"% ("&IF(VLOOKUP($A$3,'GEO-H'!$A$6:$AM$500,14,FALSE)="",0,VLOOKUP($A$3,'GEO-H'!$A$6:$AM$500,14,FALSE))&")")),"NA") -> 8% (1573) | Q33: =IFERROR(VLOOKUP($A$3,'GEO-H'!$A$6:$BX$500,3,FALSE),"not tested") -> 19624
A34: Asian | B34: =IFERROR(VLOOKUP(TEXT($A$3,"0000"),'Geo Enrollment'!$A$3:$Q$500,13,FALSE),0) -> 348 | C34: =IFERROR((IF(OR(B34<10,B34="",B34="NA"),"NA",((IF(VLOOKUP($A$3,'GEO-A'!$A$6:$AG$500,3,FALSE)>=B34,"100% ("&VLOOKUP($A$3,'GEO-A'!$A$6:$AG$500,3,FALSE)&")",(ROUND((VLOOKUP($A$3,'GEO-A'!$A$6:$AG$500,3,FALSE)/B34*100),0))&"% ("&IF(VLOOKUP($A$3,'GEO-A'!$A$6:$AG$500,3,FALSE)="",0,VLOOKUP($A$3,'GEO-A'!$A$6:$AG$500,3,FALSE))&")"))))),"0% (0)") -> 98% (341) | D34: =IFERROR((IF($C34="NA","NA",VLOOKUP($A$3,'GEO-A'!$A$6:$AM$500,4,FALSE))),"NA") -> 13.68768328 | E34: =IFERROR((IF($C34="NA","NA",ROUND(VLOOKUP($A$3,'GEO-A'!$A$6:$AG$500,6,FALSE),0)&"% ("&IF(VLOOKUP($A$3,'GEO-A'!$A$6:$AG$500,5,FALSE)="",0,VLOOKUP($A$3,'GEO-A'!$A$6:$AG$500,5,FALSE))&")")),"NA") -> 3% (9) | F34: =IFERROR((IF($C34="NA","NA",VLOOKUP($A$3,'GEO-A'!$A$6:$AG$500,7,FALSE))),"NA") -> 9.956304985 | G34: =IFERROR((IF($C34="NA","NA",ROUND(VLOOKUP($A$3,'GEO-A'!$A$6:$AG$500,9,FALSE),0)&"% ("&IF(VLOOKUP($A$3,'GEO-A'!$A$6:$AG$500,8,FALSE)="",0,VLOOKUP($A$3,'GEO-A'!$A$6:$AG$500,8,FALSE))&")")),"NA") -> 4% (12) | H34: =IFERROR((IF($C34="NA","NA",VLOOKUP($A$3,'GEO-A'!$A$6:$AM$500,10,FALSE))),"NA") -> 2.357184751 | I34: =IFERROR((IF($C34="NA","NA",ROUND(VLOOKUP($A$3,'GEO-A'!$A$6:$AM$500,12,FALSE),0)&"% ("&IF(VLOOKUP($A$3,'GEO-A'!$A$6:$AM$500,11,FALSE)="",0,VLOOKUP($A$3,'GEO-A'!$A$6:$AM$500,11,FALSE))&")")),"NA") -> 7% (25) | J34: =IFERROR((IF($C34="NA","NA",VLOOKUP($A$3,'GEO-A'!$A$6:$AM$500,13,FALSE))),"NA") -> 1.382991202 | K34: =IFERROR((IF($C34="NA","NA",ROUND(VLOOKUP($A$3,'GEO-A'!$A$6:$AM$500,15,FALSE),0)&"% ("&IF(VLOOKUP($A$3,'GEO-A'!$A$6:$AM$500,14,FALSE)="",0,VLOOKUP($A$3,'GEO-A'!$A$6:$AM$500,14,FALSE))&")")),"NA") -> 9% (30) | Q34: =IFERROR(VLOOKUP($A$3,'GEO-A'!$A$6:$BX$500,3,FALSE),"not tested") -> 341
A35: Am. Indian | B35: =IFERROR(VLOOKUP(TEXT($A$3,"0000"),'Geo Enrollment'!$A$3:$Q$500,14,FALSE),0) -> 30 | C35: =IFERROR((IF(OR(B35<10,B35="",B35="NA"),"NA",((IF(VLOOKUP($A$3,'GEO-I'!$A$6:$AG$500,3,FALSE)>=B35,"100% ("&VLOOKUP($A$3,'GEO-I'!$A$6:$AG$500,3,FALSE)&")",(ROUND((VLOOKUP($A$3,'GEO-I'!$A$6:$AG$500,3,FALSE)/B35*100),0))&"% ("&IF(VLOOKUP($A$3,'GEO-I'!$A$6:$AG$500,3,FALSE)="",0,VLOOKUP($A$3,'GEO-I'!$A$6:$AG$500,3,FALSE))&")"))))),"0% (0)") -> 93% (28) | D35: =IFERROR((IF($C35="NA","NA",VLOOKUP($A$3,'GEO-I'!$A$6:$AM$500,4,FALSE))),"NA") -> 11.53571429 | E35: =IFERROR((IF($C35="NA","NA",ROUND(VLOOKUP($A$3,'GEO-I'!$A$6:$AG$500,6,FALSE),0)&"% ("&IF(VLOOKUP($A$3,'GEO-I'!$A$6:$AG$500,5,FALSE)="",0,VLOOKUP($A$3,'GEO-I'!$A$6:$AG$500,5,FALSE))&")")),"NA") -> 0% (0) | F35: =IFERROR((IF($C35="NA","NA",VLOOKUP($A$3,'GEO-I'!$A$6:$AG$500,7,FALSE))),"NA") -> 8.817857143 | G35: =IFERROR((IF($C35="NA","NA",ROUND(VLOOKUP($A$3,'GEO-I'!$A$6:$AG$500,9,FALSE),0)&"% ("&IF(VLOOKUP($A$3,'GEO-I'!$A$6:$AG$500,8,FALSE)="",0,VLOOKUP($A$3,'GEO-I'!$A$6:$AG$500,8,FALSE))&")")),"NA") -> 0% (0) | H35: =IFERROR((IF($C35="NA","NA",VLOOKUP($A$3,'GEO-I'!$A$6:$AM$500,10,FALSE))),"NA") -> 1.564285714 | I35: =IFERROR((IF($C35="NA","NA",ROUND(VLOOKUP($A$3,'GEO-I'!$A$6:$AM$500,12,FALSE),0)&"% ("&IF(VLOOKUP($A$3,'GEO-I'!$A$6:$AM$500,11,FALSE)="",0,VLOOKUP($A$3,'GEO-I'!$A$6:$AM$500,11,FALSE))&")")),"NA") -> 4% (1) | J35: =IFERROR((IF($C35="NA","NA",VLOOKUP($A$3,'GEO-I'!$A$6:$AM$500,13,FALSE))),"NA") -> 1.142857143 | K35: =IFERROR((IF($C35="NA","NA",ROUND(VLOOKUP($A$3,'GEO-I'!$A$6:$AM$500,15,FALSE),0)&"% ("&IF(VLOOKUP($A$3,'GEO-I'!$A$6:$AM$500,14,FALSE)="",0,VLOOKUP($A$3,'GEO-I'!$A$6:$AM$500,14,FALSE))&")")),"NA") -> 4% (1) | Q35: =IFERROR(VLOOKUP($A$3,'GEO-I'!$A$6:$BX$500,3,FALSE),"not tested") -> 28
A36: ED | B36: =IFERROR(VLOOKUP(TEXT($A$3,"0000"),'Geo Enrollment'!$A$3:$Q$500,15,FALSE),0) -> 21082 | C36: =IFERROR((IF(OR(B36<10,B36="",B36="NA"),"NA",((IF(VLOOKUP($A$3,'GEO-ED'!$A$6:$AG$500,3,FALSE)>=B36,"100% ("&VLOOKUP($A$3,'GEO-ED'!$A$6:$AG$500,3,FALSE)&")",(ROUND((VLOOKUP($A$3,'GEO-ED'!$A$6:$AG$500,3,FALSE)/B36*100),0))&"% ("&IF(VLOOKUP($A$3,'GEO-ED'!$A$6:$AG$500,3,FALSE)="",0,VLOOKUP($A$3,'GEO-ED'!$A$6:$AG$500,3,FALSE))&")"))))),"0% (0)") -> 100% (22041) | D36: =IFERROR((IF($C36="NA","NA",VLOOKUP($A$3,'GEO-ED'!$A$6:$AM$500,4,FALSE))),"NA") -> 10.74704868 | E36: =IFERROR((IF($C36="NA","NA",ROUND(VLOOKUP($A$3,'GEO-ED'!$A$6:$AG$500,6,FALSE),0)&"% ("&IF(VLOOKUP($A$3,'GEO-ED'!$A$6:$AG$500,5,FALSE)="",0,VLOOKUP($A$3,'GEO-ED'!$A$6:$AG$500,5,FALSE))&")")),"NA") -> 0% (12) | F36: =IFERROR((IF($C36="NA","NA",VLOOKUP($A$3,'GEO-ED'!$A$6:$AG$500,7,FALSE))),"NA") -> 7.800163332 | G36: =IFERROR((IF($C36="NA","NA",ROUND(VLOOKUP($A$3,'GEO-ED'!$A$6:$AG$500,9,FALSE),0)&"% ("&IF(VLOOKUP($A$3,'GEO-ED'!$A$6:$AG$500,8,FALSE)="",0,VLOOKUP($A$3,'GEO-ED'!$A$6:$AG$500,8,FALSE))&")")),"NA") -> 0% (14) | H36: =IFERROR((IF($C36="NA","NA",VLOOKUP($A$3,'GEO-ED'!$A$6:$AM$500,10,FALSE))),"NA") -> 1.722598793 | I36: =IFERROR((IF($C36="NA","NA",ROUND(VLOOKUP($A$3,'GEO-ED'!$A$6:$AM$500,12,FALSE),0)&"% ("&IF(VLOOKUP($A$3,'GEO-ED'!$A$6:$AM$500,11,FALSE)="",0,VLOOKUP($A$3,'GEO-ED'!$A$6:$AM$500,11,FALSE))&")")),"NA") -> 1% (289) | J36: =IFERROR((IF($C36="NA","NA",VLOOKUP($A$3,'GEO-ED'!$A$6:$AM$500,13,FALSE))),"NA") -> 1.209754548 | K36: =IFERROR((IF($C36="NA","NA",ROUND(VLOOKUP($A$3,'GEO-ED'!$A$6:$AM$500,15,FALSE),0)&"% ("&IF(VLOOKUP($A$3,'GEO-ED'!$A$6:$AM$500,14,FALSE)="",0,VLOOKUP($A$3,'GEO-ED'!$A$6:$AM$500,14,FALSE))&")")),"NA") -> 7% (1640) | Q36: =IFERROR(VLOOKUP($A$3,'GEO-ED'!$A$6:$BX$500,3,FALSE),"not tested") -> 22041
A37: ELL | B37: =IFERROR(VLOOKUP(TEXT($A$3,"0000"),'Geo Enrollment'!$A$3:$Q$500,16,FALSE),0) -> 4218 | C37: =IFERROR((IF(OR(B37<10,B37="",B37="NA"),"NA",((IF(VLOOKUP($A$3,'GEO-ELL'!$A$6:$AG$500,3,FALSE)>=B37,"100% ("&VLOOKUP($A$3,'GEO-ELL'!$A$6:$AG$500,3,FALSE)&")",(ROUND((VLOOKUP($A$3,'GEO-ELL'!$A$6:$AG$500,3,FALSE)/B37*100),0))&"% ("&IF(VLOOKUP($A$3,'GEO-ELL'!$A$6:$AG$500,3,FALSE)="",0,VLOOKUP($A$3,'GEO-ELL'!$A$6:$AG$500,3,FALSE))&")"))))),"0% (0)") -> 94% (3962) | D37: =IFERROR((IF($C37="NA","NA",VLOOKUP($A$3,'GEO-ELL'!$A$6:$AM$500,4,FALSE))),"NA") -> 9.765017668 | E37: =IFERROR((IF($C37="NA","NA",ROUND(VLOOKUP($A$3,'GEO-ELL'!$A$6:$AG$500,6,FALSE),0)&"% ("&IF(VLOOKUP($A$3,'GEO-ELL'!$A$6:$AG$500,5,FALSE)="",0,VLOOKUP($A$3,'GEO-ELL'!$A$6:$AG$500,5,FALSE))&")")),"NA") -> 0% (1) | F37: =IFERROR((IF($C37="NA","NA",VLOOKUP($A$3,'GEO-ELL'!$A$6:$AG$500,7,FALSE))),"NA") -> 7.177940434 | G37: =IFERROR((IF($C37="NA","NA",ROUND(VLOOKUP($A$3,'GEO-ELL'!$A$6:$AG$500,9,FALSE),0)&"% ("&IF(VLOOKUP($A$3,'GEO-ELL'!$A$6:$AG$500,8,FALSE)="",0,VLOOKUP($A$3,'GEO-ELL'!$A$6:$AG$500,8,FALSE))&")")),"NA") -> 0% (2) | H37: =IFERROR((IF($C37="NA","NA",VLOOKUP($A$3,'GEO-ELL'!$A$6:$AM$500,10,FALSE))),"NA") -> 1.490408884 | I37: =IFERROR((IF($C37="NA","NA",ROUND(VLOOKUP($A$3,'GEO-ELL'!$A$6:$AM$500,12,FALSE),0)&"% ("&IF(VLOOKUP($A$3,'GEO-ELL'!$A$6:$AM$500,11,FALSE)="",0,VLOOKUP($A$3,'GEO-ELL'!$A$6:$AM$500,11,FALSE))&")")),"NA") -> 1% (29) | J37: =IFERROR((IF($C37="NA","NA",VLOOKUP($A$3,'GEO-ELL'!$A$6:$AM$500,13,FALSE))),"NA") -> 1.096668349 | K37: =IFERROR((IF($C37="NA","NA",ROUND(VLOOKUP($A$3,'GEO-ELL'!$A$6:$AM$500,15,FALSE),0)&"% ("&IF(VLOOKUP($A$3,'GEO-ELL'!$A$6:$AM$500,14,FALSE)="",0,VLOOKUP($A$3,'GEO-ELL'!$A$6:$AM$500,14,FALSE))&")")),"NA") -> 6% (239) | Q37: =IFERROR(VLOOKUP($A$3,'GEO-ELL'!$A$6:$BX$500,3,FALSE),"not tested") -> 3962
A38: SWD | B38: =IFERROR(VLOOKUP(TEXT($A$3,"0000"),'Geo Enrollment'!$A$3:$Q$500,17,FALSE),0) -> 2043 | C38: =IFERROR((IF(OR(B38<10,B38="",B38="NA"),"NA",((IF(VLOOKUP($A$3,'GEO-SWD'!$A$6:$AG$500,3,FALSE)>=B38,"100% ("&VLOOKUP($A$3,'GEO-SWD'!$A$6:$AG$500,3,FALSE)&")",(ROUND((VLOOKUP($A$3,'GEO-SWD'!$A$6:$AG$500,3,FALSE)/B38*100),0))&"% ("&IF(VLOOKUP($A$3,'GEO-SWD'!$A$6:$AG$500,3,FALSE)="",0,VLOOKUP($A$3,'GEO-SWD'!$A$6:$AG$500,3,FALSE))&")"))))),"0% (0)") -> 100% (2449) | D38: =IFERROR((IF($C38="NA","NA",VLOOKUP($A$3,'GEO-SWD'!$A$6:$AM$500,4,FALSE))),"NA") -> 9.981625153 | E38: =IFERROR((IF($C38="NA","NA",ROUND(VLOOKUP($A$3,'GEO-SWD'!$A$6:$AG$500,6,FALSE),0)&"% ("&IF(VLOOKUP($A$3,'GEO-SWD'!$A$6:$AG$500,5,FALSE)="",0,VLOOKUP($A$3,'GEO-SWD'!$A$6:$AG$500,5,FALSE))&")")),"NA") -> 0% (1) | F38: =IFERROR((IF($C38="NA","NA",VLOOKUP($A$3,'GEO-SWD'!$A$6:$AG$500,7,FALSE))),"NA") -> 7.252633728 | G38: =IFERROR((IF($C38="NA","NA",ROUND(VLOOKUP($A$3,'GEO-SWD'!$A$6:$AG$500,9,FALSE),0)&"% ("&IF(VLOOKUP($A$3,'GEO-SWD'!$A$6:$AG$500,8,FALSE)="",0,VLOOKUP($A$3,'GEO-SWD'!$A$6:$AG$500,8,FALSE))&")")),"NA") -> 0% (2) | H38: =IFERROR((IF($C38="NA","NA",VLOOKUP($A$3,'GEO-SWD'!$A$6:$AM$500,10,FALSE))),"NA") -> 1.609269089 | I38: =IFERROR((IF($C38="NA","NA",ROUND(VLOOKUP($A$3,'GEO-SWD'!$A$6:$AM$500,12,FALSE),0)&"% ("&IF(VLOOKUP($A$3,'GEO-SWD'!$A$6:$AM$500,11,FALSE)="",0,VLOOKUP($A$3,'GEO-SWD'!$A$6:$AM$500,11,FALSE))&")")),"NA") -> 1% (26) | J38: =IFERROR((IF($C38="NA","NA",VLOOKUP($A$3,'GEO-SWD'!$A$6:$AM$500,13,FALSE))),"NA") -> 1.116945692 | K38: =IFERROR((IF($C38="NA","NA",ROUND(VLOOKUP($A$3,'GEO-SWD'!$A$6:$AM$500,15,FALSE),0)&"% ("&IF(VLOOKUP($A$3,'GEO-SWD'!$A$6:$AM$500,14,FALSE)="",0,VLOOKUP($A$3,'GEO-SWD'!$A$6:$AM$500,14,FALSE))&")")),"NA") -> 6% (143) | Q38: =IFERROR(VLOOKUP($A$3,'GEO-SWD'!$A$6:$BX$500,3,FALSE),"not tested") -> 2449
A39: Biology | Q39: Biology
A40: Level of Proficiency at 70% or above | B40: Course Enrollment | C40: % of Students Tested | D40: ='G9-10 Matrix'!C15&" ["&'G9-10 Matrix'!C16&"]" -> Overall [67] | F40: ='G9-10 Matrix'!D15&" ["&'G9-10 Matrix'!D16&"]" -> Molecular and Cellular Biology [23] | H40: ='G9-10 Matrix'!E15&" ["&'G9-10 Matrix'!E16&"]" -> Classification, Heredity, and Evolution [18] | J40: ='G9-10 Matrix'!F15&" ["&'G9-10 Matrix'!F16&"]" -> Organisms, Populations, and Ecosystems [26] | Q40: Number Tested
D41: Average Score | E41: % Proficient | F41: Average Score | G41: % Proficient | H41: Average Score | I41: % Proficient | J41: Average Score | K41: % Proficient
A42: All students | B42: =IFERROR(VLOOKUP(TEXT($A$3,"0000"),'Bio Enrollment'!$A$2:$C$497,3,FALSE),0) -> 29408 | C42: =IFERROR((IF(OR(B42<10,B42="",B42="NA"),"NA",((IF(VLOOKUP($A$3,'Bio-ALL'!$A$14:$AG$500,3,FALSE)>=B42,"100% ("&VLOOKUP($A$3,'Bio-ALL'!$A$14:$AG$500,3,FALSE)&")",(ROUND((VLOOKUP($A$3,'Bio-ALL'!$A$14:$AG$500,3,FALSE)/B42*100),0))&"% ("&VLOOKUP($A$3,'Bio-ALL'!$A$14:$AG$500,3,FALSE)&")"))))),"NA") -> 93% (27460) | D42: =IFERROR((IF($C42="NA","NA",VLOOKUP($A$3,'Bio-ALL'!$A$14:$AG$500,4,FALSE))),"NA") -> 23.09974546 | E42: =IFERROR((IF($C42="NA","NA",ROUND(VLOOKUP($A$3,'Bio-ALL'!$A$14:$AG$500,9,FALSE)*100,0)&"% ("&IF(VLOOKUP($A$3,'Bio-ALL'!$A$14:$AG$500,7,FALSE)="",0,VLOOKUP($A$3,'Bio-ALL'!$A$14:$AG$500,7,FALSE))&")")),"NA") -> 1% (215) | F42: =IFERROR((IF($C42="NA","NA",VLOOKUP($A$3,'Bio-ALL'!$A$14:$AG$500,10,FALSE))),"NA") -> 7.44987259 | G42: =IFERROR((IF($C42="NA","NA",ROUND(VLOOKUP($A$3,'Bio-ALL'!$A$14:$AG$500,15,FALSE)*100,0)&"% ("&IF(VLOOKUP($A$3,'Bio-ALL'!$A$14:$AG$500,13,FALSE)="",0,VLOOKUP($A$3,'Bio-ALL'!$A$14:$AG$500,13,FALSE))&")")),"NA") -> 1% (250) | H42: =IFERROR((IF($C42="NA","NA",VLOOKUP($A$3,'Bio-ALL'!$A$14:$AG$500,16,FALSE))),"NA") -> 6.250127459 | I42: =IFERROR((IF($C42="NA","NA",ROUND(VLOOKUP($A$3,'Bio-ALL'!$A$14:$AG$500,21,FALSE)*100,0)&"% ("&IF(VLOOKUP($A$3,'Bio-ALL'!$A$14:$AG$500,19,FALSE)="",0,VLOOKUP($A$3,'Bio-ALL'!$A$14:$AG$500,19,FALSE))&")")),"NA") -> 2% (462) | J42: =IFERROR((IF($C42="NA","NA",VLOOKUP($A$3,'Bio-ALL'!$A$14:$AG$500,22,FALSE))),"NA") -> 9.449872351 | K42: =IFERROR((IF($C42="NA","NA",ROUND(VLOOKUP($A$3,'Bio-ALL'!$A$14:$AG$500,27,FALSE)*100,0)&"% ("&IF(VLOOKUP($A$3,'Bio-ALL'!$A$14:$AG$500,25,FALSE)="",0,VLOOKUP($A$3,'Bio-ALL'!$A$14:$AG$500,25,FALSE))&")")),"NA") -> 1% (313) | Q42: =IFERROR(VLOOKUP($A$3,'Bio-ALL'!$A$14:$BR$500,3,FALSE),"not tested") -> 27460
A43: US History | Q43: US History
A44: Level of Proficiency at 70% or above | B44: Course Enrollment | C44: % of Students Tested | D44: ='G9-10 Matrix'!C18&" ["&'G9-10 Matrix'!C19&"]" -> Overall [57] | F44: ='G9-10 Matrix'!D18&" ["&'G9-10 Matrix'!D19&"]" -> Late Nineteenth and Early Twentieth Century, 1860-1910 [9] | H44: ='G9-10 Matrix'!E18&" ["&'G9-10 Matrix'!E19&"]" -> Global Military, Political, & Eco. Challenges [19] | J44: ='G9-10 Matrix'!F18&" ["&'G9-10 Matrix'!F19&"]" -> The U.S. & Defense of the International Peace [29] | Q44: Number Tested
D45: Average Score | E45: % Proficient | F45: Average Score | G45: % Proficient | H45: Average Score | I45: % Proficient | J45: Average Score | K45: % Proficient
A46: All students | B46: =IFERROR(VLOOKUP(TEXT($A$3,"0000"),'USH Enrollment'!$A$2:$C$497,3,FALSE),0) -> 20996 | C46: =IFERROR((IF(OR(B46<10,B46="",B46="NA"),"NA",((IF(VLOOKUP($A$3,'USH-ALL'!$A$14:$AG$500,3,FALSE)>=B46,"100% ("&VLOOKUP($A$3,'USH-ALL'!$A$14:$AG$500,3,FALSE)&")",(ROUND((VLOOKUP($A$3,'USH-ALL'!$A$14:$AG$500,3,FALSE)/B46*100),0))&"% ("&VLOOKUP($A$3,'USH-ALL'!$A$14:$AG$500,3,FALSE)&")"))))),"NA") -> 93% (19511) | D46: =IFERROR((IF($C46="NA","NA",VLOOKUP($A$3,'USH-ALL'!$A$14:$AG$500,4,FALSE))),"NA") -> 18 | E46: =IFERROR((IF($C46="NA","NA",ROUND(VLOOKUP($A$3,'USH-ALL'!$A$14:$AG$500,9,FALSE)*100,0)&"% ("&IF(VLOOKUP($A$3,'USH-ALL'!$A$14:$AG$500,7,FALSE)="",0,VLOOKUP($A$3,'USH-ALL'!$A$14:$AG$500,7,FALSE))&")")),"NA") -> 0% (36) | F46: =IFERROR((IF($C46="NA","NA",VLOOKUP($A$3,'USH-ALL'!$A$14:$AG$500,10,FALSE))),"NA") -> 2.948249755 | G46: =IFERROR((IF($C46="NA","NA",ROUND(VLOOKUP($A$3,'USH-ALL'!$A$14:$AG$500,15,FALSE)*100,0)&"% ("&IF(VLOOKUP($A$3,'USH-ALL'!$A$14:$AG$500,13,FALSE)="",0,VLOOKUP($A$3,'USH-ALL'!$A$14:$AG$500,13,FALSE))&")")),"NA") -> 2% (367) | H46: =IFERROR((IF($C46="NA","NA",VLOOKUP($A$3,'USH-ALL'!$A$14:$AG$500,16,FALSE))),"NA") -> 6.148249564 | I46: =IFERROR((IF($C46="NA","NA",ROUND(VLOOKUP($A$3,'USH-ALL'!$A$14:$AG$500,21,FALSE)*100,0)&"% ("&IF(VLOOKUP($A$3,'USH-ALL'!$A$14:$AG$500,19,FALSE)="",0,VLOOKUP($A$3,'USH-ALL'!$A$14:$AG$500,19,FALSE))&")")),"NA") -> 1% (100) | J46: =IFERROR((IF($C46="NA","NA",VLOOKUP($A$3,'USH-ALL'!$A$14:$AG$500,22,FALSE))),"NA") -> 8.903500681 | K46: =IFERROR((IF($C46="NA","NA",ROUND(VLOOKUP($A$3,'USH-ALL'!$A$14:$AG$500,27,FALSE)*100,0)&"% ("&IF(VLOOKUP($A$3,'USH-ALL'!$A$14:$AG$500,25,FALSE)="",0,VLOOKUP($A$3,'USH-ALL'!$A$14:$AG$500,25,FALSE))&")")),"NA") -> 0% (24) | Q46: =IFERROR(VLOOKUP($A$3,'USH-ALL'!$A$14:$BR$500,3,FALSE),"not tested") -> 19511

Sheet G9-10 Matrix (hidden)
A2: Grade | B2: Reading | C2: Overall | D2: Vocabulary | E2: Reading Application | F2: Literary Analysis Fiction/Nonfiction | G2: Informational Text/ Research Process
A3: 9 | B3: N of Items | C3: =SUM(D3:G3) -> 43 | D3: 7 | E3: 22 | F3: 6 | G3: 8
A4: 9 | B4: 51% Cut | C4: =ROUND(0.505*C3,2) -> 21.72 | D4: =ROUND(0.505*D3,2) -> 3.54 | E4: 11.11 | F4: 3.03 | G4: 4.04
A5: 10 | B5: N of Items | C5: =SUM(D5:G5) -> 34 | D5: 5 | E5: 15 | F5: 4 | G5: 10
A6: 10 | B6: 51% Cut | C6: =ROUND(0.505*C5,2) -> 17.17 | D6: =ROUND(0.505*D5,2) -> 2.53 | E6: 7.58 | F6: 2.02 | G6: 5.05
A8: Algebra | B8: Algebra | C8: Overall | D8: Functions, Linear Equations, and Inequalities | E8: Polynomials | F8: Rationals, Radicals, Quadratics, and Discrete Mathematics
B9: N of Items | C9: =SUM(D9:G9) -> 48 | D9: 28 | E9: 7 | F9: 13
B10: 51% Cut | C10: =ROUND(0.505*C9,2) -> 24.24 | D10: =ROUND(0.505*D9,2) -> 14.14 | E10: 3.54 | F10: 6.57
A12: Geometry | B12: Geometry | C12: Overall | D12: Two-Dimensional Geometry | E12: Three-Dimensional Geometry | F12: Trigonometry and Discrete Mathematics
B13: N of Items | C13: =SUM(D13:F13) -> 38 | D13: 28 | E13: 6 | F13: 4
B14: 51% Cut | C14: =ROUND(0.505*C13,2) -> 19.19 | D14: =ROUND(0.505*D13,2) -> 14.14 | E14: 3.03 | F14: 2.02
A15: Biology | B15: Biology | C15: Overall | D15: Molecular and Cellular Biology | E15: Classification, Heredity, and Evolution | F15: Organisms, Populations, and Ecosystems
B16: N of Items | C16: =SUM(D16:G16) -> 67 | D16: 23 | E16: 18 | F16: 26
B17: 51% Cut | C17: =ROUND(0.505*C16,2) -> 33.84 | D17: =ROUND(0.505*D16,2) -> 11.62 | E17: 9.09 | F17: 13.13
A18: US History | B18: US History | C18: Overall | D18: Late Nineteenth and Early Twentieth Century, 1860-1910 | E18: Global Military, Political, & Eco. Challenges | F18: The U.S. & Defense of the International Peace
B19: N of Items | C19: =SUM(D19:G19) -> 57 | D19: 9 | E19: 19 | F19: 29
B20: 51% Cut | C20: =ROUND(0.505*C19,2) -> 28.79 | D20: =ROUND(0.505*D19,2) -> 4.55 | E20: 9.6 | F20: 14.65

Sheet Alg Enrollment (hidden)
A1: 1 | B1: 2 | C1: 3 | D1: 4 | E1: 5 | F1: 6 | G1: 7 | H1: 8 | I1: 9 | J1: 10 | K1: 11 | L1: 12 | M1: 13 | N1: 14 | O1: 15 | P1: 16 | Q1: 17
B2: SchName | C2: Total | D2: ML1 | E2: ML2 | F2: ML3 | G2: ML4 | H2: ML5 | I2: ML0 | J2: W | K2: B | L2: H | M2: A | N2: I | O2: ED | P2: ELL | Q2: SWD
A3: 0070 | B3: CORAL REEF MONTESSORI ACAD CH | C3: 14 | D3: 0 | E3: 1 | F3: 5 | G3: 5 | H3: 3 | I3: 0 | J3: 4 | K3: 1 | L3: 9 | M3: 0 | N3: 0 | O3: 2 | P3: 0 | Q3: 3
A4: 0071 | B4: EUGENIA B. THOMAS K-8 CENTER | C4: 71 | D4: 0 | E4: 0 | F4: 23 | G4: 25 | H4: 20 | I4: 3 | J4: 6 | K4: 2 | L4: 62 | M4: 1 | N4: 0 | O4: 35 | P4: 7 | Q4: 0
A5: 0073 | B5: MANDARIN LAKES K-8 CENTER | C5: 16 | D5: 0 | E5: 0 | F5: 11 | G5: 2 | H5: 1 | I5: 2 | J5: 2 | K5: 5 | L5: 9 | M5: 0 | N5: 0 | O5: 14 | P5: 1 | Q5: 0
A6: 0091 | B6: BOB GRAHAM EDUCATION CTR | C6: 79 | D6: 0 | E6: 0 | F6: 6 | G6: 24 | H6: 49 | I6: 0 | J6: 7 | K6: 0 | L6: 70 | M6: 2 | N6: 0 | O6: 30 | P6: 0 | Q6: 1
A7: 0092 | B7: NORMAN S. EDELCUP/SUNNY ISLES | C7: 39 | D7: 0 | E7: 0 | F7: 2 | G7: 10 | H7: 24 | I7: 3 | J7: 15 | K7: 0 | L7: 24 | M7: 0 | N7: 0 | O7: 19 | P7: 1 | Q7: 0
A8: 0122 | B8: DR ROLANDO ESPINOSA K-8 | C8: 78 | D8: 0 | E8: 0 | F8: 7 | G8: 32 | H8: 37 | I8: 2 | J8: 7 | K8: 1 | L8: 67 | M8: 3 | N8: 0 | O8: 19 | P8: 1 | Q8: 1
A9: 0231 | B9: AVENTURA WATERWAYS K-8 CENTER | C9: 98 | D9: 0 | E9: 1 | F9: 19 | G9: 44 | H9: 29 | I9: 5 | J9: 32 | K9: 18 | L9: 42 | M9: 6 | N9: 0 | O9: 50 | P9: 4 | Q9: 2
A10: 0241 | B10: RUTH K BROAD/BAY HARBOR K-8 | C10: 52 | D10: 0 | E10: 0 | F10: 4 | G10: 18 | H10: 26 | I10: 4 | J10: 26 | K10: 1 | L10: 23 | M10: 2 | N10: 0 | O10: 19 | P10: 5 | Q10: 1
A11: 0332 | B11: SOMERSET ACADEMY(SILVER PALMS) | C11: 44 | D11: 0 | E11: 0 | F11: 2 | G11: 23 | H11: 18 | I11: 1 | J11: 4 | K11: 4 | L11: 35 | M11: 1 | N11: 0 | O11: 32 | P11: 1 | Q11: 0
A12: 0451 | B12: BOWMAN ASHE/DOOLIN K-8 ACAD | C12: 62 | D12: 0 | E12: 0 | F12: 25 | G12: 28 | H12: 9 | I12: 0 | J12: 4 | K12: 0 | L12: 58 | M12: 0 | N12: 0 | O12: 48 | P12: 2 | Q12: 0
A13: 0651 | B13: CAMPBELL DRIVE K-8 CENTER | C13: 28 | D13: 0 | E13: 1 | F13: 19 | G13: 6 | H13: 2 | I13: 0 | J13: 1 | K13: 6 | L13: 21 | M13: 0 | N13: 0 | O13: 28 | P13: 5 | Q13: 4
A14: 0761 | B14: FIENBERG/FISHER K-8 CENTER | C14: 25 | D14: 0 | E14: 0 | F14: 6 | G14: 6 | H14: 12 | I14: 1 | J14: 2 | K14: 3 | L14: 20 | M14: 0 | N14: 0 | O14: 23 | P14: 0 | Q14: 0
A15: 0950 | B15: AVENTURA CITY OF EXCELLENCE | C15: 89 | D15: 0 | E15: 0 | F15: 7 | G15: 39 | H15: 42 | I15: 1 | J15: 48 | K15: 2 | L15: 37 | M15: 1 | N15: 0 | O15: 11 | P15: 2 | Q15: 1
A16: 0961 | B16: CORAL GABLES PREPARATORY ACAD | C16: 47 | D16: 0 | E16: 0 | F16: 7 | G16: 18 | H16: 11 | I16: 11 | J16: 5 | K16: 0 | L16: 40 | M16: 2 | N16: 0 | O16: 23 | P16: 4 | Q16: 2
A17: 1020 | B17: YOUTH CO-OP CHARTER SCHOOL | C17: 21 | D17: 0 | E17: 0 | F17: 2 | G17: 13 | H17: 6 | I17: 0 | J17: 0 | K17: 0 | L17: 21 | M17: 0 | N17: 0 | O17: 15 | P17: 2 | Q17: 0
A18: 1121 | B18: CORAL WAY K-8 CENTER | C18: 57 | D18: 1 | E18: 0 | F18: 16 | G18: 24 | H18: 16 | I18: 0 | J18: 3 | K18: 0 | L18: 51 | M18: 3 | N18: 0 | O18: 37 | P18: 4 | Q18: 2
A19: 1331 | B19: DEVON AIRE K-8 CENTER | C19: 83 | D19: 0 | E19: 0 | F19: 13 | G19: 38 | H19: 30 | I19: 2 | J19: 9 | K19: 2 | L19: 71 | M19: 1 | N19: 0 | O19: 37 | P19: 1 | Q19: 3
A20: 1681 | B20: LILLIE C. EVANS K-8 CENTER | C20: 26 | D20: 0 | E20: 0 | F20: 12 | G20: 10 | H20: 3 | I20: 1 | J20: 0 | K20: 24 | L20: 2 | M20: 0 | N20: 0 | O20: 25 | P20: 1 | Q20: 1
A21: 1721 | B21: EVERGLADES K-8 CENTER | C21: 31 | D21: 0 | E21: 1 | F21: 12 | G21: 11 | H21: 7 | I21: 0 | J21: 2 | K21: 0 | L21: 29 | M21: 0 | N21: 0 | O21: 18 | P21: 2 | Q21: 1
A22: 2041 | B22: BENJAMIN FRANKLIN K-8 CENTER | C22: 19 | D22: 1 | E22: 5 | F22: 7 | G22: 3 | H22: 2 | I22: 1 | J22: 0 | K22: 17 | L22: 2 | M22: 0 | N22: 0 | O22: 18 | P22: 4 | Q22: 0
A23: 2060 | B23: GIBSON CHARTER SCHOOL | C23: 12 | D23: 0 | E23: 2 | F23: 7 | G23: 3 | H23: 0 | I23: 0 | J23: 0 | K23: 10 | L23: 2 | M23: 0 | N23: 0 | O23: 12 | P23: 0 | Q23: 0
A24: 2701 | B24: KENWOOD K-8 CENTER | C24: 63 | D24: 0 | E24: 0 | F24: 9 | G24: 32 | H24: 21 | I24: 1 | J24: 6 | K24: 2 | L24: 54 | M24: 1 | N24: 0 | O24: 26 | P24: 3 | Q24: 1
A25: 2741 | B25: KEY BISCAYNE K-8 CENTER | C25: 66 | D25: 0 | E25: 1 | F25: 9 | G25: 36 | H25: 17 | I25: 3 | J25: 19 | K25: 0 | L25: 45 | M25: 2 | N25: 0 | O25: 2 | P25: 4 | Q25: 6
A26: 2881 | B26: LEEWOOD K-8 CENTER | C26: 37 | D26: 1 | E26: 5 | F26: 11 | G26: 13 | H26: 6 | I26: 1 | J26: 10 | K26: 1 | L26: 24 | M26: 1 | N26: 0 | O26: 9 | P26: 0 | Q26: 3
A27: 2901 | B27: LEISURE CITY K-8 CENTER | C27: 35 | D27: 0 | E27: 1 | F27: 18 | G27: 8 | H27: 7 | I27: 1 | J27: 0 | K27: 5 | L27: 30 | M27: 0 | N27: 0 | O27: 34 | P27: 3 | Q27: 4
A28: 2911 | B28: LINDA LENTIN K-8 CENTER | C28: 30 | D28: 0 | E28: 1 | F28: 14 | G28: 8 | H28: 6 | I28: 1 | J28: 0 | K28: 27 | L28: 3 | M28: 0 | N28: 0 | O28: 28 | P28: 2 | Q28: 0
A29: 3029 | B29: DORAL ACADEMY OF TECHNOLOGY | C29: 91 | D29: 0 | E29: 0 | F29: 9 | G29: 37 | H29: 44 | I29: 1 | J29: 5 | K29: 0 | L29: 82 | M29: 3 | N29: 1 | O29: 39 | P29: 2 | Q29: 0
A30: 3032 | B30: PALM GLADES PREPATORY ACADEMY | C30: 69 | D30: 2 | E30: 31 | F30: 27 | G30: 7 | H30: 1 | I30: 1 | J30: 1 | K30: 13 | L30: 55 | M30: 0 | N30: 0 | O30: 57 | P30: 3 | Q30: 5
A31: 3101 | B31: FRANK C. MARTIN K-8 CENTER | C31: 90 | D31: 0 | E31: 2 | F31: 12 | G31: 45 | H31: 30 | I31: 1 | J31: 6 | K31: 33 | L31: 36 | M31: 12 | N31: 0 | O31: 41 | P31: 0 | Q31: 1
A32: 3191 | B32: ADA MERRITT K-8 CENTER | C32: 84 | D32: 0 | E32: 3 | F32: 19 | G32: 30 | H32: 30 | I32: 2 | J32: 23 | K32: 8 | L32: 52 | M32: 1 | N32: 0 | O32: 24 | P32: 1 | Q32: 0
A33: 3281 | B33: MIAMI LAKES K-8 CENTER | C33: 70 | D33: 0 | E33: 0 | F33: 36 | G33: 26 | H33: 2 | I33: 6 | J33: 5 | K33: 1 | L33: 64 | M33: 0 | N33: 0 | O33: 39 | P33: 1 | Q33: 3
A34: 3421 | B34: M.A. MILAM K-8 CENTER | C34: 51 | D34: 0 | E34: 0 | F34: 15 | G34: 16 | H34: 20 | I34: 0 | J34: 0 | K34: 0 | L34: 50 | M34: 1 | N34: 0 | O34: 45 | P34: 11 | Q34: 0
A35: 3610 | B35: KEYS GATE CHARTER SCHOOL | C35: 151 | D35: 5 | E35: 21 | F35: 67 | G35: 45 | H35: 8 | I35: 5 | J35: 31 | K35: 18 | L35: 96 | M35: 6 | N35: 0 | O35: 104 | P35: 11 | Q35: 4
A36: 3621 | B36: COCONUT PALM K-8 ACADEMY | C36: 45 | D36: 0 | E36: 0 | F36: 33 | G36: 8 | H36: 4 | I36: 0 | J36: 3 | K36: 21 | L36: 19 | M36: 1 | N36: 0 | O36: 41 | P36: 4 | Q36: 3
A37: 3821 | B37: NORTH COUNTY K-8 CENTER | C37: 14 | D37: 0 | E37: 0 | F37: 7 | G37: 5 | H37: 2 | I37: 0 | J37: 0 | K37: 14 | L37: 0 | M37: 0 | N37: 0 | O37: 14 | P37: 0 | Q37: 0
A38: 4031 | B38: GATEWAY ENVIRONMENTAL K-8 | C38: 38 | D38: 0 | E38: 0 | F38: 12 | G38: 18 | H38: 6 | I38: 2 | J38: 3 | K38: 10 | L38: 24 | M38: 1 | N38: 0 | O38: 29 | P38: 1 | Q38: 1
A39: 4391 | B39: IRVING & BEATRICE PESKOE K-8 | C39: 14 | D39: 0 | E39: 2 | F39: 8 | G39: 2 | H39: 1 | I39: 1 | J39: 0 | K39: 2 | L39: 11 | M39: 0 | N39: 0 | O39: 12 | P39: 2 | Q39: 0
A40: 4691 | B40: JANE ROBERTS K-8 CENTER | C40: 32 | D40: 0 | E40: 0 | F40: 0 | G40: 14 | H40: 18 | I40: 0 | J40: 2 | K40: 0 | L40: 29 | M40: 0 | N40: 0 | O40: 14 | P40: 0 | Q40: 3
A41: 5003 | B41: SOUTH DADE MIDDLE SCHOOL | C41: 106 | D41: 0 | E41: 0 | F41: 66 | G41: 25 | H41: 12 | I41: 3 | J41: 17 | K41: 6 | L41: 82 | M41: 1 | N41: 0 | O41: 95 | P41: 7 | Q41: 5
A42: 5005 | B42: DAVID LAWRENCE JR K-8 CENTER | C42: 137 | D42: 0 | E42: 0 | F42: 28 | G42: 54 | H42: 50 | I42: 5 | J42: 31 | K42: 42 | L42: 60 | M42: 4 | N42: 0 | O42: 98 | P42: 7 | Q42: 2
A43: 5006 | B43: EVERGLADES PREPARATORY ACADEMY | C43: 39 | D43: 0 | E43: 1 | F43: 5 | G43: 24 | H43: 9 | I43: 0 | J43: 2 | K43: 8 | L43: 27 | M43: 2 | N43: 0 | O43: 29 | P43: 1 | Q43: 0
A44: 5025 | B44: LINCOLN-MARTI CS LITTLE HAVANA | C44: 21 | D44: 0 | E44: 0 | F44: 12 | G44: 4 | H44: 5 | I44: 0 | J44: 0 | K44: 1 | L44: 20 | M44: 0 | N44: 0 | O44: 21 | P44: 5 | Q44: 0
A45: 5032 | B45: EXCELSIOR CHARTER ACADEMY | C45: 4 | D45: 0 | E45: 0 | F45: 2 | G45: 1 | H45: 1 | I45: 0 | J45: 0 | K45: 1 | L45: 2 | M45: 1 | N45: 0 | O45: 4 | P45: 0 | Q45: 0
A46: 5044 | B46: ACADEMY FOR INT'L EDUCATION CH | C46: 6 | D46: 0 | E46: 1 | F46: 2 | G46: 2 | H46: 0 | I46: 1 | J46: 0 | K46: 1 | L46: 5 | M46: 0 | N46: 0 | O46: 5 | P46: 0 | Q46: 1
A47: 5049 | B47: PINECREST COVE ACADEMY | C47: 23 | D47: 0 | E47: 1 | F47: 5 | G47: 10 | H47: 7 | I47: 0 | J47: 2 | K47: 0 | L47: 21 | M47: 0 | N47: 0 | O47: 14 | P47: 1 | Q47: 1
A48: 5051 | B48: ERNEST R GRAHAM K-8 CENTER | C48: 100 | D48: 0 | E48: 0 | F48: 34 | G48: 36 | H48: 28 | I48: 2 | J48: 5 | K48: 0 | L48: 95 | M48: 0 | N48: 0 | O48: 81 | P48: 14 | Q48: 3
A49: 5101 | B49: JOHN I. SMITH K-8 CENTER | C49: 44 | D49: 0 | E49: 1 | F49: 10 | G49: 22 | H49: 10 | I49: 1 | J49: 5 | K49: 3 | L49: 35 | M49: 1 | N49: 0 | O49: 27 | P49: 0 | Q49: 0
A50: 5141 | B50: HUBERT O. SIBLEY K-8 CENTER | C50: 47 | D50: 0 | E50: 1 | F50: 15 | G50: 16 | H50: 13 | I50: 2 | J50: 1 | K50: 39 | L50: 7 | M50: 0 | N50: 0 | O50: 44 | P50: 10 | Q50: 1
A51: 5241 | B51: SOUTH MIAMI K-8 CENTER | C51: 26 | D51: 0 | E51: 0 | F51: 10 | G51: 13 | H51: 3 | I51: 0 | J51: 3 | K51: 2 | L51: 21 | M51: 0 | N51: 0 | O51: 18 | P51: 0 | Q51: 2
A52: 5671 | B52: VINELAND K-8 CENTER | C52: 50 | D52: 0 | E52: 0 | F52: 8 | G52: 25 | H52: 15 | I52: 2 | J52: 16 | K52: 6 | L52: 27 | M52: 1 | N52: 0 | O52: 11 | P52: 1 | Q52: 1
A53: 5861 | B53: DR H W MACK/W LITTLE RIVER K8 | C53: 20 | D53: 0 | E53: 0 | F53: 12 | G53: 5 | H53: 3 | I53: 0 | J53: 0 | K53: 8 | L53: 12 | M53: 0 | N53: 0 | O53: 19 | P53: 1 | Q53: 1
A54: 5901 | B54: CARRIE P MEEK/WESTVIEW K-8 CTR | C54: 30 | D54: 1 | E54: 2 | F54: 20 | G54: 6 | H54: 1 | I54: 0 | J54: 0 | K54: 28 | L54: 2 | M54: 0 | N54: 0 | O54: 26 | P54: 1 | Q54: 0
A55: 5961 | B55: WINSTON PARK K-8 CENTER | C55: 94 | D55: 0 | E55: 0 | F55: 30 | G55: 44 | H55: 19 | I55: 1 | J55: 7 | K55: 1 | L55: 82 | M55: 3 | N55: 0 | O55: 71 | P55: 4 | Q55: 1
A56: 6001 | B56: HERBERT A. AMMONS MIDDLE | C56: 293 | D56: 0 | E56: 7 | F56: 51 | G56: 119 | H56: 114 | I56: 2 | J56: 58 | K56: 34 | L56: 186 | M56: 8 | N56: 1 | O56: 136 | P56: 0 | Q56: 6
A57: 6004 | B57: SOMERSET ACADEMY MIDDLE | C57: 80 | D57: 2 | E57: 13 | F57: 30 | G57: 23 | H57: 12 | I57: 0 | J57: 6 | K57: 8 | L57: 62 | M57: 3 | N57: 0 | O57: 46 | P57: 2 | Q57: 2
A58: 6005 | B58: RAMZ ACAD MIDDLE MIAMI CAMPUS | C58: 5 | D58: 0 | E58: 0 | F58: 4 | G58: 0 | H58: 0 | I58: 1 | J58: 0 | K58: 0 | L58: 5 | M58: 0 | N58: 0 | O58: 5 | P58: 1 | Q58: 0
A59: 6006 | B59: ARCHIMEDEAN CONSERVATORY | C59: 111 | D59: 1 | E59: 6 | F59: 38 | G59: 37 | H59: 28 | I59: 1 | J59: 17 | K59: 1 | L59: 93 | M59: 0 | N59: 0 | O59: 63 | P59: 4 | Q59: 4
A60: 6009 | B60: MATER ACADEMY EAST MIDDLE | C60: 51 | D60: 0 | E60: 0 | F60: 35 | G60: 15 | H60: 1 | I60: 0 | J60: 0 | K60: 0 | L60: 51 | M60: 0 | N60: 0 | O60: 49 | P60: 3 | Q60: 1
A61: 6010 | B61: FLORIDA INTERNATIONAL ACADEMY | C61: 40 | D61: 0 | E61: 0 | F61: 7 | G61: 24 | H61: 6 | I61: 3 | J61: 1 | K61: 33 | L61: 5 | M61: 1 | N61: 0 | O61: 37 | P61: 4 | Q61: 2
A62: 6011 | B62: ALLAPATTAH MIDDLE | C62: 55 | D62: 0 | E62: 0 | F62: 44 | G62: 11 | H62: 0 | I62: 0 | J62: 0 | K62: 35 | L62: 20 | M62: 0 | N62: 0 | O62: 55 | P62: 5 | Q62: 0
A63: 6012 | B63: MATER ACADEMY CHARTER MIDDLE | C63: 347 | D63: 0 | E63: 2 | F63: 159 | G63: 116 | H63: 69 | I63: 1 | J63: 5 | K63: 6 | L63: 335 | M63: 1 | N63: 0 | O63: 289 | P63: 10 | Q63: 8
A64: 6013 | B64: SOMERSET ACADEMY MIDDLE-SOUTH | C64: 49 | D64: 9 | E64: 17 | F64: 16 | G64: 5 | H64: 2 | I64: 0 | J64: 8 | K64: 4 | L64: 37 | M64: 0 | N64: 0 | O64: 38 | P64: 4 | Q64: 2
A65: 6014 | B65: IMATER ACADEMY MIDDLE SCHOOL | C65: 92 | D65: 3 | E65: 5 | F65: 39 | G65: 25 | H65: 13 | I65: 7 | J65: 3 | K65: 3 | L65: 86 | M65: 0 | N65: 0 | O65: 80 | P65: 7 | Q65: 9
A66: 6015 | B66: SPORTS LEADERSHIP AND MGMT CMS | C66: 154 | D66: 0 | E66: 2 | F66: 76 | G66: 57 | H66: 10 | I66: 9 | J66: 9 | K66: 19 | L66: 123 | M66: 3 | N66: 0 | O66: 123 | P66: 6 | Q66: 4
A67: 6020 | B67: ASPIRA RAUL A. MARTINEZ CHTR | C67: 76 | D67: 0 | E67: 0 | F67: 54 | G67: 13 | H67: 8 | I67: 1 | J67: 1 | K67: 59 | L67: 16 | M67: 0 | N67: 0 | O67: 75 | P67: 1 | Q67: 1
A68: 6021 | B68: ARVIDA MIDDLE SCHOOL | C68: 180 | D68: 0 | E68: 1 | F68: 21 | G68: 75 | H68: 82 | I68: 1 | J68: 43 | K68: 7 | L68: 122 | M68: 5 | N68: 1 | O68: 89 | P68: 2 | Q68: 2
A69: 6022 | B69: PINECREST ACADEMY CHARTER MIDD | C69: 97 | D69: 0 | E69: 0 | F69: 7 | G69: 58 | H69: 30 | I69: 2 | J69: 3 | K69: 0 | L69: 94 | M69: 0 | N69: 0 | O69: 48 | P69: 1 | Q69: 1
A70: 6023 | B70: ANDOVER MIDDLE SCHOOL | C70: 156 | D70: 2 | E70: 9 | F70: 84 | G70: 44 | H70: 13 | I70: 4 | J70: 3 | K70: 138 | L70: 14 | M70: 1 | N70: 0 | O70: 142 | P70: 9 | Q70: 2
A71: 6028 | B71: RENAISSANCE MIDDLE CHARTER | C71: 61 | D71: 0 | E71: 1 | F71: 9 | G71: 29 | H71: 19 | I71: 3 | J71: 8 | K71: 1 | L71: 51 | M71: 1 | N71: 0 | O71: 20 | P71: 7 | Q71: 2
A72: 6030 | B72: DORAL ACADEMY CHARTER MIDDLE | C72: 218 | D72: 0 | E72: 1 | F72: 34 | G72: 96 | H72: 82 | I72: 5 | J72: 17 | K72: 1 | L72: 194 | M72: 5 | N72: 0 | O72: 103 | P72: 7 | Q72: 1
A73: 6031 | B73: BROWNSVILLE MIDDLE | C73: 49 | D73: 0 | E73: 0 | F73: 34 | G73: 10 | H73: 1 | I73: 4 | J73: 0 | K73: 39 | L73: 10 | M73: 0 | N73: 0 | O73: 45 | P73: 0 | Q73: 4
A74: 6033 | B74: MATER ACADEMY LAKES MIDDLE | C74: 92 | D74: 0 | E74: 2 | F74: 13 | G74: 30 | H74: 47 | I74: 0 | J74: 4 | K74: 2 | L74: 86 | M74: 0 | N74: 0 | O74: 69 | P74: 0 | Q74: 1
A75: 6040 | B75: DOCTORS CHARTER/MIAMI SHORES | C75: 89 | D75: 5 | E75: 16 | F75: 27 | G75: 20 | H75: 8 | I75: 13 | J75: 15 | K75: 46 | L75: 21 | M75: 6 | N75: 0 | O75: 37 | P75: 7 | Q75: 5
A76: 6041 | B76: PAUL W. BELL MIDDLE | C76: 35 | D76: 0 | E76: 1 | F76: 14 | G76: 12 | H76: 8 | I76: 0 | J76: 1 | K76: 0 | L76: 33 | M76: 1 | N76: 0 | O76: 31 | P76: 8 | Q76: 1
A77: 6042 | B77: MATER GARDENS ACADEMY MIDDLE | C77: 51 | D77: 0 | E77: 5 | F77: 14 | G77: 19 | H77: 13 | I77: 0 | J77: 6 | K77: 2 | L77: 43 | M77: 0 | N77: 0 | O77: 19 | P77: 0 | Q77: 1
A78: 6045 | B78: INTL. STUDIES CHARTER MIDDLE | C78: 98 | D78: 4 | E78: 5 | F78: 14 | G78: 42 | H78: 19 | I78: 14 | J78: 29 | K78: 3 | L78: 66 | M78: 0 | N78: 0 | O78: 60 | P78: 28 | Q78: 0
A79: 6047 | B79: MATER ACADEMY MIDDLE-INTL STUD | C79: 16 | D79: 0 | E79: 0 | F79: 10 | G79: 3 | H79: 3 | I79: 0 | J79: 0 | K79: 4 | L79: 11 | M79: 1 | N79: 0 | O79: 15 | P79: 1 | Q79: 0
A80: 6048 | B80: MIAMI COMMUNITY CHARTER MIDDLE | C80: 77 | D80: 3 | E80: 19 | F80: 36 | G80: 14 | H80: 4 | I80: 1 | J80: 2 | K80: 10 | L80: 65 | M80: 0 | N80: 0 | O80: 76 | P80: 5 | Q80: 2
A81: 6049 | B81: RIVER CITIES COMMUNITY CHARTER | C81: 21 | D81: 0 | E81: 8 | F81: 13 | G81: 0 | H81: 0 | I81: 0 | J81: 0 | K81: 5 | L81: 16 | M81: 0 | N81: 0 | O81: 17 | P81: 3 | Q81: 2
A82: 6051 | B82: CAROL CITY MIDDLE | C82: 48 | D82: 1 | E82: 7 | F82: 33 | G82: 4 | H82: 0 | I82: 3 | J82: 0 | K82: 45 | L82: 2 | M82: 0 | N82: 0 | O82: 46 | P82: 0 | Q82: 2
A83: 6052 | B83: ZELDA GLAZER MIDDLE SCHOOL | C83: 270 | D83: 1 | E83: 2 | F83: 141 | G83: 87 | H83: 32 | I83: 7 | J83: 13 | K83: 0 | L83: 255 | M83: 1 | N83: 1 | O83: 208 | P83: 22 | Q83: 20
A84: 6053 | B84: SOMERSET ACAD MIDDLE (S-MIAMI) | C84: 32 | D84: 0 | E84: 1 | F84: 14 | G84: 11 | H84: 6 | I84: 0 | J84: 8 | K84: 1 | L84: 23 | M84: 0 | N84: 0 | O84: 3 | P84: 0 | Q84: 0
A85: 6060 | B85: ASPIRA SOUTH YOUTH LEADERSHIP | C85: 59 | D85: 0 | E85: 0 | F85: 30 | G85: 24 | H85: 5 | I85: 0 | J85: 0 | K85: 6 | L85: 53 | M85: 0 | N85: 0 | O85: 58 | P85: 8 | Q85: 2
A86: 6061 | B86: CAMPBELL DRIVE MIDDLE | C86: 47 | D86: 0 | E86: 0 | F86: 26 | G86: 17 | H86: 2 | I86: 2 | J86: 0 | K86: 26 | L86: 21 | M86: 0 | N86: 0 | O86: 46 | P86: 3 | Q86: 8
A87: 6070 | B87: ASPIRA EUGENIO MARIA DE HOSTOS | C87: 58 | D87: 1 | E87: 0 | F87: 32 | G87: 20 | H87: 4 | I87: 1 | J87: 3 | K87: 21 | L87: 34 | M87: 0 | N87: 0 | O87: 56 | P87: 0 | Q87: 3
A88: 6071 | B88: GEORGE WASHINGTON CARVER | C88: 308 | D88: 0 | E88: 7 | F88: 60 | G88: 117 | H88: 122 | I88: 2 | J88: 102 | K88: 11 | L88: 184 | M88: 9 | N88: 0 | O88: 77 | P88: 11 | Q88: 2
A89: 6081 | B89: CUTLER BAY ACAD OF ADV STUDIES | C89: 175 | D89: 12 | E89: 23 | F89: 85 | G89: 35 | H89: 11 | I89: 9 | J89: 27 | K89: 43 | L89: 96 | M89: 4 | N89: 1 | O89: 129 | P89: 16 | Q89: 14
A90: 6091 | B90: CITRUS GROVE MIDDLE SCHOOL | C90: 83 | D90: 4 | E90: 10 | F90: 47 | G90: 16 | H90: 5 | I90: 1 | J90: 1 | K90: 5 | L90: 76 | M90: 1 | N90: 0 | O90: 82 | P90: 9 | Q90: 5
A91: 6111 | B91: CUTLER BAY ACAD - CUTLER RIDGE | C91: 90 | D91: 4 | E91: 24 | F91: 32 | G91: 22 | H91: 5 | I91: 3 | J91: 5 | K91: 27 | L91: 57 | M91: 0 | N91: 1 | O91: 83 | P91: 7 | Q91: 5
A92: 6121 | B92: RUBEN DARIO MIDDLE | C92: 75 | D92: 0 | E92: 0 | F92: 31 | G92: 29 | H92: 12 | I92: 3 | J92: 3 | K92: 4 | L92: 68 | M92: 0 | N92: 0 | O92: 65 | P92: 7 | Q92: 3
A93: 6141 | B93: CHARLES R. DREW MIDDLE | C93: 35 | D93: 0 | E93: 0 | F93: 25 | G93: 9 | H93: 1 | I93: 0 | J93: 1 | K93: 31 | L93: 2 | M93: 0 | N93: 0 | O93: 33 | P93: 0 | Q93: 0
A94: 6161 | B94: LAWTON CHILES MIDDLE SCHOOL | C94: 102 | D94: 1 | E94: 9 | F94: 53 | G94: 22 | H94: 11 | I94: 6 | J94: 7 | K94: 39 | L94: 56 | M94: 0 | N94: 0 | O94: 83 | P94: 3 | Q94: 3
A95: 6171 | B95: HENRY H. FILER MIDDLE | C95: 158 | D95: 0 | E95: 2 | F95: 93 | G95: 40 | H95: 22 | I95: 1 | J95: 1 | K95: 3 | L95: 154 | M95: 0 | N95: 0 | O95: 148 | P95: 28 | Q95: 2
A96: 6211 | B96: GLADES MIDDLE | C96: 236 | D96: 0 | E96: 4 | F96: 98 | G96: 83 | H96: 45 | I96: 6 | J96: 27 | K96: 2 | L96: 199 | M96: 5 | N96: 0 | O96: 142 | P96: 8 | Q96: 11
A97: 6221 | B97: HAMMOCKS MIDDLE | C97: 241 | D97: 0 | E97: 2 | F97: 88 | G97: 91 | H97: 56 | I97: 4 | J97: 24 | K97: 11 | L97: 198 | M97: 4 | N97: 0 | O97: 178 | P97: 9 | Q97: 17
A98: 6231 | B98: HIALEAH MIDDLE | C98: 95 | D98: 0 | E98: 0 | F98: 61 | G98: 25 | H98: 8 | I98: 1 | J98: 4 | K98: 5 | L98: 86 | M98: 0 | N98: 0 | O98: 84 | P98: 13 | Q98: 6
A99: 6241 | B99: HIGHLAND OAKS MIDDLE | C99: 260 | D99: 0 | E99: 7 | F99: 102 | G99: 106 | H99: 41 | I99: 4 | J99: 73 | K99: 89 | L99: 91 | M99: 4 | N99: 0 | O99: 160 | P99: 14 | Q99: 4
A100: 6251 | B100: HOMESTEAD MIDDLE | C100: 46 | D100: 2 | E100: 5 | F100: 32 | G100: 6 | H100: 1 | I100: 0 | J100: 2 | K100: 15 | L100: 28 | M100: 1 | N100: 0 | O100: 45 | P100: 1 | Q100: 1
A101: 6281 | B101: THOMAS JEFFERSON MIDDLE | C101: 47 | D101: 0 | E101: 0 | F101: 27 | G101: 11 | H101: 7 | I101: 2 | J101: 2 | K101: 43 | L101: 2 | M101: 0 | N101: 0 | O101: 44 | P101: 8 | Q101: 1
A102: 6301 | B102: JOHN F. KENNEDY MIDDLE | C102: 182 | D102: 0 | E102: 12 | F102: 72 | G102: 55 | H102: 38 | I102: 5 | J102: 4 | K102: 117 | L102: 51 | M102: 10 | N102: 0 | O102: 152 | P102: 10 | Q102: 1
A103: 6331 | B103: KINLOCH PARK MIDDLE | C103: 92 | D103: 0 | E103: 2 | F103: 17 | G103: 50 | H103: 22 | I103: 1 | J103: 0 | K103: 0 | L103: 92 | M103: 0 | N103: 0 | O103: 80 | P103: 13 | Q103: 2
A104: 6351 | B104: LAKE STEVENS MIDDLE | C104: 101 | D104: 0 | E104: 1 | F104: 61 | G104: 28 | H104: 10 | I104: 1 | J104: 1 | K104: 41 | L104: 59 | M104: 0 | N104: 0 | O104: 95 | P104: 7 | Q104: 2
A105: 6361 | B105: JOSE DE DIEGO MIDDLE SCHOOL | C105: 60 | D105: 0 | E105: 0 | F105: 42 | G105: 17 | H105: 0 | I105: 1 | J105: 0 | K105: 27 | L105: 33 | M105: 0 | N105: 0 | O105: 60 | P105: 5 | Q105: 2
A106: 6391 | B106: MADISON MIDDLE SCHOOL | C106: 38 | D106: 0 | E106: 0 | F106: 28 | G106: 8 | H106: 0 | I106: 2 | J106: 0 | K106: 30 | L106: 8 | M106: 0 | N106: 0 | O106: 37 | P106: 5 | Q106: 2
A107: 6411 | B107: HORACE MANN MIDDLE | C107: 82 | D107: 1 | E107: 1 | F107: 21 | G107: 47 | H107: 12 | I107: 0 | J107: 1 | K107: 67 | L107: 13 | M107: 1 | N107: 0 | O107: 77 | P107: 4 | Q107: 0
A108: 6441 | B108: HOWARD D. MCMILLAN MIDDLE | C108: 190 | D108: 0 | E108: 0 | F108: 62 | G108: 78 | H108: 47 | I108: 3 | J108: 18 | K108: 4 | L108: 168 | M108: 0 | N108: 0 | O108: 146 | P108: 18 | Q108: 14
A109: 6481 | B109: MIAMI EDISON MIDDLE | C109: 49 | D109: 0 | E109: 1 | F109: 24 | G109: 18 | H109: 6 | I109: 0 | J109: 1 | K109: 43 | L109: 5 | M109: 0 | N109: 0 | O109: 49 | P109: 7 | Q109: 2
A110: 6501 | B110: MIAMI LAKES MIDDLE | C110: 176 | D110: 0 | E110: 3 | F110: 32 | G110: 86 | H110: 54 | I110: 1 | J110: 8 | K110: 25 | L110: 140 | M110: 2 | N110: 0 | O110: 128 | P110: 7 | Q110: 2
A111: 6521 | B111: MIAMI SPRINGS MIDDLE | C111: 174 | D111: 0 | E111: 3 | F111: 94 | G111: 51 | H111: 24 | I111: 2 | J111: 5 | K111: 22 | L111: 145 | M111: 2 | N111: 0 | O111: 151 | P111: 16 | Q111: 3
A112: 6541 | B112: NAUTILUS MIDDLE | C112: 199 | D112: 0 | E112: 4 | F112: 70 | G112: 80 | H112: 36 | I112: 9 | J112: 54 | K112: 15 | L112: 120 | M112: 9 | N112: 0 | O112: 131 | P112: 16 | Q112: 7
A113: 6571 | B113: NORLAND MIDDLE | C113: 98 | D113: 0 | E113: 11 | F113: 47 | G113: 28 | H113: 11 | I113: 1 | J113: 0 | K113: 93 | L113: 4 | M113: 1 | N113: 0 | O113: 93 | P113: 0 | Q113: 0
A114: 6591 | B114: NORTH DADE MIDDLE | C114: 97 | D114: 0 | E114: 2 | F114: 49 | G114: 35 | H114: 7 | I114: 4 | J114: 1 | K114: 82 | L114: 14 | M114: 0 | N114: 0 | O114: 91 | P114: 7 | Q114: 0
A115: 6611 | B115: COUNTRY CLUB MIDDLE SCHOOL | C115: 172 | D115: 1 | E115: 1 | F115: 101 | G115: 57 | H115: 9 | I115: 3 | J115: 4 | K115: 44 | L115: 119 | M115: 3 | N115: 0 | O115: 147 | P115: 4 | Q115: 6
A116: 6631 | B116: NORTH MIAMI MIDDLE | C116: 131 | D116: 0 | E116: 1 | F116: 77 | G116: 36 | H116: 13 | I116: 4 | J116: 0 | K116: 116 | L116: 12 | M116: 3 | N116: 0 | O116: 124 | P116: 23 | Q116: 0
A117: 6681 | B117: PALM SPRINGS MIDDLE | C117: 182 | D117: 0 | E117: 3 | F117: 90 | G117: 68 | H117: 19 | I117: 2 | J117: 4 | K117: 1 | L117: 174 | M117: 2 | N117: 0 | O117: 162 | P117: 23 | Q117: 8
A118: 6701 | B118: PALMETTO MIDDLE | C118: 249 | D118: 0 | E118: 4 | F118: 48 | G118: 97 | H118: 90 | I118: 10 | J118: 108 | K118: 15 | L118: 111 | M118: 12 | N118: 0 | O118: 40 | P118: 4 | Q118: 6
A119: 6721 | B119: PARKWAY MIDDLE | C119: 32 | D119: 0 | E119: 4 | F119: 22 | G119: 5 | H119: 0 | I119: 1 | J119: 0 | K119: 29 | L119: 3 | M119: 0 | N119: 0 | O119: 31 | P119: 0 | Q119: 1
A120: 6741 | B120: PONCE DE LEON MIDDLE | C120: 243 | D120: 4 | E120: 21 | F120: 79 | G120: 94 | H120: 40 | I120: 5 | J120: 33 | K120: 19 | L120: 187 | M120: 2 | N120: 1 | O120: 185 | P120: 20 | Q120: 9
A121: 6751 | B121: HIALEAH GARDENS MIDDLE SCHOOL | C121: 611 | D121: 5 | E121: 82 | F121: 265 | G121: 172 | H121: 70 | I121: 17 | J121: 3 | K121: 2 | L121: 604 | M121: 2 | N121: 0 | O121: 531 | P121: 128 | Q121: 16
A122: 6761 | B122: REDLAND MIDDLE | C122: 51 | D122: 0 | E122: 2 | F122: 35 | G122: 12 | H122: 1 | I122: 1 | J122: 3 | K122: 12 | L122: 35 | M122: 0 | N122: 0 | O122: 45 | P122: 4 | Q122: 3
A123: 6771 | B123: JORGE MAS CANOSA MIDDLE | C123: 424 | D123: 0 | E123: 2 | F123: 107 | G123: 213 | H123: 96 | I123: 6 | J123: 46 | K123: 16 | L123: 341 | M123: 15 | N123: 0 | O123: 303 | P123: 13 | Q123: 17
A124: 6781 | B124: RICHMOND HEIGHTS MIDDLE | C124: 84 | D124: 1 | E124: 5 | F124: 50 | G124: 24 | H124: 2 | I124: 2 | J124: 7 | K124: 38 | L124: 38 | M124: 0 | N124: 0 | O124: 69 | P124: 7 | Q124: 4
A125: 6801 | B125: RIVIERA MIDDLE | C125: 108 | D125: 0 | E125: 0 | F125: 35 | G125: 53 | H125: 19 | I125: 1 | J125: 8 | K125: 2 | L125: 95 | M125: 2 | N125: 1 | O125: 89 | P125: 11 | Q125: 6
A126: 6821 | B126: ROCKWAY MIDDLE | C126: 214 | D126: 1 | E126: 8 | F126: 97 | G126: 72 | H126: 34 | I126: 2 | J126: 4 | K126: 11 | L126: 198 | M126: 1 | N126: 0 | O126: 176 | P126: 28 | Q126: 9
A127: 6841 | B127: SHENANDOAH MIDDLE | C127: 178 | D127: 0 | E127: 0 | F127: 83 | G127: 68 | H127: 26 | I127: 1 | J127: 8 | K127: 9 | L127: 161 | M127: 0 | N127: 0 | O127: 163 | P127: 9 | Q127: 3
A128: 6861 | B128: SOUTHWOOD MIDDLE | C128: 301 | D128: 0 | E128: 3 | F128: 80 | G128: 96 | H128: 113 | I128: 9 | J128: 98 | K128: 42 | L128: 152 | M128: 7 | N128: 0 | O128: 123 | P128: 0 | Q128: 8
A129: 6881 | B129: SOUTH MIAMI MIDDLE SCHOOL | C129: 161 | D129: 0 | E129: 0 | F129: 13 | G129: 86 | H129: 60 | I129: 2 | J129: 24 | K129: 7 | L129: 119 | M129: 8 | N129: 1 | O129: 81 | P129: 4 | Q129: 2
A130: 6901 | B130: W. R. THOMAS MIDDLE | C130: 280 | D130: 0 | E130: 0 | F130: 62 | G130: 115 | H130: 103 | I130: 0 | J130: 8 | K130: 1 | L130: 267 | M130: 3 | N130: 0 | O130: 201 | P130: 11 | Q130: 17
A131: 6921 | B131: LAMAR LOUISE CURRY MIDDLE SCH | C131: 285 | D131: 0 | E131: 12 | F131: 103 | G131: 90 | H131: 75 | I131: 5 | J131: 16 | K131: 6 | L131: 248 | M131: 15 | N131: 0 | O131: 201 | P131: 12 | Q131: 6
A132: 6961 | B132: WEST MIAMI MIDDLE | C132: 74 | D132: 0 | E132: 0 | F132: 51 | G132: 18 | H132: 5 | I132: 0 | J132: 2 | K132: 0 | L132: 72 | M132: 0 | N132: 0 | O132: 67 | P132: 6 | Q132: 2
A133: 7001 | B133: MIAMI-DADE ONLINE ACADEMY 7001 | C133: 10 | D133: 3 | E133: 0 | F133: 2 | G133: 2 | H133: 2 | I133: 1 | J133: 2 | K133: 2 | L133: 5 | M133: 1 | N133: 0 | O133: 4 | P133: 0 | Q133: 1
A134: 7007 | B134: INTL. STUDIES CHARTER SENIOR | C134: 38 | D134: 3 | E134: 8 | F134: 12 | G134: 4 | H134: 0 | I134: 11 | J134: 8 | K134: 0 | L134: 30 | M134: 0 | N134: 0 | O134: 27 | P134: 12 | Q134: 3
A135: 7009 | B135: DORAL PERFORMING ARTS ACADEMY | C135: 16 | D135: 0 | E135: 3 | F135: 6 | G135: 4 | H135: 2 | I135: 1 | J135: 0 | K135: 0 | L135: 16 | M135: 0 | N135: 0 | O135: 7 | P135: 0 | Q135: 0
A136: 7011 | B136: AMERICAN SENIOR | C136: 451 | D136: 125 | E136: 129 | F136: 112 | G136: 30 | H136: 2 | I136: 53 | J136: 11 | K136: 112 | L136: 324 | M136: 4 | N136: 0 | O136: 390 | P136: 97 | Q136: 47
A137: 7014 | B137: MATER PERFORMING ARTS ACADEMY | C137: 10 | D137: 1 | E137: 1 | F137: 7 | G137: 1 | H137: 0 | I137: 0 | J137: 0 | K137: 0 | L137: 10 | M137: 0 | N137: 0 | O137: 7 | P137: 1 | Q137: 1
A138: 7015 | B138: STELLAR LEADERSHIP ACADEMY | C138: 153 | D138: 2 | E138: 0 | F138: 0 | G138: 0 | H138: 0 | I138: 151 | J138: 1 | K138: 134 | L138: 18 | M138: 0 | N138: 0 | O138: 131 | P138: 2 | Q138: 31
A139: 7016 | B139: SPORTS LEADERSHIP OF MIAMI CHS | C139: 89 | D139: 14 | E139: 27 | F139: 18 | G139: 5 | H139: 0 | I139: 25 | J139: 6 | K139: 2 | L139: 79 | M139: 2 | N139: 0 | O139: 79 | P139: 10 | Q139: 5
A140: 7018 | B140: MATER ACADEMY LAKES HIGH SCH | C140: 197 | D140: 35 | E140: 58 | F140: 58 | G140: 19 | H140: 2 | I140: 25 | J140: 6 | K140: 1 | L140: 188 | M140: 1 | N140: 0 | O140: 145 | P140: 20 | Q140: 5
A141: 7020 | B141: DORAL ACADEMY HIGH SCHOOL | C141: 233 | D141: 25 | E141: 58 | F141: 98 | G141: 17 | H141: 3 | I141: 32 | J141: 15 | K141: 2 | L141: 216 | M141: 0 | N141: 0 | O141: 127 | P141: 44 | Q141: 10
A142: 7022 | B142: ACADEMY OF ARTS AND MINDS | C142: 61 | D142: 7 | E142: 11 | F142: 15 | G142: 5 | H142: 0 | I142: 23 | J142: 4 | K142: 3 | L142: 54 | M142: 0 | N142: 0 | O142: 35 | P142: 6 | Q142: 4
A143: 7024 | B143: MATER ACADEMY HIGH-INTL STUDIE | C143: 6 | D143: 3 | E143: 3 | F143: 0 | G143: 0 | H143: 0 | I143: 0 | J143: 0 | K143: 0 | L143: 6 | M143: 0 | N143: 0 | O143: 6 | P143: 3 | Q143: 0
A144: 7025 | B144: MATER ACAD HIGH (MIAMI BEACH) | C144: 18 | D144: 4 | E144: 5 | F144: 6 | G144: 2 | H144: 0 | I144: 1 | J144: 2 | K144: 0 | L144: 16 | M144: 0 | N144: 0 | O144: 15 | P144: 6 | Q144: 1
A145: 7029 | B145: TERRA ENVIRONMENTAL RESEARCH | C145: 108 | D145: 3 | E145: 13 | F145: 44 | G145: 26 | H145: 3 | I145: 19 | J145: 21 | K145: 6 | L145: 80 | M145: 1 | N145: 0 | O145: 45 | P145: 9 | Q145: 11
A146: 7030 | B146: INTEGRATED ACADEMICS (SIATECH) | C146: 29 | D146: 0 | E146: 0 | F146: 0 | G146: 0 | H146: 0 | I146: 29 | J146: 0 | K146: 20 | L146: 8 | M146: 1 | N146: 0 | O146: 10 | P146: 6 | Q146: 7
A147: 7032 | B147: PALM GLADES PREP HIGH SCHOOL | C147: 103 | D147: 23 | E147: 35 | F147: 23 | G147: 5 | H147: 0 | I147: 17 | J147: 4 | K147: 21 | L147: 76 | M147: 2 | N147: 0 | O147: 84 | P147: 4 | Q147: 10
A148: 7033 | B148: LAW ENFORCEMENT OFFICERS HS | C148: 51 | D148: 11 | E148: 24 | F148: 11 | G148: 2 | H148: 0 | I148: 3 | J148: 3 | K148: 12 | L148: 36 | M148: 0 | N148: 0 | O148: 43 | P148: 3 | Q148: 6
A149: 7034 | B149: SOMERSET ACAD HIGH SOUTH-HMSTD | C149: 8 | D149: 3 | E149: 3 | F149: 0 | G149: 0 | H149: 0 | I149: 2 | J149: 1 | K149: 1 | L149: 6 | M149: 0 | N149: 0 | O149: 5 | P149: 1 | Q149: 1
A150: 7036 | B150: LAWRENCE ACADEMY SENIOR | C150: 24 | D150: 9 | E150: 4 | F150: 3 | G150: 1 | H150: 0 | I150: 7 | J150: 0 | K150: 11 | L150: 13 | M150: 0 | N150: 0 | O150: 22 | P150: 4 | Q150: 2
A151: 7037 | B151: MATER ACADEMY EAST HIGH SCHOOL | C151: 86 | D151: 18 | E151: 28 | F151: 22 | G151: 3 | H151: 1 | I151: 14 | J151: 0 | K151: 2 | L151: 84 | M151: 0 | N151: 0 | O151: 83 | P151: 14 | Q151: 4
A152: 7042 | B152: SOMERSET ACADEMY CHARTER HIGH | C152: 69 | D152: 7 | E152: 27 | F152: 26 | G152: 4 | H152: 0 | I152: 5 | J152: 7 | K152: 6 | L152: 55 | M152: 0 | N152: 0 | O152: 59 | P152: 5 | Q152: 2
A153: 7048 | B153: ALONZO & TRACY MOURNING SH | C153: 294 | D153: 67 | E153: 69 | F153: 85 | G153: 30 | H153: 4 | I153: 39 | J153: 62 | K153: 67 | L153: 164 | M153: 1 | N153: 0 | O153: 204 | P153: 66 | Q153: 22
A154: 7049 | B154: WESTLAND HIALEAH SENIOR HIGH | C154: 342 | D154: 157 | E154: 72 | F154: 54 | G154: 7 | H154: 0 | I154: 52 | J154: 4 | K154: 3 | L154: 335 | M154: 0 | N154: 0 | O154: 310 | P154: 175 | Q154: 38
A155: 7050 | B155: KEYS GATE CHARTER HIGH SCHL | C155: 160 | D155: 39 | E155: 48 | F155: 48 | G155: 5 | H155: 1 | I155: 19 | J155: 27 | K155: 29 | L155: 102 | M155: 2 | N155: 0 | O155: 112 | P155: 14 | Q155: 21
A156: 7051 | B156: G. HOLMES BRADDOCK SENIOR HIGH | C156: 559 | D156: 174 | E156: 156 | F156: 138 | G156: 23 | H156: 2 | I156: 66 | J156: 20 | K156: 5 | L156: 530 | M156: 1 | N156: 2 | O156: 488 | P156: 120 | Q156: 108
A157: 7053 | B157: PINECREST ACADEMY CHARTER HIGH | C157: 81 | D157: 13 | E157: 20 | F157: 33 | G157: 2 | H157: 1 | I157: 12 | J157: 1 | K157: 1 | L157: 79 | M157: 0 | N157: 0 | O157: 66 | P157: 5 | Q157: 8
A158: 7055 | B158: YOUNG WOMEN'S PREPARATORY ACAD | C158: 93 | D158: 3 | E158: 9 | F158: 25 | G158: 32 | H158: 22 | I158: 2 | J158: 16 | K158: 20 | L158: 56 | M158: 1 | N158: 0 | O158: 58 | P158: 3 | Q158: 4
A159: 7056 | B159: YOUNG MENS PREPARATORY ACADEMY | C159: 36 | D159: 4 | E159: 4 | F159: 15 | G159: 5 | H159: 3 | I159: 5 | J159: 0 | K159: 22 | L159: 14 | M159: 0 | N159: 0 | O159: 33 | P159: 6 | Q159: 5
A160: 7058 | B160: MIAMI COMMUNITY CH HIGH SCHOOL | C160: 50 | D160: 18 | E160: 14 | F160: 6 | G160: 0 | H160: 0 | I160: 12 | J160: 2 | K160: 6 | L160: 42 | M160: 0 | N160: 0 | O160: 43 | P160: 18 | Q160: 10
A161: 7059 | B161: MIAMI ARTS CHARTER | C161: 115 | D161: 4 | E161: 14 | F161: 35 | G161: 35 | H161: 18 | I161: 9 | J161: 25 | K161: 27 | L161: 58 | M161: 3 | N161: 0 | O161: 31 | P161: 2 | Q161: 3
A162: 7060 | B162: EVERGLADES PREP ACADEMY HIGH | C162: 144 | D162: 37 | E162: 36 | F162: 45 | G162: 9 | H162: 1 | I162: 16 | J162: 9 | K162: 16 | L162: 118 | M162: 1 | N162: 0 | O162: 125 | P162: 20 | Q162: 8
A163: 7062 | B163: MAVERICKS HIGH OF NORTH M-DADE | C163: 25 | D163: 1 | E163: 1 | F163: 0 | G163: 0 | H163: 0 | I163: 23 | J163: 0 | K163: 20 | L163: 5 | M163: 0 | N163: 0 | O163: 17 | P163: 0 | Q163: 1
A164: 7065 | B164: MAVERICKS HIGH OF SOUTH M-DADE | C164: 90 | D164: 2 | E164: 0 | F164: 0 | G164: 0 | H164: 0 | I164: 88 | J164: 7 | K164: 42 | L164: 40 | M164: 0 | N164: 0 | O164: 85 | P164: 1 | Q164: 14
A165: 7066 | B165: LBA CONSTR & BUS MGMT ACAD | C165: 56 | D165: 21 | E165: 10 | F165: 13 | G165: 5 | H165: 1 | I165: 6 | J165: 3 | K165: 0 | L165: 53 | M165: 0 | N165: 0 | O165: 47 | P165: 17 | Q165: 11
A166: 7067 | B166: GREEN SPRINGS HIGH SCHOOL | C166: 85 | D166: 3 | E166: 1 | F166: 0 | G166: 0 | H166: 0 | I166: 81 | J166: 4 | K166: 15 | L166: 66 | M166: 0 | N166: 0 | O166: 73 | P166: 17 | Q166: 15
A167: 7068 | B167: NORTH GARDENS HIGH SCHOOL | C167: 74 | D167: 2 | E167: 0 | F167: 1 | G167: 0 | H167: 0 | I167: 71 | J167: 0 | K167: 50 | L167: 24 | M167: 0 | N167: 0 | O167: 49 | P167: 5 | Q167: 10
A168: 7069 | B168: NORTH PARK HIGH SCHOOL | C168: 63 | D168: 2 | E168: 1 | F168: 0 | G168: 0 | H168: 0 | I168: 60 | J168: 0 | K168: 52 | L168: 11 | M168: 0 | N168: 0 | O168: 44 | P168: 10 | Q168: 6
A169: 7070 | B169: YOUTH CO-OP PREP HIGH SCHOOL | C169: 44 | D169: 7 | E169: 16 | F169: 11 | G169: 4 | H169: 1 | I169: 5 | J169: 0 | K169: 0 | L169: 44 | M169: 0 | N169: 0 | O169: 37 | P169: 4 | Q169: 3
A170: 7071 | B170: CORAL GABLES SENIOR HIGH | C170: 536 | D170: 203 | E170: 120 | F170: 98 | G170: 24 | H170: 4 | I170: 87 | J170: 28 | K170: 46 | L170: 460 | M170: 2 | N170: 0 | O170: 461 | P170: 175 | Q170: 59
A171: 7080 | B171: CHARTER HS OF THE AMERICAS | C171: 48 | D171: 4 | E171: 7 | F171: 14 | G171: 8 | H171: 2 | I171: 13 | J171: 0 | K171: 3 | L171: 45 | M171: 0 | N171: 0 | O171: 47 | P171: 36 | Q171: 1
A172: 7081 | B172: DESIGN & ARCHITECTURE SENIOR | C172: 44 | D172: 0 | E172: 6 | F172: 19 | G172: 12 | H172: 1 | I172: 6 | J172: 5 | K172: 10 | L172: 27 | M172: 2 | N172: 0 | O172: 19 | P172: 0 | Q172: 5
A173: 7090 | B173: IMATER PREP ACADEMY HIGH | C173: 101 | D173: 25 | E173: 30 | F173: 27 | G173: 3 | H173: 1 | I173: 15 | J173: 1 | K173: 0 | L173: 100 | M173: 0 | N173: 0 | O173: 83 | P173: 31 | Q173: 7
A174: 7101 | B174: CORAL REEF SENIOR HIGH | C174: 253 | D174: 25 | E174: 52 | F174: 107 | G174: 35 | H174: 7 | I174: 27 | J174: 27 | K174: 42 | L174: 179 | M174: 3 | N174: 0 | O174: 157 | P174: 11 | Q174: 22
A175: 7111 | B175: HIALEAH SENIOR | C175: 437 | D175: 184 | E175: 108 | F175: 59 | G175: 4 | H175: 1 | I175: 81 | J175: 10 | K175: 25 | L175: 402 | M175: 0 | N175: 0 | O175: 405 | P175: 148 | Q175: 80
A176: 7121 | B176: JOHN A FERGUSON SENIOR HIGH | C176: 586 | D176: 144 | E176: 165 | F176: 151 | G176: 38 | H176: 6 | I176: 82 | J176: 41 | K176: 20 | L176: 520 | M176: 3 | N176: 0 | O176: 436 | P176: 92 | Q176: 89
A177: 7131 | B177: HIALEAH-MIAMI LAKES SENIOR | C177: 335 | D177: 127 | E177: 88 | F177: 80 | G177: 10 | H177: 3 | I177: 27 | J177: 12 | K177: 83 | L177: 239 | M177: 1 | N177: 0 | O177: 301 | P177: 80 | Q177: 53
A178: 7141 | B178: DR MICHAEL M KROP SENIOR HIGH | C178: 491 | D178: 91 | E178: 116 | F178: 124 | G178: 26 | H178: 2 | I178: 132 | J178: 81 | K178: 231 | L178: 170 | M178: 7 | N178: 0 | O178: 349 | P178: 64 | Q178: 40
A179: 7151 | B179: HOMESTEAD SENIOR HIGH | C179: 373 | D179: 176 | E179: 93 | F179: 50 | G179: 5 | H179: 1 | I179: 48 | J179: 5 | K179: 183 | L179: 182 | M179: 1 | N179: 1 | O179: 358 | P179: 23 | Q179: 87
A180: 7160 | B180: MATER ACADEMY CHARTER HIGH | C180: 202 | D180: 34 | E180: 60 | F180: 62 | G180: 24 | H180: 1 | I180: 21 | J180: 4 | K180: 12 | L180: 186 | M180: 0 | N180: 0 | O180: 172 | P180: 47 | Q180: 10
A181: 7161 | B181: MARITIME & SCIENCE TECH ACAD | C181: 53 | D181: 0 | E181: 4 | F181: 11 | G181: 14 | H181: 11 | I181: 13 | J181: 10 | K181: 1 | L181: 39 | M181: 3 | N181: 0 | O181: 17 | P181: 2 | Q181: 1
A182: 7191 | B182: HIALEAH GARDENS SENIOR | C182: 508 | D182: 177 | E182: 158 | F182: 101 | G182: 14 | H182: 5 | I182: 53 | J182: 13 | K182: 1 | L182: 493 | M182: 1 | N182: 0 | O182: 447 | P182: 149 | Q182: 48
A183: 7201 | B183: MIAMI BEACH SENIOR HIGH | C183: 368 | D183: 115 | E183: 85 | F183: 91 | G183: 21 | H183: 2 | I183: 54 | J183: 53 | K183: 35 | L183: 276 | M183: 3 | N183: 1 | O183: 295 | P183: 86 | Q183: 46
A184: 7231 | B184: MIAMI CAROL CITY SENIOR HIGH | C184: 349 | D184: 154 | E184: 93 | F184: 50 | G184: 6 | H184: 0 | I184: 46 | J184: 3 | K184: 295 | L184: 48 | M184: 1 | N184: 1 | O184: 315 | P184: 16 | Q184: 55
A185: 7241 | B185: RONALD W REAGAN/DORAL SENIOR | C185: 377 | D185: 88 | E185: 86 | F185: 117 | G185: 35 | H185: 7 | I185: 44 | J185: 29 | K185: 2 | L185: 342 | M185: 4 | N185: 0 | O185: 181 | P185: 128 | Q185: 28
A186: 7251 | B186: MIAMI CENTRAL SENIOR HIGH | C186: 517 | D186: 183 | E186: 111 | F186: 76 | G186: 2 | H186: 0 | I186: 145 | J186: 5 | K186: 412 | L186: 100 | M186: 0 | N186: 0 | O186: 479 | P186: 66 | Q186: 73
A187: 7262 | B187: CITY OF HIALEAH EDUCATION ACAD | C187: 98 | D187: 23 | E187: 23 | F187: 32 | G187: 11 | H187: 2 | I187: 7 | J187: 2 | K187: 0 | L187: 95 | M187: 1 | N187: 0 | O187: 89 | P187: 20 | Q187: 3
A188: 7271 | B188: MIAMI CORAL PARK SENIOR HIGH | C188: 500 | D188: 154 | E188: 130 | F188: 135 | G188: 32 | H188: 3 | I188: 46 | J188: 16 | K188: 2 | L188: 479 | M188: 3 | N188: 0 | O188: 431 | P188: 146 | Q188: 70
A189: 7291 | B189: JOSE MARTI MAST 6-12 ACADEMY | C189: 171 | D189: 1 | E189: 20 | F189: 66 | G189: 45 | H189: 28 | I189: 11 | J189: 8 | K189: 19 | L189: 139 | M189: 3 | N189: 1 | O189: 139 | P189: 14 | Q189: 5
A190: 7301 | B190: MIAMI EDISON SENIOR HIGH | C190: 165 | D190: 86 | E190: 33 | F190: 13 | G190: 0 | H190: 0 | I190: 33 | J190: 1 | K190: 139 | L190: 25 | M190: 0 | N190: 0 | O190: 152 | P190: 55 | Q190: 18
A191: 7341 | B191: MIAMI JACKSON SENIOR HIGH | C191: 344 | D191: 163 | E191: 94 | F191: 40 | G191: 4 | H191: 0 | I191: 43 | J191: 2 | K191: 115 | L191: 226 | M191: 1 | N191: 0 | O191: 316 | P191: 55 | Q191: 65
A192: 7351 | B192: ARTHUR AND POLLY MAYS CONSERVA | C192: 104 | D192: 30 | E192: 14 | F192: 29 | G192: 17 | H192: 7 | I192: 7 | J192: 6 | K192: 47 | L192: 49 | M192: 0 | N192: 0 | O192: 88 | P192: 12 | Q192: 14
A193: 7361 | B193: MIAMI KILLIAN SENIOR HIGH | C193: 475 | D193: 133 | E193: 126 | F193: 119 | G193: 38 | H193: 3 | I193: 56 | J193: 46 | K193: 121 | L193: 301 | M193: 5 | N193: 1 | O193: 369 | P193: 63 | Q193: 79
A194: 7371 | B194: ROBERT MORGAN EDUCATIONAL CTR | C194: 345 | D194: 95 | E194: 94 | F194: 109 | G194: 28 | H194: 1 | I194: 18 | J194: 22 | K194: 71 | L194: 243 | M194: 4 | N194: 2 | O194: 284 | P194: 36 | Q194: 54
A195: 7381 | B195: MIAMI NORLAND SENIOR HIGH | C195: 344 | D195: 132 | E195: 78 | F195: 86 | G195: 8 | H195: 0 | I195: 40 | J195: 2 | K195: 329 | L195: 12 | M195: 1 | N195: 0 | O195: 313 | P195: 20 | Q195: 41
A196: 7391 | B196: MIAMI LAKES EDUCATIONAL CENTER | C196: 199 | D196: 43 | E196: 46 | F196: 68 | G196: 19 | H196: 3 | I196: 20 | J196: 7 | K196: 56 | L196: 133 | M196: 1 | N196: 0 | O196: 168 | P196: 27 | Q196: 34
A197: 7411 | B197: MIAMI NORTHWESTERN SENIOR HIGH | C197: 325 | D197: 142 | E197: 96 | F197: 55 | G197: 1 | H197: 0 | I197: 31 | J197: 1 | K197: 294 | L197: 30 | M197: 0 | N197: 0 | O197: 310 | P197: 7 | Q197: 46
A198: 7431 | B198: MIAMI PALMETTO SENIOR HIGH | C198: 361 | D198: 114 | E198: 92 | F198: 89 | G198: 21 | H198: 4 | I198: 41 | J198: 84 | K198: 106 | L198: 163 | M198: 4 | N198: 0 | O198: 218 | P198: 17 | Q198: 87
A199: 7461 | B199: MIAMI SENIOR HIGH | C199: 599 | D199: 265 | E199: 145 | F199: 78 | G199: 15 | H199: 3 | I199: 93 | J199: 9 | K199: 21 | L199: 569 | M199: 0 | N199: 0 | O199: 553 | P199: 191 | Q199: 91
A200: 7511 | B200: MIAMI SPRINGS SENIOR HIGH | C200: 315 | D200: 129 | E200: 85 | F200: 43 | G200: 4 | H200: 2 | I200: 52 | J200: 13 | K200: 48 | L200: 253 | M200: 1 | N200: 0 | O200: 274 | P200: 99 | Q200: 34
... 28 more rows

Sheet Geo Enrollment (hidden)
A1: 1 | B1: 2 | C1: 3 | D1: 4 | E1: 5 | F1: 6 | G1: 7 | H1: 8 | I1: 9 | J1: 10 | K1: 11 | L1: 12 | M1: 13 | N1: 14 | O1: 15 | P1: 16 | Q1: 17
A2: School | B2: SchName | C2: Total | D2: ML1 | E2: ML2 | F2: ML3 | G2: ML4 | H2: ML5 | I2: ML0 | J2: W | K2: B | L2: H | M2: A | N2: I | O2: ED | P2: ELL | Q2: SWD
A3: 0070 | B3: CORAL REEF MONTESSORI ACAD CH | C3: 6 | D3: 0 | E3: 0 | F3: 0 | G3: 0 | H3: 1 | I3: 5 | J3: 0 | K3: 0 | L3: 5 | M3: 1 | N3: 0 | O3: 1 | P3: 0 | Q3: 0
A4: 0071 | B4: EUGENIA B. THOMAS K-8 CENTER | C4: 16 | D4: 0 | E4: 0 | F4: 0 | G4: 0 | H4: 0 | I4: 16 | J4: 1 | K4: 0 | L4: 14 | M4: 1 | N4: 0 | O4: 11 | P4: 0 | Q4: 0
A5: 0092 | B5: NORMAN S. EDELCUP/SUNNY ISLES | C5: 25 | D5: 0 | E5: 0 | F5: 0 | G5: 0 | H5: 1 | I5: 24 | J5: 14 | K5: 0 | L5: 10 | M5: 1 | N5: 0 | O5: 7 | P5: 0 | Q5: 0
A6: 0231 | B6: AVENTURA WATERWAYS K-8 CENTER | C6: 22 | D6: 0 | E6: 0 | F6: 0 | G6: 0 | H6: 1 | I6: 21 | J6: 8 | K6: 1 | L6: 13 | M6: 0 | N6: 0 | O6: 7 | P6: 0 | Q6: 1
A7: 0241 | B7: RUTH K BROAD/BAY HARBOR K-8 | C7: 13 | D7: 0 | E7: 0 | F7: 0 | G7: 0 | H7: 0 | I7: 13 | J7: 6 | K7: 1 | L7: 6 | M7: 0 | N7: 0 | O7: 4 | P7: 0 | Q7: 1
A8: 0332 | B8: SOMERSET ACADEMY(SILVER PALMS) | C8: 9 | D8: 0 | E8: 0 | F8: 0 | G8: 3 | H8: 5 | I8: 1 | J8: 0 | K8: 2 | L8: 6 | M8: 1 | N8: 0 | O8: 7 | P8: 0 | Q8: 0
A9: 0950 | B9: AVENTURA CITY OF EXCELLENCE | C9: 25 | D9: 0 | E9: 0 | F9: 0 | G9: 0 | H9: 1 | I9: 24 | J9: 12 | K9: 0 | L9: 12 | M9: 1 | N9: 0 | O9: 1 | P9: 0 | Q9: 0
A10: 0961 | B10: CORAL GABLES PREPARATORY ACAD | C10: 35 | D10: 0 | E10: 0 | F10: 0 | G10: 0 | H10: 0 | I10: 35 | J10: 3 | K10: 0 | L10: 32 | M10: 0 | N10: 0 | O10: 14 | P10: 1 | Q10: 0
A11: 1020 | B11: YOUTH CO-OP CHARTER SCHOOL | C11: 22 | D11: 0 | E11: 0 | F11: 0 | G11: 0 | H11: 0 | I11: 21 | J11: 0 | K11: 1 | L11: 19 | M11: 0 | N11: 1 | O11: 16 | P11: 0 | Q11: 0
A12: 1331 | B12: DEVON AIRE K-8 CENTER | C12: 24 | D12: 0 | E12: 0 | F12: 0 | G12: 0 | H12: 0 | I12: 24 | J12: 9 | K12: 0 | L12: 11 | M12: 3 | N12: 0 | O12: 8 | P12: 0 | Q12: 0
A13: 1681 | B13: LILLIE C. EVANS K-8 CENTER | C13: 2 | D13: 0 | E13: 0 | F13: 0 | G13: 2 | H13: 0 | I13: 0 | J13: 0 | K13: 2 | L13: 0 | M13: 0 | N13: 0 | O13: 2 | P13: 0 | Q13: 0
A14: 1721 | B14: EVERGLADES K-8 CENTER | C14: 19 | D14: 0 | E14: 0 | F14: 1 | G14: 0 | H14: 1 | I14: 17 | J14: 0 | K14: 0 | L14: 19 | M14: 0 | N14: 0 | O14: 10 | P14: 0 | Q14: 0
A15: 2060 | B15: GIBSON CHARTER SCHOOL | C15: 1 | D15: 0 | E15: 0 | F15: 0 | G15: 1 | H15: 0 | I15: 0 | J15: 0 | K15: 1 | L15: 0 | M15: 0 | N15: 0 | O15: 1 | P15: 0 | Q15: 1
A16: 2741 | B16: KEY BISCAYNE K-8 CENTER | C16: 16 | D16: 0 | E16: 0 | F16: 0 | G16: 0 | H16: 0 | I16: 16 | J16: 5 | K16: 1 | L16: 10 | M16: 0 | N16: 0 | O16: 3 | P16: 1 | Q16: 1
A17: 2911 | B17: LINDA LENTIN K-8 CENTER | C17: 1 | D17: 0 | E17: 0 | F17: 0 | G17: 0 | H17: 0 | I17: 1 | J17: 0 | K17: 0 | L17: 1 | M17: 0 | N17: 0 | O17: 0 | P17: 0 | Q17: 0
A18: 3029 | B18: DORAL ACADEMY OF TECHNOLOGY | C18: 28 | D18: 0 | E18: 0 | F18: 0 | G18: 0 | H18: 0 | I18: 28 | J18: 1 | K18: 2 | L18: 25 | M18: 0 | N18: 0 | O18: 9 | P18: 0 | Q18: 0
A19: 3101 | B19: FRANK C. MARTIN K-8 CENTER | C19: 49 | D19: 0 | E19: 0 | F19: 0 | G19: 0 | H19: 1 | I19: 48 | J19: 5 | K19: 18 | L19: 19 | M19: 3 | N19: 0 | O19: 21 | P19: 0 | Q19: 0
A20: 3191 | B20: ADA MERRITT K-8 CENTER | C20: 17 | D20: 0 | E20: 0 | F20: 0 | G20: 0 | H20: 0 | I20: 17 | J20: 6 | K20: 0 | L20: 10 | M20: 1 | N20: 0 | O20: 3 | P20: 0 | Q20: 0
A21: 3281 | B21: MIAMI LAKES K-8 CENTER | C21: 29 | D21: 0 | E21: 0 | F21: 0 | G21: 0 | H21: 0 | I21: 29 | J21: 4 | K21: 0 | L21: 24 | M21: 1 | N21: 0 | O21: 3 | P21: 0 | Q21: 0
A22: 3610 | B22: KEYS GATE CHARTER SCHOOL | C22: 66 | D22: 0 | E22: 0 | F22: 0 | G22: 0 | H22: 0 | I22: 66 | J22: 14 | K22: 9 | L22: 40 | M22: 3 | N22: 0 | O22: 41 | P22: 0 | Q22: 1
A23: 3621 | B23: COCONUT PALM K-8 ACADEMY | C23: 39 | D23: 0 | E23: 0 | F23: 0 | G23: 0 | H23: 0 | I23: 36 | J23: 0 | K23: 15 | L23: 19 | M23: 2 | N23: 0 | O23: 30 | P23: 2 | Q23: 0
A24: 4031 | B24: GATEWAY ENVIRONMENTAL K-8 | C24: 1 | D24: 0 | E24: 0 | F24: 0 | G24: 0 | H24: 0 | I24: 1 | J24: 0 | K24: 1 | L24: 0 | M24: 0 | N24: 0 | O24: 1 | P24: 0 | Q24: 0
A25: 5005 | B25: DAVID LAWRENCE JR K-8 CENTER | C25: 12 | D25: 0 | E25: 0 | F25: 0 | G25: 1 | H25: 0 | I25: 11 | J25: 4 | K25: 2 | L25: 4 | M25: 1 | N25: 0 | O25: 5 | P25: 0 | Q25: 0
A26: 5006 | B26: EVERGLADES PREPARATORY ACADEMY | C26: 24 | D26: 0 | E26: 0 | F26: 0 | G26: 1 | H26: 0 | I26: 23 | J26: 3 | K26: 2 | L26: 19 | M26: 0 | N26: 0 | O26: 18 | P26: 0 | Q26: 1
A27: 5010 | B27: OXFORD ACADEMY OF MIAMI | C27: 1 | D27: 0 | E27: 0 | F27: 0 | G27: 0 | H27: 0 | I27: 1 | J27: 0 | K27: 1 | L27: 0 | M27: 0 | N27: 0 | O27: 1 | P27: 0 | Q27: 0
A28: 5101 | B28: JOHN I. SMITH K-8 CENTER | C28: 13 | D28: 0 | E28: 0 | F28: 0 | G28: 0 | H28: 0 | I28: 13 | J28: 2 | K28: 0 | L28: 10 | M28: 1 | N28: 0 | O28: 4 | P28: 1 | Q28: 0
A29: 5961 | B29: WINSTON PARK K-8 CENTER | C29: 23 | D29: 0 | E29: 0 | F29: 0 | G29: 1 | H29: 1 | I29: 21 | J29: 1 | K29: 0 | L29: 21 | M29: 1 | N29: 0 | O29: 15 | P29: 0 | Q29: 1
A30: 6001 | B30: HERBERT A. AMMONS MIDDLE | C30: 100 | D30: 0 | E30: 0 | F30: 0 | G30: 0 | H30: 2 | I30: 98 | J30: 19 | K30: 8 | L30: 63 | M30: 7 | N30: 1 | O30: 37 | P30: 0 | Q30: 1
A31: 6004 | B31: SOMERSET ACADEMY MIDDLE | C31: 26 | D31: 0 | E31: 0 | F31: 0 | G31: 0 | H31: 0 | I31: 26 | J31: 3 | K31: 1 | L31: 22 | M31: 0 | N31: 0 | O31: 14 | P31: 0 | Q31: 0
A32: 6006 | B32: ARCHIMEDEAN CONSERVATORY | C32: 114 | D32: 1 | E32: 7 | F32: 25 | G32: 32 | H32: 46 | I32: 1 | J32: 13 | K32: 2 | L32: 85 | M32: 12 | N32: 0 | O32: 55 | P32: 4 | Q32: 5
A33: 6009 | B33: MATER ACADEMY EAST MIDDLE | C33: 2 | D33: 0 | E33: 0 | F33: 0 | G33: 0 | H33: 0 | I33: 2 | J33: 0 | K33: 2 | L33: 0 | M33: 0 | N33: 0 | O33: 2 | P33: 0 | Q33: 0
A34: 6010 | B34: FLORIDA INTERNATIONAL ACADEMY | C34: 17 | D34: 0 | E34: 0 | F34: 1 | G34: 0 | H34: 0 | I34: 16 | J34: 0 | K34: 16 | L34: 1 | M34: 0 | N34: 0 | O34: 17 | P34: 1 | Q34: 1
A35: 6011 | B35: ALLAPATTAH MIDDLE | C35: 2 | D35: 0 | E35: 1 | F35: 0 | G35: 0 | H35: 1 | I35: 0 | J35: 0 | K35: 2 | L35: 0 | M35: 0 | N35: 0 | O35: 2 | P35: 0 | Q35: 0
A36: 6012 | B36: MATER ACADEMY CHARTER MIDDLE | C36: 58 | D36: 0 | E36: 0 | F36: 1 | G36: 6 | H36: 46 | I36: 5 | J36: 1 | K36: 2 | L36: 55 | M36: 0 | N36: 0 | O36: 46 | P36: 2 | Q36: 0
A37: 6013 | B37: SOMERSET ACADEMY MIDDLE-SOUTH | C37: 2 | D37: 0 | E37: 0 | F37: 0 | G37: 0 | H37: 0 | I37: 2 | J37: 1 | K37: 0 | L37: 1 | M37: 0 | N37: 0 | O37: 2 | P37: 0 | Q37: 0
A38: 6014 | B38: IMATER ACADEMY MIDDLE SCHOOL | C38: 1 | D38: 0 | E38: 0 | F38: 0 | G38: 0 | H38: 0 | I38: 0 | J38: 0 | K38: 0 | L38: 0 | M38: 0 | N38: 0 | O38: 0 | P38: 0 | Q38: 0
A39: 6021 | B39: ARVIDA MIDDLE SCHOOL | C39: 47 | D39: 0 | E39: 0 | F39: 0 | G39: 1 | H39: 0 | I39: 45 | J39: 5 | K39: 3 | L39: 32 | M39: 6 | N39: 0 | O39: 16 | P39: 0 | Q39: 0
A40: 6022 | B40: PINECREST ACADEMY CHARTER MIDD | C40: 20 | D40: 0 | E40: 0 | F40: 0 | G40: 0 | H40: 0 | I40: 19 | J40: 0 | K40: 0 | L40: 19 | M40: 0 | N40: 0 | O40: 6 | P40: 0 | Q40: 0
A41: 6023 | B41: ANDOVER MIDDLE SCHOOL | C41: 48 | D41: 0 | E41: 0 | F41: 0 | G41: 0 | H41: 0 | I41: 48 | J41: 0 | K41: 45 | L41: 0 | M41: 2 | N41: 0 | O41: 38 | P41: 1 | Q41: 0
A42: 6030 | B42: DORAL ACADEMY CHARTER MIDDLE | C42: 61 | D42: 0 | E42: 0 | F42: 0 | G42: 1 | H42: 0 | I42: 60 | J42: 4 | K42: 1 | L42: 52 | M42: 4 | N42: 0 | O42: 28 | P42: 0 | Q42: 0
A43: 6031 | B43: BROWNSVILLE MIDDLE | C43: 9 | D43: 0 | E43: 1 | F43: 6 | G43: 2 | H43: 0 | I43: 0 | J43: 0 | K43: 5 | L43: 4 | M43: 0 | N43: 0 | O43: 9 | P43: 0 | Q43: 0
A44: 6033 | B44: MATER ACADEMY LAKES MIDDLE | C44: 4 | D44: 0 | E44: 0 | F44: 0 | G44: 0 | H44: 2 | I44: 2 | J44: 0 | K44: 0 | L44: 4 | M44: 0 | N44: 0 | O44: 2 | P44: 0 | Q44: 0
A45: 6040 | B45: DOCTORS CHARTER/MIAMI SHORES | C45: 103 | D45: 0 | E45: 1 | F45: 0 | G45: 0 | H45: 0 | I45: 86 | J45: 12 | K45: 49 | L45: 24 | M45: 2 | N45: 0 | O45: 31 | P45: 4 | Q45: 3
A46: 6041 | B46: PAUL W. BELL MIDDLE | C46: 6 | D46: 0 | E46: 0 | F46: 0 | G46: 0 | H46: 0 | I46: 6 | J46: 0 | K46: 0 | L46: 6 | M46: 0 | N46: 0 | O46: 6 | P46: 1 | Q46: 0
A47: 6045 | B47: INTL. STUDIES CHARTER MIDDLE | C47: 10 | D47: 0 | E47: 0 | F47: 0 | G47: 0 | H47: 0 | I47: 9 | J47: 0 | K47: 0 | L47: 9 | M47: 0 | N47: 0 | O47: 8 | P47: 0 | Q47: 0
A48: 6052 | B48: ZELDA GLAZER MIDDLE SCHOOL | C48: 91 | D48: 0 | E48: 0 | F48: 0 | G48: 0 | H48: 0 | I48: 89 | J48: 2 | K48: 1 | L48: 85 | M48: 1 | N48: 0 | O48: 62 | P48: 0 | Q48: 0
A49: 6060 | B49: ASPIRA SOUTH YOUTH LEADERSHIP | C49: 3 | D49: 0 | E49: 0 | F49: 0 | G49: 0 | H49: 1 | I49: 2 | J49: 0 | K49: 0 | L49: 3 | M49: 0 | N49: 0 | O49: 3 | P49: 0 | Q49: 0
A50: 6071 | B50: GEORGE WASHINGTON CARVER | C50: 42 | D50: 0 | E50: 0 | F50: 0 | G50: 0 | H50: 1 | I50: 41 | J50: 15 | K50: 1 | L50: 24 | M50: 2 | N50: 0 | O50: 4 | P50: 1 | Q50: 0
A51: 6081 | B51: CUTLER BAY ACAD OF ADV STUDIES | C51: 127 | D51: 0 | E51: 2 | F51: 1 | G51: 1 | H51: 1 | I51: 120 | J51: 23 | K51: 21 | L51: 77 | M51: 1 | N51: 1 | O51: 72 | P51: 9 | Q51: 7
A52: 6111 | B52: CUTLER BAY ACAD - CUTLER RIDGE | C52: 7 | D52: 0 | E52: 0 | F52: 1 | G52: 0 | H52: 0 | I52: 6 | J52: 1 | K52: 3 | L52: 2 | M52: 1 | N52: 0 | O52: 6 | P52: 0 | Q52: 0
A53: 6121 | B53: RUBEN DARIO MIDDLE | C53: 1 | D53: 0 | E53: 0 | F53: 0 | G53: 0 | H53: 0 | I53: 1 | J53: 0 | K53: 0 | L53: 0 | M53: 1 | N53: 0 | O53: 1 | P53: 1 | Q53: 0
A54: 6161 | B54: LAWTON CHILES MIDDLE SCHOOL | C54: 2 | D54: 0 | E54: 0 | F54: 0 | G54: 0 | H54: 0 | I54: 2 | J54: 0 | K54: 1 | L54: 1 | M54: 0 | N54: 0 | O54: 2 | P54: 0 | Q54: 0
A55: 6211 | B55: GLADES MIDDLE | C55: 52 | D55: 0 | E55: 0 | F55: 0 | G55: 0 | H55: 0 | I55: 51 | J55: 4 | K55: 1 | L55: 43 | M55: 3 | N55: 0 | O55: 23 | P55: 0 | Q55: 0
A56: 6221 | B56: HAMMOCKS MIDDLE | C56: 1 | D56: 0 | E56: 0 | F56: 0 | G56: 0 | H56: 0 | I56: 1 | J56: 0 | K56: 0 | L56: 1 | M56: 0 | N56: 0 | O56: 1 | P56: 0 | Q56: 0
A57: 6241 | B57: HIGHLAND OAKS MIDDLE | C57: 100 | D57: 0 | E57: 0 | F57: 0 | G57: 0 | H57: 0 | I57: 98 | J57: 47 | K57: 25 | L57: 24 | M57: 2 | N57: 0 | O57: 47 | P57: 2 | Q57: 1
A58: 6281 | B58: THOMAS JEFFERSON MIDDLE | C58: 2 | D58: 0 | E58: 0 | F58: 0 | G58: 0 | H58: 0 | I58: 2 | J58: 0 | K58: 2 | L58: 0 | M58: 0 | N58: 0 | O58: 1 | P58: 0 | Q58: 0
A59: 6301 | B59: JOHN F. KENNEDY MIDDLE | C59: 85 | D59: 0 | E59: 0 | F59: 0 | G59: 0 | H59: 0 | I59: 85 | J59: 6 | K59: 57 | L59: 16 | M59: 4 | N59: 0 | O59: 72 | P59: 0 | Q59: 0
A60: 6351 | B60: LAKE STEVENS MIDDLE | C60: 1 | D60: 0 | E60: 0 | F60: 0 | G60: 0 | H60: 1 | I60: 0 | J60: 0 | K60: 1 | L60: 0 | M60: 0 | N60: 0 | O60: 1 | P60: 0 | Q60: 0
A61: 6441 | B61: HOWARD D. MCMILLAN MIDDLE | C61: 51 | D61: 0 | E61: 0 | F61: 0 | G61: 0 | H61: 0 | I61: 51 | J61: 3 | K61: 2 | L61: 43 | M61: 3 | N61: 0 | O61: 42 | P61: 1 | Q61: 0
A62: 6501 | B62: MIAMI LAKES MIDDLE | C62: 17 | D62: 0 | E62: 1 | F62: 2 | G62: 0 | H62: 2 | I62: 12 | J62: 0 | K62: 0 | L62: 16 | M62: 1 | N62: 0 | O62: 15 | P62: 0 | Q62: 0
A63: 6521 | B63: MIAMI SPRINGS MIDDLE | C63: 52 | D63: 0 | E63: 0 | F63: 0 | G63: 0 | H63: 0 | I63: 52 | J63: 3 | K63: 4 | L63: 41 | M63: 4 | N63: 0 | O63: 36 | P63: 0 | Q63: 1
A64: 6541 | B64: NAUTILUS MIDDLE | C64: 53 | D64: 0 | E64: 0 | F64: 0 | G64: 0 | H64: 1 | I64: 52 | J64: 24 | K64: 1 | L64: 27 | M64: 0 | N64: 0 | O64: 25 | P64: 1 | Q64: 0
A65: 6571 | B65: NORLAND MIDDLE | C65: 6 | D65: 0 | E65: 0 | F65: 0 | G65: 3 | H65: 2 | I65: 0 | J65: 0 | K65: 5 | L65: 0 | M65: 0 | N65: 0 | O65: 5 | P65: 0 | Q65: 0
A66: 6591 | B66: NORTH DADE MIDDLE | C66: 24 | D66: 0 | E66: 0 | F66: 1 | G66: 0 | H66: 0 | I66: 23 | J66: 0 | K66: 18 | L66: 6 | M66: 0 | N66: 0 | O66: 17 | P66: 1 | Q66: 0
A67: 6611 | B67: COUNTRY CLUB MIDDLE SCHOOL | C67: 19 | D67: 0 | E67: 0 | F67: 0 | G67: 0 | H67: 0 | I67: 19 | J67: 0 | K67: 2 | L67: 16 | M67: 0 | N67: 0 | O67: 17 | P67: 0 | Q67: 0
A68: 6701 | B68: PALMETTO MIDDLE | C68: 31 | D68: 0 | E68: 0 | F68: 0 | G68: 0 | H68: 2 | I68: 29 | J68: 13 | K68: 3 | L68: 7 | M68: 7 | N68: 0 | O68: 3 | P68: 0 | Q68: 1
A69: 6741 | B69: PONCE DE LEON MIDDLE | C69: 56 | D69: 0 | E69: 0 | F69: 0 | G69: 4 | H69: 0 | I69: 52 | J69: 6 | K69: 3 | L69: 44 | M69: 2 | N69: 1 | O69: 42 | P69: 0 | Q69: 0
A70: 6751 | B70: HIALEAH GARDENS MIDDLE SCHOOL | C70: 233 | D70: 0 | E70: 1 | F70: 0 | G70: 0 | H70: 0 | I70: 230 | J70: 2 | K70: 0 | L70: 227 | M70: 2 | N70: 0 | O70: 196 | P70: 8 | Q70: 2
A71: 6771 | B71: JORGE MAS CANOSA MIDDLE | C71: 56 | D71: 0 | E71: 0 | F71: 1 | G71: 0 | H71: 0 | I71: 54 | J71: 8 | K71: 1 | L71: 45 | M71: 1 | N71: 0 | O71: 33 | P71: 0 | Q71: 1
A72: 6781 | B72: RICHMOND HEIGHTS MIDDLE | C72: 9 | D72: 0 | E72: 0 | F72: 0 | G72: 0 | H72: 0 | I72: 9 | J72: 1 | K72: 2 | L72: 5 | M72: 1 | N72: 0 | O72: 5 | P72: 0 | Q72: 0
A73: 6801 | B73: RIVIERA MIDDLE | C73: 65 | D73: 0 | E73: 0 | F73: 0 | G73: 0 | H73: 0 | I73: 64 | J73: 8 | K73: 1 | L73: 54 | M73: 1 | N73: 0 | O73: 49 | P73: 0 | Q73: 1
A74: 6821 | B74: ROCKWAY MIDDLE | C74: 24 | D74: 0 | E74: 0 | F74: 0 | G74: 0 | H74: 0 | I74: 24 | J74: 3 | K74: 0 | L74: 19 | M74: 2 | N74: 0 | O74: 19 | P74: 0 | Q74: 0
A75: 6841 | B75: SHENANDOAH MIDDLE | C75: 14 | D75: 0 | E75: 0 | F75: 0 | G75: 0 | H75: 0 | I75: 14 | J75: 0 | K75: 1 | L75: 13 | M75: 0 | N75: 0 | O75: 11 | P75: 0 | Q75: 0
A76: 6861 | B76: SOUTHWOOD MIDDLE | C76: 26 | D76: 0 | E76: 0 | F76: 1 | G76: 0 | H76: 1 | I76: 24 | J76: 12 | K76: 1 | L76: 6 | M76: 6 | N76: 0 | O76: 4 | P76: 0 | Q76: 0
A77: 6881 | B77: SOUTH MIAMI MIDDLE SCHOOL | C77: 1 | D77: 0 | E77: 0 | F77: 0 | G77: 0 | H77: 0 | I77: 1 | J77: 0 | K77: 0 | L77: 1 | M77: 0 | N77: 0 | O77: 0 | P77: 0 | Q77: 0
A78: 6901 | B78: W. R. THOMAS MIDDLE | C78: 157 | D78: 0 | E78: 0 | F78: 0 | G78: 0 | H78: 0 | I78: 149 | J78: 7 | K78: 1 | L78: 134 | M78: 7 | N78: 0 | O78: 104 | P78: 2 | Q78: 5
A79: 6921 | B79: LAMAR LOUISE CURRY MIDDLE SCH | C79: 58 | D79: 0 | E79: 0 | F79: 0 | G79: 0 | H79: 0 | I79: 56 | J79: 2 | K79: 1 | L79: 50 | M79: 3 | N79: 0 | O79: 32 | P79: 1 | Q79: 1
A80: 6997 | B80: MATER VIRTUAL ACADEMY CHARTER | C80: 3 | D80: 0 | E80: 0 | F80: 0 | G80: 0 | H80: 0 | I80: 3 | J80: 0 | K80: 0 | L80: 3 | M80: 0 | N80: 0 | O80: 2 | P80: 0 | Q80: 0
A81: 7001 | B81: MIAMI-DADE ONLINE ACADEMY 7001 | C81: 23 | D81: 0 | E81: 0 | F81: 0 | G81: 2 | H81: 0 | I81: 19 | J81: 3 | K81: 1 | L81: 16 | M81: 1 | N81: 0 | O81: 12 | P81: 1 | Q81: 0
A82: 7007 | B82: INTL. STUDIES CHARTER SENIOR | C82: 125 | D82: 0 | E82: 0 | F82: 1 | G82: 0 | H82: 0 | I82: 121 | J82: 32 | K82: 2 | L82: 87 | M82: 1 | N82: 0 | O82: 78 | P82: 37 | Q82: 3
A83: 7009 | B83: DORAL PERFORMING ARTS ACADEMY | C83: 95 | D83: 0 | E83: 0 | F83: 1 | G83: 0 | H83: 0 | I83: 92 | J83: 7 | K83: 2 | L83: 83 | M83: 1 | N83: 0 | O83: 50 | P83: 2 | Q83: 1
A84: 7011 | B84: AMERICAN SENIOR | C84: 565 | D84: 0 | E84: 6 | F84: 4 | G84: 0 | H84: 0 | I84: 494 | J84: 19 | K84: 135 | L84: 348 | M84: 2 | N84: 0 | O84: 419 | P84: 86 | Q84: 46
A85: 7014 | B85: MATER PERFORMING ARTS ACADEMY | C85: 92 | D85: 0 | E85: 0 | F85: 0 | G85: 0 | H85: 0 | I85: 81 | J85: 4 | K85: 2 | L85: 75 | M85: 0 | N85: 0 | O85: 62 | P85: 0 | Q85: 0
A86: 7015 | B86: STELLAR LEADERSHIP ACADEMY | C86: 97 | D86: 0 | E86: 0 | F86: 0 | G86: 0 | H86: 0 | I86: 80 | J86: 0 | K86: 70 | L86: 10 | M86: 0 | N86: 0 | O86: 74 | P86: 4 | Q86: 13
A87: 7016 | B87: SPORTS LEADERSHIP OF MIAMI CHS | C87: 1 | D87: 0 | E87: 0 | F87: 0 | G87: 0 | H87: 0 | I87: 1 | J87: 0 | K87: 0 | L87: 1 | M87: 0 | N87: 0 | O87: 1 | P87: 0 | Q87: 0
A88: 7018 | B88: MATER ACADEMY LAKES HIGH SCH | C88: 256 | D88: 0 | E88: 1 | F88: 1 | G88: 1 | H88: 0 | I88: 238 | J88: 12 | K88: 8 | L88: 218 | M88: 2 | N88: 1 | O88: 183 | P88: 18 | Q88: 4
A89: 7020 | B89: DORAL ACADEMY HIGH SCHOOL | C89: 377 | D89: 0 | E89: 0 | F89: 1 | G89: 0 | H89: 0 | I89: 361 | J89: 26 | K89: 4 | L89: 331 | M89: 1 | N89: 0 | O89: 210 | P89: 28 | Q89: 4
A90: 7022 | B90: ACADEMY OF ARTS AND MINDS | C90: 99 | D90: 0 | E90: 0 | F90: 2 | G90: 1 | H90: 0 | I90: 88 | J90: 13 | K90: 1 | L90: 77 | M90: 0 | N90: 0 | O90: 44 | P90: 10 | Q90: 8
A91: 7024 | B91: MATER ACADEMY HIGH-INTL STUDIE | C91: 20 | D91: 0 | E91: 0 | F91: 0 | G91: 0 | H91: 0 | I91: 20 | J91: 1 | K91: 3 | L91: 15 | M91: 1 | N91: 0 | O91: 18 | P91: 2 | Q91: 0
A92: 7029 | B92: TERRA ENVIRONMENTAL RESEARCH | C92: 405 | D92: 0 | E92: 0 | F92: 2 | G92: 7 | H92: 3 | I92: 374 | J92: 56 | K92: 6 | L92: 312 | M92: 9 | N92: 0 | O92: 183 | P92: 7 | Q92: 15
A93: 7030 | B93: INTEGRATED ACADEMICS (SIATECH) | C93: 40 | D93: 0 | E93: 0 | F93: 0 | G93: 0 | H93: 0 | I93: 39 | J93: 0 | K93: 34 | L93: 4 | M93: 0 | N93: 0 | O93: 14 | P93: 8 | Q93: 8
A94: 7031 | B94: MAST @ FIU BISCAYNE BAY CAMPUS | C94: 75 | D94: 0 | E94: 0 | F94: 0 | G94: 0 | H94: 0 | I94: 72 | J94: 9 | K94: 34 | L94: 28 | M94: 0 | N94: 0 | O94: 46 | P94: 1 | Q94: 2
A95: 7032 | B95: PALM GLADES PREP HIGH SCHOOL | C95: 68 | D95: 0 | E95: 0 | F95: 0 | G95: 0 | H95: 0 | I95: 61 | J95: 1 | K95: 11 | L95: 46 | M95: 2 | N95: 0 | O95: 51 | P95: 1 | Q95: 4
A96: 7033 | B96: LAW ENFORCEMENT OFFICERS HS | C96: 81 | D96: 0 | E96: 5 | F96: 5 | G96: 1 | H96: 2 | I96: 60 | J96: 4 | K96: 22 | L96: 47 | M96: 0 | N96: 0 | O96: 58 | P96: 3 | Q96: 4
A97: 7034 | B97: SOMERSET ACAD HIGH SOUTH-HMSTD | C97: 29 | D97: 0 | E97: 0 | F97: 0 | G97: 0 | H97: 0 | I97: 25 | J97: 6 | K97: 1 | L97: 18 | M97: 0 | N97: 0 | O97: 19 | P97: 1 | Q97: 2
A98: 7036 | B98: LAWRENCE ACADEMY SENIOR | C98: 16 | D98: 0 | E98: 0 | F98: 0 | G98: 0 | H98: 0 | I98: 14 | J98: 0 | K98: 5 | L98: 9 | M98: 0 | N98: 0 | O98: 14 | P98: 0 | Q98: 3
A99: 7037 | B99: MATER ACADEMY EAST HIGH SCHOOL | C99: 87 | D99: 0 | E99: 2 | F99: 1 | G99: 0 | H99: 0 | I99: 71 | J99: 1 | K99: 1 | L99: 72 | M99: 0 | N99: 0 | O99: 70 | P99: 13 | Q99: 1
A100: 7038 | B100: SOMERSET ACADEMY HIGH (SOUTH) | C100: 30 | D100: 0 | E100: 0 | F100: 0 | G100: 0 | H100: 0 | I100: 29 | J100: 3 | K100: 1 | L100: 24 | M100: 1 | N100: 0 | O100: 23 | P100: 2 | Q100: 0
A101: 7042 | B101: SOMERSET ACADEMY CHARTER HIGH | C101: 93 | D101: 0 | E101: 0 | F101: 3 | G101: 0 | H101: 0 | I101: 85 | J101: 6 | K101: 8 | L101: 73 | M101: 1 | N101: 0 | O101: 62 | P101: 9 | Q101: 3
A102: 7048 | B102: ALONZO & TRACY MOURNING SH | C102: 439 | D102: 1 | E102: 0 | F102: 1 | G102: 2 | H102: 1 | I102: 394 | J102: 114 | K102: 65 | L102: 210 | M102: 8 | N102: 0 | O102: 243 | P102: 58 | Q102: 19
A103: 7049 | B103: WESTLAND HIALEAH SENIOR HIGH | C103: 676 | D103: 3 | E103: 2 | F103: 2 | G103: 0 | H103: 0 | I103: 635 | J103: 14 | K103: 5 | L103: 623 | M103: 0 | N103: 0 | O103: 590 | P103: 250 | Q103: 28
A104: 7050 | B104: KEYS GATE CHARTER HIGH SCHL | C104: 278 | D104: 0 | E104: 0 | F104: 2 | G104: 0 | H104: 0 | I104: 252 | J104: 51 | K104: 35 | L104: 164 | M104: 2 | N104: 0 | O104: 150 | P104: 32 | Q104: 19
A105: 7051 | B105: G. HOLMES BRADDOCK SENIOR HIGH | C105: 1003 | D105: 1 | E105: 0 | F105: 3 | G105: 1 | H105: 0 | I105: 925 | J105: 43 | K105: 12 | L105: 870 | M105: 4 | N105: 1 | O105: 751 | P105: 174 | Q105: 83
A106: 7053 | B106: PINECREST ACADEMY CHARTER HIGH | C106: 151 | D106: 0 | E106: 0 | F106: 0 | G106: 0 | H106: 0 | I106: 147 | J106: 7 | K106: 0 | L106: 139 | M106: 1 | N106: 0 | O106: 100 | P106: 6 | Q106: 7
A107: 7055 | B107: YOUNG WOMEN'S PREPARATORY ACAD | C107: 47 | D107: 0 | E107: 0 | F107: 0 | G107: 0 | H107: 0 | I107: 46 | J107: 4 | K107: 11 | L107: 31 | M107: 0 | N107: 0 | O107: 36 | P107: 0 | Q107: 0
A108: 7056 | B108: YOUNG MENS PREPARATORY ACADEMY | C108: 31 | D108: 1 | E108: 0 | F108: 0 | G108: 0 | H108: 0 | I108: 28 | J108: 1 | K108: 20 | L108: 8 | M108: 0 | N108: 0 | O108: 24 | P108: 0 | Q108: 1
A109: 7058 | B109: MIAMI COMMUNITY CH HIGH SCHOOL | C109: 40 | D109: 0 | E109: 0 | F109: 3 | G109: 2 | H109: 0 | I109: 27 | J109: 1 | K109: 1 | L109: 30 | M109: 0 | N109: 0 | O109: 28 | P109: 2 | Q109: 3
A110: 7059 | B110: MIAMI ARTS CHARTER | C110: 92 | D110: 0 | E110: 0 | F110: 0 | G110: 0 | H110: 0 | I110: 82 | J110: 16 | K110: 14 | L110: 51 | M110: 0 | N110: 0 | O110: 24 | P110: 3 | Q110: 2
A111: 7060 | B111: EVERGLADES PREP ACADEMY HIGH | C111: 127 | D111: 1 | E111: 2 | F111: 1 | G111: 0 | H111: 0 | I111: 111 | J111: 17 | K111: 15 | L111: 82 | M111: 0 | N111: 1 | O111: 93 | P111: 15 | Q111: 12
A112: 7062 | B112: MAVERICKS HIGH OF NORTH M-DADE | C112: 12 | D112: 0 | E112: 0 | F112: 0 | G112: 0 | H112: 0 | I112: 10 | J112: 1 | K112: 6 | L112: 3 | M112: 0 | N112: 0 | O112: 7 | P112: 0 | Q112: 3
A113: 7065 | B113: MAVERICKS HIGH OF SOUTH M-DADE | C113: 55 | D113: 1 | E113: 0 | F113: 0 | G113: 0 | H113: 0 | I113: 42 | J113: 2 | K113: 17 | L113: 24 | M113: 0 | N113: 0 | O113: 37 | P113: 2 | Q113: 4
A114: 7066 | B114: LBA CONSTR & BUS MGMT ACAD | C114: 45 | D114: 0 | E114: 0 | F114: 0 | G114: 0 | H114: 0 | I114: 43 | J114: 1 | K114: 1 | L114: 41 | M114: 0 | N114: 0 | O114: 34 | P114: 11 | Q114: 2
A115: 7067 | B115: GREEN SPRINGS HIGH SCHOOL | C115: 56 | D115: 1 | E115: 0 | F115: 0 | G115: 0 | H115: 0 | I115: 44 | J115: 1 | K115: 10 | L115: 34 | M115: 0 | N115: 0 | O115: 34 | P115: 7 | Q115: 6
A116: 7068 | B116: NORTH GARDENS HIGH SCHOOL | C116: 55 | D116: 1 | E116: 0 | F116: 0 | G116: 0 | H116: 0 | I116: 45 | J116: 0 | K116: 32 | L116: 14 | M116: 0 | N116: 0 | O116: 31 | P116: 2 | Q116: 6
A117: 7069 | B117: NORTH PARK HIGH SCHOOL | C117: 51 | D117: 0 | E117: 0 | F117: 0 | G117: 0 | H117: 0 | I117: 34 | J117: 0 | K117: 27 | L117: 7 | M117: 0 | N117: 0 | O117: 25 | P117: 6 | Q117: 2
A118: 7070 | B118: YOUTH CO-OP PREP HIGH SCHOOL | C118: 65 | D118: 0 | E118: 0 | F118: 1 | G118: 0 | H118: 0 | I118: 57 | J118: 3 | K118: 2 | L118: 53 | M118: 0 | N118: 0 | O118: 47 | P118: 13 | Q118: 4
A119: 7071 | B119: CORAL GABLES SENIOR HIGH | C119: 956 | D119: 1 | E119: 7 | F119: 11 | G119: 3 | H119: 0 | I119: 848 | J119: 83 | K119: 42 | L119: 737 | M119: 8 | N119: 0 | O119: 667 | P119: 204 | Q119: 68
A120: 7080 | B120: CHARTER HS OF THE AMERICAS | C120: 40 | D120: 0 | E120: 0 | F120: 1 | G120: 5 | H120: 2 | I120: 32 | J120: 0 | K120: 3 | L120: 37 | M120: 0 | N120: 0 | O120: 40 | P120: 29 | Q120: 0
A121: 7081 | B121: DESIGN & ARCHITECTURE SENIOR | C121: 126 | D121: 0 | E121: 0 | F121: 5 | G121: 3 | H121: 3 | I121: 107 | J121: 23 | K121: 14 | L121: 72 | M121: 8 | N121: 0 | O121: 49 | P121: 2 | Q121: 1
A122: 7090 | B122: IMATER PREP ACADEMY HIGH | C122: 62 | D122: 0 | E122: 0 | F122: 0 | G122: 0 | H122: 0 | I122: 60 | J122: 1 | K122: 1 | L122: 58 | M122: 0 | N122: 0 | O122: 48 | P122: 26 | Q122: 3
A123: 7101 | B123: CORAL REEF SENIOR HIGH | C123: 767 | D123: 2 | E123: 11 | F123: 7 | G123: 8 | H123: 1 | I123: 709 | J123: 148 | K123: 87 | L123: 485 | M123: 16 | N123: 0 | O123: 333 | P123: 12 | Q123: 35
A124: 7111 | B124: HIALEAH SENIOR | C124: 818 | D124: 3 | E124: 10 | F124: 15 | G124: 1 | H124: 0 | I124: 729 | J124: 12 | K124: 27 | L124: 716 | M124: 1 | N124: 2 | O124: 698 | P124: 233 | Q124: 76
A125: 7121 | B125: JOHN A FERGUSON SENIOR HIGH | C125: 1132 | D125: 0 | E125: 1 | F125: 2 | G125: 2 | H125: 0 | I125: 1062 | J125: 74 | K125: 14 | L125: 954 | M125: 22 | N125: 3 | O125: 726 | P125: 111 | Q125: 87
A126: 7131 | B126: HIALEAH-MIAMI LAKES SENIOR | C126: 449 | D126: 3 | E126: 7 | F126: 16 | G126: 0 | H126: 0 | I126: 377 | J126: 13 | K126: 83 | L126: 304 | M126: 3 | N126: 0 | O126: 346 | P126: 93 | Q126: 40
A127: 7141 | B127: DR MICHAEL M KROP SENIOR HIGH | C127: 790 | D127: 0 | E127: 3 | F127: 4 | G127: 2 | H127: 0 | I127: 715 | J127: 172 | K127: 299 | L127: 235 | M127: 13 | N127: 0 | O127: 433 | P127: 56 | Q127: 30
A128: 7151 | B128: HOMESTEAD SENIOR HIGH | C128: 468 | D128: 4 | E128: 23 | F128: 28 | G128: 8 | H128: 2 | I128: 316 | J128: 10 | K128: 170 | L128: 198 | M128: 0 | N128: 1 | O128: 357 | P128: 42 | Q128: 51
A129: 7160 | B129: MATER ACADEMY CHARTER HIGH | C129: 401 | D129: 0 | E129: 0 | F129: 0 | G129: 0 | H129: 0 | I129: 348 | J129: 5 | K129: 9 | L129: 333 | M129: 1 | N129: 0 | O129: 291 | P129: 37 | Q129: 15
A130: 7161 | B130: MARITIME & SCIENCE TECH ACAD | C130: 261 | D130: 0 | E130: 3 | F130: 2 | G130: 2 | H130: 0 | I130: 247 | J130: 72 | K130: 15 | L130: 162 | M130: 4 | N130: 0 | O130: 60 | P130: 15 | Q130: 4
A131: 7171 | B131: MED ACAD SCIENCE & TECHNOLOGY | C131: 99 | D131: 0 | E131: 5 | F131: 11 | G131: 5 | H131: 0 | I131: 76 | J131: 21 | K131: 23 | L131: 47 | M131: 3 | N131: 1 | O131: 52 | P131: 3 | Q131: 0
A132: 7191 | B132: HIALEAH GARDENS SENIOR | C132: 764 | D132: 0 | E132: 1 | F132: 2 | G132: 1 | H132: 0 | I132: 710 | J132: 10 | K132: 2 | L132: 700 | M132: 2 | N132: 0 | O132: 630 | P132: 181 | Q132: 43
A133: 7201 | B133: MIAMI BEACH SENIOR HIGH | C133: 630 | D133: 0 | E133: 1 | F133: 1 | G133: 3 | H133: 0 | I133: 570 | J133: 115 | K133: 48 | L133: 399 | M133: 12 | N133: 0 | O133: 431 | P133: 95 | Q133: 53
A134: 7231 | B134: MIAMI CAROL CITY SENIOR HIGH | C134: 488 | D134: 1 | E134: 5 | F134: 4 | G134: 1 | H134: 0 | I134: 383 | J134: 5 | K134: 317 | L134: 69 | M134: 0 | N134: 1 | O134: 361 | P134: 15 | Q134: 29
A135: 7241 | B135: RONALD W REAGAN/DORAL SENIOR | C135: 464 | D135: 0 | E135: 1 | F135: 0 | G135: 0 | H135: 0 | I135: 441 | J135: 37 | K135: 4 | L135: 393 | M135: 6 | N135: 0 | O135: 214 | P135: 111 | Q135: 16
A136: 7251 | B136: MIAMI CENTRAL SENIOR HIGH | C136: 534 | D136: 1 | E136: 14 | F136: 24 | G136: 3 | H136: 1 | I136: 391 | J136: 3 | K136: 339 | L136: 92 | M136: 0 | N136: 0 | O136: 399 | P136: 38 | Q136: 50
A137: 7262 | B137: CITY OF HIALEAH EDUCATION ACAD | C137: 109 | D137: 1 | E137: 1 | F137: 1 | G137: 0 | H137: 0 | I137: 97 | J137: 4 | K137: 3 | L137: 92 | M137: 1 | N137: 0 | O137: 90 | P137: 22 | Q137: 8
A138: 7265 | B138: ARCHIMEDEAN UPPER CONSERV CHAR | C138: 72 | D138: 0 | E138: 2 | F138: 10 | G138: 12 | H138: 31 | I138: 15 | J138: 11 | K138: 0 | L138: 57 | M138: 2 | N138: 0 | O138: 35 | P138: 3 | Q138: 3
A139: 7271 | B139: MIAMI CORAL PARK SENIOR HIGH | C139: 731 | D139: 1 | E139: 2 | F139: 2 | G139: 0 | H139: 0 | I139: 675 | J139: 13 | K139: 6 | L139: 659 | M139: 2 | N139: 0 | O139: 582 | P139: 202 | Q139: 65
A140: 7291 | B140: JOSE MARTI MAST 6-12 ACADEMY | C140: 69 | D140: 0 | E140: 0 | F140: 0 | G140: 1 | H140: 0 | I140: 68 | J140: 3 | K140: 6 | L140: 59 | M140: 1 | N140: 0 | O140: 52 | P140: 3 | Q140: 0
A141: 7301 | B141: MIAMI EDISON SENIOR HIGH | C141: 235 | D141: 2 | E141: 9 | F141: 3 | G141: 0 | H141: 0 | I141: 180 | J141: 1 | K141: 165 | L141: 26 | M141: 1 | N141: 0 | O141: 183 | P141: 77 | Q141: 17
A142: 7341 | B142: MIAMI JACKSON SENIOR HIGH | C142: 461 | D142: 4 | E142: 15 | F142: 33 | G142: 5 | H142: 1 | I142: 312 | J142: 3 | K142: 122 | L142: 244 | M142: 1 | N142: 0 | O142: 354 | P142: 72 | Q142: 43
A143: 7351 | B143: ARTHUR AND POLLY MAYS CONSERVA | C143: 99 | D143: 0 | E143: 5 | F143: 10 | G143: 10 | H143: 0 | I143: 64 | J143: 4 | K143: 40 | L143: 44 | M143: 1 | N143: 0 | O143: 82 | P143: 5 | Q143: 9
A144: 7361 | B144: MIAMI KILLIAN SENIOR HIGH | C144: 594 | D144: 0 | E144: 4 | F144: 7 | G144: 5 | H144: 3 | I144: 524 | J144: 81 | K144: 104 | L144: 351 | M144: 5 | N144: 1 | O144: 350 | P144: 64 | Q144: 65
A145: 7371 | B145: ROBERT MORGAN EDUCATIONAL CTR | C145: 620 | D145: 2 | E145: 8 | F145: 20 | G145: 12 | H145: 2 | I145: 517 | J145: 51 | K145: 110 | L145: 388 | M145: 6 | N145: 3 | O145: 417 | P145: 33 | Q145: 35
A146: 7381 | B146: MIAMI NORLAND SENIOR HIGH | C146: 489 | D146: 3 | E146: 10 | F146: 9 | G146: 1 | H146: 1 | I146: 377 | J146: 4 | K146: 372 | L146: 22 | M146: 2 | N146: 0 | O146: 334 | P146: 23 | Q146: 37
A147: 7391 | B147: MIAMI LAKES EDUCATIONAL CENTER | C147: 397 | D147: 2 | E147: 8 | F147: 7 | G147: 2 | H147: 0 | I147: 342 | J147: 14 | K147: 102 | L147: 236 | M147: 7 | N147: 0 | O147: 290 | P147: 27 | Q147: 18
A148: 7411 | B148: MIAMI NORTHWESTERN SENIOR HIGH | C148: 440 | D148: 3 | E148: 11 | F148: 13 | G148: 3 | H148: 1 | I148: 311 | J148: 0 | K148: 317 | L148: 24 | M148: 0 | N148: 0 | O148: 311 | P148: 17 | Q148: 40
A149: 7431 | B149: MIAMI PALMETTO SENIOR HIGH | C149: 671 | D149: 1 | E149: 5 | F149: 9 | G149: 2 | H149: 1 | I149: 600 | J149: 218 | K149: 105 | L149: 271 | M149: 19 | N149: 1 | O149: 228 | P149: 38 | Q149: 48
A150: 7461 | B150: MIAMI SENIOR HIGH | C150: 842 | D150: 5 | E150: 17 | F150: 34 | G150: 10 | H150: 0 | I150: 675 | J150: 14 | K150: 32 | L150: 692 | M150: 3 | N150: 0 | O150: 690 | P150: 223 | Q150: 51
A151: 7511 | B151: MIAMI SPRINGS SENIOR HIGH | C151: 451 | D151: 0 | E151: 1 | F151: 3 | G151: 2 | H151: 1 | I151: 413 | J151: 16 | K151: 52 | L151: 349 | M151: 2 | N151: 0 | O151: 350 | P151: 117 | Q151: 23
A152: 7531 | B152: MIAMI SUNSET SENIOR HIGH | C152: 452 | D152: 1 | E152: 1 | F152: 7 | G152: 2 | H152: 0 | I152: 409 | J152: 34 | K152: 23 | L152: 360 | M152: 3 | N152: 0 | O152: 329 | P152: 75 | Q152: 54
A153: 7541 | B153: NORTH MIAMI BEACH SENIOR HIGH | C153: 507 | D153: 1 | E153: 1 | F153: 0 | G153: 0 | H153: 0 | I153: 439 | J153: 13 | K153: 337 | L153: 78 | M153: 10 | N153: 1 | O153: 380 | P153: 83 | Q153: 34
A154: 7571 | B154: INTL STUDIES PREP ACADEMY | C154: 95 | D154: 0 | E154: 0 | F154: 2 | G154: 0 | H154: 0 | I154: 87 | J154: 10 | K154: 5 | L154: 73 | M154: 0 | N154: 0 | O154: 52 | P154: 20 | Q154: 3
A155: 7581 | B155: IPREPARATORY ACADEMY | C155: 27 | D155: 0 | E155: 0 | F155: 0 | G155: 1 | H155: 0 | I155: 26 | J155: 8 | K155: 2 | L155: 17 | M155: 0 | N155: 0 | O155: 14 | P155: 1 | Q155: 1
A156: 7591 | B156: NORTH MIAMI SENIOR HIGH | C156: 715 | D156: 5 | E156: 17 | F156: 12 | G156: 1 | H156: 0 | I156: 601 | J156: 3 | K156: 561 | L156: 66 | M156: 3 | N156: 2 | O156: 587 | P156: 188 | Q156: 32
A157: 7601 | B157: WILLIAM H. TURNER TECHNICAL | C157: 473 | D157: 3 | E157: 22 | F157: 29 | G157: 10 | H157: 4 | I157: 353 | J157: 4 | K157: 324 | L157: 87 | M157: 1 | N157: 3 | O157: 397 | P157: 39 | Q157: 4
A158: 7631 | B158: MIAMI MACARTHUR SOUTH | C158: 10 | D158: 0 | E158: 0 | F158: 0 | G158: 0 | H158: 0 | I158: 7 | J158: 0 | K158: 2 | L158: 5 | M158: 0 | N158: 0 | O158: 7 | P158: 1 | Q158: 1
A159: 7701 | B159: SOUTH DADE SENIOR HIGH | C159: 895 | D159: 4 | E159: 16 | F159: 39 | G159: 6 | H159: 1 | I159: 699 | J159: 99 | K159: 162 | L159: 496 | M159: 4 | N159: 0 | O159: 663 | P159: 104 | Q159: 90
A160: 7721 | B160: SOUTH MIAMI SENIOR HIGH | C160: 635 | D160: 0 | E160: 0 | F160: 2 | G160: 0 | H160: 0 | I160: 594 | J160: 29 | K160: 29 | L160: 537 | M160: 1 | N160: 0 | O160: 495 | P160: 178 | Q160: 73
A161: 7731 | B161: MIAMI SOUTHRIDGE SENIOR HIGH | C161: 490 | D161: 1 | E161: 3 | F161: 9 | G161: 2 | H161: 1 | I161: 401 | J161: 24 | K161: 171 | L161: 217 | M161: 3 | N161: 1 | O161: 374 | P161: 67 | Q161: 54
A162: 7741 | B162: SOUTHWEST MIAMI SENIOR HIGH | C162: 804 | D162: 0 | E162: 0 | F162: 1 | G162: 2 | H162: 0 | I162: 747 | J162: 32 | K162: 8 | L162: 704 | M162: 4 | N162: 2 | O162: 608 | P162: 188 | Q162: 88
A163: 7751 | B163: BARBARA GOLEMAN SENIOR HIGH | C163: 371 | D163: 0 | E163: 2 | F163: 0 | G163: 1 | H163: 0 | I163: 335 | J163: 26 | K163: 23 | L163: 284 | M163: 4 | N163: 0 | O163: 238 | P163: 40 | Q163: 23
A164: 7781 | B164: FELIX VARELA SENIOR HIGH | C164: 841 | D164: 0 | E164: 2 | F164: 8 | G164: 5 | H164: 0 | I164: 778 | J164: 69 | K164: 33 | L164: 673 | M164: 14 | N164: 1 | O164: 592 | P164: 94 | Q164: 71
A165: 7791 | B165: BOOKER T. WASHINGTON SR. HIGH | C165: 238 | D165: 2 | E165: 3 | F165: 5 | G165: 1 | H165: 0 | I165: 196 | J165: 2 | K165: 110 | L165: 95 | M165: 0 | N165: 0 | O165: 197 | P165: 36 | Q165: 22
A166: 7901 | B166: NEW WORLD SCHOOL OF THE ARTS | C166: 116 | D166: 0 | E166: 0 | F166: 0 | G166: 0 | H166: 0 | I166: 109 | J166: 22 | K166: 19 | L166: 65 | M166: 3 | N166: 0 | O166: 41 | P166: 3 | Q166: 3
A167: 8014 | B167: ALTERNATIVE OUTREACH-EXT. YR | C167: 53 | D167: 4 | E167: 1 | F167: 0 | G167: 0 | H167: 0 | I167: 34 | J167: 3 | K167: 24 | L167: 12 | M167: 0 | N167: 0 | O167: 29 | P167: 3 | Q167: 12
A168: 8017 | B168: ALTERNATIVE OUTREACH PROGRAM | C168: 62 | D168: 0 | E168: 0 | F168: 0 | G168: 0 | H168: 0 | I168: 41 | J168: 3 | K168: 25 | L168: 13 | M168: 0 | N168: 0 | O168: 34 | P168: 3 | Q168: 7
A169: 8019 | B169: ACADEMY FOR COMMUNITY ED | C169: 24 | D169: 0 | E169: 0 | F169: 0 | G169: 0 | H169: 0 | I169: 18 | J169: 0 | K169: 14 | L169: 4 | M169: 0 | N169: 0 | O169: 17 | P169: 0 | Q169: 1
A170: 8101 | B170: JAN MANN OPPORTUNITY SCHOOL | C170: 13 | D170: 1 | E170: 0 | F170: 0 | G170: 0 | H170: 0 | I170: 11 | J170: 0 | K170: 7 | L170: 5 | M170: 0 | N170: 0 | O170: 12 | P170: 1 | Q170: 3
A171: 8121 | B171: COPE CENTER NORTH | C171: 27 | D171: 0 | E171: 0 | F171: 0 | G171: 0 | H171: 0 | I171: 19 | J171: 2 | K171: 12 | L171: 5 | M171: 0 | N171: 0 | O171: 17 | P171: 2 | Q171: 4
A172: 8131 | B172: DOROTHY M WALLACE COPE CENTER | C172: 32 | D172: 1 | E172: 0 | F172: 0 | G172: 0 | H172: 0 | I172: 16 | J172: 0 | K172: 11 | L172: 6 | M172: 0 | N172: 0 | O172: 17 | P172: 1 | Q172: 3
A173: 8141 | B173: JUVENILE JUSTICE CENTER | C173: 18 | D173: 0 | E173: 1 | F173: 0 | G173: 0 | H173: 0 | I173: 14 | J173: 0 | K173: 11 | L173: 4 | M173: 0 | N173: 0 | O173: 11 | P173: 1 | Q173: 3
A174: 8151 | B174: ROBERT RENICK EDUCATION CTR | C174: 9 | D174: 1 | E174: 0 | F174: 0 | G174: 0 | H174: 0 | I174: 5 | J174: 0 | K174: 4 | L174: 2 | M174: 0 | N174: 0 | O174: 6 | P174: 0 | Q174: 6
A175: 8181 | B175: RUTH OWENS KRUSE' EDUC CENTER | C175: 14 | D175: 0 | E175: 0 | F175: 0 | G175: 0 | H175: 0 | I175: 12 | J175: 1 | K175: 4 | L175: 6 | M175: 0 | N175: 0 | O175: 9 | P175: 0 | Q175: 12
A176: 9732 | B176: BRUCIE BALL EDUCATIONAL CENTER | C176: 21 | D176: 0 | E176: 0 | F176: 0 | G176: 0 | H176: 0 | I176: 18 | J176: 2 | K176: 1 | L176: 15 | M176: 0 | N176: 0 | O176: 14 | P176: 2 | Q176: 17
A177: (blank) | B177: (blank) | C177: 0 | D177: 0 | E177: 0 | F177: 0 | G177: 0 | H177: 0 | I177: 0 | J177: 0 | K177: 0 | L177: 0 | M177: 0 | N177: 0 | O177: 0 | P177: 0 | Q177: 0
A178: 9999 | B178: District | C178: 31005 | D178: 74 | E178: 291 | F178: 483 | G178: 219 | H178: 183 | I178: 26960 | J178: 2452 | K178: 5933 | L178: 19371 | M178: 348 | N178: 30 | O178: 21082 | P178: 4218 | Q178: 2043
A179: 0 | B179: 0 | C179: 0 | D179: 0 | E179: 0 | F179: 0 | G179: 0 | H179: 0 | I179: 0 | J179: 0 | K179: 0 | L179: 0 | M179: 0 | N179: 0 | O179: 0 | P179: 0 | Q179: 0
A180: 0 | B180: 0 | C180: 0 | D180: 0 | E180: 0 | F180: 0 | G180: 0 | H180: 0 | I180: 0 | J180: 0 | K180: 0 | L180: 0 | M180: 0 | N180: 0 | O180: 0 | P180: 0 | Q180: 0
A181: 0 | B181: 0 | C181: 0 | D181: 0 | E181: 0 | F181: 0 | G181: 0 | H181: 0 | I181: 0 | J181: 0 | K181: 0 | L181: 0 | M181: 0 | N181: 0 | O181: 0 | P181: 0 | Q181: 0
A182: 0 | B182: 0 | C182: 0 | D182: 0 | E182: 0 | F182: 0 | G182: 0 | H182: 0 | I182: 0 | J182: 0 | K182: 0 | L182: 0 | M182: 0 | N182: 0 | O182: 0 | P182: 0 | Q182: 0
A183: 0 | B183: 0 | C183: 0 | D183: 0 | E183: 0 | F183: 0 | G183: 0 | H183: 0 | I183: 0 | J183: 0 | K183: 0 | L183: 0 | M183: 0 | N183: 0 | O183: 0 | P183: 0 | Q183: 0
A184: 0 | B184: 0 | C184: 0 | D184: 0 | E184: 0 | F184: 0 | G184: 0 | H184: 0 | I184: 0 | J184: 0 | K184: 0 | L184: 0 | M184: 0 | N184: 0 | O184: 0 | P184: 0 | Q184: 0
A185: 0 | B185: 0 | C185: 0 | D185: 0 | E185: 0 | F185: 0 | G185: 0 | H185: 0 | I185: 0 | J185: 0 | K185: 0 | L185: 0 | M185: 0 | N185: 0 | O185: 0 | P185: 0 | Q185: 0
A186: 0 | B186: 0 | C186: 0 | D186: 0 | E186: 0 | F186: 0 | G186: 0 | H186: 0 | I186: 0 | J186: 0 | K186: 0 | L186: 0 | M186: 0 | N186: 0 | O186: 0 | P186: 0 | Q186: 0
A187: 0 | B187: 0 | C187: 0 | D187: 0 | E187: 0 | F187: 0 | G187: 0 | H187: 0 | I187: 0 | J187: 0 | K187: 0 | L187: 0 | M187: 0 | N187: 0 | O187: 0 | P187: 0 | Q187: 0
A188: 0 | B188: 0 | C188: 0 | D188: 0 | E188: 0 | F188: 0 | G188: 0 | H188: 0 | I188: 0 | J188: 0 | K188: 0 | L188: 0 | M188: 0 | N188: 0 | O188: 0 | P188: 0 | Q188: 0
A189: 0 | B189: 0 | C189: 0 | D189: 0 | E189: 0 | F189: 0 | G189: 0 | H189: 0 | I189: 0 | J189: 0 | K189: 0 | L189: 0 | M189: 0 | N189: 0 | O189: 0 | P189: 0 | Q189: 0
A190: 0 | B190: 0 | C190: 0 | D190: 0 | E190: 0 | F190: 0 | G190: 0 | H190: 0 | I190: 0 | J190: 0 | K190: 0 | L190: 0 | M190: 0 | N190: 0 | O190: 0 | P190: 0 | Q190: 0
A191: 0 | B191: 0 | C191: 0 | D191: 0 | E191: 0 | F191: 0 | G191: 0 | H191: 0 | I191: 0 | J191: 0 | K191: 0 | L191: 0 | M191: 0 | N191: 0 | O191: 0 | P191: 0 | Q191: 0
A192: 0 | B192: 0 | C192: 0 | D192: 0 | E192: 0 | F192: 0 | G192: 0 | H192: 0 | I192: 0 | J192: 0 | K192: 0 | L192: 0 | M192: 0 | N192: 0 | O192: 0 | P192: 0 | Q192: 0
A193: 0 | B193: 0 | C193: 0 | D193: 0 | E193: 0 | F193: 0 | G193: 0 | H193: 0 | I193: 0 | J193: 0 | K193: 0 | L193: 0 | M193: 0 | N193: 0 | O193: 0 | P193: 0 | Q193: 0
A194: 0 | B194: 0 | C194: 0 | D194: 0 | E194: 0 | F194: 0 | G194: 0 | H194: 0 | I194: 0 | J194: 0 | K194: 0 | L194: 0 | M194: 0 | N194: 0 | O194: 0 | P194: 0 | Q194: 0
A195: 0 | B195: 0 | C195: 0 | D195: 0 | E195: 0 | F195: 0 | G195: 0 | H195: 0 | I195: 0 | J195: 0 | K195: 0 | L195: 0 | M195: 0 | N195: 0 | O195: 0 | P195: 0 | Q195: 0
A196: 0 | B196: 0 | C196: 0 | D196: 0 | E196: 0 | F196: 0 | G196: 0 | H196: 0 | I196: 0 | J196: 0 | K196: 0 | L196: 0 | M196: 0 | N196: 0 | O196: 0 | P196: 0 | Q196: 0
A197: 0 | B197: 0 | C197: 0 | D197: 0 | E197: 0 | F197: 0 | G197: 0 | H197: 0 | I197: 0 | J197: 0 | K197: 0 | L197: 0 | M197: 0 | N197: 0 | O197: 0 | P197: 0 | Q197: 0
A198: 0 | B198: 0 | C198: 0 | D198: 0 | E198: 0 | F198: 0 | G198: 0 | H198: 0 | I198: 0 | J198: 0 | K198: 0 | L198: 0 | M198: 0 | N198: 0 | O198: 0 | P198: 0 | Q198: 0
A199: 0 | B199: 0 | C199: 0 | D199: 0 | E199: 0 | F199: 0 | G199: 0 | H199: 0 | I199: 0 | J199: 0 | K199: 0 | L199: 0 | M199: 0 | N199: 0 | O199: 0 | P199: 0 | Q199: 0
A200: 0 | B200: 0 | C200: 0 | D200: 0 | E200: 0 | F200: 0 | G200: 0 | H200: 0 | I200: 0 | J200: 0 | K200: 0 | L200: 0 | M200: 0 | N200: 0 | O200: 0 | P200: 0 | Q200: 0
... 16 more rows

Sheet Bio Enrollment (hidden)
A1: STUDENT_GRADE | B1: (All)
A3: Count of STUDENT_ID
A4: CLASS_SCHOOL | B4: S_SCHL_NAME | C4: Total
A5: 0241 | B5: RUTH K BROAD/BAY HARBOR K-8 | C5: 13
A6: 0332 | B6: SOMERSET ACADEMY(SILVER PALMS) | C6: 1
A7: 0950 | B7: AVENTURA CITY OF EXCELLENCE | C7: 20
A8: 1020 | B8: YOUTH CO-OP CHARTER SCHOOL | C8: 1
A9: 1331 | B9: DEVON AIRE K-8 CENTER | C9: 42
A10: 1681 | B10: LILLIE C. EVANS K-8 CENTER | C10: 2
A11: 3029 | B11: DORAL ACADEMY OF TECHNOLOGY | C11: 41
A12: 3101 | B12: FRANK C. MARTIN K-8 CENTER | C12: 68
A13: 3281 | B13: MIAMI LAKES K-8 CENTER | C13: 36
A14: 3610 | B14: KEYS GATE CHARTER SCHOOL | C14: 71
A15: 5006 | B15: EVERGLADES PREPARATORY ACADEMY | C15: 21
A16: 5961 | B16: WINSTON PARK K-8 CENTER | C16: 8
A17: 6001 | B17: HERBERT A. AMMONS MIDDLE | C17: 101
A18: 6004 | B18: SOMERSET ACADEMY MIDDLE | C18: 26
A19: 6009 | B19: MATER ACADEMY EAST MIDDLE | C19: 3
A20: 6012 | B20: MATER ACADEMY CHARTER MIDDLE | C20: 226
A21: 6013 | B21: SOMERSET ACADEMY MIDDLE-SOUTH | C21: 1
A22: 6014 | B22: IMATER ACADEMY MIDDLE SCHOOL | C22: 42
A23: 6015 | B23: SPORTS LEADERSHIP AND MGMT CMS | C23: 6
A24: 6020 | B24: ASPIRA RAUL A. MARTINEZ CHTR | C24: 49
A25: 6021 | B25: ARVIDA MIDDLE SCHOOL | C25: 93
A26: 6022 | B26: PINECREST ACADEMY CHARTER MIDD | C26: 106
A27: 6023 | B27: ANDOVER MIDDLE SCHOOL | C27: 44
A28: 6030 | B28: DORAL ACADEMY CHARTER MIDDLE | C28: 105
A29: 6033 | B29: MATER ACADEMY LAKES MIDDLE | C29: 62
A30: 6040 | B30: DOCTORS CHARTER/MIAMI SHORES | C30: 103
A31: 6042 | B31: MATER GARDENS ACADEMY MIDDLE | C31: 51
A32: 6045 | B32: INTL. STUDIES CHARTER MIDDLE | C32: 1
A33: 6048 | B33: MIAMI COMMUNITY CHARTER MIDDLE | C33: 7
A34: 6053 | B34: SOMERSET ACAD MIDDLE (S-MIAMI) | C34: 32
A35: 6071 | B35: GEORGE WASHINGTON CARVER | C35: 25
A36: 6081 | B36: CUTLER BAY ACAD OF ADV STUDIES | C36: 131
A37: 6111 | B37: CUTLER BAY ACAD - CUTLER RIDGE | C37: 7
A38: 6161 | B38: LAWTON CHILES MIDDLE SCHOOL | C38: 2
A39: 6211 | B39: GLADES MIDDLE | C39: 47
A40: 6241 | B40: HIGHLAND OAKS MIDDLE | C40: 95
A41: 6351 | B41: LAKE STEVENS MIDDLE | C41: 1
A42: 6441 | B42: HOWARD D. MCMILLAN MIDDLE | C42: 52
A43: 6501 | B43: MIAMI LAKES MIDDLE | C43: 17
A44: 6521 | B44: MIAMI SPRINGS MIDDLE | C44: 23
A45: 6541 | B45: NAUTILUS MIDDLE | C45: 56
A46: 6591 | B46: NORTH DADE MIDDLE | C46: 21
A47: 6701 | B47: PALMETTO MIDDLE | C47: 1
A48: 6741 | B48: PONCE DE LEON MIDDLE | C48: 36
A49: 6751 | B49: HIALEAH GARDENS MIDDLE SCHOOL | C49: 237
A50: 6821 | B50: ROCKWAY MIDDLE | C50: 64
A51: 6841 | B51: SHENANDOAH MIDDLE | C51: 19
A52: 6861 | B52: SOUTHWOOD MIDDLE | C52: 15
A53: 6901 | B53: W. R. THOMAS MIDDLE | C53: 126
A54: 6997 | B54: MATER VIRTUAL ACADEMY CHARTER | C54: 1
A55: 7001 | B55: MIAMI-DADE ONLINE ACADEMY 7001 | C55: 20
A56: 7007 | B56: INTL. STUDIES CHARTER SENIOR | C56: 119
A57: 7009 | B57: DORAL PERFORMING ARTS ACADEMY | C57: 99
A58: 7011 | B58: AMERICAN SENIOR | C58: 567
A59: 7014 | B59: MATER PERFORMING ARTS ACADEMY | C59: 44
A60: 7015 | B60: STELLAR LEADERSHIP ACADEMY | C60: 138
A61: 7016 | B61: SPORTS LEADERSHIP OF MIAMI CHS | C61: 96
A62: 7018 | B62: MATER ACADEMY LAKES HIGH SCH | C62: 231
A63: 7020 | B63: DORAL ACADEMY HIGH SCHOOL | C63: 344
A64: 7022 | B64: ACADEMY OF ARTS AND MINDS | C64: 95
A65: 7024 | B65: MATER ACADEMY HIGH-INTL STUDIE | C65: 26
A66: 7029 | B66: TERRA ENVIRONMENTAL RESEARCH | C66: 386
A67: 7030 | B67: INTEGRATED ACADEMICS (SIATECH) | C67: 5
A68: 7031 | B68: MAST @ FIU BISCAYNE BAY CAMPUS | C68: 82
A69: 7033 | B69: LAW ENFORCEMENT OFFICERS HS | C69: 71
A70: 7034 | B70: SOMERSET ACAD HIGH SOUTH-HMSTD | C70: 23
A71: 7036 | B71: LAWRENCE ACADEMY SENIOR | C71: 15
A72: 7037 | B72: MATER ACADEMY EAST HIGH SCHOOL | C72: 75
A73: 7038 | B73: SOMERSET ACADEMY HIGH (SOUTH) | C73: 31
A74: 7042 | B74: SOMERSET ACADEMY CHARTER HIGH | C74: 83
A75: 7048 | B75: ALONZO & TRACY MOURNING SH | C75: 395
A76: 7049 | B76: WESTLAND HIALEAH SENIOR HIGH | C76: 640
A77: 7050 | B77: KEYS GATE CHARTER HIGH SCHL | C77: 225
A78: 7051 | B78: G. HOLMES BRADDOCK SENIOR HIGH | C78: 947
A79: 7053 | B79: PINECREST ACADEMY CHARTER HIGH | C79: 96
A80: 7055 | B80: YOUNG WOMEN'S PREPARATORY ACAD | C80: 51
A81: 7056 | B81: YOUNG MENS PREPARATORY ACADEMY | C81: 28
A82: 7058 | B82: MIAMI COMMUNITY CH HIGH SCHOOL | C82: 48
A83: 7059 | B83: MIAMI ARTS CHARTER | C83: 105
A84: 7060 | B84: EVERGLADES PREP ACADEMY HIGH | C84: 41
A85: 7062 | B85: MAVERICKS HIGH OF NORTH M-DADE | C85: 17
A86: 7065 | B86: MAVERICKS HIGH OF SOUTH M-DADE | C86: 72
A87: 7066 | B87: LBA CONSTR & BUS MGMT ACAD | C87: 51
A88: 7067 | B88: GREEN SPRINGS HIGH SCHOOL | C88: 42
A89: 7068 | B89: NORTH GARDENS HIGH SCHOOL | C89: 30
A90: 7069 | B90: NORTH PARK HIGH SCHOOL | C90: 27
A91: 7070 | B91: YOUTH CO-OP PREP HIGH SCHOOL | C91: 59
A92: 7071 | B92: CORAL GABLES SENIOR HIGH | C92: 860
A93: 7080 | B93: CHARTER HS OF THE AMERICAS | C93: 39
A94: 7081 | B94: DESIGN & ARCHITECTURE SENIOR | C94: 117
A95: 7090 | B95: IMATER PREP ACADEMY HIGH | C95: 192
A96: 7101 | B96: CORAL REEF SENIOR HIGH | C96: 789
A97: 7111 | B97: HIALEAH SENIOR | C97: 707
A98: 7121 | B98: JOHN A FERGUSON SENIOR HIGH | C98: 1117
A99: 7131 | B99: HIALEAH-MIAMI LAKES SENIOR | C99: 440
A100: 7141 | B100: DR MICHAEL M KROP SENIOR HIGH | C100: 621
A101: 7151 | B101: HOMESTEAD SENIOR HIGH | C101: 410
A102: 7160 | B102: MATER ACADEMY CHARTER HIGH | C102: 405
A103: 7161 | B103: MARITIME & SCIENCE TECH ACAD | C103: 257
A104: 7171 | B104: MED ACAD SCIENCE & TECHNOLOGY | C104: 103
A105: 7191 | B105: HIALEAH GARDENS SENIOR | C105: 732
A106: 7201 | B106: MIAMI BEACH SENIOR HIGH | C106: 602
A107: 7231 | B107: MIAMI CAROL CITY SENIOR HIGH | C107: 396
A108: 7241 | B108: RONALD W REAGAN/DORAL SENIOR | C108: 546
A109: 7251 | B109: MIAMI CENTRAL SENIOR HIGH | C109: 536
A110: 7262 | B110: CITY OF HIALEAH EDUCATION ACAD | C110: 105
A111: 7265 | B111: ARCHIMEDEAN UPPER CONSERV CHAR | C111: 32
A112: 7271 | B112: MIAMI CORAL PARK SENIOR HIGH | C112: 734
A113: 7291 | B113: JOSE MARTI MAST 6-12 ACADEMY | C113: 69
A114: 7301 | B114: MIAMI EDISON SENIOR HIGH | C114: 204
A115: 7341 | B115: MIAMI JACKSON SENIOR HIGH | C115: 436
A116: 7351 | B116: ARTHUR AND POLLY MAYS CONSERVA | C116: 69
A117: 7361 | B117: MIAMI KILLIAN SENIOR HIGH | C117: 570
A118: 7371 | B118: ROBERT MORGAN EDUCATIONAL CTR | C118: 602
A119: 7381 | B119: MIAMI NORLAND SENIOR HIGH | C119: 462
A120: 7391 | B120: MIAMI LAKES EDUCATIONAL CENTER | C120: 529
A121: 7411 | B121: MIAMI NORTHWESTERN SENIOR HIGH | C121: 465
A122: 7431 | B122: MIAMI PALMETTO SENIOR HIGH | C122: 558
A123: 7461 | B123: MIAMI SENIOR HIGH | C123: 739
A124: 7511 | B124: MIAMI SPRINGS SENIOR HIGH | C124: 421
A125: 7531 | B125: MIAMI SUNSET SENIOR HIGH | C125: 437
A126: 7541 | B126: NORTH MIAMI BEACH SENIOR HIGH | C126: 505
A127: 7571 | B127: INTL STUDIES PREP ACADEMY | C127: 98
A128: 7581 | B128: IPREPARATORY ACADEMY | C128: 40
A129: 7591 | B129: NORTH MIAMI SENIOR HIGH | C129: 614
A130: 7601 | B130: WILLIAM H. TURNER TECHNICAL | C130: 459
A131: 7631 | B131: MIAMI MACARTHUR SOUTH | C131: 13
A132: 7701 | B132: SOUTH DADE SENIOR HIGH | C132: 861
A133: 7721 | B133: SOUTH MIAMI SENIOR HIGH | C133: 615
A134: 7731 | B134: MIAMI SOUTHRIDGE SENIOR HIGH | C134: 516
A135: 7741 | B135: SOUTHWEST MIAMI SENIOR HIGH | C135: 783
A136: 7751 | B136: BARBARA GOLEMAN SENIOR HIGH | C136: 398
A137: 7781 | B137: FELIX VARELA SENIOR HIGH | C137: 824
A138: 7791 | B138: BOOKER T. WASHINGTON SR. HIGH | C138: 228
A139: 7901 | B139: NEW WORLD SCHOOL OF THE ARTS | C139: 128
A140: 8014 | B140: ALTERNATIVE OUTREACH-EXT. YR | C140: 36
A141: 8017 | B141: ALTERNATIVE OUTREACH PROGRAM | C141: 67
A142: 8019 | B142: ACADEMY FOR COMMUNITY ED | C142: 17
A143: 8101 | B143: JAN MANN OPPORTUNITY SCHOOL | C143: 13
A144: 8121 | B144: COPE CENTER NORTH | C144: 22
A145: 8131 | B145: DOROTHY M WALLACE COPE CENTER | C145: 31
A146: 8141 | B146: JUVENILE JUSTICE CENTER | C146: 15
A147: 8151 | B147: ROBERT RENICK EDUCATION CTR | C147: 9
A148: 8181 | B148: RUTH OWENS KRUSE' EDUC CENTER | C148: 15
A149: 9732 | B149: BRUCIE BALL EDUCATIONAL CENTER | C149: 18
A150: 9999 | C150: 29408

Sheet USH Enrollment (hidden)
A3: Count of STUDENT_ID
A4: CLASS_SCHOOL | B4: S_SCHL_NAME | C4: Total
A5: 3032 | B5: PALM GLADES PREPATORY ACADEMY | C5: 118
A6: 5006 | B6: EVERGLADES PREPARATORY ACADEMY | C6: 69
A7: 6020 | B7: ASPIRA RAUL A. MARTINEZ CHTR | C7: 207
A8: 6040 | B8: DOCTORS CHARTER/MIAMI SHORES | C8: 50
A9: 6997 | B9: MATER VIRTUAL ACADEMY CHARTER | C9: 1
A10: 7001 | B10: MIAMI-DADE ONLINE ACADEMY 7001 | C10: 17
A11: 7007 | B11: INTL. STUDIES CHARTER SENIOR | C11: 83
A12: 7009 | B12: DORAL PERFORMING ARTS ACADEMY | C12: 51
A13: 7011 | B13: AMERICAN SENIOR | C13: 378
A14: 7014 | B14: MATER PERFORMING ARTS ACADEMY | C14: 22
A15: 7015 | B15: STELLAR LEADERSHIP ACADEMY | C15: 133
A16: 7016 | B16: SPORTS LEADERSHIP OF MIAMI CHS | C16: 59
A17: 7018 | B17: MATER ACADEMY LAKES HIGH SCH | C17: 227
A18: 7020 | B18: DORAL ACADEMY HIGH SCHOOL | C18: 266
A19: 7022 | B19: ACADEMY OF ARTS AND MINDS | C19: 96
A20: 7029 | B20: TERRA ENVIRONMENTAL RESEARCH | C20: 276
A21: 7030 | B21: INTEGRATED ACADEMICS (SIATECH) | C21: 18
A22: 7032 | B22: PALM GLADES PREP HIGH SCHOOL | C22: 27
A23: 7033 | B23: LAW ENFORCEMENT OFFICERS HS | C23: 62
A24: 7034 | B24: SOMERSET ACAD HIGH SOUTH-HMSTD | C24: 21
A25: 7036 | B25: LAWRENCE ACADEMY SENIOR | C25: 7
A26: 7037 | B26: MATER ACADEMY EAST HIGH SCHOOL | C26: 83
A27: 7042 | B27: SOMERSET ACADEMY CHARTER HIGH | C27: 53
A28: 7048 | B28: ALONZO & TRACY MOURNING SH | C28: 420
A29: 7049 | B29: WESTLAND HIALEAH SENIOR HIGH | C29: 343
A30: 7050 | B30: KEYS GATE CHARTER HIGH SCHL | C30: 179
A31: 7051 | B31: G. HOLMES BRADDOCK SENIOR HIGH | C31: 643
A32: 7053 | B32: PINECREST ACADEMY CHARTER HIGH | C32: 80
A33: 7056 | B33: YOUNG MENS PREPARATORY ACADEMY | C33: 29
A34: 7058 | B34: MIAMI COMMUNITY CH HIGH SCHOOL | C34: 40
A35: 7059 | B35: MIAMI ARTS CHARTER | C35: 50
A36: 7060 | B36: EVERGLADES PREP ACADEMY HIGH | C36: 30
A37: 7062 | B37: MAVERICKS HIGH OF NORTH M-DADE | C37: 9
A38: 7065 | B38: MAVERICKS HIGH OF SOUTH M-DADE | C38: 91
A39: 7067 | B39: GREEN SPRINGS HIGH SCHOOL | C39: 39
A40: 7068 | B40: NORTH GARDENS HIGH SCHOOL | C40: 40
A41: 7069 | B41: NORTH PARK HIGH SCHOOL | C41: 32
A42: 7071 | B42: CORAL GABLES SENIOR HIGH | C42: 643
A43: 7081 | B43: DESIGN & ARCHITECTURE SENIOR | C43: 99
A44: 7101 | B44: CORAL REEF SENIOR HIGH | C44: 370
A45: 7111 | B45: HIALEAH SENIOR | C45: 730
A46: 7121 | B46: JOHN A FERGUSON SENIOR HIGH | C46: 779
A47: 7131 | B47: HIALEAH-MIAMI LAKES SENIOR | C47: 360
A48: 7141 | B48: DR MICHAEL M KROP SENIOR HIGH | C48: 549
A49: 7151 | B49: HOMESTEAD SENIOR HIGH | C49: 367
A50: 7160 | B50: MATER ACADEMY CHARTER HIGH | C50: 254
A51: 7161 | B51: MARITIME & SCIENCE TECH ACAD | C51: 34
A52: 7171 | B52: MED ACAD SCIENCE & TECHNOLOGY | C52: 98
A53: 7191 | B53: HIALEAH GARDENS SENIOR | C53: 533
A54: 7201 | B54: MIAMI BEACH SENIOR HIGH | C54: 418
A55: 7231 | B55: MIAMI CAROL CITY SENIOR HIGH | C55: 443
A56: 7241 | B56: RONALD W REAGAN/DORAL SENIOR | C56: 408
A57: 7251 | B57: MIAMI CENTRAL SENIOR HIGH | C57: 408
A58: 7262 | B58: CITY OF HIALEAH EDUCATION ACAD | C58: 60
A59: 7265 | B59: ARCHIMEDEAN UPPER CONSERV CHAR | C59: 18
A60: 7271 | B60: MIAMI CORAL PARK SENIOR HIGH | C60: 555
A61: 7291 | B61: JOSE MARTI MAST 6-12 ACADEMY | C61: 41
A62: 7301 | B62: MIAMI EDISON SENIOR HIGH | C62: 222
A63: 7341 | B63: MIAMI JACKSON SENIOR HIGH | C63: 246
A64: 7351 | B64: ARTHUR AND POLLY MAYS CONSERVA | C64: 87
A65: 7361 | B65: MIAMI KILLIAN SENIOR HIGH | C65: 449
A66: 7371 | B66: ROBERT MORGAN EDUCATIONAL CTR | C66: 463
A67: 7381 | B67: MIAMI NORLAND SENIOR HIGH | C67: 357
A68: 7391 | B68: MIAMI LAKES EDUCATIONAL CENTER | C68: 246
A69: 7411 | B69: MIAMI NORTHWESTERN SENIOR HIGH | C69: 325
A70: 7431 | B70: MIAMI PALMETTO SENIOR HIGH | C70: 412
A71: 7461 | B71: MIAMI SENIOR HIGH | C71: 627
A72: 7511 | B72: MIAMI SPRINGS SENIOR HIGH | C72: 425
A73: 7531 | B73: MIAMI SUNSET SENIOR HIGH | C73: 379
A74: 7541 | B74: NORTH MIAMI BEACH SENIOR HIGH | C74: 353
A75: 7571 | B75: INTL STUDIES PREP ACADEMY | C75: 3
A76: 7581 | B76: IPREPARATORY ACADEMY | C76: 24
A77: 7591 | B77: NORTH MIAMI SENIOR HIGH | C77: 567
A78: 7601 | B78: WILLIAM H. TURNER TECHNICAL | C78: 313
A79: 7631 | B79: MIAMI MACARTHUR SOUTH | C79: 11
A80: 7701 | B80: SOUTH DADE SENIOR HIGH | C80: 707
A81: 7721 | B81: SOUTH MIAMI SENIOR HIGH | C81: 468
A82: 7731 | B82: MIAMI SOUTHRIDGE SENIOR HIGH | C82: 463
A83: 7741 | B83: SOUTHWEST MIAMI SENIOR HIGH | C83: 680
A84: 7751 | B84: BARBARA GOLEMAN SENIOR HIGH | C84: 393
A85: 7781 | B85: FELIX VARELA SENIOR HIGH | C85: 707
A86: 7791 | B86: BOOKER T. WASHINGTON SR. HIGH | C86: 207
A87: 7901 | B87: NEW WORLD SCHOOL OF THE ARTS | C87: 70
A88: 8014 | B88: ALTERNATIVE OUTREACH-EXT. YR | C88: 47
A89: 8017 | B89: ALTERNATIVE OUTREACH PROGRAM | C89: 79
A90: 8019 | B90: ACADEMY FOR COMMUNITY ED | C90: 25
A91: 8101 | B91: JAN MANN OPPORTUNITY SCHOOL | C91: 8
A92: 8121 | B92: COPE CENTER NORTH | C92: 33
A93: 8131 | B93: DOROTHY M WALLACE COPE CENTER | C93: 31
A94: 8141 | B94: JUVENILE JUSTICE CENTER | C94: 19
A95: 8151 | B95: ROBERT RENICK EDUCATION CTR | C95: 5
A96: 9732 | B96: BRUCIE BALL EDUCATIONAL CENTER | C96: 29
A97: 9999 | C97: 20996

Sheet Mem_All (hidden)
A1: 1 | B1: 2 | C1: 3 | D1: 4 | E1: 5 | F1: 6 | G1: 7 | H1: 8 | I1: 9 | J1: 10 | K1: 11 | L1: 12 | M1: 13 | N1: 14 | O1: 15 | P1: 16 | Q1: 17 | R1: GR10Reading exclude Retainee
A2: SCHOOL_NUMBER | B2: S_SCHL_NAME | C2: Total Of STUDENT_ID | D2: 00 | E2: 01 | F2: 02 | G2: 03 | H2: 04 | I2: 05 | J2: 06 | K2: 07 | L2: 08 | M2: 09 | N2: 10 | O2: 11 | P2: 12 | Q2: PK | R2: =N2-IFERROR(VLOOKUP(TEXT(A2,"0000"),G10RPassingR!$A$2:$S$200,4,FALSE),0) -> 10
A3: 0041 | B3: AIR BASE ELEMENTARY | C3: 778 | D3: 114 | E3: 113 | F3: 107 | G3: 117 | H3: 110 | I3: 115 | J3: 35 | Q3: 67 | R3: =N3-IFERROR(VLOOKUP(TEXT(A3,"0000"),G10RPassingR!$A$2:$S$200,4,FALSE),0) -> 0
A4: 0070 | B4: CORAL REEF MONTESSORI ACAD CH | C4: 414 | D4: 71 | E4: 68 | F4: 52 | G4: 53 | H4: 53 | I4: 38 | J4: 28 | K4: 21 | L4: 30 | R4: =N4-IFERROR(VLOOKUP(TEXT(A4,"0000"),G10RPassingR!$A$2:$S$200,4,FALSE),0) -> 0
A5: 0071 | B5: EUGENIA B. THOMAS K-8 CENTER | C5: 1602 | D5: 150 | E5: 159 | F5: 199 | G5: 194 | H5: 192 | I5: 199 | J5: 154 | K5: 149 | L5: 162 | Q5: 44 | R5: =N5-IFERROR(VLOOKUP(TEXT(A5,"0000"),G10RPassingR!$A$2:$S$200,4,FALSE),0) -> 0
A6: 0072 | B6: SUMMERVILLE CHARTER SCHOOL | C6: 440 | E6: 109 | F6: 94 | G6: 85 | H6: 80 | I6: 72 | R6: =N6-IFERROR(VLOOKUP(TEXT(A6,"0000"),G10RPassingR!$A$2:$S$200,4,FALSE),0) -> 0
A7: 0073 | B7: MANDARIN LAKES K-8 CENTER | C7: 1086 | D7: 144 | E7: 109 | F7: 145 | G7: 156 | H7: 125 | I7: 118 | J7: 113 | K7: 114 | L7: 62 | R7: =N7-IFERROR(VLOOKUP(TEXT(A7,"0000"),G10RPassingR!$A$2:$S$200,4,FALSE),0) -> 0
A8: 0081 | B8: LENORA B. SMITH ELEMENTARY | C8: 408 | D8: 67 | E8: 57 | F8: 68 | G8: 63 | H8: 63 | I8: 52 | Q8: 38 | R8: =N8-IFERROR(VLOOKUP(TEXT(A8,"0000"),G10RPassingR!$A$2:$S$200,4,FALSE),0) -> 0
A9: 0091 | B9: BOB GRAHAM EDUCATION CTR | C9: 1715 | D9: 144 | E9: 130 | F9: 159 | G9: 186 | H9: 195 | I9: 218 | J9: 196 | K9: 218 | L9: 230 | Q9: 39 | R9: =N9-IFERROR(VLOOKUP(TEXT(A9,"0000"),G10RPassingR!$A$2:$S$200,4,FALSE),0) -> 0
A10: 0092 | B10: NORMAN S. EDELCUP/SUNNY ISLES | C10: 1850 | D10: 197 | E10: 210 | F10: 210 | G10: 230 | H10: 225 | I10: 215 | J10: 187 | K10: 180 | L10: 193 | Q10: 3 | R10: =N10-IFERROR(VLOOKUP(TEXT(A10,"0000"),G10RPassingR!$A$2:$S$200,4,FALSE),0) -> 0
A11: 0100 | B11: MATER ACADEMY | C11: 743 | D11: 125 | E11: 124 | F11: 95 | G11: 147 | H11: 123 | I11: 129 | R11: =N11-IFERROR(VLOOKUP(TEXT(A11,"0000"),G10RPassingR!$A$2:$S$200,4,FALSE),0) -> 0
A12: 0101 | B12: ARCOLA LAKE ELEMENTARY | C12: 483 | D12: 89 | E12: 66 | F12: 65 | G12: 76 | H12: 52 | I12: 65 | Q12: 70 | R12: =N12-IFERROR(VLOOKUP(TEXT(A12,"0000"),G10RPassingR!$A$2:$S$200,4,FALSE),0) -> 0
A13: 0102 | B13: MIAMI COMMUNITY CHARTER SCHOOL | C13: 519 | D13: 97 | E13: 93 | F13: 89 | G13: 89 | H13: 82 | I13: 69 | R13: =N13-IFERROR(VLOOKUP(TEXT(A13,"0000"),G10RPassingR!$A$2:$S$200,4,FALSE),0) -> 0
A14: 0111 | B14: MAYA ANGELOU ELEMENTARY | C14: 706 | D14: 108 | E14: 148 | F14: 108 | G14: 119 | H14: 80 | I14: 88 | Q14: 55 | R14: =N14-IFERROR(VLOOKUP(TEXT(A14,"0000"),G10RPassingR!$A$2:$S$200,4,FALSE),0) -> 0
A15: 0121 | B15: AUBURNDALE ELEMENTARY | C15: 845 | D15: 111 | E15: 123 | F15: 142 | G15: 146 | H15: 122 | I15: 140 | Q15: 61 | R15: =N15-IFERROR(VLOOKUP(TEXT(A15,"0000"),G10RPassingR!$A$2:$S$200,4,FALSE),0) -> 0
A16: 0122 | B16: DR ROLANDO ESPINOSA K-8 | C16: 1618 | D16: 168 | E16: 148 | F16: 192 | G16: 193 | H16: 172 | I16: 210 | J16: 157 | K16: 178 | L16: 181 | Q16: 19 | R16: =N16-IFERROR(VLOOKUP(TEXT(A16,"0000"),G10RPassingR!$A$2:$S$200,4,FALSE),0) -> 0
A17: 0125 | B17: NORMA BUTLER BOSSARD ELEM | C17: 1281 | D17: 187 | E17: 226 | F17: 221 | G17: 187 | H17: 224 | I17: 217 | Q17: 19 | R17: =N17-IFERROR(VLOOKUP(TEXT(A17,"0000"),G10RPassingR!$A$2:$S$200,4,FALSE),0) -> 0
A18: 0161 | B18: AVOCADO ELEMENTARY | C18: 565 | D18: 130 | E18: 136 | F18: 136 | G18: 163 | R18: =N18-IFERROR(VLOOKUP(TEXT(A18,"0000"),G10RPassingR!$A$2:$S$200,4,FALSE),0) -> 0
A19: 0201 | B19: BANYAN ELEMENTARY | C19: 358 | D19: 59 | E19: 51 | F19: 58 | G19: 60 | H19: 36 | I19: 60 | Q19: 34 | R19: =N19-IFERROR(VLOOKUP(TEXT(A19,"0000"),G10RPassingR!$A$2:$S$200,4,FALSE),0) -> 0
A20: 0211 | B20: DR. MANUEL C. BARREIRO ELEM | C20: 808 | D20: 105 | E20: 124 | F20: 135 | G20: 122 | H20: 136 | I20: 167 | Q20: 19 | R20: =N20-IFERROR(VLOOKUP(TEXT(A20,"0000"),G10RPassingR!$A$2:$S$200,4,FALSE),0) -> 0
A21: 0231 | B21: AVENTURA WATERWAYS K-8 CENTER | C21: 1845 | D21: 194 | E21: 230 | F21: 242 | G21: 236 | H21: 177 | I21: 207 | J21: 192 | K21: 190 | L21: 177 | R21: =N21-IFERROR(VLOOKUP(TEXT(A21,"0000"),G10RPassingR!$A$2:$S$200,4,FALSE),0) -> 0
A22: 0241 | B22: RUTH K BROAD/BAY HARBOR K-8 | C22: 1316 | D22: 131 | E22: 146 | F22: 135 | G22: 162 | H22: 141 | I22: 171 | J22: 131 | K22: 159 | L22: 120 | Q22: 20 | R22: =N22-IFERROR(VLOOKUP(TEXT(A22,"0000"),G10RPassingR!$A$2:$S$200,4,FALSE),0) -> 0
A23: 0251 | B23: ETHEL KOGER BECKHAM ELEMENTARY | C23: 794 | D23: 137 | E23: 141 | F23: 119 | G23: 119 | H23: 123 | I23: 116 | Q23: 39 | R23: =N23-IFERROR(VLOOKUP(TEXT(A23,"0000"),G10RPassingR!$A$2:$S$200,4,FALSE),0) -> 0
A24: 0261 | B24: BEL-AIRE ELEMENTARY | C24: 416 | D24: 73 | E24: 65 | F24: 70 | G24: 70 | H24: 62 | I24: 55 | Q24: 21 | R24: =N24-IFERROR(VLOOKUP(TEXT(A24,"0000"),G10RPassingR!$A$2:$S$200,4,FALSE),0) -> 0
A25: 0271 | B25: BENT TREE ELEMENTARY | C25: 533 | D25: 89 | E25: 105 | F25: 74 | G25: 81 | H25: 74 | I25: 86 | Q25: 24 | R25: =N25-IFERROR(VLOOKUP(TEXT(A25,"0000"),G10RPassingR!$A$2:$S$200,4,FALSE),0) -> 0
A26: 0311 | B26: GOULDS ELEMENTARY | C26: 598 | D26: 100 | E26: 114 | F26: 114 | G26: 91 | H26: 76 | I26: 103 | R26: =N26-IFERROR(VLOOKUP(TEXT(A26,"0000"),G10RPassingR!$A$2:$S$200,4,FALSE),0) -> 0
A27: 0312 | B27: MATER GARDENS ACADEMY | C27: 566 | D27: 83 | E27: 97 | F27: 97 | G27: 96 | H27: 102 | I27: 91 | R27: =N27-IFERROR(VLOOKUP(TEXT(A27,"0000"),G10RPassingR!$A$2:$S$200,4,FALSE),0) -> 0
A28: 0321 | B28: BISCAYNE ELEMENTARY | C28: 635 | D28: 97 | E28: 92 | F28: 91 | G28: 97 | H28: 90 | I28: 107 | Q28: 61 | R28: =N28-IFERROR(VLOOKUP(TEXT(A28,"0000"),G10RPassingR!$A$2:$S$200,4,FALSE),0) -> 0
A29: 0331 | B29: CHAPMAN PARTNERSHIP ECC NORTH | C29: 39 | Q29: 39 | R29: =N29-IFERROR(VLOOKUP(TEXT(A29,"0000"),G10RPassingR!$A$2:$S$200,4,FALSE),0) -> 0
A30: 0332 | B30: SOMERSET ACADEMY(SILVER PALMS) | C30: 621 | G30: 66 | H30: 70 | I30: 47 | J30: 157 | K30: 144 | L30: 137 | R30: =N30-IFERROR(VLOOKUP(TEXT(A30,"0000"),G10RPassingR!$A$2:$S$200,4,FALSE),0) -> 0
A31: 0339 | B31: SOMERSET ACADEMY CHARTER ELEM | C31: 430 | D31: 90 | E31: 67 | F31: 69 | G31: 75 | H31: 78 | I31: 51 | R31: =N31-IFERROR(VLOOKUP(TEXT(A31,"0000"),G10RPassingR!$A$2:$S$200,4,FALSE),0) -> 0
A32: 0341 | B32: ARCH CREEK ELEMENTARY SCHOOL | C32: 588 | D32: 94 | E32: 87 | F32: 87 | G32: 119 | H32: 97 | I32: 104 | R32: =N32-IFERROR(VLOOKUP(TEXT(A32,"0000"),G10RPassingR!$A$2:$S$200,4,FALSE),0) -> 0
A33: 0342 | B33: PINECREST ACADEMY SOUTH CAMPUS | C33: 728 | D33: 116 | E33: 138 | F33: 140 | G33: 108 | H33: 125 | I33: 101 | R33: =N33-IFERROR(VLOOKUP(TEXT(A33,"0000"),G10RPassingR!$A$2:$S$200,4,FALSE),0) -> 0
A34: 0351 | B34: CHAPMAN PARTNERSHIP ECC SOUTH | C34: 51 | Q34: 51 | R34: =N34-IFERROR(VLOOKUP(TEXT(A34,"0000"),G10RPassingR!$A$2:$S$200,4,FALSE),0) -> 0
A35: 0361 | B35: BISCAYNE GARDENS ELEMENTARY | C35: 607 | D35: 120 | E35: 99 | F35: 86 | G35: 82 | H35: 75 | I35: 83 | Q35: 62 | R35: =N35-IFERROR(VLOOKUP(TEXT(A35,"0000"),G10RPassingR!$A$2:$S$200,4,FALSE),0) -> 0
A36: 0400 | B36: RENAISSANCE ELEMENTARY CHARTER | C36: 915 | D36: 159 | E36: 148 | F36: 151 | G36: 150 | H36: 151 | I36: 156 | R36: =N36-IFERROR(VLOOKUP(TEXT(A36,"0000"),G10RPassingR!$A$2:$S$200,4,FALSE),0) -> 0
A37: 0401 | B37: VAN E. BLANTON ELEMENTARY | C37: 541 | D37: 89 | E37: 87 | F37: 79 | G37: 96 | H37: 78 | I37: 74 | Q37: 38 | R37: =N37-IFERROR(VLOOKUP(TEXT(A37,"0000"),G10RPassingR!$A$2:$S$200,4,FALSE),0) -> 0
A38: 0410 | B38: ACADEMIR CHARTER SCHOOL WEST | C38: 613 | D38: 90 | E38: 97 | F38: 150 | G38: 109 | H38: 104 | I38: 63 | R38: =N38-IFERROR(VLOOKUP(TEXT(A38,"0000"),G10RPassingR!$A$2:$S$200,4,FALSE),0) -> 0
A39: 0441 | B39: BLUE LAKES ELEMENTARY | C39: 481 | D39: 91 | E39: 59 | F39: 56 | G39: 63 | H39: 73 | I39: 74 | Q39: 65 | R39: =N39-IFERROR(VLOOKUP(TEXT(A39,"0000"),G10RPassingR!$A$2:$S$200,4,FALSE),0) -> 0
A40: 0451 | B40: BOWMAN ASHE/DOOLIN K-8 ACAD | C40: 1313 | D40: 151 | E40: 128 | F40: 113 | G40: 116 | H40: 122 | I40: 146 | J40: 127 | K40: 164 | L40: 200 | Q40: 46 | R40: =N40-IFERROR(VLOOKUP(TEXT(A40,"0000"),G10RPassingR!$A$2:$S$200,4,FALSE),0) -> 0
A41: 0461 | B41: BRENTWOOD ELEMENTARY | C41: 758 | D41: 129 | E41: 125 | F41: 105 | G41: 128 | H41: 111 | I41: 103 | Q41: 57 | R41: =N41-IFERROR(VLOOKUP(TEXT(A41,"0000"),G10RPassingR!$A$2:$S$200,4,FALSE),0) -> 0
A42: 0481 | B42: JAMES H. BRIGHT/JW JOHNSON ES | C42: 697 | D42: 71 | E42: 87 | F42: 110 | G42: 121 | H42: 126 | I42: 122 | Q42: 60 | R42: =N42-IFERROR(VLOOKUP(TEXT(A42,"0000"),G10RPassingR!$A$2:$S$200,4,FALSE),0) -> 0
A43: 0510 | B43: ARCHIMEDEAN ACADEMY | C43: 575 | D43: 80 | E43: 102 | F43: 123 | G43: 103 | H43: 85 | I43: 82 | R43: =N43-IFERROR(VLOOKUP(TEXT(A43,"0000"),G10RPassingR!$A$2:$S$200,4,FALSE),0) -> 0
A44: 0520 | B44: SOMERSET ACADEMY | C44: 564 | D44: 81 | E44: 104 | F44: 104 | G44: 83 | H44: 102 | I44: 90 | R44: =N44-IFERROR(VLOOKUP(TEXT(A44,"0000"),G10RPassingR!$A$2:$S$200,4,FALSE),0) -> 0
A45: 0521 | B45: BROADMOOR ELEMENTARY | C45: 432 | D45: 75 | E45: 61 | F45: 65 | G45: 71 | H45: 57 | I45: 60 | Q45: 43 | R45: =N45-IFERROR(VLOOKUP(TEXT(A45,"0000"),G10RPassingR!$A$2:$S$200,4,FALSE),0) -> 0
A46: 0561 | B46: W.J. BRYAN ELEMENTARY | C46: 703 | D46: 125 | E46: 99 | F46: 126 | G46: 127 | H46: 92 | I46: 102 | Q46: 32 | R46: =N46-IFERROR(VLOOKUP(TEXT(A46,"0000"),G10RPassingR!$A$2:$S$200,4,FALSE),0) -> 0
A47: 0600 | B47: PINECREST PREP ACADEMY | C47: 645 | D47: 100 | E47: 75 | F47: 122 | G47: 114 | H47: 120 | I47: 114 | R47: =N47-IFERROR(VLOOKUP(TEXT(A47,"0000"),G10RPassingR!$A$2:$S$200,4,FALSE),0) -> 0
A48: 0641 | B48: BUNCHE PARK ELEMENTARY | C48: 282 | D48: 42 | E48: 48 | F48: 50 | G48: 41 | H48: 30 | I48: 33 | Q48: 38 | R48: =N48-IFERROR(VLOOKUP(TEXT(A48,"0000"),G10RPassingR!$A$2:$S$200,4,FALSE),0) -> 0
A49: 0651 | B49: CAMPBELL DRIVE K-8 CENTER | C49: 889 | D49: 110 | E49: 114 | F49: 109 | G49: 113 | H49: 84 | I49: 96 | J49: 81 | K49: 64 | L49: 67 | Q49: 51 | R49: =N49-IFERROR(VLOOKUP(TEXT(A49,"0000"),G10RPassingR!$A$2:$S$200,4,FALSE),0) -> 0
A50: 0661 | B50: CARIBBEAN ELEMENTARY | C50: 582 | D50: 118 | E50: 97 | F50: 94 | G50: 90 | H50: 66 | I50: 73 | Q50: 44 | R50: =N50-IFERROR(VLOOKUP(TEXT(A50,"0000"),G10RPassingR!$A$2:$S$200,4,FALSE),0) -> 0
A51: 0671 | B51: CALUSA ELEMENTARY | C51: 878 | D51: 125 | E51: 140 | F51: 157 | G51: 128 | H51: 143 | I51: 166 | Q51: 19 | R51: =N51-IFERROR(VLOOKUP(TEXT(A51,"0000"),G10RPassingR!$A$2:$S$200,4,FALSE),0) -> 0
A52: 0681 | B52: CAROL CITY ELEMENTARY | C52: 533 | D52: 87 | E52: 88 | F52: 80 | G52: 111 | H52: 63 | I52: 69 | Q52: 35 | R52: =N52-IFERROR(VLOOKUP(TEXT(A52,"0000"),G10RPassingR!$A$2:$S$200,4,FALSE),0) -> 0
A53: 0721 | B53: GEORGE WASHINGTON CARVER ELEM | C53: 457 | D53: 63 | E53: 72 | F53: 73 | G53: 77 | H53: 84 | I53: 88 | R53: =N53-IFERROR(VLOOKUP(TEXT(A53,"0000"),G10RPassingR!$A$2:$S$200,4,FALSE),0) -> 0
A54: 0761 | B54: FIENBERG/FISHER K-8 CENTER | C54: 806 | D54: 63 | E54: 71 | F54: 81 | G54: 84 | H54: 78 | I54: 81 | J54: 102 | K54: 101 | L54: 88 | Q54: 57 | R54: =N54-IFERROR(VLOOKUP(TEXT(A54,"0000"),G10RPassingR!$A$2:$S$200,4,FALSE),0) -> 0
A55: 0771 | B55: WILLIAM A. CHAPMAN ELEMENTARY | C55: 491 | D55: 84 | E55: 74 | F55: 65 | G55: 68 | H55: 66 | I55: 52 | Q55: 82 | R55: =N55-IFERROR(VLOOKUP(TEXT(A55,"0000"),G10RPassingR!$A$2:$S$200,4,FALSE),0) -> 0
A56: 0801 | B56: CITRUS GROVE ELEMENTARY | C56: 807 | D56: 119 | E56: 109 | F56: 128 | G56: 135 | H56: 116 | I56: 149 | Q56: 51 | R56: =N56-IFERROR(VLOOKUP(TEXT(A56,"0000"),G10RPassingR!$A$2:$S$200,4,FALSE),0) -> 0
A57: 0831 | B57: CLAUDE PEPPER ELEMENTARY | C57: 676 | D57: 100 | E57: 96 | F57: 105 | G57: 102 | H57: 122 | I57: 103 | Q57: 48 | R57: =N57-IFERROR(VLOOKUP(TEXT(A57,"0000"),G10RPassingR!$A$2:$S$200,4,FALSE),0) -> 0
A58: 0841 | B58: COCONUT GROVE ELEMENTARY | C58: 432 | D58: 87 | E58: 79 | F58: 68 | G58: 53 | H58: 58 | I58: 62 | Q58: 25 | R58: =N58-IFERROR(VLOOKUP(TEXT(A58,"0000"),G10RPassingR!$A$2:$S$200,4,FALSE),0) -> 0
A59: 0861 | B59: COLONIAL DRIVE ELEMENTARY | C59: 279 | D59: 41 | E59: 43 | F59: 35 | G59: 41 | H59: 48 | I59: 35 | Q59: 36 | R59: =N59-IFERROR(VLOOKUP(TEXT(A59,"0000"),G10RPassingR!$A$2:$S$200,4,FALSE),0) -> 0
A60: 0881 | B60: COMSTOCK ELEMENTARY | C60: 554 | D60: 92 | E60: 84 | F60: 88 | G60: 102 | H60: 64 | I60: 83 | Q60: 41 | R60: =N60-IFERROR(VLOOKUP(TEXT(A60,"0000"),G10RPassingR!$A$2:$S$200,4,FALSE),0) -> 0
A61: 0921 | B61: NEVA KING COOPER EDUCATIONAL | C61: 37 | D61: 3 | E61: 3 | G61: 4 | P61: 23 | Q61: 4 | R61: =N61-IFERROR(VLOOKUP(TEXT(A61,"0000"),G10RPassingR!$A$2:$S$200,4,FALSE),0) -> 0
A62: 0950 | B62: AVENTURA CITY OF EXCELLENCE | C62: 996 | D62: 109 | E62: 110 | F62: 108 | G62: 107 | H62: 120 | I62: 118 | J62: 107 | K62: 108 | L62: 109 | R62: =N62-IFERROR(VLOOKUP(TEXT(A62,"0000"),G10RPassingR!$A$2:$S$200,4,FALSE),0) -> 0
A63: 0961 | B63: CORAL GABLES PREPARATORY ACAD | C63: 762 | D63: 79 | E63: 78 | F63: 86 | G63: 80 | H63: 93 | I63: 95 | J63: 62 | K63: 75 | L63: 94 | Q63: 20 | R63: =N63-IFERROR(VLOOKUP(TEXT(A63,"0000"),G10RPassingR!$A$2:$S$200,4,FALSE),0) -> 0
A64: 1001 | B64: CORAL PARK ELEMENTARY | C64: 1089 | D64: 177 | E64: 165 | F64: 181 | G64: 157 | H64: 169 | I64: 170 | Q64: 70 | R64: =N64-IFERROR(VLOOKUP(TEXT(A64,"0000"),G10RPassingR!$A$2:$S$200,4,FALSE),0) -> 0
A65: 1010 | B65: CHARTER SCHOOL AT WATERSTONE | C65: 1001 | E65: 247 | F65: 229 | G65: 194 | H65: 169 | I65: 162 | R65: =N65-IFERROR(VLOOKUP(TEXT(A65,"0000"),G10RPassingR!$A$2:$S$200,4,FALSE),0) -> 0
A66: 1014 | B66: HIVE PREPARATORY SCHOOL | C66: 451 | D66: 73 | E66: 51 | F66: 104 | G66: 100 | H66: 63 | I66: 60 | R66: =N66-IFERROR(VLOOKUP(TEXT(A66,"0000"),G10RPassingR!$A$2:$S$200,4,FALSE),0) -> 0
A67: 1017 | B67: MATER ACADEMY OF INTL STUDIES | C67: 567 | D67: 123 | E67: 130 | F67: 113 | G67: 85 | H67: 70 | I67: 46 | R67: =N67-IFERROR(VLOOKUP(TEXT(A67,"0000"),G10RPassingR!$A$2:$S$200,4,FALSE),0) -> 0
A68: 1020 | B68: YOUTH CO-OP CHARTER SCHOOL | C68: 739 | D68: 126 | E68: 97 | F68: 81 | G68: 73 | H68: 81 | I68: 54 | J68: 67 | K68: 66 | L68: 94 | R68: =N68-IFERROR(VLOOKUP(TEXT(A68,"0000"),G10RPassingR!$A$2:$S$200,4,FALSE),0) -> 0
A69: 1041 | B69: CORAL REEF ELEMENTARY | C69: 817 | D69: 115 | E69: 151 | F69: 107 | G69: 141 | H69: 139 | I69: 145 | Q69: 19 | R69: =N69-IFERROR(VLOOKUP(TEXT(A69,"0000"),G10RPassingR!$A$2:$S$200,4,FALSE),0) -> 0
A70: 1070 | B70: SOUTH FLORIDA AUTISM CHARTER | C70: 30 | D70: 7 | E70: 5 | F70: 4 | G70: 5 | H70: 1 | J70: 6 | M70: 1 | P70: 1 | R70: =N70-IFERROR(VLOOKUP(TEXT(A70,"0000"),G10RPassingR!$A$2:$S$200,4,FALSE),0) -> 0
A71: 1081 | B71: CORAL TERRACE ELEMENTARY | C71: 472 | D71: 68 | E71: 75 | F71: 71 | G71: 87 | H71: 77 | I71: 75 | Q71: 19 | R71: =N71-IFERROR(VLOOKUP(TEXT(A71,"0000"),G10RPassingR!$A$2:$S$200,4,FALSE),0) -> 0
A72: 1121 | B72: CORAL WAY K-8 CENTER | C72: 1449 | D72: 130 | E72: 171 | F72: 139 | G72: 165 | H72: 167 | I72: 155 | J72: 174 | K72: 162 | L72: 155 | Q72: 31 | R72: =N72-IFERROR(VLOOKUP(TEXT(A72,"0000"),G10RPassingR!$A$2:$S$200,4,FALSE),0) -> 0
A73: 1161 | B73: CRESTVIEW ELEMENTARY | C73: 435 | D73: 81 | E73: 70 | F73: 65 | G73: 59 | H73: 75 | I73: 66 | Q73: 19 | R73: =N73-IFERROR(VLOOKUP(TEXT(A73,"0000"),G10RPassingR!$A$2:$S$200,4,FALSE),0) -> 0
A74: 1241 | B74: CUTLER RIDGE ELEMENTARY | C74: 757 | D74: 103 | E74: 126 | F74: 90 | G74: 120 | H74: 145 | I74: 154 | Q74: 19 | R74: =N74-IFERROR(VLOOKUP(TEXT(A74,"0000"),G10RPassingR!$A$2:$S$200,4,FALSE),0) -> 0
A75: 1281 | B75: CYPRESS ELEMENTARY | C75: 303 | D75: 38 | E75: 40 | F75: 62 | G75: 40 | H75: 47 | I75: 61 | Q75: 15 | R75: =N75-IFERROR(VLOOKUP(TEXT(A75,"0000"),G10RPassingR!$A$2:$S$200,4,FALSE),0) -> 0
A76: 1331 | B76: DEVON AIRE K-8 CENTER | C76: 1515 | D76: 147 | E76: 140 | F76: 171 | G76: 159 | H76: 156 | I76: 170 | J76: 174 | K76: 196 | L76: 183 | Q76: 19 | R76: =N76-IFERROR(VLOOKUP(TEXT(A76,"0000"),G10RPassingR!$A$2:$S$200,4,FALSE),0) -> 0
A77: 1361 | B77: FREDERICK DOUGLASS ELEMENTARY | C77: 277 | D77: 36 | E77: 36 | F77: 27 | G77: 36 | H77: 35 | I77: 21 | Q77: 86 | R77: =N77-IFERROR(VLOOKUP(TEXT(A77,"0000"),G10RPassingR!$A$2:$S$200,4,FALSE),0) -> 0
A78: 1371 | B78: MARJORY STONEMAN DOUGLAS ELEM | C78: 971 | D78: 117 | E78: 146 | F78: 167 | G78: 155 | H78: 157 | I78: 172 | Q78: 57 | R78: =N78-IFERROR(VLOOKUP(TEXT(A78,"0000"),G10RPassingR!$A$2:$S$200,4,FALSE),0) -> 0
A79: 1401 | B79: CHARLES R. DREW K-8 CENTER | C79: 396 | D79: 47 | E79: 47 | F79: 41 | G79: 36 | H79: 34 | I79: 32 | J79: 50 | K79: 40 | Q79: 69 | R79: =N79-IFERROR(VLOOKUP(TEXT(A79,"0000"),G10RPassingR!$A$2:$S$200,4,FALSE),0) -> 0
A80: 1441 | B80: PAUL LAURENCE DUNBAR K-8 CTR | C80: 361 | D80: 50 | E80: 46 | F80: 52 | G80: 67 | H80: 34 | I80: 50 | J80: 29 | K80: 21 | Q80: 12 | R80: =N80-IFERROR(VLOOKUP(TEXT(A80,"0000"),G10RPassingR!$A$2:$S$200,4,FALSE),0) -> 0
A81: 1481 | B81: JOHN G. DUPUIS ELEMENTARY | C81: 660 | D81: 78 | E81: 100 | F81: 105 | G81: 119 | H81: 96 | I81: 113 | Q81: 49 | R81: =N81-IFERROR(VLOOKUP(TEXT(A81,"0000"),G10RPassingR!$A$2:$S$200,4,FALSE),0) -> 0
A82: 1521 | B82: AMELIA EARHART ELEMENTARY | C82: 469 | D82: 66 | E82: 71 | F82: 58 | G82: 82 | H82: 81 | I82: 67 | Q82: 44 | R82: =N82-IFERROR(VLOOKUP(TEXT(A82,"0000"),G10RPassingR!$A$2:$S$200,4,FALSE),0) -> 0
A83: 1561 | B83: EARLINGTON HEIGHTS ELEMENTARY | C83: 473 | D83: 85 | E83: 89 | F83: 71 | G83: 93 | H83: 53 | I83: 63 | Q83: 19 | R83: =N83-IFERROR(VLOOKUP(TEXT(A83,"0000"),G10RPassingR!$A$2:$S$200,4,FALSE),0) -> 0
A84: 1601 | B84: EDISON PARK K-8 CENTER | C84: 431 | D84: 61 | E84: 57 | F84: 58 | G84: 73 | H84: 54 | I84: 48 | J84: 43 | K84: 20 | Q84: 17 | R84: =N84-IFERROR(VLOOKUP(TEXT(A84,"0000"),G10RPassingR!$A$2:$S$200,4,FALSE),0) -> 0
A85: 1641 | B85: EMERSON ELEMENTARY | C85: 373 | D85: 57 | E85: 60 | F85: 64 | G85: 49 | H85: 65 | I85: 58 | Q85: 20 | R85: =N85-IFERROR(VLOOKUP(TEXT(A85,"0000"),G10RPassingR!$A$2:$S$200,4,FALSE),0) -> 0
A86: 1681 | B86: LILLIE C. EVANS K-8 CENTER | C86: 511 | D86: 65 | E86: 46 | F86: 48 | G86: 74 | H86: 35 | I86: 51 | J86: 61 | K86: 46 | L86: 31 | Q86: 54 | R86: =N86-IFERROR(VLOOKUP(TEXT(A86,"0000"),G10RPassingR!$A$2:$S$200,4,FALSE),0) -> 0
A87: 1691 | B87: CHRISTINA M. EVE ELEMENTARY | C87: 637 | D87: 88 | E87: 99 | F87: 103 | G87: 121 | H87: 92 | I87: 109 | Q87: 25 | R87: =N87-IFERROR(VLOOKUP(TEXT(A87,"0000"),G10RPassingR!$A$2:$S$200,4,FALSE),0) -> 0
A88: 1721 | B88: EVERGLADES K-8 CENTER | C88: 1106 | D88: 100 | E88: 95 | F88: 129 | G88: 116 | H88: 100 | I88: 108 | J88: 133 | K88: 139 | L88: 148 | Q88: 38 | R88: =N88-IFERROR(VLOOKUP(TEXT(A88,"0000"),G10RPassingR!$A$2:$S$200,4,FALSE),0) -> 0
A89: 1761 | B89: DAVID FAIRCHILD ELEMENTARY | C89: 657 | D89: 113 | E89: 100 | F89: 105 | G89: 110 | H89: 115 | I89: 83 | Q89: 31 | R89: =N89-IFERROR(VLOOKUP(TEXT(A89,"0000"),G10RPassingR!$A$2:$S$200,4,FALSE),0) -> 0
A90: 1801 | B90: FAIRLAWN ELEMENTARY | C90: 675 | D90: 115 | E90: 96 | F90: 128 | G90: 103 | H90: 102 | I90: 112 | Q90: 19 | R90: =N90-IFERROR(VLOOKUP(TEXT(A90,"0000"),G10RPassingR!$A$2:$S$200,4,FALSE),0) -> 0
A91: 1811 | B91: DANTE B. FASCELL ELEMENTARY | C91: 513 | D91: 76 | E91: 82 | F91: 87 | G91: 82 | H91: 82 | I91: 84 | Q91: 20 | R91: =N91-IFERROR(VLOOKUP(TEXT(A91,"0000"),G10RPassingR!$A$2:$S$200,4,FALSE),0) -> 0
A92: 1841 | B92: FLAGAMI ELEMENTARY | C92: 463 | D92: 69 | E92: 69 | F92: 76 | G92: 79 | H92: 65 | I92: 79 | Q92: 26 | R92: =N92-IFERROR(VLOOKUP(TEXT(A92,"0000"),G10RPassingR!$A$2:$S$200,4,FALSE),0) -> 0
A93: 1881 | B93: HENRY M. FLAGLER ELEMENTARY | C93: 817 | D93: 125 | E93: 124 | F93: 138 | G93: 124 | H93: 132 | I93: 127 | Q93: 47 | R93: =N93-IFERROR(VLOOKUP(TEXT(A93,"0000"),G10RPassingR!$A$2:$S$200,4,FALSE),0) -> 0
A94: 1921 | B94: FLAMINGO ELEMENTARY | C94: 707 | D94: 93 | E94: 109 | F94: 109 | G94: 128 | H94: 127 | I94: 123 | Q94: 18 | R94: =N94-IFERROR(VLOOKUP(TEXT(A94,"0000"),G10RPassingR!$A$2:$S$200,4,FALSE),0) -> 0
A95: 2001 | B95: FLORIDA CITY ELEMENTARY | C95: 795 | D95: 135 | E95: 147 | F95: 140 | G95: 147 | H95: 78 | I95: 110 | Q95: 38 | R95: =N95-IFERROR(VLOOKUP(TEXT(A95,"0000"),G10RPassingR!$A$2:$S$200,4,FALSE),0) -> 0
A96: 2003 | B96: BRIDGEPREP ACADEMY SOUTH | C96: 348 | D96: 58 | E96: 57 | F96: 39 | G96: 75 | H96: 46 | I96: 40 | J96: 33 | R96: =N96-IFERROR(VLOOKUP(TEXT(A96,"0000"),G10RPassingR!$A$2:$S$200,4,FALSE),0) -> 0
A97: 2004 | B97: ISAAC ACADEMY K-8 | C97: 24 | G97: 24 | R97: =N97-IFERROR(VLOOKUP(TEXT(A97,"0000"),G10RPassingR!$A$2:$S$200,4,FALSE),0) -> 0
A98: 2006 | B98: RICHARD ALLEN LEADERSHIP ACAD | C98: 51 | D98: 5 | E98: 8 | F98: 8 | G98: 9 | H98: 11 | I98: 10 | R98: =N98-IFERROR(VLOOKUP(TEXT(A98,"0000"),G10RPassingR!$A$2:$S$200,4,FALSE),0) -> 0
A99: 2007 | B99: SOMERSET ACADEMY ELEMENTARY | C99: 472 | D99: 51 | E99: 78 | F99: 77 | G99: 74 | H99: 95 | I99: 97 | R99: =N99-IFERROR(VLOOKUP(TEXT(A99,"0000"),G10RPassingR!$A$2:$S$200,4,FALSE),0) -> 0
A100: 2012 | B100: SOMERSET ARTS ACADEMY | C100: 310 | D100: 39 | E100: 55 | F100: 59 | G100: 33 | H100: 54 | I100: 70 | R100: =N100-IFERROR(VLOOKUP(TEXT(A100,"0000"),G10RPassingR!$A$2:$S$200,4,FALSE),0) -> 0
A101: 2013 | B101: BRIDGEPREP ACAD GREATER MIAMI | C101: 301 | D101: 65 | E101: 73 | F101: 75 | G101: 39 | H101: 25 | I101: 24 | R101: =N101-IFERROR(VLOOKUP(TEXT(A101,"0000"),G10RPassingR!$A$2:$S$200,4,FALSE),0) -> 0
A102: 2021 | B102: GLORIA FLOYD ELEMENTARY | C102: 608 | D102: 107 | E102: 107 | F102: 102 | G102: 87 | H102: 80 | I102: 87 | Q102: 38 | R102: =N102-IFERROR(VLOOKUP(TEXT(A102,"0000"),G10RPassingR!$A$2:$S$200,4,FALSE),0) -> 0
A103: 2041 | B103: BENJAMIN FRANKLIN K-8 CENTER | C103: 580 | D103: 59 | E103: 64 | F103: 70 | G103: 73 | H103: 59 | I103: 65 | J103: 56 | K103: 63 | L103: 52 | Q103: 19 | R103: =N103-IFERROR(VLOOKUP(TEXT(A103,"0000"),G10RPassingR!$A$2:$S$200,4,FALSE),0) -> 0
A104: 2060 | B104: GIBSON CHARTER SCHOOL | C104: 252 | D104: 40 | E104: 25 | F104: 23 | G104: 37 | H104: 15 | I104: 24 | J104: 33 | K104: 33 | L104: 22 | R104: =N104-IFERROR(VLOOKUP(TEXT(A104,"0000"),G10RPassingR!$A$2:$S$200,4,FALSE),0) -> 0
A105: 2081 | B105: FULFORD ELEMENTARY | C105: 555 | D105: 98 | E105: 98 | F105: 85 | G105: 82 | H105: 75 | I105: 98 | Q105: 19 | R105: =N105-IFERROR(VLOOKUP(TEXT(A105,"0000"),G10RPassingR!$A$2:$S$200,4,FALSE),0) -> 0
A106: 2111 | B106: HIALEAH GARDENS ELEMENTARY | C106: 834 | D106: 114 | E106: 146 | F106: 129 | G106: 126 | H106: 134 | I106: 148 | Q106: 37 | R106: =N106-IFERROR(VLOOKUP(TEXT(A106,"0000"),G10RPassingR!$A$2:$S$200,4,FALSE),0) -> 0
A107: 2151 | B107: JACK D. GORDON ELEMENTARY | C107: 1093 | D107: 191 | E107: 180 | F107: 153 | G107: 179 | H107: 180 | I107: 189 | Q107: 21 | R107: =N107-IFERROR(VLOOKUP(TEXT(A107,"0000"),G10RPassingR!$A$2:$S$200,4,FALSE),0) -> 0
A108: 2161 | B108: GOLDEN GLADES ELEMENTARY | C108: 270 | D108: 36 | E108: 45 | F108: 32 | G108: 48 | H108: 33 | I108: 42 | Q108: 34 | R108: =N108-IFERROR(VLOOKUP(TEXT(A108,"0000"),G10RPassingR!$A$2:$S$200,4,FALSE),0) -> 0
A109: 2181 | B109: JOELLA C. GOOD ELEMENTARY | C109: 955 | D109: 152 | E109: 159 | F109: 141 | G109: 153 | H109: 166 | I109: 162 | Q109: 22 | R109: =N109-IFERROR(VLOOKUP(TEXT(A109,"0000"),G10RPassingR!$A$2:$S$200,4,FALSE),0) -> 0
A110: 2191 | B110: SPANISH LAKE ELEMENTARY | C110: 1691 | D110: 262 | E110: 272 | F110: 271 | G110: 274 | H110: 316 | I110: 289 | Q110: 7 | R110: =N110-IFERROR(VLOOKUP(TEXT(A110,"0000"),G10RPassingR!$A$2:$S$200,4,FALSE),0) -> 0
A111: 2241 | B111: GRATIGNY ELEMENTARY | C111: 650 | D111: 79 | E111: 74 | F111: 81 | G111: 89 | H111: 89 | I111: 77 | J111: 84 | Q111: 77 | R111: =N111-IFERROR(VLOOKUP(TEXT(A111,"0000"),G10RPassingR!$A$2:$S$200,4,FALSE),0) -> 0
A112: 2261 | B112: GREENGLADE ELEMENTARY | C112: 494 | D112: 76 | E112: 74 | F112: 61 | G112: 70 | H112: 85 | I112: 89 | Q112: 39 | R112: =N112-IFERROR(VLOOKUP(TEXT(A112,"0000"),G10RPassingR!$A$2:$S$200,4,FALSE),0) -> 0
A113: 2281 | B113: GREYNOLDS PARK ELEMENTARY | C113: 770 | D113: 135 | E113: 117 | F113: 117 | G113: 106 | H113: 110 | I113: 105 | Q113: 80 | R113: =N113-IFERROR(VLOOKUP(TEXT(A113,"0000"),G10RPassingR!$A$2:$S$200,4,FALSE),0) -> 0
A114: 2321 | B114: GULFSTREAM ELEMENTARY | C114: 593 | D114: 100 | E114: 99 | F114: 90 | G114: 86 | H114: 71 | I114: 61 | Q114: 86 | R114: =N114-IFERROR(VLOOKUP(TEXT(A114,"0000"),G10RPassingR!$A$2:$S$200,4,FALSE),0) -> 0
A115: 2331 | B115: CHARLES R. HADLEY ELEMENTARY | C115: 1033 | D115: 184 | E115: 167 | F115: 171 | G115: 163 | H115: 137 | I115: 170 | Q115: 41 | R115: =N115-IFERROR(VLOOKUP(TEXT(A115,"0000"),G10RPassingR!$A$2:$S$200,4,FALSE),0) -> 0
A116: 2341 | B116: JOE HALL ELEMENTARY | C116: 560 | D116: 76 | E116: 89 | F116: 80 | G116: 98 | H116: 103 | I116: 95 | Q116: 19 | R116: =N116-IFERROR(VLOOKUP(TEXT(A116,"0000"),G10RPassingR!$A$2:$S$200,4,FALSE),0) -> 0
A117: 2351 | B117: ENEIDA MASSAS HARTNER ELEM | C117: 565 | D117: 110 | E117: 100 | F117: 95 | G117: 82 | H117: 85 | I117: 74 | Q117: 19 | R117: =N117-IFERROR(VLOOKUP(TEXT(A117,"0000"),G10RPassingR!$A$2:$S$200,4,FALSE),0) -> 0
A118: 2361 | B118: HIALEAH ELEMENTARY | C118: 666 | D118: 92 | E118: 89 | F118: 106 | G118: 128 | H118: 109 | I118: 115 | Q118: 27 | R118: =N118-IFERROR(VLOOKUP(TEXT(A118,"0000"),G10RPassingR!$A$2:$S$200,4,FALSE),0) -> 0
A119: 2371 | B119: WEST HIALEAH GARDENS ELEM | C119: 1205 | D119: 165 | E119: 202 | F119: 187 | G119: 218 | H119: 202 | I119: 217 | Q119: 14 | R119: =N119-IFERROR(VLOOKUP(TEXT(A119,"0000"),G10RPassingR!$A$2:$S$200,4,FALSE),0) -> 0
A120: 2401 | B120: HIBISCUS ELEMENTARY | C120: 515 | D120: 94 | E120: 77 | F120: 74 | G120: 86 | H120: 83 | I120: 59 | Q120: 42 | R120: =N120-IFERROR(VLOOKUP(TEXT(A120,"0000"),G10RPassingR!$A$2:$S$200,4,FALSE),0) -> 0
A121: 2441 | B121: VIRGINIA A BOONE/HIGHLAND OAKS | C121: 745 | D121: 100 | E121: 102 | F121: 141 | G121: 120 | H121: 134 | I121: 124 | Q121: 24 | R121: =N121-IFERROR(VLOOKUP(TEXT(A121,"0000"),G10RPassingR!$A$2:$S$200,4,FALSE),0) -> 0
A122: 2501 | B122: HOLMES ELEMENTARY | C122: 559 | D122: 95 | E122: 106 | F122: 99 | G122: 111 | H122: 71 | I122: 60 | Q122: 17 | R122: =N122-IFERROR(VLOOKUP(TEXT(A122,"0000"),G10RPassingR!$A$2:$S$200,4,FALSE),0) -> 0
A123: 2511 | B123: ZORA NEALE HURSTON ELEMENTARY | C123: 762 | D123: 102 | E123: 105 | F123: 117 | G123: 107 | H123: 129 | I123: 128 | Q123: 74 | R123: =N123-IFERROR(VLOOKUP(TEXT(A123,"0000"),G10RPassingR!$A$2:$S$200,4,FALSE),0) -> 0
A124: 2521 | B124: OLIVER HOOVER ELEMENTARY | C124: 791 | D124: 109 | E124: 116 | F124: 116 | G124: 126 | H124: 138 | I124: 137 | Q124: 49 | R124: =N124-IFERROR(VLOOKUP(TEXT(A124,"0000"),G10RPassingR!$A$2:$S$200,4,FALSE),0) -> 0
A125: 2531 | B125: THENA C. CROWDER EARLY CHLDHD | C125: 54 | Q125: 54 | R125: =N125-IFERROR(VLOOKUP(TEXT(A125,"0000"),G10RPassingR!$A$2:$S$200,4,FALSE),0) -> 0
A126: 2541 | B126: HOWARD DRIVE ELEMENTARY | C126: 622 | D126: 87 | E126: 80 | F126: 89 | G126: 104 | H126: 97 | I126: 127 | Q126: 38 | R126: =N126-IFERROR(VLOOKUP(TEXT(A126,"0000"),G10RPassingR!$A$2:$S$200,4,FALSE),0) -> 0
A127: 2581 | B127: MADIE IVES ELEMENTARY | C127: 716 | D127: 101 | E127: 114 | F127: 130 | G127: 118 | H127: 106 | I127: 123 | Q127: 24 | R127: =N127-IFERROR(VLOOKUP(TEXT(A127,"0000"),G10RPassingR!$A$2:$S$200,4,FALSE),0) -> 0
A128: 2641 | B128: KENDALE ELEMENTARY | C128: 479 | D128: 72 | E128: 68 | F128: 76 | G128: 77 | H128: 82 | I128: 70 | Q128: 34 | R128: =N128-IFERROR(VLOOKUP(TEXT(A128,"0000"),G10RPassingR!$A$2:$S$200,4,FALSE),0) -> 0
A129: 2651 | B129: KENDALE LAKES ELEMENTARY | C129: 734 | D129: 108 | E129: 128 | F129: 105 | G129: 108 | H129: 116 | I129: 111 | Q129: 58 | R129: =N129-IFERROR(VLOOKUP(TEXT(A129,"0000"),G10RPassingR!$A$2:$S$200,4,FALSE),0) -> 0
A130: 2661 | B130: KENSINGTON PARK ELEMENTARY | C130: 1114 | D130: 188 | E130: 179 | F130: 148 | G130: 194 | H130: 168 | I130: 191 | Q130: 46 | R130: =N130-IFERROR(VLOOKUP(TEXT(A130,"0000"),G10RPassingR!$A$2:$S$200,4,FALSE),0) -> 0
A131: 2701 | B131: KENWOOD K-8 CENTER | C131: 1064 | D131: 107 | E131: 117 | F131: 92 | G131: 110 | H131: 121 | I131: 116 | J131: 111 | K131: 144 | L131: 121 | Q131: 25 | R131: =N131-IFERROR(VLOOKUP(TEXT(A131,"0000"),G10RPassingR!$A$2:$S$200,4,FALSE),0) -> 0
A132: 2741 | B132: KEY BISCAYNE K-8 CENTER | C132: 1418 | D132: 141 | E132: 169 | F132: 176 | G132: 156 | H132: 192 | I132: 171 | J132: 148 | K132: 162 | L132: 85 | Q132: 18 | R132: =N132-IFERROR(VLOOKUP(TEXT(A132,"0000"),G10RPassingR!$A$2:$S$200,4,FALSE),0) -> 0
A133: 2781 | B133: KINLOCH PARK ELEMENTARY | C133: 763 | D133: 108 | E133: 131 | F133: 115 | G133: 118 | H133: 129 | I133: 143 | Q133: 19 | R133: =N133-IFERROR(VLOOKUP(TEXT(A133,"0000"),G10RPassingR!$A$2:$S$200,4,FALSE),0) -> 0
A134: 2801 | B134: LAKE STEVENS ELEMENTARY | C134: 290 | D134: 39 | E134: 48 | F134: 40 | G134: 39 | H134: 37 | I134: 58 | Q134: 29 | R134: =N134-IFERROR(VLOOKUP(TEXT(A134,"0000"),G10RPassingR!$A$2:$S$200,4,FALSE),0) -> 0
A135: 2821 | B135: LAKEVIEW ELEMENTARY | C135: 432 | D135: 92 | E135: 60 | F135: 68 | G135: 67 | H135: 52 | I135: 68 | Q135: 25 | R135: =N135-IFERROR(VLOOKUP(TEXT(A135,"0000"),G10RPassingR!$A$2:$S$200,4,FALSE),0) -> 0
A136: 2881 | B136: LEEWOOD K-8 CENTER | C136: 811 | D136: 71 | E136: 97 | F136: 77 | G136: 88 | H136: 110 | I136: 114 | J136: 74 | K136: 75 | L136: 69 | Q136: 36 | R136: =N136-IFERROR(VLOOKUP(TEXT(A136,"0000"),G10RPassingR!$A$2:$S$200,4,FALSE),0) -> 0
A137: 2891 | B137: WILLIAM LEHMAN ELEMENTARY | C137: 673 | D137: 114 | E137: 108 | F137: 99 | G137: 100 | H137: 110 | I137: 112 | Q137: 30 | R137: =N137-IFERROR(VLOOKUP(TEXT(A137,"0000"),G10RPassingR!$A$2:$S$200,4,FALSE),0) -> 0
A138: 2901 | B138: LEISURE CITY K-8 CENTER | C138: 1019 | D138: 100 | E138: 101 | F138: 105 | G138: 103 | H138: 83 | I138: 121 | J138: 113 | K138: 103 | L138: 100 | Q138: 90 | R138: =N138-IFERROR(VLOOKUP(TEXT(A138,"0000"),G10RPassingR!$A$2:$S$200,4,FALSE),0) -> 0
A139: 2911 | B139: LINDA LENTIN K-8 CENTER | C139: 996 | D139: 109 | E139: 100 | F139: 78 | G139: 107 | H139: 98 | I139: 99 | J139: 147 | K139: 122 | L139: 99 | Q139: 37 | R139: =N139-IFERROR(VLOOKUP(TEXT(A139,"0000"),G10RPassingR!$A$2:$S$200,4,FALSE),0) -> 0
A140: 2941 | B140: LAURA C. SAUNDERS ELEMENTARY | C140: 712 | D140: 117 | E140: 121 | F140: 122 | G140: 117 | H140: 106 | I140: 109 | Q140: 20 | R140: =N140-IFERROR(VLOOKUP(TEXT(A140,"0000"),G10RPassingR!$A$2:$S$200,4,FALSE),0) -> 0
A141: 2981 | B141: LIBERTY CITY ELEMENTARY | C141: 407 | D141: 53 | E141: 69 | F141: 44 | G141: 58 | H141: 48 | I141: 52 | Q141: 83 | R141: =N141-IFERROR(VLOOKUP(TEXT(A141,"0000"),G10RPassingR!$A$2:$S$200,4,FALSE),0) -> 0
A142: 3021 | B142: JESSE J MCCRARY JR ELEMENTARY | C142: 641 | D142: 113 | E142: 128 | F142: 85 | G142: 104 | H142: 77 | I142: 95 | Q142: 39 | R142: =N142-IFERROR(VLOOKUP(TEXT(A142,"0000"),G10RPassingR!$A$2:$S$200,4,FALSE),0) -> 0
A143: 3024 | B143: FLORIDA INTERNATIONAL EL ACAD | C143: 452 | D143: 78 | E143: 77 | F143: 76 | G143: 95 | H143: 63 | I143: 63 | R143: =N143-IFERROR(VLOOKUP(TEXT(A143,"0000"),G10RPassingR!$A$2:$S$200,4,FALSE),0) -> 0
A144: 3025 | B144: ADVANTAGE ACADEMY SANTA FE | C144: 303 | D144: 60 | E144: 60 | F144: 79 | G144: 53 | H144: 18 | I144: 33 | R144: =N144-IFERROR(VLOOKUP(TEXT(A144,"0000"),G10RPassingR!$A$2:$S$200,4,FALSE),0) -> 0
A145: 3026 | B145: ADVANTAGE ACAD AT SUMMERVILLE | C145: 106 | D145: 106 | R145: =N145-IFERROR(VLOOKUP(TEXT(A145,"0000"),G10RPassingR!$A$2:$S$200,4,FALSE),0) -> 0
A146: 3027 | B146: ADVANTAGE ACAD AT WATERSTONE | C146: 142 | D146: 142 | R146: =N146-IFERROR(VLOOKUP(TEXT(A146,"0000"),G10RPassingR!$A$2:$S$200,4,FALSE),0) -> 0
A147: 3029 | B147: DORAL ACADEMY OF TECHNOLOGY | C147: 190 | J147: 57 | K147: 71 | L147: 62 | R147: =N147-IFERROR(VLOOKUP(TEXT(A147,"0000"),G10RPassingR!$A$2:$S$200,4,FALSE),0) -> 0
A148: 3030 | B148: DORAL ACADEMY | C148: 1130 | D148: 233 | E148: 228 | F148: 196 | G148: 171 | H148: 151 | I148: 151 | R148: =N148-IFERROR(VLOOKUP(TEXT(A148,"0000"),G10RPassingR!$A$2:$S$200,4,FALSE),0) -> 0
A149: 3032 | B149: PALM GLADES PREPATORY ACADEMY | C149: 412 | J149: 119 | K149: 170 | L149: 123 | R149: =N149-IFERROR(VLOOKUP(TEXT(A149,"0000"),G10RPassingR!$A$2:$S$200,4,FALSE),0) -> 0
A150: 3033 | B150: SOMERSET OAKS ACADEMY | C150: 68 | D150: 23 | E150: 30 | F150: 15 | R150: =N150-IFERROR(VLOOKUP(TEXT(A150,"0000"),G10RPassingR!$A$2:$S$200,4,FALSE),0) -> 0
A151: 3034 | B151: BRIDGEPREP ACAD VILLAGE GREEN | C151: 193 | D151: 39 | E151: 58 | F151: 51 | G151: 18 | H151: 16 | I151: 11 | R151: =N151-IFERROR(VLOOKUP(TEXT(A151,"0000"),G10RPassingR!$A$2:$S$200,4,FALSE),0) -> 0
A152: 3035 | B152: RAMZ ACADEMY ELEM MIAMI CAMPUS | C152: 185 | D152: 34 | E152: 42 | F152: 38 | G152: 25 | H152: 27 | I152: 19 | R152: =N152-IFERROR(VLOOKUP(TEXT(A152,"0000"),G10RPassingR!$A$2:$S$200,4,FALSE),0) -> 0
A153: 3041 | B153: LORAH PARK ELEMENTARY | C153: 428 | D153: 72 | E153: 85 | F153: 65 | G153: 77 | H153: 60 | I153: 52 | Q153: 17 | R153: =N153-IFERROR(VLOOKUP(TEXT(A153,"0000"),G10RPassingR!$A$2:$S$200,4,FALSE),0) -> 0
A154: 3051 | B154: TOUSSAINT L'OUVERTURE ELEM | C154: 455 | D154: 69 | E154: 66 | F154: 79 | G154: 84 | H154: 68 | I154: 68 | Q154: 21 | R154: =N154-IFERROR(VLOOKUP(TEXT(A154,"0000"),G10RPassingR!$A$2:$S$200,4,FALSE),0) -> 0
A155: 3061 | B155: LUDLAM ELEMENTARY | C155: 410 | D155: 87 | E155: 64 | F155: 70 | G155: 65 | H155: 58 | I155: 53 | Q155: 13 | R155: =N155-IFERROR(VLOOKUP(TEXT(A155,"0000"),G10RPassingR!$A$2:$S$200,4,FALSE),0) -> 0
A156: 3100 | B156: MATER ACADEMY EAST CHARTER | C156: 636 | D156: 137 | E156: 152 | F156: 114 | G156: 99 | H156: 72 | I156: 62 | R156: =N156-IFERROR(VLOOKUP(TEXT(A156,"0000"),G10RPassingR!$A$2:$S$200,4,FALSE),0) -> 0
A157: 3101 | B157: FRANK C. MARTIN K-8 CENTER | C157: 1133 | D157: 94 | E157: 109 | F157: 121 | G157: 119 | H157: 151 | I157: 127 | J157: 143 | K157: 122 | L157: 128 | Q157: 19 | R157: =N157-IFERROR(VLOOKUP(TEXT(A157,"0000"),G10RPassingR!$A$2:$S$200,4,FALSE),0) -> 0
A158: 3111 | B158: WESLEY MATTHEWS ELEMENTARY | C158: 539 | D158: 86 | E158: 98 | F158: 75 | G158: 78 | H158: 84 | I158: 80 | Q158: 38 | R158: =N158-IFERROR(VLOOKUP(TEXT(A158,"0000"),G10RPassingR!$A$2:$S$200,4,FALSE),0) -> 0
A159: 3141 | B159: MEADOWLANE ELEMENTARY | C159: 990 | D159: 123 | E159: 145 | F159: 163 | G159: 182 | H159: 173 | I159: 185 | Q159: 19 | R159: =N159-IFERROR(VLOOKUP(TEXT(A159,"0000"),G10RPassingR!$A$2:$S$200,4,FALSE),0) -> 0
A160: 3181 | B160: MELROSE ELEMENTARY | C160: 666 | D160: 69 | E160: 68 | F160: 77 | G160: 98 | H160: 85 | I160: 99 | Q160: 170 | R160: =N160-IFERROR(VLOOKUP(TEXT(A160,"0000"),G10RPassingR!$A$2:$S$200,4,FALSE),0) -> 0
A161: 3191 | B161: ADA MERRITT K-8 CENTER | C161: 699 | D161: 70 | E161: 72 | F161: 74 | G161: 79 | H161: 79 | I161: 60 | J161: 85 | K161: 91 | L161: 89 | R161: =N161-IFERROR(VLOOKUP(TEXT(A161,"0000"),G10RPassingR!$A$2:$S$200,4,FALSE),0) -> 0
A162: 3241 | B162: MIAMI GARDENS ELEMENTARY | C162: 266 | D162: 38 | E162: 45 | F162: 41 | G162: 40 | H162: 26 | I162: 46 | Q162: 30 | R162: =N162-IFERROR(VLOOKUP(TEXT(A162,"0000"),G10RPassingR!$A$2:$S$200,4,FALSE),0) -> 0
A163: 3261 | B163: MIAMI HEIGHTS ELEMENTARY | C163: 1167 | D163: 194 | E163: 186 | F163: 169 | G163: 173 | H163: 174 | I163: 171 | Q163: 100 | R163: =N163-IFERROR(VLOOKUP(TEXT(A163,"0000"),G10RPassingR!$A$2:$S$200,4,FALSE),0) -> 0
A164: 3281 | B164: MIAMI LAKES K-8 CENTER | C164: 1393 | D164: 157 | E164: 127 | F164: 156 | G164: 149 | H164: 137 | I164: 181 | J164: 150 | K164: 165 | L164: 152 | Q164: 19 | R164: =N164-IFERROR(VLOOKUP(TEXT(A164,"0000"),G10RPassingR!$A$2:$S$200,4,FALSE),0) -> 0
A165: 3301 | B165: MIAMI PARK ELEMENTARY | C165: 386 | D165: 44 | E165: 60 | F165: 67 | G165: 59 | H165: 54 | I165: 52 | Q165: 50 | R165: =N165-IFERROR(VLOOKUP(TEXT(A165,"0000"),G10RPassingR!$A$2:$S$200,4,FALSE),0) -> 0
A166: 3341 | B166: MIAMI SHORES ELEMENTARY | C166: 799 | D166: 124 | E166: 124 | F166: 164 | G166: 120 | H166: 124 | I166: 126 | Q166: 17 | R166: =N166-IFERROR(VLOOKUP(TEXT(A166,"0000"),G10RPassingR!$A$2:$S$200,4,FALSE),0) -> 0
A167: 3381 | B167: MIAMI SPRINGS ELEMENTARY | C167: 519 | D167: 73 | E167: 75 | F167: 80 | G167: 80 | H167: 88 | I167: 97 | Q167: 26 | R167: =N167-IFERROR(VLOOKUP(TEXT(A167,"0000"),G10RPassingR!$A$2:$S$200,4,FALSE),0) -> 0
A168: 3421 | B168: M.A. MILAM K-8 CENTER | C168: 952 | D168: 77 | E168: 86 | F168: 90 | G168: 86 | H168: 96 | I168: 101 | J168: 109 | K168: 128 | L168: 159 | Q168: 20 | R168: =N168-IFERROR(VLOOKUP(TEXT(A168,"0000"),G10RPassingR!$A$2:$S$200,4,FALSE),0) -> 0
A169: 3431 | B169: PHYLLIS RUTH MILLER ELEMENTARY | C169: 685 | D169: 113 | E169: 112 | F169: 86 | G169: 104 | H169: 114 | I169: 97 | Q169: 59 | R169: =N169-IFERROR(VLOOKUP(TEXT(A169,"0000"),G10RPassingR!$A$2:$S$200,4,FALSE),0) -> 0
A170: 3501 | B170: MORNINGSIDE K-8 ACADEMY | C170: 489 | D170: 70 | E170: 58 | F170: 59 | G170: 72 | H170: 49 | I170: 80 | J170: 47 | K170: 24 | Q170: 30 | R170: =N170-IFERROR(VLOOKUP(TEXT(A170,"0000"),G10RPassingR!$A$2:$S$200,4,FALSE),0) -> 0
A171: 3541 | B171: ROBERT RUSSA MOTON ELEMENTARY | C171: 374 | D171: 70 | E171: 67 | F171: 66 | G171: 52 | H171: 33 | I171: 47 | Q171: 39 | R171: =N171-IFERROR(VLOOKUP(TEXT(A171,"0000"),G10RPassingR!$A$2:$S$200,4,FALSE),0) -> 0
A172: 3581 | B172: MYRTLE GROVE K-8 CENTER | C172: 515 | D172: 74 | E172: 64 | F172: 63 | G172: 60 | H172: 40 | I172: 57 | J172: 59 | K172: 41 | Q172: 57 | R172: =N172-IFERROR(VLOOKUP(TEXT(A172,"0000"),G10RPassingR!$A$2:$S$200,4,FALSE),0) -> 0
A173: 3600 | B173: DOWNTOWN MIAMI CHARTER SCHOOL | C173: 648 | D173: 104 | E173: 97 | F173: 100 | G173: 96 | H173: 81 | I173: 98 | J173: 72 | R173: =N173-IFERROR(VLOOKUP(TEXT(A173,"0000"),G10RPassingR!$A$2:$S$200,4,FALSE),0) -> 0
A174: 3610 | B174: KEYS GATE CHARTER SCHOOL | C174: 2197 | D174: 202 | E174: 226 | F174: 219 | G174: 259 | H174: 257 | I174: 204 | J174: 277 | K174: 258 | L174: 295 | R174: =N174-IFERROR(VLOOKUP(TEXT(A174,"0000"),G10RPassingR!$A$2:$S$200,4,FALSE),0) -> 0
A175: 3621 | B175: COCONUT PALM K-8 ACADEMY | C175: 1285 | D175: 160 | E175: 139 | F175: 168 | G175: 165 | H175: 144 | I175: 146 | J175: 136 | K175: 121 | L175: 106 | R175: =N175-IFERROR(VLOOKUP(TEXT(A175,"0000"),G10RPassingR!$A$2:$S$200,4,FALSE),0) -> 0
A176: 3661 | B176: NATURAL BRIDGE ELEMENTARY | C176: 628 | D176: 108 | E176: 90 | F176: 85 | G176: 101 | H176: 83 | I176: 85 | Q176: 76 | R176: =N176-IFERROR(VLOOKUP(TEXT(A176,"0000"),G10RPassingR!$A$2:$S$200,4,FALSE),0) -> 0
A177: 3701 | B177: NORLAND ELEMENTARY | C177: 630 | D177: 106 | E177: 105 | F177: 95 | G177: 98 | H177: 78 | I177: 108 | Q177: 40 | R177: =N177-IFERROR(VLOOKUP(TEXT(A177,"0000"),G10RPassingR!$A$2:$S$200,4,FALSE),0) -> 0
A178: 3741 | B178: NORTH BEACH ELEMENTARY | C178: 1035 | D178: 175 | E178: 162 | F178: 174 | G178: 163 | H178: 176 | I178: 146 | Q178: 39 | R178: =N178-IFERROR(VLOOKUP(TEXT(A178,"0000"),G10RPassingR!$A$2:$S$200,4,FALSE),0) -> 0
A179: 3781 | B179: BARBARA HAWKINS ELEMENTARY | C179: 352 | D179: 53 | E179: 50 | F179: 64 | G179: 52 | H179: 62 | I179: 51 | Q179: 20 | R179: =N179-IFERROR(VLOOKUP(TEXT(A179,"0000"),G10RPassingR!$A$2:$S$200,4,FALSE),0) -> 0
A180: 3821 | B180: NORTH COUNTY K-8 CENTER | C180: 456 | D180: 61 | E180: 53 | F180: 51 | G180: 57 | H180: 56 | I180: 49 | J180: 38 | K180: 36 | L180: 35 | Q180: 20 | R180: =N180-IFERROR(VLOOKUP(TEXT(A180,"0000"),G10RPassingR!$A$2:$S$200,4,FALSE),0) -> 0
A181: 3861 | B181: NORTH GLADE ELEMENTARY | C181: 361 | D181: 53 | E181: 59 | F181: 51 | G181: 67 | H181: 53 | I181: 49 | Q181: 29 | R181: =N181-IFERROR(VLOOKUP(TEXT(A181,"0000"),G10RPassingR!$A$2:$S$200,4,FALSE),0) -> 0
A182: 3901 | B182: NORTH HIALEAH ELEMENTARY | C182: 572 | D182: 69 | E182: 85 | F182: 96 | G182: 122 | H182: 78 | I182: 104 | Q182: 18 | R182: =N182-IFERROR(VLOOKUP(TEXT(A182,"0000"),G10RPassingR!$A$2:$S$200,4,FALSE),0) -> 0
A183: 3941 | B183: NORTH MIAMI ELEMENTARY | C183: 582 | D183: 91 | E183: 82 | F183: 82 | G183: 95 | H183: 66 | I183: 90 | Q183: 76 | R183: =N183-IFERROR(VLOOKUP(TEXT(A183,"0000"),G10RPassingR!$A$2:$S$200,4,FALSE),0) -> 0
A184: 3981 | B184: NORTH TWIN LAKES ELEMENTARY | C184: 581 | D184: 80 | E184: 82 | F184: 91 | G184: 85 | H184: 85 | I184: 107 | Q184: 51 | R184: =N184-IFERROR(VLOOKUP(TEXT(A184,"0000"),G10RPassingR!$A$2:$S$200,4,FALSE),0) -> 0
A185: 4000 | B185: MIAMI CHILDREN'S MUSEUM | C185: 310 | D185: 61 | E185: 60 | F185: 52 | G185: 51 | H185: 52 | I185: 34 | R185: =N185-IFERROR(VLOOKUP(TEXT(A185,"0000"),G10RPassingR!$A$2:$S$200,4,FALSE),0) -> 0
A186: 4001 | B186: NORWOOD ELEMENTARY | C186: 489 | D186: 78 | E186: 74 | F186: 88 | G186: 92 | H186: 63 | I186: 63 | Q186: 31 | R186: =N186-IFERROR(VLOOKUP(TEXT(A186,"0000"),G10RPassingR!$A$2:$S$200,4,FALSE),0) -> 0
A187: 4012 | B187: SOMERSET ACAD AT SILVER PALMS | C187: 653 | D187: 147 | E187: 140 | F187: 135 | G187: 70 | H187: 69 | I187: 92 | R187: =N187-IFERROR(VLOOKUP(TEXT(A187,"0000"),G10RPassingR!$A$2:$S$200,4,FALSE),0) -> 0
A188: 4021 | B188: OAK GROVE ELEMENTARY | C188: 627 | D188: 86 | E188: 91 | F188: 96 | G188: 96 | H188: 84 | I188: 97 | J188: 42 | Q188: 35 | R188: =N188-IFERROR(VLOOKUP(TEXT(A188,"0000"),G10RPassingR!$A$2:$S$200,4,FALSE),0) -> 0
A189: 4031 | B189: GATEWAY ENVIRONMENTAL K-8 | C189: 1733 | D189: 215 | E189: 238 | F189: 230 | G189: 197 | H189: 203 | I189: 188 | J189: 153 | K189: 150 | L189: 125 | Q189: 34 | R189: =N189-IFERROR(VLOOKUP(TEXT(A189,"0000"),G10RPassingR!$A$2:$S$200,4,FALSE),0) -> 0
A190: 4061 | B190: OJUS ELEMENTARY | C190: 941 | D190: 159 | E190: 166 | F190: 157 | G190: 147 | H190: 144 | I190: 168 | R190: =N190-IFERROR(VLOOKUP(TEXT(A190,"0000"),G10RPassingR!$A$2:$S$200,4,FALSE),0) -> 0
